Workbook

Sheet 목차
B1: 2023년도 국가연구개발사업 조사분석 통계표
B3: 1. 국가연구개발사업 총괄 집행현황
B5: 1-1. 국가연구개발사업의 총괄 집행 추이, 2019-2023
B6: 1-2. 부처별 국가연구개발사업 집행 추이, 2022-2023
B7: 1-3. 연구수행주체별 집행 추이, 2019-2023
B8: 1-4. 연구수행주체별 과제 당 연구비 추이, 2019-2023
B9: 1-5. 출연연구소 유형별 국가연구개발사업 집행 추이, 2019-2023
B10: 1-6. 세부과제지원유형별 연구개발단계별 집행 추이, 2020-2023
B11: 1-7. 지역별 집행 추이, 2019-2023
B12: 1-8. 국가과학기술표준분류 연구분야별 집행 추이, 2019-2023
B13: 1-9. 국가과학기술표준분류 연구분야기준 단일 및 융합 분야 과제 집행 추이, 2019-2023
B14: 1-10. 국가전략기술별 집행 추이, 2023
B15: 1-11. 국가과학기술표준분류 적용분야별 집행 추이, 2019-2023
B16: 1-12. 경제사회목적별 집행 추이, 2019-2023
B17: 1-13. 미래유망신기술(6T)별 집행 추이, 2019-2023
B18: 1-14. 연구비 규모별 세부과제 당 연구비 추이, 2019-2023
B19: 1-15. 연구수행주체별 연구비 규모에 따른 세부과제 수 추이, 2019-2023
B20: 1-16. 신규･계속과제의 과제 수와 과제당 연구비 추이, 2019-2023
B22: 2. 부처별 집행현황
B24: 2-1. 주요부처별 연구개발단계별 집행 추이, 2019-2023
B25: 2-2. 부처별 연구개발단계별 집행 추이, 2019-2023
B26: 2-3. 주요부처별 연구수행주체별 집행 추이, 2019-2023
B27: 2-4. 부처별 연구수행주체별 집행 추이, 2019-2023
B28: 2-5. 부처별 지역별 집행 추이, 2019-2023
B29: 2-6. 부처별 국가과학기술표준분류 연구분야별 상세분류 집행 현황(2023년)
B30: 2-7. 부처별 국가과학기술표준분류 적용분야별 집행 현황(2023년)
B31: 2-8. 부처별 미래유망기술(6T)별 상세분류 집행 현황(2023년)
B32: 2-9. 부처별 국가전략기술별 상세분류 집행 현황(2023년)
B34: 3. 연구수행주체별 집행현황
B36: 3-1. 연구수행주체별 국가과학기술표준분류 연구분야별 상세분류 집행 현황(2023년)
B37: 3-2. 연구수행주체별 국가과학기술표준분류 적용분야별 집행 현황(2023년)
B38: 3-3. 연구수행주체별 미래유망기술(6T)별 상세분류 집행 현황(2023년)
B39: 3-4. 연구수행주체별 국가전략기술별 상세분류 집행 현황(2023년)
B40: 3-5. 연구수행주체별 비목별 집행 추이, 2019-2023
B42: 4. 연구개발단계별 집행현황
B44: 4-1. 연구개발단계별 연구수행주체 집행 추이, 2019-2023
B45: 4-2. 연구개발단계별 국가과학기술표준분류 연구분류별 집행 현황(2023년)
B46: 4-3. 연구개발단계별 국가과학기술표준분류 적용분야별 집행 현황(2023년)
B47: 4-4. 연구개발단계별 미래유망신기술(6T) 상세분류 집행 현황(2023년)
B48: 4-5. 연구개발단계별 국가전략기술 상세분류 집행 현황(2023년)
B49: 4-6. 연구개발단계별 집행추이, 2019-2023
B51: 5. 지역별 집행현황
B53: 5-1. 지역별 주요부처별 집행 추이, 2019-2023
B54: 5-2. 지역별 연구수행주체별 집행 추이, 2019-2023
B55: 5-3. 지역별 대응자금 집행 추이, 2019-2023
B56: 5-4. 지역별 국가과학기술표준분류 연구분야별 상세분류 집행 현황(2023년)
B57: 5-5. 지역별 국가과학기술표준분류 적용분야별 집행 현황(2023년)
B58: 5-6. 지역별 미래유망기술(6T)별 상세분류 집행 현황(2023년)
B59: 5-7. 지역별 국가전략기술별 상세분류 집행 현황(2023년)
B61: 6. 공동･위탁연구 집행현황
B63: 6-1. 참여기관 유형별 공동･위탁연구 집행 추이, 2019-2023
B64: 6-2. 주요 부처별 공동･위탁연구 집행 추이, 2019-2023
B65: 6-3. 주요 부처별 국제 공동･위탁연구 집행 추이, 2019-2023
B66: 6-4. 국제 공동･위탁연구 참여국가 현황, 2020-2022
B67: 6-5. 주요 국가별 국제 공동･위탁연구 추이, 2019-2023
B68: 6-6. 유형별 국내 공동연구 추이, 2019-2023
B69: 6-7. 협력유형별 공동･위탁연구 집행 추이, 2019-2023
B71: 7. 연구책임자 현황
B73: 7-1. 성별 연구책임자 추이, 2019-2023
B74: 7-2. 연령별 연구책임자 추이, 2019-2023
B75: 7-3. 연구수행주체별 연구책임자의 성별 분포 추이, 2019-2023
B76: 7-4. 성별 연구책임자 1인당 연구비 추이, 2019-2023
B77: 7-5. 신진 연구자 1인당 연구비 추이, 2019-2023
B78: 7-6. 연구수행주체별 연구책임자 1인당 연구비 추이, 2019-2023
B79: 7-7. 연구비 규모별 연구책임자 수 비중 추이, 2019-2023
B80: 7-8. 전공별 연구책임자의 성별 분포 추이, 2019-2023
B81: 7-9. 전공별 연구책임자 1인당 연구비 추이, 2019-2023
B82: 7-10. 학위별 성별 연구책임자 분포 추이, 2019-2023

Sheet 1-1
A1: 1-1. 국가연구개발사업의 총괄 집행 추이, 2019-2023 | E1: 목차
H3: (단위 : 억원)
A4: 구 분 | C4: 2019년 | D4: 2020년 | E4: 2021년 | F4: 2022년 | G4: 2023년 | H4: 최근 5년간
H5: (’19~’23)
H6: 연평균
H7: 증가율
A8: 정부 예산 | B8: 일반회계 예산(A) | C8: 2791077 | D8: 2960386 | E8: 3148401 | F8: 3502245 | G8: 3694343 | H8: =RATE(4,0,-C8,G8) -> 0.07260878399
B9: 일반+특별회계 예산(B) | C9: 3289199 | D9: 3511186 | E9: 3750382 | F9: 4130228 | G9: 4410676 | H9: =RATE(4,0,-C9,G9) -> 0.07610277599
B10: 총지출규모(C) | C10: 4695752 | D10: 5122504 | E10: 5579872 | F10: 6076633 | G10: 6387277 | H10: =RATE(4,0,-C10,G10) -> 0.07994751549
A11: 정부연구 개발예산 | B11: 일반(D)* | C11: 163686 | D11: 178556 | E11: 198864 | F11: 214752 | G11: 205286 | H11: =RATE(4,0,-C11,G11) -> 0.05824676406
C12: (166,774) | D12: (178,935) | E12: (199,931) | F12: (213,721)
B13: (D/A) | C13: 0.059 | D13: 0.06 | E13: 0.063 | F13: =F11/F8 -> 0.06131838292 | G13: =G11/G8 -> 0.05556766115
B14: 일반+특별(E)* | C14: 187992 | D14: 224431 | E14: 253921 | F14: 272407 | G14: 286349 | H14: =RATE(4,0,-C14,G14) -> 0.1109360902
C15: (191,135) | D15: (224,494) | E15: (254,998) | F15: (270,066)
B16: (E/B) | C16: 0.057 | D16: 0.064 | E16: 0.068 | F16: =F14/F9 -> 0.06595447031 | G16: =G14/G9 -> 0.0649217943
B17: 일반+특별+기금(F)* | C17: 205328 | D17: 242195 | E17: 274005 | F17: 297770 | G17: 310778 | H17: =RATE(4,0,-C17,G17) -> 0.1091761501
C18: (208,532) | D18: (242,558) | E18: (275,072) | F18: (295,138)
B19: (F/C) | C19: =C17/C10 -> 0.04372632967 | D19: =D17/D10 -> 0.04728058778 | E19: =E17/E10 -> 0.04910596515 | F19: =F17/F10 -> 0.04900246567 | G19: =G17/G10 -> 0.04865578869
A20: 조사･분석 대상 | B20: 집행액 | C20: 206254 | D20: 238803 | E20: 265791 | F20: 286782 | G20: 305731 | H20: =RATE(4,0,-C20,G20) -> 0.1034032892
B21: 사업수(건) | C21: 847 | D21: 1022 | E21: 1181 | F21: 1397 | G21: 1463 | H21: =RATE(4,0,-C21,G21) -> 0.1464106949
B22: 과제수(건) | C22: 70327 | D22: 73501 | E22: 74745 | F22: 76052 | G22: 71804 | H22: =RATE(4,0,-C22,G22) -> 0.005209620991
A24: * 괄호 안은 추경예산 및 수정된 기금운용계획 기준

Sheet 1-2
A1: 1-2. 부처별 국가연구개발사업 집행 추이, 2022-2023 | F1: 목차
K3: (단위 : 건, 억원)
A4: 구 분 | B4: 2022년 | F4: 2023년 | J4: 증감
B5: 사업수 | C5: 세부 | D5: 금액(A) | E5: 비중 | F5: 사업수 | G5: 세부 | H5: 금액(B) | I5: 비중 | J5: B-A | K5: %
C6: 과제수 | G6: 과제수
A7: 개인정보보호위원회 | B7: 1 | C7: 4 | D7: 29 | E7: 0 | F7: 2 | G7: 13 | H7: 75 | I7: 0 | J7: 46 | K7: 158.6
A8: 경찰청 | B8: 10 | C8: 44 | D8: 495 | E8: 0.2 | F8: 12 | G8: 51 | H8: 542 | I8: 0.2 | J8: 47 | K8: 9.5
A9: 과학기술정보통신부 | B9: 343 | C9: 25127 | D9: 89089 | E9: 31.1 | F9: 382 | G9: 23640 | H9: 94145 | I9: 30.8 | J9: 5056 | K9: 5.7
A10: 교육부 | B10: 23 | C10: 14728 | D10: 23904 | E10: 8.3 | F10: 23 | G10: 15504 | H10: 28199 | I10: 9.2 | J10: 4295 | K10: 18
A11: 국무조정실 | B11: 31 | C11: 1007 | D11: 5571 | E11: 1.9 | F11: 30 | G11: 940 | H11: 5439 | I11: 1.8 | J11: △132 | K11: △2.4
A12: 국방부 | B12: 3 | C12: 14 | D12: 662 | E12: 0.2 | F12: 3 | G12: 18 | H12: 806 | I12: 0.3 | J12: 144 | K12: 21.8
A13: 국토교통부 | B13: 86 | C13: 499 | D13: 5622 | E13: 2 | F13: 104 | G13: 366 | H13: 6032 | I13: 2 | J13: 410 | K13: 7.3
A14: 기상청 | B14: 22 | C14: 168 | D14: 1236 | E14: 0.4 | F14: 21 | G14: 134 | H14: 1224 | I14: 0.4 | J14: △12 | K14: △1.0
A15: 기획재정부 | B15: 41 | C15: 574 | D15: 2878 | E15: 1 | F15: 2 | G15: 2 | H15: 7 | I15: 0 | J15: △2871 | K15: △99.8
A16: 농림축산식품부 | B16: 31 | C16: 1624 | D16: 2662 | E16: 0.9 | F16: 27 | G16: 1347 | H16: 2535 | I16: 0.8 | J16: △127 | K16: △4.8
A17: 농촌진흥청 | B17: 61 | C17: 4676 | D17: 8124 | E17: 2.8 | F17: 58 | G17: 1567 | H17: 8777 | I17: 2.9 | J17: 653 | K17: 8
A18: 다부처 | B18: 31 | C18: 1557 | D18: 9252 | E18: 3.2 | F18: 29 | G18: 1445 | H18: 9360 | I18: 3.1 | J18: 108 | K18: 1.2
A19: 문화재청 | B19: 6 | C19: 76 | D19: 641 | E19: 0.2 | F19: 6 | G19: 73 | H19: 678 | I19: 0.2 | J19: 37 | K19: 5.8
A20: 문화체육관광부 | B20: 14 | C20: 130 | D20: 1290 | E20: 0.4 | F20: 14 | G20: 147 | H20: 1291 | I20: 0.4 | J20: 1 | K20: 0.1
A21: 방위사업청 | B21: 8 | C21: 730 | D21: 41061 | E21: 14.3 | F21: 8 | G21: 846 | H21: 45992 | I21: 15 | J21: 4931 | K21: 12
A22: 법무부 | B22: 2 | C22: 15 | D22: 26 | E22: 0 | F22: 2 | G22: 14 | H22: 27 | I22: 0 | J22: 1 | K22: 3.8
A23: 법제처 | B23: 0 | C23: 0 | D23: 0 | E23: 0 | F23: 1 | G23: 1 | H23: 1 | I23: 0 | J23: 1 | K23: -
A24: 보건복지부 | B24: 68 | C24: 2627 | D24: 6224 | E24: 2.2 | F24: 69 | G24: 2864 | H24: 6140 | I24: 2 | J24: △84 | K24: △1.3
A25: 산림청 | B25: 23 | C25: 526 | D25: 1471 | E25: 0.5 | F25: 24 | G25: 509 | H25: 1625 | I25: 0.5 | J25: 154 | K25: 10.5
A26: 산업통상자원부 | B26: 238 | C26: 5956 | D26: 50675 | E26: 17.7 | F26: 265 | G26: 6161 | H26: 54576 | I26: 17.9 | J26: 3901 | K26: 7.7
A27: 소방청 | B27: 7 | C27: 32 | D27: 223 | E27: 0.1 | F27: 10 | G27: 29 | H27: 243 | I27: 0.1 | J27: 20 | K27: 9
A28: 식품의약품안전처 | B28: 14 | C28: 590 | D28: 1102 | E28: 0.4 | F28: 15 | G28: 654 | H28: 1341 | I28: 0.4 | J28: 239 | K28: 21.7
A29: 여성가족부 | B29: 1 | C29: 9 | D29: 2 | E29: 0 | F29: 1 | G29: 8 | H29: 2 | I29: 0 | J29: 0 | K29: 0
A30: 외교부 | B30: 1 | C30: 2 | D30: 1 | E30: 0 | F30: 1 | G30: 8 | H30: 4 | I30: 0 | J30: 3 | K30: 300
A31: 원자력안전위원회 | B31: 12 | C31: 213 | D31: 1149 | E31: 0.4 | F31: 13 | G31: 179 | H31: 979 | I31: 0.3 | J31: △170 | K31: △14.8
A32: 조달청 | B32: 0 | C32: 0 | D32: 0 | E32: 0 | F32: 1 | G32: 7 | H32: 17 | I32: 0 | J32: 17 | K32: -
A33: 중소벤처기업부 | B33: 49 | C33: 12283 | D33: 17296 | E33: 6 | F33: 51 | G33: 12550 | H33: 18224 | I33: 6 | J33: 928 | K33: 5.4
A34: 질병관리청 | B34: 17 | C34: 198 | D34: 1448 | E34: 0.5 | F34: 21 | G34: 304 | H34: 1934 | I34: 0.6 | J34: 486 | K34: 33.6
A35: 특허청 | B35: 3 | C35: 12 | D35: 588 | E35: 0.2 | F35: 3 | G35: 9 | H35: 490 | I35: 0.2 | J35: △98 | K35: △16.7
A36: 해양경찰청 | B36: 9 | C36: 113 | D36: 341 | E36: 0.1 | F36: 12 | G36: 93 | H36: 402 | I36: 0.1 | J36: 61 | K36: 17.9
A37: 해양수산부 | B37: 107 | C37: 1558 | D37: 8370 | E37: 2.9 | F37: 114 | G37: 1388 | H37: 9212 | I37: 3 | J37: 842 | K37: 10.1
A38: 행정안전부 | B38: 23 | C38: 175 | D38: 1101 | E38: 0.4 | F38: 24 | G38: 174 | H38: 1175 | I38: 0.4 | J38: 74 | K38: 6.7
A39: 행정중심복합도시건설청 | B39: 1 | C39: 4 | D39: 4 | E39: 0 | F39: 1 | G39: 5 | H39: 4 | I39: 0 | J39: 0 | K39: 0
A40: 환경부 | B40: 51 | C40: 781 | D40: 4247 | E40: 1.5 | F40: 48 | G40: 754 | H40: 4232 | I40: 1.4 | J40: △15 | K40: △0.4
A41: 총합계 | B41: 1337 | C41: 76052 | D41: 286782 | E41: 100 | F41: 1397 | G41: 71804 | H41: 305731 | I41: 100 | J41: 18949 | K41: 6.6

Sheet 1-3
A1: 1-3. 연구수행주체별 집행 추이, 2019-2023 | G1: 목차
M3: (단위 : 억원, %)
A4: 구 분 | B4: 2019년 | D4: 2020년 | F4: 2021년 | H4: 2022년 | J4: 2023년 | L4: 증 감
B5: 금액 | C5: 비중 | D5: 금액 | E5: 비중 | F5: 금액 | G5: 비중 | H5: 금액(A) | I5: 비중 | J5: 금액(B) | K5: 비중 | L5: B-A | M5: %
A6: 국공립연구소 | B6: 10527 | C6: 5.1 | D6: 11323 | E6: 4.7 | F6: 12313 | G6: 4.6 | H6: 13024 | I6: 4.5 | J6: 14404 | K6: 4.7 | L6: 1380 | M6: 10.6
A7: 출연연구소 | B7: 82597 | C7: 40 | D7: 90289 | E7: 37.8 | F7: 96058 | G7: 36.1 | H7: 103737 | I7: 36.2 | J7: 110861 | K7: 36.3 | L7: 7124 | M7: 6.9
A8: 대학 | B8: 50278 | C8: 24.4 | D8: 57508 | E8: 24.1 | F8: 63317 | G8: 23.8 | H8: 69738 | I8: 24.3 | J8: 74033 | K8: 24.2 | L8: 4295 | M8: 6.2
A9: 대기업 | B9: 3735 | C9: 1.8 | D9: 3820 | E9: 1.6 | F9: 4327 | G9: 1.6 | H9: 5889 | I9: 2.1 | J9: 8121 | K9: 2.7 | L9: 2232 | M9: 37.9
A10: 중견기업 | B10: 14165 | C10: 6.9 | D10: 18212 | E10: 7.6 | F10: 16166 | G10: 6.1 | H10: 18716 | I10: 6.5 | J10: 18545 | K10: 6.1 | L10: △171 | M10: △0.9
A11: 중소기업 | B11: 30910 | C11: 15 | D11: 39753 | E11: 16.6 | F11: 49721 | G11: 18.7 | H11: 54924 | I11: 19.2 | J11: 58379 | K11: 19.1 | L11: 3455 | M11: 6.3
A12: 정부부처 | B12: 1829 | C12: 0.9 | D12: 1914 | E12: 0.8 | F12: 2634 | G12: 1 | H12: 626 | I12: 0.2 | J12: 755 | K12: 0.2 | L12: 129 | M12: 20.6
A13: 기타 | B13: 12212 | C13: 5.9 | D13: 15986 | E13: 6.7 | F13: 21254 | G13: 8 | H13: 20128 | I13: 7 | J13: 20635 | K13: 6.7 | L13: 507 | M13: 2.5
A14: 합계 | B14: 206254 | C14: 100 | D14: 238803 | E14: 100 | F14: 265791 | G14: 100 | H14: 286782 | I14: 100 | J14: 305731 | K14: 100 | L14: 18949 | M14: 6.6
A16: * ｢2013년 국가연구개발사업 조사분석 시행계획｣에 따라 ’13년도부터 연구수행주체의 분류에 ‘중견기업’ 항목이 추가됨
A17: * 출연연구소는 경제인문사회연구회, 국가과학기술연구회, 연구관리 전문기관, 기타 출연연 등의 R&D 관련 출연연구기관을 포함
A18: * 국공립연구소는 국립연구소와 지방자치단체의 공립연구소를 포함
A19: * 기타는 비영리법인, 연구조합, 협회, 학회, 정부투자기관 등을 포함

Sheet 1-4
A1: 1-4. 연구수행주체별 과제 당 연구비 추이, 2019-2023 | G1: 목차
R3: (단위 : 건, 억원, %)
A4: 구 분 | B4: 2019년 | E4: 2020년 | H4: 2021년 | K4: 2022년 | N4: 2023년 | Q4: 증감
B5: 과제수 | C5: 정부 | D5: 과제당 | E5: 과제수 | F5: 정부 | G5: 과제당 | H5: 과제수 | I5: 정부 | J5: 과제당 | K5: 과제수 | L5: 정부 | M5: 과제당 | N5: 과제수 | O5: 정부 | P5: 과제당 | Q5: B-A | R5: %
C6: 연구비 | D6: 연구비 | F6: 연구비 | G6: 연구비 | I6: 연구비 | J6: 연구비 | L6: 연구비 | M6: 연구비 | O6: 연구비 | P6: 연구비
M7: (A) | P7: (B)
A8: 국공립연구소 | B8: 4043 | C8: 10527 | D8: 2.6 | E8: 4105 | F8: 11323 | G8: 2.8 | H8: 4116 | I8: 12313 | J8: 3 | K8: 4164 | L8: 13024 | M8: 3.1 | N8: 2257 | O8: 14404 | P8: 6.4 | Q8: 3.3 | R8: 106.5
A9: 출연연구소 | B9: 7657 | C9: 82597 | D9: 10.8 | E9: 7933 | F9: 90289 | G9: 11.4 | H9: 7983 | I9: 96058 | J9: 12 | K9: 7689 | L9: 103737 | M9: 13.5 | N9: 7503 | O9: 110861 | P9: 14.8 | Q9: 1.3 | R9: 9.6
A10: 대학 | B10: 39653 | C10: 50278 | D10: 1.3 | E10: 40171 | F10: 57508 | G10: 1.4 | H10: 39281 | I10: 63317 | J10: 1.6 | K10: 38581 | L10: 69738 | M10: 1.8 | N10: 36685 | O10: 74033 | P10: 2 | Q10: 0.2 | R10: 11.1
A11: 대기업 | B11: 320 | C11: 3735 | D11: 11.7 | E11: 338 | F11: 3820 | G11: 11.3 | H11: 369 | I11: 4327 | J11: 11.7 | K11: 464 | L11: 5889 | M11: 12.7 | N11: 494 | O11: 8121 | P11: 16.4 | Q11: 3.7 | R11: 29.1
A12: 중견기업 | B12: 769 | C12: 14165 | D12: 18.4 | E12: 967 | F12: 18212 | G12: 18.8 | H12: 1101 | I12: 16166 | J12: 14.7 | K12: 1271 | L12: 18716 | M12: 14.7 | N12: 1326 | O12: 18545 | P12: 14 | Q12: △0.7 | R12: △4.8
A13: 중소기업 | B13: 15115 | C13: 30910 | D13: 2 | E13: 17060 | F13: 39753 | G13: 2.3 | H13: 18097 | I13: 49721 | J13: 2.7 | K13: 20101 | L13: 54924 | M13: 2.7 | N13: 20764 | O13: 58379 | P13: 2.8 | Q13: 0.1 | R13: 3.7
A14: 정부부처 | B14: 83 | C14: 1829 | D14: 22 | E14: 81 | F14: 1914 | G14: 23.6 | H14: 82 | I14: 2634 | J14: 32.1 | K14: 100 | L14: 626 | M14: 6.3 | N14: 66 | O14: 755 | P14: 11.4 | Q14: 5.1 | R14: 81
A15: 기타 | B15: 2687 | C15: 12212 | D15: 4.5 | E15: 2846 | F15: 15986 | G15: 5.6 | H15: 3716 | I15: 21254 | J15: 5.7 | K15: 3682 | L15: 20128 | M15: 5.5 | N15: 2709 | O15: 20635 | P15: 7.6 | Q15: 2.1 | R15: 38.2
A16: 합계 | B16: 70327 | C16: 206254 | D16: 2.9 | E16: 73501 | F16: 238803 | G16: 3.2 | H16: 74745 | I16: 265791 | J16: 3.6 | K16: 76052 | L16: 286782 | M16: 3.8 | N16: 71804 | O16: 305731 | P16: 4.3 | Q16: 0.5 | R16: 13.2
A18: * ｢2013년 국가연구개발사업 조사분석 시행계획｣에 따라 ’13년도부터 연구수행주체의 분류에 ‘중견기업’ 항목이 추가됨
A19: * 출연연구소는 경제인문사회연구회, 국가과학기술연구회, 연구관리 전문기관, 기타 출연연 등의 R&D 관련 출연연구기관을 포함
A20: * 국공립연구소는 국립연구소와 지방자치단체의 공립연구소를 포함
A21: * 기타는 비영리법인, 연구조합, 협회, 학회, 정부투자기관 등을 포함

Sheet 1-5
A1: 1-5. 출연연구소 유형별 국가연구개발사업 집행 추이, 2019-2023 | I1: 목차
Z3: (단위 : 건, 억원, %)
A4: 구 분 | B4: 2019년 | G4: 2020년 | L4: 2021년 | Q4: 2022년 | V4: 2023년
B5: 과제수 | C5: 비중 | D5: 금액 | E5: 비중 | F5: 과제당 | G5: 과제수 | H5: 비중 | I5: 금액 | J5: 비중 | K5: 과제당 | L5: 과제수 | M5: 비중 | N5: 금액 | O5: 비중 | P5: 과제당 | Q5: 과제수 | R5: 비중 | S5: 금액 | T5: 비중 | U5: 과제당 | V5: 과제수 | W5: 비중 | X5: 금액 | Y5: 비중 | Z5: 과제당
C6: (과제수) | E6: (금액) | F6: 연구비 | H6: (과제수) | J6: (금액) | K6: 연구비 | M6: (과제수) | O6: (금액) | P6: 연구비 | R6: (과제수) | T6: (금액) | U6: 연구비 | W6: (과제수) | Y6: (금액) | Z6: 연구비
A7: 연구회 산하 출연연 | B7: 4024 | C7: 52.6 | D7: 39633 | E7: 48 | F7: 9.8 | G7: 4197 | H7: 52.9 | I7: 42212 | J7: 46.8 | K7: 10.1 | L7: 4413 | M7: 55.3 | N7: 44891 | O7: 46.7 | P7: 10.2 | Q7: 4290 | R7: 55.8 | S7: 49219 | T7: 47.4 | U7: 11.5 | V7: 4031 | W7: 53.7 | X7: 52149 | Y7: 47 | Z7: 12.9
A8: 부처 직할 출연연 | B8: 2293 | C8: 29.9 | D8: 36862 | E8: 44.6 | F8: 16.1 | G8: 2504 | H8: 31.6 | I8: 42425 | J8: 47 | K8: 16.9 | L8: 2391 | M8: 30 | N8: 45321 | O8: 47.2 | P8: 19 | Q8: 2229 | R8: 29 | S8: 48441 | T8: 46.7 | U8: 21.7 | V8: 2385 | W8: 31.8 | X8: 52720 | Y8: 47.6 | Z8: 22.1
A9: 경사연 산하 출연연 | B9: 1340 | C9: 17.5 | D9: 6102 | E9: 7.4 | F9: 4.6 | G9: 1232 | H9: 15.5 | I9: 5651 | J9: 6.3 | K9: 4.6 | L9: 1179 | M9: 14.8 | N9: 5847 | O9: 6.1 | P9: 5 | Q9: 1170 | R9: 15.2 | S9: 6076 | T9: 5.9 | U9: 5.2 | V9: 1087 | W9: 14.5 | X9: 5991 | Y9: 5.4 | Z9: 5.5
A10: 출연연구소 | B10: 7657 | C10: 100 | D10: 82597 | E10: 100 | F10: 10.8 | G10: 7933 | H10: 100 | I10: 90289 | J10: 100 | K10: 11.4 | L10: 7983 | M10: 100 | N10: 96058 | O10: 100 | P10: 12 | Q10: 7689 | R10: 100 | S10: 103737 | T10: 100 | U10: 13.5 | V10: 7503 | W10: 100 | X10: 110861 | Y10: 100 | Z10: 14.8
A12: - 국가과학기술연구회 산하 출연(연) : 국가과학기술연구회를 포함한 한국과학기술연구원, 한국기계연구원 등 26개 기관
A13: - 부처 직할 출연(연) : 특정 연구기관(한국과학기술원 등)을 포함한 부처 산하 국방과학연구소, 한국해양과학기술원 등 48개 기관
A14: - 경제･인문사회계 출연(연) : 경제인문사회연구회를 포함한 한국개발연구원, 국토연구원 등의 26개 기관

Sheet 1-6
A1: 1-6. 세부과제지원유형별 연구개발단계별 집행 추이, 2021-2023 | I1: 목차
I3: (단위 : 억원, %)
A4: 구 분 | D4: 2021년 | F4: 2022년 | H4: 2023년
D5: 금액 | E5: 비중 | F5: 금액 | G5: 비중 | H5: 금액 | I5: 비중
A6: 상향식 | B6: 자유공모형 | C6: 기초연구 | D6: 25005 | E6: 46.4 | F6: 27573 | G6: 48.1 | H6: 29571 | I6: 49.7
C7: 응용연구 | D7: 5269 | E7: 9.8 | F7: 5829 | G7: 10.2 | H7: 7689 | I7: 12.9
C8: 개발연구 | D8: 23621 | E8: 43.8 | F8: 23878 | G8: 41.7 | H8: 22180 | I8: 37.3
C9: 소계 | D9: 53896 | E9: 100 | F9: 57280 | G9: 100 | H9: 59440 | I9: 100
C10: 기타 | D10: 16407 | F10: 20137 | H10: 24525
B11: 품목지정형 | C11: 기초연구 | D11: 6258 | E11: 10.2 | F11: 6761 | G11: 10.4 | H11: 7549 | I11: 11.2
C12: 응용연구 | D12: 18930 | E12: 30.8 | F12: 19277 | G12: 29.7 | H12: 17390 | I12: 25.8
C13: 개발연구 | D13: 36329 | E13: 59.1 | F13: 38871 | G13: 59.9 | H13: 42567 | I13: 63.1
C14: 소계 | D14: 61517 | E14: 100 | F14: 64910 | G14: 100 | H14: 67507 | I14: 100
C15: 기타 | D15: 6340 | F15: 7274 | H15: 8532
A16: 하향식 | C16: 기초연구 | D16: 21805 | E16: 28 | F16: 23690 | G16: 27.8 | H16: 20594 | I16: 22.9
C17: 응용연구 | D17: 21420 | E17: 27.5 | F17: 27232 | G17: 32 | H17: 33874 | I17: 37.6
C18: 개발연구 | D18: 34615 | E18: 44.5 | F18: 34282 | G18: 40.2 | H18: 35641 | I18: 39.6
C19: 소계 | D19: 77841 | E19: 100 | F19: 85204 | G19: 100 | H19: 90109 | I19: 100
C20: 기타 | D20: 49790 | F20: 51977 | H20: 55618
A21: 합계 | D21: 265791 | F21: 286782 | H21: 305731
A23: * ’18년도부터는 연구자 주도의 연구개발 과제 수행 현황 파악을 위해 세부과제 지원유형별(상향식(자유공모형, 품목지정형), 하향식) 집행현황 신규 조사를 수행
A24: * 기관운영비지원사업, 기획평가관리사업, 정책연구개발사업 등 일부 사업에 대해서는 하향식으로 세부과제지원유형을 일괄 조정

Sheet 1-7
A1: 1-7. 지역별 집행 추이, 2019-2023 | F1: 목차
N3: (단위 : 억원, %)
A4: 구 분 | C4: 2019년 | E4: 2020년 | G4: 2021년 | I4: 2022년 | K4: 2023년 | M4: 증 감
C5: 금액 | D5: 비중 | E5: 금액 | F5: 비중 | G5: 금액(A) | H5: 비중 | I5: 금액(B) | J5: 비중 | K5: 금액(B) | L5: 비중 | M5: B-A | N5: %
A6: 수도권 | B6: 서울특별시 | C6: 38571 | D6: 18.9 | E6: 41715 | F6: 18.4 | G6: 48767 | H6: 20.1 | I6: 51223 | J6: 19.7 | K6: 56024 | L6: 18.7 | M6: 4801 | N6: 9.4
B7: 인천광역시 | C7: 4016 | D7: 2 | E7: 4787 | F7: 2.1 | G7: 5243 | H7: 2.2 | I7: 5410 | J7: 2.1 | K7: 6937 | L7: 2.3 | M7: 1527 | N7: 28.2
B8: 경기도 | C8: 24139 | D8: 11.8 | E8: 25611 | F8: 11.3 | G8: 28082 | H8: 11.6 | I8: 30038 | J8: 11.6 | K8: 41064 | L8: 13.7 | M8: 11026 | N8: 36.7
B9: 소계 | C9: 66726 | D9: 32.6 | E9: 72113 | F9: 31.7 | G9: 82092 | H9: 33.9 | I9: 86671 | J9: 33.4 | K9: 104025 | L9: 34.7 | M9: 17354 | N9: 20
A10: 지방 | B10: 대전광역시 | C10: 58439 | D10: 28.6 | E10: 65132 | F10: 28.7 | G10: 68208 | H10: 28.2 | I10: 74698 | J10: 28.8 | K10: 83050 | L10: 27.7 | M10: 8352 | N10: 11.2
B11: 부산광역시 | C11: 9120 | D11: 4.5 | E11: 9626 | F11: 4.2 | G11: 10002 | H11: 4.1 | I11: 11355 | J11: 4.4 | K11: 13312 | L11: 4.4 | M11: 1957 | N11: 17.2
B12: 대구광역시 | C12: 6301 | D12: 3.1 | E12: 6842 | F12: 3 | G12: 7168 | H12: 3 | I12: 7376 | J12: 2.8 | K12: 8689 | L12: 2.9 | M12: 1313 | N12: 17.8
B13: 광주광역시 | C13: 4827 | D13: 2.4 | E13: 5607 | F13: 2.5 | G13: 5708 | H13: 2.4 | I13: 5678 | J13: 2.2 | K13: 6396 | L13: 2.1 | M13: 718 | N13: 12.6
B14: 울산광역시 | C14: 3112 | D14: 1.5 | E14: 3234 | F14: 1.4 | G14: 3651 | H14: 1.5 | I14: 3810 | J14: 1.5 | K14: 4784 | L14: 1.6 | M14: 974 | N14: 25.6
B15: 강원도 | C15: 2996 | D15: 1.5 | E15: 3156 | F15: 1.4 | G15: 3601 | H15: 1.5 | I15: 4217 | J15: 1.6 | K15: 4534 | L15: 1.5 | M15: 317 | N15: 7.5
B16: 충청북도 | C16: 6101 | D16: 3 | E16: 7239 | F16: 3.2 | G16: 7656 | H16: 3.2 | I16: 8121 | J16: 3.1 | K16: 9134 | L16: 3 | M16: 1013 | N16: 12.5
B17: 충청남도 | C17: 5289 | D17: 2.6 | E17: 5903 | F17: 2.6 | G17: 6455 | H17: 2.7 | I17: 7333 | J17: 2.8 | K17: 10284 | L17: 3.4 | M17: 2951 | N17: 40.2
B18: 전라북도 | C18: 7526 | D18: 3.7 | E18: 8808 | F18: 3.9 | G18: 9296 | H18: 3.8 | I18: 9759 | J18: 3.8 | K18: 11475 | L18: 3.8 | M18: 1716 | N18: 17.6
B19: 전라남도 | C19: 3199 | D19: 1.6 | E19: 3671 | F19: 1.6 | G19: 3654 | H19: 1.5 | I19: 4108 | J19: 1.6 | K19: 4270 | L19: 1.4 | M19: 162 | N19: 3.9
B20: 경상북도 | C20: 6272 | D20: 3.1 | E20: 6882 | F20: 3 | G20: 7271 | H20: 3 | I20: 8127 | J20: 3.1 | K20: 10075 | L20: 3.4 | M20: 1948 | N20: 24
B21: 경상남도 | C21: 18365 | D21: 9 | E21: 22156 | F21: 9.7 | G21: 19628 | H21: 8.1 | I21: 20362 | J21: 7.8 | K21: 20598 | L21: 6.9 | M21: 236 | N21: 1.2
B22: 제주특별 | C22: 1487 | D22: 0.7 | E22: 1714 | F22: 0.8 | G22: 1858 | H22: 0.8 | I22: 1884 | J22: 0.7 | K22: 2108 | L22: 0.7 | M22: 224 | N22: 11.9
B23: 자치도
B24: 세종특별 | C24: 4837 | D24: 2.4 | E24: 5159 | F24: 2.3 | G24: 5877 | H24: 2.4 | I24: 6218 | J24: 2.4 | K24: 6830 | L24: 2.3 | M24: 612 | N24: 9.8
B25: 자치시
B26: 소계 | C26: 137871 | D26: 67.4 | E26: 155129 | F26: 68.3 | G26: 160033 | H26: 66.1 | I26: 173046 | J26: 66.6 | K26: 195540 | L26: 65.3 | M26: 22494 | N26: 13
A27: 합계 | C27: 204597 | D27: 100 | E27: 227242 | F27: 100 | G27: 242125 | H27: 100 | I27: 259717 | J27: 100 | K27: 299565 | L27: 100 | M27: 39848 | N27: 15.3
A29: * 지역별 집행현황 분석은 지역 구분이 수도권, 대전, 지방으로 분류가 가능한 세부과제가 분석대상이며 2023년도에는 29조 9,565억원이 대상금액(지역 구분이 해외 또는 기타인 경우는 제외)
A30: * ’13년 지역분류에 ‘세종특별자치시’가 추가됨.
A31: * 기타는 과제의 분산 수행(한 과제가 여러 지역에서 수행된 경우)으로 지역별 분류가 불가능한 경우
A32: * 2008년까지 분석대상에서 기금이 제외되었으나, 2009년부터는 기금을 포함하여 분석

Sheet 1-8
A1: 1-8. 국가과학기술표준분류 연구분야별 집행 추이, 2019-2023 | I1: 목차
M3: (단위 : 억원, %)
A4: 구분 | B4: 2019년 | D4: 2020년 | F4: 2021년 | H4: 2022년 | J4: 2023년 | L4: 증감
B5: 금액 | C5: 비중 | D5: 금액 | E5: 비중 | F5: 금액(A) | G5: 비중 | H5: 금액(B) | I5: 비중 | J5: 금액(B) | K5: 비중 | L5: B-A | M5: %
A6: 수학 | B6: 915 | C6: 0.5 | D6: 1072 | E6: 0.5 | F6: 1229 | G6: 0.5 | H6: 1256 | I6: 0.5 | J6: 1337 | K6: 0.5 | L6: 81 | M6: 6.4
A7: 물리학 | B7: 5719 | C7: 3 | D7: 6723 | E7: 3 | F7: 5341 | G7: 2.1 | H7: 5567 | I7: 2 | J7: 6628 | K7: 2.3 | L7: 1061 | M7: 19.1
A8: 화학 | B8: 3542 | C8: 1.8 | D8: 3728 | E8: 1.7 | F8: 4257 | G8: 1.7 | H8: 4829 | I8: 1.8 | J8: 5428 | K8: 1.9 | L8: 599 | M8: 12.4
A9: 지구과학 | B9: 5346 | C9: 2.8 | D9: 5087 | E9: 2.3 | F9: 5810 | G9: 2.3 | H9: 6491 | I9: 2.4 | J9: 7576 | K9: 2.6 | L9: 1085 | M9: 16.7
A10: 생명과학 | B10: 8252 | C10: 4.3 | D10: 9300 | E10: 4.1 | F10: 10646 | G10: 4.2 | H10: 10538 | I10: 3.9 | J10: 11120 | K10: 3.8 | L10: 582 | M10: 5.5
A11: 농림수산식품 | B11: 12814 | C11: 6.7 | D11: 13743 | E11: 6.1 | F11: 15851 | G11: 6.3 | H11: 16867 | I11: 6.2 | J11: 17146 | K11: 5.9 | L11: 279 | M11: 1.7
A12: 보건의료 | B12: 17718 | C12: 9.2 | D12: 20994 | E12: 9.3 | F12: 24098 | G12: 9.6 | H12: 27241 | I12: 10 | J12: 27912 | K12: 9.6 | L12: 671 | M12: 2.5
A13: 기계 | B13: 33637 | C13: 17.5 | D13: 41865 | E13: 18.6 | F13: 43597 | G13: 17.4 | H13: 42564 | I13: 15.6 | J13: 46264 | K13: 15.9 | L13: 3700 | M13: 8.7
A14: 재료 | B14: 6918 | C14: 3.6 | D14: 8731 | E14: 3.9 | F14: 9970 | G14: 4 | H14: 10532 | I14: 3.9 | J14: 11956 | K14: 4.1 | L14: 1424 | M14: 13.5
A15: 화공 | B15: 4207 | C15: 2.2 | D15: 5039 | E15: 2.2 | F15: 5452 | G15: 2.2 | H15: 6612 | I15: 2.4 | J15: 7632 | K15: 2.6 | L15: 1020 | M15: 15.4
A16: 전기/전자 | B16: 18431 | C16: 9.6 | D16: 22142 | E16: 9.9 | F16: 25384 | G16: 10.1 | H16: 29874 | I16: 11 | J16: 36977 | K16: 12.7 | L16: 7103 | M16: 23.8
A17: 정보/통신 | B17: 20373 | C17: 10.6 | D17: 23880 | E17: 10.6 | F17: 28074 | G17: 11.2 | H17: 29498 | I17: 10.8 | J17: 32692 | K17: 11.3 | L17: 3194 | M17: 10.8
A18: 에너지/자원 | B18: 9391 | C18: 4.9 | D18: 9880 | E18: 4.4 | F18: 11661 | G18: 4.6 | H18: 12942 | I18: 4.8 | J18: 12823 | K18: 4.4 | L18: △119 | M18: △0.9
A19: 원자력 | B19: 5494 | C19: 2.9 | D19: 6401 | E19: 2.8 | F19: 7891 | G19: 3.1 | H19: 7913 | I19: 2.9 | J19: 7827 | K19: 2.7 | L19: △86 | M19: △1.1
A20: 환경 | B20: 5100 | C20: 2.6 | D20: 6062 | E20: 2.7 | F20: 6853 | G20: 2.7 | H20: 7292 | I20: 2.7 | J20: 7818 | K20: 2.7 | L20: 526 | M20: 7.2
A21: 건설/교통 | B21: 7699 | C21: 4 | D21: 8426 | E21: 3.8 | F21: 9501 | G21: 3.8 | H21: 10690 | I21: 3.9 | J21: 11170 | K21: 3.8 | L21: 480 | M21: 4.5
A22: 과학기술과 인문사회 | B22: 12158 | C22: 6.3 | D22: 16648 | E22: 7.4 | F22: 19101 | G22: 7.6 | H22: 23657 | I22: 8.7 | J22: 22193 | K22: 7.6 | L22: △1464 | M22: △6.2
A23: 기타 | B23: 14882 | C23: 7.7 | D23: 14960 | E23: 6.7 | F23: 16555 | G23: 6.6 | H23: 17965 | I23: 6.6 | J23: 15665 | K23: 5.4 | L23: △2300 | M23: △12.8
A24: 합계 | B24: 192597 | C24: 100 | D24: 224682 | E24: 100 | F24: 251274 | G24: 100 | H24: 272329 | I24: 100 | J24: 290164 | K24: 100 | L24: 17835 | M24: 6.5
A26: * 기술분야별 집행현황 분석은 인문사회 분야를 제외한 과학기술 분야와 국방(비밀 세부과제 포함) 분야의 연구개발사업이 분석대상(2023년의 경우에는 63,879개 세부과제, 29조 164억원)임
A27: * 기타는 과학기술표준분류 중 뇌과학, 인지/감성과학, 인문학, 사회학, 문화예술체육학 분류에 해당하는 경우에 해당

Sheet 1-9
A1: 1-9. 국가과학기술표준분류 연구분야기준 단일 및 융합 분야 과제 집행 추이, 2019-2023 | J1: 목차
AD3: (단위 : 억원, %)
A4: 구분 | B4: 2019년 | G4: 2020년 | L4: 2021년 | Q4: 2022년 | V4: 2023년 | AA4: 단일분야 | AC4: 융합분야
B5: 단일 | D5: 융합 | F5: 합계 | G5: 단일 | I5: 융합 | K5: 합계 | L5: 단일 | N5: 융합 | P5: 합계 | Q5: 단일 | S5: 융합 | U5: 합계 | V5: 단일 | X5: 융합 | Z5: 합계 | AA5: 증감 | AC5: 증감
B6: 금액 | C6: 비중 | D6: 금액 | E6: 비중 | F6: 금액 | G6: 금액 | H6: 비중 | I6: 금액 | J6: 비중 | K6: 금액 | L6: 금액 | M6: 비중 | N6: 금액 | O6: 비중 | P6: 금액 | Q6: 금액 | R6: 비중 | S6: 금액 | T6: 비중 | U6: 금액 | V6: 금액 | W6: 비중 | X6: 금액 | Y6: 비중 | Z6: 금액 | AA6: C-A | AB6: % | AC6: D-B | AD6: %
Q7: (A) | S7: (B) | V7: (C) | X7: (D)
A8: 수학 | B8: 771 | C8: =100*B8/F8 -> 84.26229508 | D8: 144 | E8: =100*D8/F8 -> 15.73770492 | F8: 915 | G8: 909 | H8: =100*G8/K8 -> 84.79477612 | I8: 164 | J8: =100*I8/K8 -> 15.29850746 | K8: 1072 | L8: 1019 | M8: =100*L8/P8 -> 82.91293735 | N8: 210 | O8: =100*N8/P8 -> 17.08706265 | P8: 1229 | Q8: 1026 | R8: =100*Q8/U8 -> 81.68789809 | S8: 230 | T8: =100*S8/U8 -> 18.31210191 | U8: 1256 | V8: 1085 | W8: =100*V8/Z8 -> 81.15183246 | X8: 252 | Y8: =100*X8/Z8 -> 18.84816754 | Z8: 1337 | AA8: =V8-Q8 -> 59 | AB8: 5.8 | AC8: =X8-S8 -> 22 | AD8: =100*AC8/S8 -> 9.565217391
A9: 물리학 | B9: 5082 | C9: 88.86168911 | D9: 637 | E9: 11.13831089 | F9: 5719 | G9: 5989 | H9: 89.08225495 | I9: 734 | J9: 10.91774505 | K9: 6723 | L9: 4447 | M9: 83.26156151 | N9: 894 | O9: 16.73843849 | P9: 5341 | Q9: 4536 | R9: 81.48015089 | S9: 1032 | T9: 18.53781211 | U9: 5567 | V9: 5643 | W9: 85.13880507 | X9: 985 | Y9: 14.86119493 | Z9: 6628 | AA9: 1107 | AB9: 24.4 | AC9: -47 | AD9: -4.554263566
A10: 화학 | B10: 2724 | C10: 76.90570299 | D10: 818 | E10: 23.09429701 | F10: 3542 | G10: 2861 | H10: 76.74356223 | I10: 866 | J10: 23.22961373 | K10: 3728 | L10: 3338 | M10: 78.41202725 | N10: 919 | O10: 21.58797275 | P10: 4257 | Q10: 3852 | R10: 79.76806792 | S10: 977 | T10: 20.23193208 | U10: 4829 | V10: 4346 | W10: 80.06632277 | X10: 1082 | Y10: 19.93367723 | Z10: 5428 | AA10: 494 | AB10: 12.8 | AC10: 105 | AD10: 10.74718526
A11: 지구과학 | B11: 4478 | C11: 83.76356154 | D11: 868 | E11: 16.23643846 | F11: 5346 | G11: 4388 | H11: 86.2590918 | I11: 699 | J11: 13.7409082 | K11: 5087 | L11: 4881 | M11: 84.01032702 | N11: 929 | O11: 15.98967298 | P11: 5810 | Q11: 5429 | R11: 83.63888461 | S11: 1062 | T11: 16.36111539 | U11: 6491 | V11: 6477 | W11: 85.4936642 | X11: 1099 | Y11: 14.5063358 | Z11: 7576 | AA11: 1048 | AB11: 19.3 | AC11: 37 | AD11: 3.483992467
A12: 생명과학 | B12: 5991 | C12: 72.60058168 | D12: 2261 | E12: 27.39941832 | F12: 8252 | G12: 6769 | H12: 72.78494624 | I12: 2531 | J12: 27.21505376 | K12: 9300 | L12: 7641 | M12: 71.77343603 | N12: 3005 | O12: 28.22656397 | P12: 10646 | Q12: 7210 | R12: 68.41905485 | S12: 3328 | T12: 31.58094515 | U12: 10538 | V12: 7662 | W12: 68.9028777 | X12: 3458 | Y12: 31.0971223 | Z12: 11120 | AA12: 452 | AB12: 6.3 | AC12: 130 | AD12: 3.90625
A13: 농림수산 식품 | B13: 11801 | C13: 92.09458405 | D13: 1013 | E13: 7.905415951 | F13: 12814 | G13: 12704 | H13: 92.43978753 | I13: 1039 | J13: 7.560212472 | K13: 13743 | L13: 14416 | M13: 90.94694341 | N13: 1435 | O13: 9.053056589 | P13: 15851 | Q13: 15202 | R13: 90.12865358 | S13: 1666 | T13: 9.877275153 | U13: 16867 | V13: 15392 | W13: 89.7702088 | X13: 1755 | Y13: 10.23562347 | Z13: 17146 | AA13: 190 | AB13: 1.2 | AC13: 89 | AD13: 5.342136855
A14: 보건의료 | B14: 14676 | C14: 82.8310193 | D14: 3041 | E14: 17.16333672 | F14: 17718 | G14: 17609 | H14: 83.87634562 | I14: 3386 | J14: 16.12841764 | K14: 20994 | L14: 19763 | M14: 82.01095527 | N14: 4336 | O14: 17.99319446 | P14: 24098 | Q14: 22395 | R14: 82.21063838 | S14: 4846 | T14: 17.78936162 | U14: 27241 | V14: 22679 | W14: 81.25179134 | X14: 5233 | Y14: 18.74820866 | Z14: 27912 | AA14: 284 | AB14: 1.3 | AC14: 387 | AD14: 7.985967809
A15: 기계 | B15: 30864 | C15: 91.75610191 | D15: 2773 | E15: 8.243898088 | F15: 33637 | G15: 38295 | H15: 91.47259047 | I15: 3571 | J15: 8.529798161 | K15: 41865 | L15: 39074 | M15: 89.62543294 | N15: 4523 | O15: 10.37456706 | P15: 43597 | Q15: 36620 | R15: 86.03514707 | S15: 5944 | T15: 13.96485293 | U15: 42564 | V15: 39082 | W15: 84.47605049 | X15: 7182 | Y15: 15.52394951 | Z15: 46264 | AA15: 2462 | AB15: 6.7 | AC15: 1238 | AD15: 20.82772544
A16: 재료 | B16: 5776 | C16: 83.49233883 | D16: 1142 | E16: 16.50766117 | F16: 6918 | G16: 7274 | H16: 83.31233536 | I16: 1457 | J16: 16.68766464 | K16: 8731 | L16: 7749 | M16: 77.72316951 | N16: 2221 | O16: 22.27683049 | P16: 9970 | Q16: 8170 | R16: 77.57311052 | S16: 2361 | T16: 22.41739461 | U16: 10532 | V16: 9284 | W16: 77.65138842 | X16: 2672 | Y16: 22.34861158 | Z16: 11956 | AA16: 1114 | AB16: 13.6 | AC16: 311 | AD16: 13.17238458
A17: 화공 | B17: 3335 | C17: 79.27264084 | D17: 873 | E17: 20.75112907 | F17: 4207 | G17: 3576 | H17: 70.9664616 | I17: 1463 | J17: 29.0335384 | K17: 5039 | L17: 3957 | M17: 72.57887014 | N17: 1495 | O17: 27.42112986 | P17: 5452 | Q17: 4642 | R17: 70.20568663 | S17: 1970 | T17: 29.79431337 | U17: 6612 | V17: 5345 | W17: 70.03406709 | X17: 2287 | Y17: 29.96593291 | Z17: 7632 | AA17: 703 | AB17: 15.1 | AC17: 317 | AD17: 16.09137056
A18: 전기/전자 | B18: 15162 | C18: 82.26357767 | D18: 3269 | E18: 17.73642233 | F18: 18431 | G18: 17680 | H18: 79.84825219 | I18: 4462 | J18: 20.15174781 | K18: 22142 | L18: 19989 | M18: 78.74645446 | N18: 5396 | O18: 21.25748503 | P18: 25384 | Q18: 23754 | R18: 79.51395863 | S18: 6120 | T18: 20.48604137 | U18: 29874 | V18: 29475 | W18: 79.71171269 | X18: 7502 | Y18: 20.28828731 | Z18: 36977 | AA18: 5721 | AB18: 24.1 | AC18: 1382 | AD18: 22.58169935
A19: 정보/통신 | B19: 17467 | C19: 85.73602317 | D19: 2906 | E19: 14.26397683 | F19: 20373 | G19: 20123 | H19: 84.26716918 | I19: 3756 | J19: 15.72864322 | K19: 23880 | L19: 23247 | M19: 82.80615516 | N19: 4827 | O19: 17.19384484 | P19: 28074 | Q19: 23678 | R19: 80.2698488 | S19: 5820 | T19: 19.7301512 | U19: 29498 | V19: 25914 | W19: 79.26709898 | X19: 6778 | Y19: 20.73290102 | Z19: 32692 | AA19: 2236 | AB19: 9.4 | AC19: 958 | AD19: 16.4604811
A20: 에너지/자원 | B20: 7839 | C20: 83.47353849 | D20: 1552 | E20: 16.52646151 | F20: 9391 | G20: 7549 | H20: 76.40688259 | I20: 2331 | J20: 23.59311741 | K20: 9880 | L20: 8294 | M20: 71.12597547 | N20: 3367 | O20: 28.87402453 | P20: 11661 | Q20: 8955 | R20: 69.19332406 | S20: 3987 | T20: 30.80667594 | U20: 12942 | V20: 8713 | W20: 67.94821805 | X20: 4110 | Y20: 32.05178195 | Z20: 12823 | AA20: -242 | AB20: △2.7 | AC20: 123 | AD20: 3.085026336
A21: 원자력 | B21: 4920 | C21: 89.55223881 | D21: 574 | E21: 10.44776119 | F21: 5494 | G21: 5769 | H21: 90.12654273 | I21: 632 | J21: 9.873457272 | K21: 6401 | L21: 7140 | M21: 90.48282854 | N21: 751 | O21: 9.517171461 | P21: 7891 | Q21: 7069 | R21: 89.33400733 | S21: 844 | T21: 10.66599267 | U21: 7913 | V21: 6875 | W21: 87.83697458 | X21: 951 | Y21: 12.15024914 | Z21: 7827 | AA21: -194 | AB21: △2.7 | AC21: 107 | AD21: 12.67772512
A22: 환경 | B22: 4187 | C22: 82.09803922 | D22: 912 | E22: 17.88235294 | F22: 5100 | G22: 4831 | H22: 79.69317057 | I22: 1231 | J22: 20.30682943 | K22: 6062 | L22: 5419 | M22: 79.07485773 | N22: 1434 | O22: 20.92514227 | P22: 6853 | Q22: 5744 | R22: 78.77125617 | S22: 1549 | T22: 21.24245749 | U22: 7292 | V22: 5741 | W22: 73.4331031 | X22: 2077 | Y22: 26.5668969 | Z22: 7818 | AA22: -3 | AB22: △0.1 | AC22: 528 | AD22: 34.08650742
A23: 건설/교통 | B23: 6274 | C23: 81.49110274 | D23: 1425 | E23: 18.50889726 | F23: 7699 | G23: 6459 | H23: 76.65558984 | I23: 1967 | J23: 23.34441016 | K23: 8426 | L23: 6965 | M23: 73.30807283 | N23: 2536 | O23: 26.69192717 | P23: 9501 | Q23: 7924 | R23: 74.1253508 | S23: 2766 | T23: 25.8746492 | U23: 10690 | V23: 7651 | W23: 68.49597135 | X23: 3519 | Y23: 31.50402865 | Z23: 11170 | AA23: -273 | AB23: △3.4 | AC23: 753 | AD23: 27.22342733
A24: 과학기술과 인문사회 | B24: 11963 | C24: 98.39611778 | D24: 194 | E24: 1.59565718 | F24: 12158 | G24: 16336 | H24: 98.12590101 | I24: 311 | J24: 1.868092263 | K24: 16648 | L24: 18710 | M24: 97.95298675 | N24: 392 | O24: 2.052248573 | P24: 19101 | Q24: 23272 | R24: 98.37257471 | S24: 385 | T24: 1.627425286 | U24: 23657 | V24: 21850 | W24: 98.45446762 | X24: 343 | Y24: 1.545532375 | Z24: 22193 | AA24: -1422 | AB24: △6.1 | AC24: -42 | AD24: -10.90909091
A25: 기타 | B25: 13577 | C25: 91.23101734 | D25: 1305 | E25: 8.768982664 | F25: 14882 | G25: 13522 | H25: 90.38770053 | I25: 1438 | J25: 9.612299465 | K25: 14960 | L25: 14970 | M25: 90.42585322 | N25: 1585 | O25: 9.574146783 | P25: 16555 | Q25: 15970 | R25: 88.89507375 | S25: 1995 | T25: 11.10492625 | U25: 17965 | V25: 13939 | W25: 88.98180658 | X25: 1727 | Y25: 11.02457708 | Z25: 15665 | AA25: -2031 | AB25: △12.7 | AC25: -268 | AD25: -13.43358396
A26: 합계 | B26: 166888 | C26: 86.65140163 | D26: 25709 | E26: 13.34859837 | F26: 192597 | G26: 192644 | H26: 85.7407358 | I26: 32038 | J26: 14.2592642 | K26: 224682 | L26: 211019 | M26: 83.97963976 | N26: 40255 | O26: 16.02036024 | P26: 251274 | Q26: 225447 | R26: 82.78479339 | S26: 46882 | T26: 17.21520661 | U26: 272329 | V26: 237152 | W26: 81.73033181 | X26: 53012 | Y26: 18.26966819 | Z26: 290164 | AA26: 11705 | AB26: 5.2 | AC26: 6130 | AD26: 13.07538074
A28: * 기술분야별 집행현황 분석은 인문사회 분야를 제외한 과학기술 분야와 국방(비밀 세부과제 포함) 분야의 연구개발사업이 분석대상(2023년의 경우에는 63,879개 세부과제, 29조 164억원)임
A29: * 두 개 이상의 과학기술표준분류에 해당하는 과제(단, ʻ기타ʼ는 하나의 과학기술표준분류로 구분)만 융합 분야 과제로 분류하여 산출
A30: * 기타는 국가과학기술표준분류의 연구분야 중 뇌과학, 인지/감성과학, 인문학, 사회학, 문화예술체육학 분류에 해당하는 경우에 해당

Sheet 1-10
A1: 1-10. 국가전략기술별 집행 추이, 2023 | G1: 목차
E3: (단위 : 과제 수, 억원, %)
A4: 구분 | B4: 2023년
B5: 과제수 | C5: 금액 | D5: 비중 | E5: 비중
D6: (전체금액 | E6: (전략기술
D7: 대비) | E7: 금액대비)
A8: 반도체·디스플레이 | B8: 2813 | C8: 9397 | D8: 3.2 | E8: =100*C8/$C$20 -> 13.41049207
A9: 이차전지 | B9: 964 | C9: 2581 | D9: 0.9 | E9: =100*C9/$C$20 -> 3.683354264
A10: 첨단 모빌리티 | B10: 922 | C10: 3809 | D10: 1.3 | E10: 5.435837424
A11: 차세대 원자력 | B11: 288 | C11: 1700 | D11: 0.6 | E11: 2.426076036
A12: 첨단바이오 | B12: 8344 | C12: 17427 | D12: 6 | E12: 24.87013358
A13: 우주항공·해양 | B13: 680 | C13: 7914 | D13: 2.7 | E13: 11.2940975
A14: 수소 | B14: 862 | C14: 2830 | D14: 1 | E14: 4.038703048
A15: 사이버보안 | B15: 562 | C15: 2538 | D15: 0.9 | E15: 3.621988812
A16: 인공지능 | B16: 4527 | C16: 13315 | D16: 4.6 | E16: 19.00188378
A17: 차세대 통신 | B17: 595 | C17: 3609 | D17: 1.2 | E17: 5.150416714
A18: 첨단로봇·제조 | B18: 903 | C18: 2939 | D18: 1 | E18: 4.194257335
A19: 양자 | B19: 398 | C19: 2013 | D19: 0.7 | E19: 2.872759447
A20: 소계 | B20: 21858 | C20: 70072 | D20: 24.1 | E20: 100
A21: 위의 국가전략기술 분류에 속하지 않는 기타 연구 | B21: 42021 | C21: 220092 | D21: 75.9
A22: 합계 | B22: 63879 | C22: 290164 | D22: 100
A24: * 기술분야별 집행현황 분석은 인문사회 분야를 제외한 과학기술 분야와 국방(비밀 세부과제 포함) 분야의 연구개발사업이 분석대상(2023년의 경우에는 63,879개 세부과제, 29조 164억원)임
A25: * 국가전략기술은 ｢제5차 과학기술기본계획(ʼ23~ʼ27)(안)｣에서 제시되었으며 12개 전략기술, 50개 세부중점기술로 구성

Sheet 1-11
A1: 1-11. 국가과학기술표준분류 적용분야별 집행 추이, 2019-2023 | E1: 목차
S3: (단위 : 억원, %)
A4: 구 분 | B4: 적용분야 | C4: 2019년 | F4: 2020년 | I4: 2021년 | L4: 2022년 | O4: 2023년 | R4: 증감
C5: 금액 | D5: 비중(%) | E5: 비중(%) | F5: 금액 | G5: 비중(%) | H5: 비중(%) | I5: 금액 | J5: 비중(%) | K5: 비중(%) | L5: 금액 | M5: 비중(%) | N5: 비중(%) | O5: 금액 | P5: 비중(%) | Q5: 비중(%) | R5: B-A | S5: %
D6: (소계 | E6: (합계 | G6: (소계 | H6: (합계 | I6: (A) | J6: (소계 | K6: (합계 | L6: (B) | M6: (소계 | N6: (합계 | O6: (B) | P6: (소계 | Q6: (합계
D7: 기준) | E7: 기준) | G7: 기준) | H7: 기준) | J7: 기준) | K7: 기준) | M7: 기준) | N7: 기준) | P7: 기준) | Q7: 기준)
A8: 공공분야 | B8: 지식의 진보(비목적 연구) | C8: 17298 | D8: 12.4 | E8: 8.4 | F8: 19337 | G8: 12.2 | H8: 8.1 | I8: 21494 | J8: 12.4 | K8: 8.1 | L8: 22173 | M8: 11.8 | N8: 7.7 | O8: 23496 | P8: 11.6 | Q8: 7.7 | R8: 1323 | S8: 6
B9: 건강 | C9: 16788 | D9: 12 | E9: 8.1 | F9: 18790 | G9: 11.8 | H9: 7.9 | I9: 21665 | J9: 12.5 | K9: 8.2 | L9: 23426 | M9: 12.5 | N9: 8.2 | O9: 22637 | P9: 11.2 | Q9: 7.4 | R9: △789 | S9: △3.4
B10: 국방 | C10: 33254 | D10: 23.8 | E10: 16.1 | F10: 39420 | G10: 24.8 | H10: 16.5 | I10: 41229 | J10: 23.8 | K10: 15.5 | L10: 43602 | M10: 23.2 | N10: 15.2 | O10: 48476 | P10: 24 | Q10: 15.9 | R10: 4874 | S10: 11.2
B11: 사회구조 및 관계 | C11: 1429 | D11: 1 | E11: 0.7 | F11: 1390 | G11: 0.9 | H11: 0.6 | I11: 1343 | J11: 0.8 | K11: 0.5 | L11: 1405 | M11: 0.7 | N11: 0.5 | O11: 1370 | P11: 0.7 | Q11: 0.4 | R11: △35 | S11: △2.5
B12: 에너지 | C12: 11289 | D12: 8.1 | E12: 5.5 | F12: 12145 | G12: 7.7 | H12: 5.1 | I12: 14179 | J12: 8.2 | K12: 5.3 | L12: 13950 | M12: 7.4 | N12: 4.9 | O12: 16860 | P12: 8.3 | Q12: 5.5 | R12: 2910 | S12: 20.9
B13: 우주개발 및 탐사 | C13: 3792 | D13: 2.7 | E13: 1.8 | F13: 3975 | G13: 2.5 | H13: 1.7 | I13: 4267 | J13: 2.5 | K13: 1.6 | L13: 5564 | M13: 3 | N13: 1.9 | O13: 7066 | P13: 3.5 | Q13: 2.3 | R13: 1502 | S13: 27
B14: 지구개발 및 탐사 | C14: 2357 | D14: 1.7 | E14: 1.1 | F14: 2204 | G14: 1.4 | H14: 0.9 | I14: 2598 | J14: 1.5 | K14: 1 | L14: 2382 | M14: 1.3 | N14: 0.8 | O14: 3042 | P14: 1.5 | Q14: 1 | R14: 660 | S14: 27.7
B15: 교통/정보통신/기타 기반시설 | C15: 6552 | D15: 4.7 | E15: 3.2 | F15: 8122 | G15: 5.1 | H15: 3.4 | I15: 10259 | J15: 5.9 | K15: 3.9 | L15: 11705 | M15: 6.2 | N15: 4.1 | O15: 11545 | P15: 5.7 | Q15: 3.8 | R15: △160 | S15: △1.4
B16: 환경 | C16: 6499 | D16: 4.7 | E16: 3.2 | F16: 7826 | G16: 4.9 | H16: 3.3 | I16: 8999 | J16: 5.2 | K16: 3.4 | L16: 9663 | M16: 5.1 | N16: 3.4 | O16: 9897 | P16: 4.9 | Q16: 3.2 | R16: 234 | S16: 2.4
B17: 사회질서 및 안전 | C17: 2439 | D17: 1.7 | E17: 1.2 | F17: 2981 | G17: 1.9 | H17: 1.2 | I17: 3647 | J17: 2.1 | K17: 1.4 | L17: 3837 | M17: 2 | N17: 1.3 | O17: 3849 | P17: 1.9 | Q17: 1.3 | R17: 12 | S17: 0.3
B18: 문화, 여가증진, 종교 및 매스미디어 | C18: 965 | D18: 0.7 | E18: 0.5 | F18: 1084 | G18: 0.7 | H18: 0.5 | I18: 923 | J18: 0.5 | K18: 0.3 | L18: 1100 | M18: 0.6 | N18: 0.4 | O18: 1098 | P18: 0.5 | Q18: 0.4 | R18: △2 | S18: △0.2
B19: 교육 및 인력양성 | C19: 9651 | D19: 6.9 | E19: 4.7 | F19: 10508 | G19: 6.6 | H19: 4.4 | I19: 11759 | J19: 6.8 | K19: 4.4 | L19: 13036 | M19: 6.9 | N19: 4.5 | O19: 14830 | P19: 7.3 | Q19: 4.9 | R19: 1794 | S19: 13.8
B20: 기타 공공목적 | C20: 27281 | D20: 19.5 | E20: 13.2 | F20: 30958 | G20: 19.5 | H20: 13 | I20: 30531 | J20: 17.7 | K20: 11.5 | L20: 35809 | M20: 19.1 | N20: 12.5 | O20: 37814 | P20: 18.7 | Q20: 12.4 | R20: 2005 | S20: 5.6
B21: 소계 | C21: 139594 | D21: 100 | E21: 67.7 | F21: 158740 | G21: 100 | H21: 66.5 | I21: 172894 | J21: 100 | K21: 65 | L21: 187652 | M21: 100 | N21: 65.4 | O21: 201981 | P21: 100 | Q21: 66.1 | R21: 14329 | S21: 7.6
A22: 산업분야 | B22: 농업, 임업 및 어업 | C22: 10446 | D22: 15.7 | E22: 5.1 | F22: 11043 | G22: 13.8 | H22: 4.6 | I22: 12354 | J22: 13.3 | K22: 4.6 | L22: 12920 | M22: 13 | N22: 4.5 | O22: 13783 | P22: 13.3 | Q22: 4.5 | R22: 863 | S22: 6.7
B23: 제조업(음식료품 및 담배) | C23: 593 | D23: 0.9 | E23: 0.3 | F23: 686 | G23: 0.9 | H23: 0.3 | I23: 701 | J23: 0.8 | K23: 0.3 | L23: 848 | M23: 0.9 | N23: 0.3 | O23: 855 | P23: 0.8 | Q23: 0.3 | R23: 7 | S23: 0.8
B24: 제조업(섬유, 의복 및 가죽제품) | C24: 1106 | D24: 1.7 | E24: 0.5 | F24: 1139 | G24: 1.4 | H24: 0.5 | I24: 1273 | J24: 1.4 | K24: 0.5 | L24: 1250 | M24: 1.3 | N24: 0.4 | O24: 1263 | P24: 1.2 | Q24: 0.4 | R24: 13 | S24: 1
B25: 제조업(목재, 종이 및 인쇄) | C25: 102 | D25: 0.2 | E25: 0 | F25: 152 | G25: 0.2 | H25: 0.1 | I25: 180 | J25: 0.2 | K25: 0.1 | L25: 299 | M25: 0.3 | N25: 0.1 | O25: 225 | P25: 0.2 | Q25: 0.1 | R25: △74 | S25: △24.7
B26: 제조업(화학물질 및 화학제품) | C26: 3707 | D26: 5.6 | E26: 1.8 | F26: 5143 | G26: 6.4 | H26: 2.2 | I26: 6362 | J26: 6.8 | K26: 2.4 | L26: 6727 | M26: 6.8 | N26: 2.3 | O26: 7079 | P26: 6.8 | Q26: 2.3 | R26: 352 | S26: 5.2
B27: 제조업(의료용물질 및 의약품) | C27: 2358 | D27: 3.5 | E27: 1.1 | F27: 2938 | G27: 3.7 | H27: 1.2 | I27: 3373 | J27: 3.6 | K27: 1.3 | L27: 4149 | M27: 4.2 | N27: 1.4 | O27: 4041 | P27: 3.9 | Q27: 1.3 | R27: △108 | S27: △2.6
B28: 제조업(비금속광물 및 금속제품) | C28: 2025 | D28: 3 | E28: 1 | F28: 2615 | G28: 3.3 | H28: 1.1 | I28: 3094 | J28: 3.3 | K28: 1.2 | L28: 3407 | M28: 3.4 | N28: 1.2 | O28: 3737 | P28: 3.6 | Q28: 1.2 | R28: 330 | S28: 9.7
B29: 제조업(전자부품, 컴퓨터, 영상, 음향 및 통신장비) | C29: 7716 | D29: 11.6 | E29: 3.7 | F29: 10495 | G29: 13.1 | H29: 4.4 | I29: 11774 | J29: 12.7 | K29: 4.4 | L29: 12154 | M29: 12.3 | N29: 4.2 | O29: 12594 | P29: 12.1 | Q29: 4.1 | R29: 440 | S29: 3.6
B30: 제조업(의료, 정밀, 광학기기 및 시계) | C30: 3320 | D30: 5 | E30: 1.6 | F30: 4977 | G30: 6.2 | H30: 2.1 | I30: 6515 | J30: 7 | K30: 2.5 | L30: 6449 | M30: 6.5 | N30: 2.2 | O30: 6172 | P30: 5.9 | Q30: 2 | R30: △277 | S30: △4.3
B31: 제조업(전기 및 기계장비) | C31: 6311 | D31: 9.5 | E31: 3.1 | F31: 7956 | G31: 9.9 | H31: 3.3 | I31: 10305 | J31: 11.1 | K31: 3.9 | L31: 10978 | M31: 11.1 | N31: 3.8 | O31: 11575 | P31: 11.2 | Q31: 3.8 | R31: 597 | S31: 5.4
B32: 제조업(자동차 및 운송장비) | C32: 6123 | D32: 9.2 | E32: 3 | F32: 7451 | G32: 9.3 | H32: 3.1 | I32: 8817 | J32: 9.5 | K32: 3.3 | L32: 9698 | M32: 9.8 | N32: 3.4 | O32: 10151 | P32: 9.8 | Q32: 3.3 | R32: 453 | S32: 4.7
B33: 전기, 가스, 증기 및 수도사업 | C33: 741 | D33: 1.1 | E33: 0.4 | F33: 1086 | G33: 1.4 | H33: 0.5 | I33: 1257 | J33: 1.4 | K33: 0.5 | L33: 1106 | M33: 1.1 | N33: 0.4 | O33: 1153 | P33: 1.1 | Q33: 0.4 | R33: 47 | S33: 4.2
B34: 하수, 폐기물처리, 원료재생 및 환경복원업 | C34: 515 | D34: 0.8 | E34: 0.2 | F34: 557 | G34: 0.7 | H34: 0.2 | I34: 655 | J34: 0.7 | K34: 0.2 | L34: 706 | M34: 0.7 | N34: 0.2 | O34: 874 | P34: 0.8 | Q34: 0.3 | R34: 168 | S34: 23.8
B35: 건설업 | C35: 2610 | D35: 3.9 | E35: 1.3 | F35: 2979 | G35: 3.7 | H35: 1.2 | I35: 3404 | J35: 3.7 | K35: 1.3 | L35: 3023 | M35: 3 | N35: 1.1 | O35: 2878 | P35: 2.8 | Q35: 0.9 | R35: △145 | S35: △4.8
B36: 출판, 영상, 방송통신 및 정보서비스업 | C36: 2200 | D36: 3.3 | E36: 1.1 | F36: 2568 | G36: 3.2 | H36: 1.1 | I36: 2816 | J36: 3 | K36: 1.1 | L36: 2939 | M36: 3 | N36: 1 | O36: 3241 | P36: 3.1 | Q36: 1.1 | R36: 302 | S36: 10.3
B37: 전문, 과학 및 기술서비스업 | C37: 3553 | D37: 5.3 | E37: 1.7 | F37: 4992 | G37: 6.2 | H37: 2.1 | I37: 5684 | J37: 6.1 | K37: 2.1 | L37: 6876 | M37: 6.9 | N37: 2.4 | O37: 9435 | P37: 9.1 | Q37: 3.1 | R37: 2559 | S37: 37.2
B38: 교육 서비스업 | C38: 381 | D38: 0.6 | E38: 0.2 | F38: 398 | G38: 0.5 | H38: 0.2 | I38: 536 | J38: 0.6 | K38: 0.2 | L38: 648 | M38: 0.7 | N38: 0.2 | O38: 729 | P38: 0.7 | Q38: 0.2 | R38: 81 | S38: 12.5
B39: 보건업 및 사회복지 서비스업 | C39: 1555 | D39: 2.3 | E39: 0.8 | F39: 1919 | G39: 2.4 | H39: 0.8 | I39: 2167 | J39: 2.3 | K39: 0.8 | L39: 2400 | M39: 2.4 | N39: 0.8 | O39: 3066 | P39: 3 | Q39: 1 | R39: 666 | S39: 27.8
B40: 예술, 스포츠 및 여가관련 서비스업 | C40: 375 | D40: 0.6 | E40: 0.2 | F40: 447 | G40: 0.6 | H40: 0.2 | I40: 508 | J40: 0.5 | K40: 0.2 | L40: 548 | M40: 0.6 | N40: 0.2 | O40: 592 | P40: 0.6 | Q40: 0.2 | R40: 44 | S40: 8
B41: 기타 산업 | C41: 10924 | D41: 16.4 | E41: 5.3 | F41: 10526 | G41: 13.1 | H41: 4.4 | I41: 11121 | J41: 12 | K41: 4.2 | L41: 12004 | M41: 12.1 | N41: 4.2 | O41: 10308 | P41: 9.9 | Q41: 3.4 | R41: △1696 | S41: △14.1
B42: 소계 | C42: 66660 | D42: 100 | E42: 32.3 | F42: 80064 | G42: 100 | H42: 33.5 | I42: 92896 | J42: 100 | K42: 35 | L42: 99130 | M42: 100 | N42: 34.6 | O42: 103751 | P42: 100 | Q42: 33.9 | R42: 4621 | S42: 4.7
A43: 합계 | C43: 206254 | E43: 100 | F43: 238803 | H43: 100 | I43: 265791 | K43: 100 | L43: 286782 | N43: 100 | O43: 305731 | Q43: 100 | R43: 18949 | S43: 6.6
A45: * 국가과학기술표준분류 적용분야별 집행 추이는 전체 조사분석 대상 세부과제가 분석대상임

Sheet 1-12
A1: 1-12. 경제사회목적별 집행 추이, 2019-2023 | G1: 목차
N3: (단위 : 억원, %)
A4: 구 분 | B4: 구분(’13~) | C4: 2019년 | E4: 2020년 | G4: 2021년 | I4: 2022년 | K4: 2023년 | M4: 증감
C5: 금액 | D5: 비중 | E5: 금액 | F5: 비중 | G5: 금액(A) | H5: 비중 | I5: 금액(B) | J5: 비중 | K5: 금액(B) | L5: 비중 | M5: B-A | N5: %
A6: 보건 환경 | B6: 지구개발 및 탐사 | C6: 2407 | D6: 1.2 | E6: 2140 | F6: 0.9 | G6: 2522 | H6: 0.9 | I6: 2230 | J6: 0.8 | K6: 2907 | L6: 1 | M6: 677 | N6: 30.4
B7: 환경 | C7: 6308 | D7: 3.1 | E7: 7577 | F7: 3.2 | G7: 8774 | H7: 3.3 | I7: 9382 | J7: 3.3 | K7: 9707 | L7: 3.2 | M7: 325 | N7: 3.5
B8: 건강 | C8: 17841 | D8: 8.7 | E8: 19926 | F8: 8.3 | G8: 22877 | H8: 8.6 | I8: 24664 | J8: 8.6 | K8: 23758 | L8: 7.8 | M8: △906 | N8: △3.7
A9: 경제 발전 | B9: 에너지 | C9: 11606 | D9: 5.6 | E9: 12585 | F9: 5.3 | G9: 14518 | H9: 5.5 | I9: 14277 | J9: 5 | K9: 17300 | L9: 5.7 | M9: 3023 | N9: 21.2
B10: 농업생산 및 기술 | C10: 10441 | D10: 5.1 | E10: 11051 | F10: 4.6 | G10: 12403 | H10: 4.7 | I10: 12965 | J10: 4.5 | K10: 14349 | L10: 4.7 | M10: 1384 | N10: 10.7
B11: 산업생산 및 기술 | C11: 55076 | D11: 26.7 | E11: 67724 | F11: 28.4 | G11: 78949 | H11: 29.7 | I11: 83982 | J11: 29.3 | K11: 87634 | L11: 28.7 | M11: 3652 | N11: 4.3
B12: 교통/정보통신/기타 기반시설 | C12: 6728 | D12: 3.3 | E12: 8448 | F12: 3.5 | G12: 10616 | H12: 4 | I12: 12136 | J12: 4.2 | K12: 12018 | L12: 3.9 | M12: △118 | N12: △1.0
A13: 우주 | B13: 우주개발 및 탐사 | C13: 3791 | D13: 1.8 | E13: 3942 | F13: 1.7 | G13: 4188 | H13: 1.6 | I13: 5599 | J13: 2 | K13: 7407 | L13: 2.4 | M13: 1808 | N13: 32.3
A14: 교육사회 | B14: 교육 | C14: 9346 | D14: 4.5 | E14: 10186 | F14: 4.3 | G14: 11468 | H14: 4.3 | I14: 12641 | J14: 4.4 | K14: 14368 | L14: 4.7 | M14: 1727 | N14: 13.7
B15: 사회구조 및 관계 | C15: 4774 | D15: 2.3 | E15: 5428 | F15: 2.3 | G15: 5929 | H15: 2.2 | I15: 6231 | J15: 2.2 | K15: 6049 | L15: 2 | M15: △182 | N15: △2.9
A16: 비목적 연구 | B16: 비목적 연구 | C16: 17710 | D16: 8.6 | E16: 19823 | F16: 8.3 | G16: 22167 | H16: 8.3 | I16: 23003 | J16: 8 | K16: 24293 | L16: 7.9 | M16: 1290 | N16: 5.6
B17: 기타 | C17: 26624 | D17: 12.9 | E17: 30276 | F17: 12.7 | G17: 29783 | H17: 11.2 | I17: 35732 | J17: 12.5 | K17: 37213 | L17: 12.2 | M17: 1481 | N17: 4.1
A18: 국방 | B18: 국방 | C18: 33601 | D18: 16.3 | E18: 39698 | F18: 16.6 | G18: 41595 | H18: 15.6 | I18: 43940 | J18: 15.3 | K18: 48730 | L18: 15.9 | M18: 4790 | N18: 10.9
A19: 합 계 | C19: 206254 | D19: 100 | E19: 238803 | F19: 100 | G19: 265791 | H19: 100 | I19: 286782 | J19: 100 | K19: 305731 | L19: 100 | M19: 18949 | N19: 6.6
A21: * 2009년 국가연구개발사업부터 개편된 과학기술표준분류체계 사용에 따라 호환표를 통해 적용분야를 기존의 경제사회목적과 연계시켜 추이 분석(조사분석항목에서 제외)
A22: * 2013년부터 경제사회목적은 적용분야의 제1분류를 기준으로 매핑함
A23: * 보건환경과 교육사회는 OECD MSTI(Main Science Technology Indicator) 분류기준에 따라 변경

Sheet 1-13
A1: 1-13. 미래유망신기술(6T)별 집행 추이, 2019-2023 | H1: 목차
M3: (단위 : 억원, %)
A4: 구분 | B4: 2019년 | D4: 2020년 | F4: 2021년 | H4: 2022년 | J4: 2023년 | L4: 증감
B5: 금액 | C5: 비중 | D5: 금액 | E5: 비중 | F5: 금액(A) | G5: 비중 | H5: 금액(B) | I5: 비중 | J5: 금액(B) | K5: 비중 | L5: B-A | M5: %
A6: IT분야 | B6: 34633 | C6: 18 | D6: 43168 | E6: 19.2 | F6: 49004 | G6: 19.5 | H6: 49607 | I6: 18.2 | J6: 54285 | K6: 18.7 | L6: 4678 | M6: 9.4
A7: BT분야 | B7: 36717 | C7: 19.1 | D7: 41253 | E7: 18.4 | F7: 47766 | G7: 19 | H7: 52026 | I7: 19.1 | J7: 53240 | K7: 18.3 | L7: 1214 | M7: 2.3
A8: NT분야 | B8: 8364 | C8: 4.3 | D8: 10884 | E8: 4.8 | F8: 12498 | G8: 5 | H8: 13343 | I8: 4.9 | J8: 13729 | K8: 4.7 | L8: 386 | M8: 2.9
A9: ST분야 | B9: 17622 | C9: 9.1 | D9: 21461 | E9: 9.6 | F9: 20498 | G9: 8.2 | H9: 20630 | I9: 7.6 | J9: 21595 | K9: 7.4 | L9: 965 | M9: 4.7
A10: ET분야 | B10: 22747 | C10: 11.8 | D10: 27738 | E10: 12.3 | F10: 33993 | G10: 13.5 | H10: 37159 | I10: 13.6 | J10: 44005 | K10: 15.2 | L10: 6846 | M10: 18.4
A11: CT분야 | B11: 2195 | C11: 1.1 | D11: 2485 | E11: 1.1 | F11: 3260 | G11: 1.3 | H11: 3807 | I11: 1.4 | J11: 4348 | K11: 1.5 | L11: 541 | M11: 14.2
A12: 소계 | B12: 122277 | C12: 63.5 | D12: 146988 | E12: 65.4 | F12: 167019 | G12: 66.5 | H12: 176571 | I12: 64.8 | J12: 191203 | K12: 65.9 | L12: 14632 | M12: 8.3
A13: 기타 | B13: 70320 | C13: 36.5 | D13: 77694 | E13: 34.6 | F13: 84255 | G13: 33.5 | H13: 95758 | I13: 35.2 | J13: 98961 | K13: 34.1 | L13: 3203 | M13: 3.3
A14: 합계 | B14: 192597 | C14: 100 | D14: 224682 | E14: 100 | F14: 251274 | G14: 100 | H14: 272329 | I14: 100 | J14: 290164 | K14: 100 | L14: 17835 | M14: 6.5
A16: * 기술분야별 집행현황 분석은 인문사회 분야를 제외한 과학기술 분야와 국방(비밀 세부과제 포함) 분야의 연구개발사업이 분석대상(2023년의 경우에는 63,879개 세부과제, 29조 164억원)임

Sheet 1-14
A1: 1-14. 연구비 규모별 세부과제 당 연구비 추이, 2019-2023 | F1: 목차
A4: 구 분 | B4: 2019년 | E4: 2020년 | H4: 2021년 | K4: 2022년 | N4: 2023년 | Q4: 증감 | S4: 과제 당 연구비 연평균(’19~’23) 증가율
B8: 과제 수 | C8: 연구비 | D8: 과제 당 연구비 | E8: 과제 수 | F8: 연구비 | G8: 과제 당 연구비 | H8: 과제 수 | I8: 연구비 | J8: 과제 당 연구비 | K8: 과제 수 | L8: 연구비 | M8: 과제 당 연구비 (A) | N8: 과제 수 | O8: 연구비 | P8: 과제 당 연구비 (B) | Q8: B-A | R8: %
A11: 3천만원 미만 | B11: 14813 | C11: 2470 | D11: 0.2 | E11: 13055 | F11: 2077 | G11: 0.2 | H11: 10533 | I11: 1720 | J11: 0.2 | K11: 9883 | L11: 1560 | M11: 0.2 | N11: 10748 | O11: 1736 | P11: 0.2 | Q11: 0 | R11: 0 | S11: =RATE(4,0,-D11,P11) -> 4.721970592e-12
A12: 3천만원 이상 ~ 5천만원 미만 | B12: 10957 | C12: 4156 | D12: 0.4 | E12: 10139 | F12: 3889 | G12: 0.4 | H12: 8207 | I12: 3231 | J12: 0.4 | K12: 8296 | L12: 3258 | M12: 0.4 | N12: 6189 | O12: 2407 | P12: 0.4 | Q12: 0 | R12: 0 | S12: =RATE(4,0,-D12,P12) -> 4.721970592e-12
A13: 5천만원 이상 ~ 1억원 미만 | B13: 16680 | C13: 10702 | D13: 0.6 | E13: 16694 | F13: 10925 | G13: 0.7 | H13: 18483 | I13: 12103 | J13: 0.7 | K13: 17778 | L13: 12057 | M13: 0.7 | N13: 15562 | O13: 10957 | P13: 0.7 | Q13: 0 | R13: 0 | S13: 0.03928987763
A14: 1억원 이상 ~ 2억원 미만 | B14: 12466 | C14: 16480 | D14: 1.3 | E14: 15243 | F14: 20050 | G14: 1.3 | H14: 15429 | I14: 20846 | J14: 1.4 | K14: 17675 | L14: 24009 | M14: 1.4 | N14: 14998 | O14: 20884 | P14: 1.4 | Q14: 0 | R14: 0 | S14: 0.0186996826
A15: 2억원 이상 ~ 3억원 미만 | B15: 4868 | C15: 11411 | D15: 2.3 | E15: 6361 | F15: 14792 | G15: 2.3 | H15: 7726 | I15: 17613 | J15: 2.3 | K15: 6404 | L15: 14719 | M15: 2.3 | N15: 7233 | O15: 16558 | P15: 2.3 | Q15: 0 | R15: 0 | S15: 4.722156927e-12
A16: 3억원 이상 ~ 5억원 미만 | B16: 3977 | C16: 14867 | D16: 3.7 | E16: 4435 | F16: 16577 | G16: 3.7 | H16: 5403 | I16: 20038 | J16: 3.7 | K16: 5922 | L16: 22248 | M16: 3.8 | N16: 5926 | O16: 22068 | P16: 3.7 | Q16: △0.1 | R16: △2.6 | S16: 4.722135449e-12
A17: 5억원 이상 ~ 10억원 미만 | B17: 3533 | C17: 24058 | D17: 6.8 | E17: 4008 | F17: 27362 | G17: 6.8 | H17: 4577 | I17: 31555 | J17: 6.9 | K17: 5007 | L17: 34911 | M17: 7 | N17: 5396 | O17: 36850 | P17: 6.8 | Q17: △0.2 | R17: △2.9 | S17: 4.722066934e-12
A18: 10억원 이상 | B18: 3033 | C18: 122110 | D18: 40.3 | E18: 3566 | F18: 143130 | G18: 40.1 | H18: 4387 | I18: 158685 | J18: 36.2 | K18: 5087 | L18: 174019 | M18: 34.2 | N18: 5752 | O18: 194272 | P18: 33.8 | Q18: △0.4 | R18: △1.2 | S18: -0.04301988538
A19: 총합계 | B19: 70327 | C19: 206254 | D19: 2.9 | E19: 73501 | F19: 238803 | G19: 3.2 | H19: 74745 | I19: 265791 | J19: 3.6 | K19: 76052 | L19: 286782 | M19: 3.8 | N19: 71804 | O19: 305731 | P19: 4.3 | Q19: 0.5 | R19: 13.2 | S19: 0.1034879992
A21: * 과제 당 연구비는 전체 조사분석 대상 세부과제가 분석대상임

Sheet 1-15
A1: 1-15. 연구수행주체별 연구비 규모에 따른 세부과제 수 추이, 2019-2023 | J1: 목차
AC3: (단위 ; 건, %, 억원)
A4: 연도 | B4: 구분 | C4: 국공립연구소 | F4: 출연연구소 | I4: 대학 | L4: 대기업 | O4: 중견기업 | R4: 중소기업 | U4: 정부부처 | X4: 기타 | AA4: 총합계
C5: 과제수 | D5: 비중 | E5: 정부 | F5: 과제수 | G5: 비중 | H5: 정부 | I5: 과제수 | J5: 비중 | K5: 정부 | L5: 과제수 | M5: 비중 | N5: 정부 | O5: 과제수 | P5: 비중 | Q5: 정부 | R5: 과제수 | S5: 비중 | T5: 정부 | U5: 과제수 | V5: 비중 | W5: 정부 | X5: 과제수 | Y5: 비중 | Z5: 정부 | AA5: 과제수 | AB5: 비중 | AC5: 정부
D6: (과제수) | E6: 연구비 | G6: (과제수) | H6: 연구비 | J6: (과제수) | K6: 연구비 | M6: (과제수) | N6: 연구비 | P6: (과제수) | Q6: 연구비 | S6: (과제수) | T6: 연구비 | V6: (과제수) | W6: 연구비 | Y6: (과제수) | Z6: 연구비 | AB6: (과제수) | AC6: 연구비
A7: 2019년 | B7: 3천만원 미만 | C7: 657 | D7: 16.3 | E7: 99 | F7: 818 | G7: 10.7 | H7: 119 | I7: 10730 | J7: 27.1 | K7: 1778 | L7: 19 | M7: 5.9 | N7: 2 | O7: 37 | P7: 4.8 | Q7: 5 | R7: 2003 | S7: 13.3 | T7: 380 | U7: 13 | V7: 15.7 | W7: 2 | X7: 536 | Y7: 19.9 | Z7: 83 | AA7: 14813 | AB7: 21.1 | AC7: 2470
B8: 3천만원 이상 ~ 5천만원 미만 | C8: 805 | D8: 19.9 | E8: 308 | F8: 713 | G8: 9.3 | H8: 270 | I8: 7680 | J8: 19.4 | K8: 2870 | L8: 15 | M8: 4.7 | N8: 6 | O8: 28 | P8: 3.6 | Q8: 11 | R8: 1417 | S8: 9.4 | T8: 578 | U8: 9 | V8: 10.8 | W8: 3 | X8: 290 | Y8: 10.8 | Z8: 111 | AA8: 10957 | AB8: 15.6 | AC8: 4156
B9: 5천만원 이상 ~ 1억원 미만 | C9: 1402 | D9: 34.7 | E9: 930 | F9: 1222 | G9: 16 | H9: 820 | I9: 10395 | J9: 26.2 | K9: 6380 | L9: 30 | M9: 9.4 | N9: 20 | O9: 54 | P9: 7 | Q9: 40 | R9: 3081 | S9: 20.4 | T9: 2186 | U9: 21 | V9: 25.3 | W9: 14 | X9: 475 | Y9: 17.7 | Z9: 312 | AA9: 16680 | AB9: 23.7 | AC9: 10702
B10: 1억원 이상 ~ 2억원 미만 | C10: 544 | D10: 13.5 | E10: 732 | F10: 1254 | G10: 16.4 | H10: 1729 | I10: 5917 | J10: 14.9 | K10: 7433 | L10: 46 | M10: 14.4 | N10: 62 | O10: 79 | P10: 10.3 | Q10: 108 | R10: 4139 | S10: 27.4 | T10: 5756 | U10: 11 | V10: 13.3 | W10: 14 | X10: 476 | Y10: 17.7 | Z10: 647 | AA10: 12466 | AB10: 17.7 | AC10: 16480
B11: 2억원 이상 ~ 3억원 미만 | C11: 228 | D11: 5.6 | E11: 526 | F11: 758 | G11: 9.9 | H11: 1787 | I11: 1797 | J11: 4.5 | K11: 4251 | L11: 29 | M11: 9.1 | N11: 72 | O11: 92 | P11: 12 | Q11: 219 | R11: 1760 | S11: 11.6 | T11: 4078 | U11: 3 | V11: 3.6 | W11: 7 | X11: 201 | Y11: 7.5 | Z11: 472 | AA11: 4868 | AB11: 6.9 | AC11: 11411
B12: 3억원 이상 ~ 5억원 미만 | C12: 172 | D12: 4.3 | E12: 642 | F12: 752 | G12: 9.8 | H12: 2883 | I12: 1464 | J12: 3.7 | K12: 5298 | L12: 39 | M12: 12.2 | N12: 155 | O12: 117 | P12: 15.2 | Q12: 462 | R12: 1235 | S12: 8.2 | T12: 4681 | U12: 4 | V12: 4.8 | W12: 16 | X12: 194 | Y12: 7.2 | Z12: 730 | AA12: 3977 | AB12: 5.7 | AC12: 14867
B13: 5억원 이상 ~ 10억원 미만 | C13: 123 | D13: 3 | E13: 809 | F13: 856 | G13: 11.2 | H13: 6069 | I13: 1038 | J13: 2.6 | K13: 6852 | L13: 53 | M13: 16.6 | N13: 370 | O13: 203 | P13: 26.4 | Q13: 1424 | R13: 1058 | S13: 7 | T13: 7074 | U13: 4 | V13: 4.8 | W13: 29 | X13: 198 | Y13: 7.4 | Z13: 1431 | AA13: 3533 | AB13: 5 | AC13: 24058
B14: 10억원 이상 | C14: 112 | D14: 2.8 | E14: 6482 | F14: 1284 | G14: 16.8 | H14: 68920 | I14: 632 | J14: 1.6 | K14: 15417 | L14: 89 | M14: 27.8 | N14: 3048 | O14: 159 | P14: 20.7 | Q14: 11896 | R14: 422 | S14: 2.8 | T14: 6178 | U14: 18 | V14: 21.7 | W14: 1743 | X14: 317 | Y14: 11.8 | Z14: 8425 | AA14: 3033 | AB14: 4.3 | AC14: 122110
B15: 총합계 | C15: 4043 | D15: 100 | E15: 10527 | F15: 7657 | G15: 100 | H15: 82597 | I15: 39653 | J15: 100 | K15: 50278 | L15: 320 | M15: 100 | N15: 3735 | O15: 769 | P15: 100 | Q15: 14165 | R15: 15115 | S15: 100 | T15: 30910 | U15: 83 | V15: 100 | W15: 1829 | X15: 2687 | Y15: 100 | Z15: 12212 | AA15: 70327 | AB15: 100 | AC15: 206254
A16: 2020년 | B16: 3천만원 미만 | C16: 541 | D16: 13.2 | E16: 77 | F16: 843 | G16: 10.6 | H16: 113 | I16: 9900 | J16: 24.6 | K16: 1562 | L16: 19 | M16: 5.6 | N16: 2 | O16: 77 | P16: 8 | Q16: 12 | R16: 1331 | S16: 7.8 | T16: 260 | U16: 4 | V16: 4.9 | W16: 1 | X16: 340 | Y16: 11.9 | Z16: 51 | AA16: 13055 | AB16: 17.8 | AC16: 2077
B17: 3천만원 이상 ~ 5천만원 미만 | C17: 792 | D17: 19.3 | E17: 302 | F17: 726 | G17: 9.2 | H17: 278 | I17: 7127 | J17: 17.7 | K17: 2692 | L17: 15 | M17: 4.4 | N17: 6 | O17: 31 | P17: 3.2 | Q17: 12 | R17: 1147 | S17: 6.7 | T17: 486 | U17: 11 | V17: 13.6 | W17: 4 | X17: 290 | Y17: 10.2 | Z17: 110 | AA17: 10139 | AB17: 13.8 | AC17: 3889
B18: 5천만원 이상 ~ 1억원 미만 | C18: 1467 | D18: 35.7 | E18: 982 | F18: 1159 | G18: 14.6 | H18: 797 | I18: 9937 | J18: 24.7 | K18: 6305 | L18: 23 | M18: 6.8 | N18: 17 | O18: 58 | P18: 6 | Q18: 44 | R18: 3453 | S18: 20.2 | T18: 2379 | U18: 32 | V18: 39.5 | W18: 20 | X18: 565 | Y18: 19.9 | Z18: 381 | AA18: 16694 | AB18: 22.7 | AC18: 10925
B19: 1억원 이상 ~ 2억원 미만 | C19: 619 | D19: 15.1 | E19: 797 | F19: 1399 | G19: 17.6 | H19: 1916 | I19: 7105 | J19: 17.7 | K19: 8957 | L19: 43 | M19: 12.7 | N19: 58 | O19: 101 | P19: 10.4 | Q19: 143 | R19: 5414 | S19: 31.7 | T19: 7409 | U19: 12 | V19: 14.8 | W19: 15 | X19: 550 | Y19: 19.3 | Z19: 756 | AA19: 15243 | AB19: 20.7 | AC19: 20050
B20: 2억원 이상 ~ 3억원 미만 | C20: 264 | D20: 6.4 | E20: 608 | F20: 765 | G20: 9.6 | H20: 1796 | I20: 2506 | J20: 6.2 | K20: 5769 | L20: 28 | M20: 8.3 | N20: 67 | O20: 84 | P20: 8.7 | Q20: 200 | R20: 2472 | S20: 14.5 | T20: 5801 | U20: 2 | V20: 2.5 | W20: 4 | X20: 240 | Y20: 8.4 | Z20: 548 | AA20: 6361 | AB20: 8.7 | AC20: 14792
B21: 3억원 이상 ~ 5억원 미만 | C21: 188 | D21: 4.6 | E21: 706 | F21: 763 | G21: 9.6 | H21: 2900 | I21: 1686 | J21: 4.2 | K21: 6200 | L21: 30 | M21: 8.9 | N21: 113 | O21: 139 | P21: 14.4 | Q21: 553 | R21: 1406 | S21: 8.2 | T21: 5270 | U21: 5 | V21: 6.2 | W21: 18 | X21: 218 | Y21: 7.7 | Z21: 817 | AA21: 4435 | AB21: 6 | AC21: 16577
B22: 5억원 이상 ~ 10억원 미만 | C22: 117 | D22: 2.9 | E22: 794 | F22: 906 | G22: 11.4 | H22: 6287 | I22: 1183 | J22: 2.9 | K22: 7795 | L22: 52 | M22: 15.4 | N22: 391 | O22: 266 | P22: 27.5 | Q22: 1850 | R22: 1246 | S22: 7.3 | T22: 8534 | U22: 3 | V22: 3.7 | W22: 18 | X22: 235 | Y22: 8.3 | Z22: 1693 | AA22: 4008 | AB22: 5.5 | AC22: 27362
B23: 10억원 이상 | C23: 117 | D23: 2.9 | E23: 7058 | F23: 1372 | G23: 17.3 | H23: 76203 | I23: 727 | J23: 1.8 | K23: 18227 | L23: 128 | M23: 37.9 | N23: 3167 | O23: 211 | P23: 21.8 | Q23: 15399 | R23: 591 | S23: 3.5 | T23: 9613 | U23: 12 | V23: 14.8 | W23: 1833 | X23: 408 | Y23: 14.3 | Z23: 11630 | AA23: 3566 | AB23: 4.9 | AC23: 143130
B24: 총합계 | C24: 4105 | D24: 100 | E24: 11323 | F24: 7933 | G24: 100 | H24: 90289 | I24: 40171 | J24: 100 | K24: 57508 | L24: 338 | M24: 100 | N24: 3820 | O24: 967 | P24: 100 | Q24: 18212 | R24: 17060 | S24: 100 | T24: 39753 | U24: 81 | V24: 100 | W24: 1914 | X24: 2846 | Y24: 100 | Z24: 15986 | AA24: 73501 | AB24: 100 | AC24: 238803
A25: 2021년 | B25: 3천만원 미만 | C25: 495 | D25: 12 | E25: 72 | F25: 508 | G25: 6.4 | H25: 74 | I25: 7680 | J25: 19.6 | K25: 1251 | L25: 27 | M25: 7.3 | N25: 3 | O25: 100 | P25: 9.1 | Q25: 18 | R25: 1026 | S25: 5.7 | T25: 204 | U25: 8 | V25: 9.8 | W25: 1 | X25: 689 | Y25: 18.5 | Z25: 97 | AA25: 10533 | AB25: 14.1 | AC25: 1720
B26: 3천만원 이상 ~ 5천만원 미만 | C26: 630 | D26: 15.3 | E26: 241 | F26: 625 | G26: 7.8 | H26: 233 | I26: 5773 | J26: 14.7 | K26: 2262 | L26: 15 | M26: 4.1 | N26: 5 | O26: 26 | P26: 2.4 | Q26: 10 | R26: 845 | S26: 4.7 | T26: 367 | U26: 10 | V26: 12.2 | W26: 4 | X26: 283 | Y26: 7.6 | Z26: 110 | AA26: 8207 | AB26: 11 | AC26: 3231
B27: 5천만원 이상 ~ 1억원 미만 | C27: 1610 | D27: 39.1 | E27: 1134 | F27: 1248 | G27: 15.6 | H27: 845 | I27: 11680 | J27: 29.7 | K27: 7358 | L27: 32 | M27: 8.7 | N27: 22 | O27: 57 | P27: 5.2 | Q27: 39 | R27: 3240 | S27: 17.9 | T27: 2300 | U27: 27 | V27: 32.9 | W27: 18 | X27: 589 | Y27: 15.9 | Z27: 387 | AA27: 18483 | AB27: 24.7 | AC27: 12103
B28: 1억원 이상 ~ 2억원 미만 | C28: 635 | D28: 15.4 | E28: 821 | F28: 1439 | G28: 18 | H28: 1941 | I28: 7042 | J28: 17.9 | K28: 9039 | L28: 42 | M28: 11.4 | N28: 55 | O28: 123 | P28: 11.2 | Q28: 176 | R28: 5449 | S28: 30.1 | T28: 7859 | U28: 21 | V28: 25.6 | W28: 29 | X28: 678 | Y28: 18.2 | Z28: 925 | AA28: 15429 | AB28: 20.6 | AC28: 20846
B29: 2억원 이상 ~ 3억원 미만 | C29: 265 | D29: 6.4 | E29: 610 | F29: 826 | G29: 10.3 | H29: 1914 | I29: 2884 | J29: 7.3 | K29: 6555 | L29: 19 | M29: 5.1 | N29: 45 | O29: 88 | P29: 8 | Q29: 205 | R29: 3299 | S29: 18.2 | T29: 7504 | U29: 2 | V29: 2.4 | W29: 4 | X29: 343 | Y29: 9.2 | Z29: 776 | AA29: 7726 | AB29: 10.3 | AC29: 17613
B30: 3억원 이상 ~ 5억원 미만 | C30: 239 | D30: 5.8 | E30: 900 | F30: 802 | G30: 10 | H30: 3013 | I30: 2081 | J30: 5.3 | K30: 7643 | L30: 40 | M30: 10.8 | N30: 155 | O30: 159 | P30: 14.4 | Q30: 621 | R30: 1794 | S30: 9.9 | T30: 6638 | X30: 288 | Y30: 7.8 | Z30: 1069 | AA30: 5403 | AB30: 7.2 | AC30: 20038
B31: 5억원 이상 ~ 10억원 미만 | C31: 127 | D31: 3.1 | E31: 841 | F31: 1007 | G31: 12.6 | H31: 6987 | I31: 1290 | J31: 3.3 | K31: 8656 | L31: 52 | M31: 14.1 | N31: 381 | O31: 296 | P31: 26.9 | Q31: 2176 | R31: 1548 | S31: 8.6 | T31: 10730 | U31: 2 | V31: 2.4 | W31: 13 | X31: 255 | Y31: 6.9 | Z31: 1773 | AA31: 4577 | AB31: 6.1 | AC31: 31555
B32: 10억원 이상 | C32: 115 | D32: 2.8 | E32: 7694 | F32: 1528 | G32: 19.1 | H32: 81051 | I32: 851 | J32: 2.2 | K32: 20555 | L32: 142 | M32: 38.5 | N32: 3662 | O32: 252 | P32: 22.9 | Q32: 12921 | R32: 896 | S32: 5 | T32: 14119 | U32: 12 | V32: 14.6 | W32: 2565 | X32: 591 | Y32: 15.9 | Z32: 16118 | AA32: 4387 | AB32: 5.9 | AC32: 158685
B33: 총합계 | C33: 4116 | D33: 100 | E33: 12313 | F33: 7983 | G33: 100 | H33: 96058 | I33: 39281 | J33: 100 | K33: 63317 | L33: 369 | M33: 100 | N33: 4327 | O33: 1101 | P33: 100 | Q33: 16166 | R33: 18097 | S33: 100 | T33: 49721 | U33: 82 | V33: 100 | W33: 2634 | X33: 3716 | Y33: 100 | Z33: 21254 | AA33: 74745 | AB33: 100 | AC33: 265791
A34: 2022년 | B34: 3천만원 미만 | C34: 478 | D34: 11.5 | E34: 68 | F34: 600 | G34: 7.8 | H34: 83 | I34: 6577 | J34: 17 | K34: 1114 | L34: 49 | M34: 10.6 | N34: 8 | O34: 118 | P34: 9.3 | Q34: 21 | R34: 1416 | S34: 7 | T34: 174 | U34: 13 | V34: 13 | W34: 3 | X34: 632 | Y34: 17.2 | Z34: 91 | AA34: 9883 | AB34: 13 | AC34: 1560
B35: 3천만원 이상 ~ 5천만원 미만 | C35: 508 | D35: 12.2 | E35: 193 | F35: 547 | G35: 7.1 | H35: 209 | I35: 5762 | J35: 14.9 | K35: 2238 | L35: 19 | M35: 4.1 | N35: 7 | O35: 22 | P35: 1.7 | Q35: 8 | R35: 1131 | S35: 5.6 | T35: 484 | U35: 11 | V35: 11 | W35: 4 | X35: 296 | Y35: 8 | Z35: 116 | AA35: 8296 | AB35: 10.9 | AC35: 3258
B36: 5천만원 이상 ~ 1억원 미만 | C36: 1567 | D36: 37.6 | E36: 1119 | F36: 1007 | G36: 13.1 | H36: 690 | I36: 11190 | J36: 29 | K36: 7469 | L36: 34 | M36: 7.3 | N36: 23 | O36: 66 | P36: 5.2 | Q36: 43 | R36: 3354 | S36: 16.7 | T36: 2330 | U36: 31 | V36: 31 | W36: 22 | X36: 529 | Y36: 14.4 | Z36: 363 | AA36: 17778 | AB36: 23.4 | AC36: 12057
B37: 1억원 이상 ~ 2억원 미만 | C37: 804 | D37: 19.3 | E37: 1038 | F37: 1374 | G37: 17.9 | H37: 1842 | I37: 7960 | J37: 20.6 | K37: 10608 | L37: 37 | M37: 8 | N37: 50 | O37: 92 | P37: 7.2 | Q37: 127 | R37: 6734 | S37: 33.5 | T37: 9451 | U37: 18 | V37: 18 | W37: 25 | X37: 656 | Y37: 17.8 | Z37: 868 | AA37: 17675 | AB37: 23.2 | AC37: 24009
B38: 2억원 이상 ~ 3억원 미만 | C38: 265 | D38: 6.4 | E38: 624 | F38: 711 | G38: 9.2 | H38: 1656 | I38: 2323 | J38: 6 | K38: 5316 | L38: 7 | M38: 1.5 | N38: 16 | O38: 71 | P38: 5.6 | Q38: 167 | R38: 2660 | S38: 13.2 | T38: 6093 | U38: 6 | V38: 6 | W38: 15 | X38: 361 | Y38: 9.8 | Z38: 834 | AA38: 6404 | AB38: 8.4 | AC38: 14719
B39: 3억원 이상 ~ 5억원 미만 | C39: 261 | D39: 6.3 | E39: 984 | F39: 775 | G39: 10.1 | H39: 2918 | I39: 2286 | J39: 5.9 | K39: 8501 | L39: 36 | M39: 7.8 | N39: 137 | O39: 204 | P39: 16.1 | Q39: 796 | R39: 2046 | S39: 10.2 | T39: 7762 | U39: 7 | V39: 7 | W39: 26 | X39: 307 | Y39: 8.3 | Z39: 1125 | AA39: 5922 | AB39: 7.8 | AC39: 22248
B40: 5억원 이상 ~ 10억원 미만 | C40: 156 | D40: 3.7 | E40: 1034 | F40: 994 | G40: 12.9 | H40: 6968 | I40: 1453 | J40: 3.8 | K40: 9869 | L40: 73 | M40: 15.7 | N40: 556 | O40: 327 | P40: 25.7 | Q40: 2376 | R40: 1705 | S40: 8.5 | T40: 12022 | U40: 3 | V40: 3 | W40: 22 | X40: 296 | Y40: 8 | Z40: 2064 | AA40: 5007 | AB40: 6.6 | AC40: 34911
B41: 10억원 이상 | C41: 125 | D41: 3 | E41: 7965 | F41: 1681 | G41: 21.9 | H41: 89372 | I41: 1030 | J41: 2.7 | K41: 24624 | L41: 209 | M41: 45 | N41: 5093 | O41: 371 | P41: 29.2 | Q41: 15178 | R41: 1055 | S41: 5.2 | T41: 16609 | U41: 11 | V41: 11 | W41: 509 | X41: 605 | Y41: 16.4 | Z41: 14668 | AA41: 5087 | AB41: 6.7 | AC41: 174019
B42: 총합계 | C42: 4164 | D42: 100 | E42: 13024 | F42: 7689 | G42: 100 | H42: 103737 | I42: 38581 | J42: 100 | K42: 69738 | L42: 464 | M42: 100 | N42: 5889 | O42: 1271 | P42: 100 | Q42: 18716 | R42: 20101 | S42: 100 | T42: 54924 | U42: 100 | V42: 100 | W42: 626 | X42: 3682 | Y42: 100 | Z42: 20128 | AA42: 76052 | AB42: 100 | AC42: 286782
A43: 2023년 | B43: 3천만원 미만 | C43: 119 | D43: 5.3 | E43: 17.17261735 | F43: 589 | G43: 7.9 | H43: 84.79089173 | I43: 6951 | J43: 18.9 | K43: 1205.28382 | L43: 45 | M43: 9.1 | N43: 6.98387 | O43: 131 | P43: 9.9 | Q43: 23.16980199 | R43: 2830 | S43: 13.6 | T43: 384.8804339 | U43: 0 | V43: 0 | W43: 0 | X43: 83 | Y43: 3.1 | Z43: 13.39773 | AA43: 10748 | AB43: 15 | AC43: 1736
B44: 3천만원 이상 ~ 5천만원 미만 | C44: 89 | D44: 3.9 | E44: 33.8933474 | F44: 486 | G44: 6.5 | H44: 182.9588524 | I44: 4912 | J44: 13.4 | K44: 1928.085062 | L44: 12 | M44: 2.4 | N44: 4.415 | O44: 37 | P44: 2.8 | Q44: 12.11416248 | R44: 501 | S44: 2.4 | T44: 184.6194878 | U44: 1 | V44: 1.5 | W44: 0.3 | X44: 151 | Y44: 5.6 | Z44: 60.40629505 | AA44: 6189 | AB44: 8.6 | AC44: 2407
B45: 5천만원 이상 ~ 1억원 미만 | C45: 260 | D45: 11.5 | E45: 188.78955 | F45: 975 | G45: 13 | H45: 703.1500854 | I45: 10172 | J45: 27.7 | K45: 7236.924993 | L45: 28 | M45: 5.7 | N45: 19.99339 | O45: 62 | P45: 4.7 | Q45: 40.94919 | R45: 3636 | S45: 17.5 | T45: 2468.212795 | U45: 15 | V45: 22.7 | W45: 11.12 | X45: 414 | Y45: 15.3 | Z45: 287.7532443 | AA45: 15562 | AB45: 21.7 | AC45: 10957
B46: 1억원 이상 ~ 2억원 미만 | C46: 505 | D46: 22.4 | E46: 725.6037351 | F46: 1306 | G46: 17.4 | H46: 1789.955003 | I46: 7494 | J46: 20.4 | K46: 10465.41053 | L46: 36 | M46: 7.3 | N46: 45.11829 | O46: 95 | P46: 7.2 | Q46: 128.441097 | R46: 4999 | S46: 24.1 | T46: 6985.683234 | U46: 19 | V46: 28.8 | W46: 28.71 | X46: 544 | Y46: 20.1 | Z46: 715.0486431 | AA46: 14998 | AB46: 20.9 | AC46: 20884
B47: 2억원 이상 ~ 3억원 미만 | C47: 445 | D47: 19.7 | E47: 1036.003285 | F47: 652 | G47: 8.7 | H47: 1535.908131 | I47: 1948 | J47: 5.3 | K47: 4490.270983 | L47: 17 | M47: 3.4 | N47: 39.59 | O47: 69 | P47: 5.2 | Q47: 162.08506 | R47: 3774 | S47: 18.2 | T47: 8518.393693 | U47: 7 | V47: 10.6 | W47: 16.37 | X47: 321 | Y47: 11.8 | Z47: 759.1822345 | AA47: 7233 | AB47: 10.1 | AC47: 16558
B48: 3억원 이상 ~ 5억원 미만 | C48: 437 | D48: 19.4 | E48: 1619.154097 | F48: 744 | G48: 9.9 | H48: 2807.18422 | I48: 2287 | J48: 6.2 | K48: 8464.519994 | L48: 36 | M48: 7.3 | N48: 140.9705 | O48: 131 | P48: 9.9 | Q48: 502.1412013 | R48: 1992 | S48: 9.6 | T48: 7428.438059 | U48: 6 | V48: 9.1 | W48: 20.29 | X48: 293 | Y48: 10.8 | Z48: 1085.736369 | AA48: 5926 | AB48: 8.3 | AC48: 22068
B49: 5억원 이상 ~ 10억원 미만 | C49: 245 | D49: 10.9 | E49: 1593.343873 | F49: 1003 | G49: 13.4 | H49: 7082.005261 | I49: 1713 | J49: 4.7 | K49: 11283.89025 | L49: 67 | M49: 13.6 | N49: 513.20475 | O49: 340 | P49: 25.6 | Q49: 2432.015859 | R49: 1729 | S49: 8.3 | T49: 11838.45173 | U49: 7 | V49: 10.6 | W49: 56.52 | X49: 292 | Y49: 10.8 | Z49: 2050.515629 | AA49: 5396 | AB49: 7.5 | AC49: 36850
B50: 10억원 이상 | C50: 157 | D50: 7 | E50: 9189.60931 | F50: 1748 | G50: 23.3 | H50: 96674.85468 | I50: 1208 | J50: 3.3 | K50: 28959.09046 | L50: 253 | M50: 51.2 | N50: 7350.552982 | O50: 461 | P50: 34.8 | Q50: 15243.81459 | R50: 1303 | S50: 6.3 | T50: 20569.94793 | U50: 11 | V50: 16.7 | W50: 621.24 | X50: 611 | Y50: 22.6 | Z50: 15662.71629 | AA50: 5752 | AB50: 8 | AC50: 194272
B51: 총합계 | C51: 2257 | D51: 100 | E51: 14403.56981 | F51: 7503 | G51: 100 | H51: 110860.8071 | I51: 36685 | J51: 100 | K51: 74033.4761 | L51: 494 | M51: 100 | N51: 8120.828782 | O51: 1326 | P51: 100 | Q51: 18544.73096 | R51: 20764 | S51: 100 | T51: 58378.62736 | U51: 66 | V51: 100 | W51: 754.55 | X51: 2709 | Y51: 100 | Z51: 20634.75643 | AA51: 71804 | AB51: 100 | AC51: 305732
A53: * 출연연구소는 경제인문사회연구회, 국가과학기술연구회, 연구관리전문기관, 기타 출연연 등 R&D관련 출연연구기관을 포함
A54: * 국공립연구소는 국립 28개 연구소와 지방자치단체의 공립연구소를 포함
A55: * 기타는 비영리법인, 연구조합, 협회, 학회, 정부투자기관 등을 포함

Sheet 1-16
A1: 1-16. 신규･계속과제의 과제 수와 과제당 연구비 추이, 2019-2023 | J1: 목차
E3: (단위 : 억원, %)
A4: 연도 | B4: 구분 | C4: 과제 수 | D4: 금액 | E4: 과제당 연구비
A5: 2019년 | B5: 신규과제 | C5: 27606 | D5: 43958 | E5: 1.6
B6: 계속과제 | C6: 42721 | D6: 162295 | E6: 3.8
B7: 소계 | C7: 70327 | D7: 206254 | E7: 2.9
A8: 2020년 | B8: 신규과제 | C8: 34458 | D8: 69169 | E8: 2
B9: 계속과제 | C9: 39043 | D9: 169634 | E9: 4.3
B10: 소계 | C10: 73501 | D10: 238803 | E10: 3.2
A11: 2021년 | B11: 신규과제 | C11: 30900 | D11: 70637 | E11: 2.3
B12: 계속과제 | C12: 43845 | D12: 195153 | E12: 4.5
B13: 소계 | C13: 74745 | D13: 265791 | E13: 3.6
A14: 2022년 | B14: 신규과제 | C14: 30577 | D14: 88385 | E14: 2.9
B15: 계속과제 | C15: 45475 | D15: 198396 | E15: 4.4
B16: 소계 | C16: 76052 | D16: 286782 | E16: 3.8
A17: 2023년 | B17: 신규과제 | C17: 26050 | D17: 67414 | E17: 2.6
B18: 계속과제 | C18: 45754 | D18: 238317 | E18: 5.2
B19: 소계 | C19: 71804 | D19: 305731 | E19: 4.3
A21: * 전체 조사분석 대상 세부과제가 분석대상임

Sheet 2-1
A1: 2-1. 주요부처별 연구개발단계별 집행 추이, 2019-2023 | H1: 목차
J3: (단위 : 억원, %)
A4: 연도 | B4: 구분 | C4: 기초연구 | E4: 응용연구 | G4: 개발연구 | I4: 합계*
C5: 금액 | D5: 비중 | E5: 금액 | F5: 비중 | G5: 금액 | H5: 비중 | I5: 금액 | J5: 비중
A6: 2019년 | B6: 과학기술정보통신부 | C6: 29232 | D6: 60.2 | E6: 8313 | F6: 17.1 | G6: 10991 | H6: 22.6 | I6: 48537 | J6: 100
B7: 산업통상자원부 | C7: 2916 | D7: 12.3 | E7: 6425 | F7: 27.1 | G7: 14334 | H7: 60.5 | I7: 23675 | J7: 100
B8: 방위사업청 | C8: 627 | D8: 2.5 | E8: 7590 | F8: 29.9 | G8: 17146 | H8: 67.6 | I8: 25363 | J8: 100
B9: 중소벤처기업부 | C9: - | D9: - | E9: 289 | F9: 3.1 | G9: 9163 | H9: 96.9 | I9: 9452 | J9: 100
B10: 교육부 | C10: 6480 | D10: 94 | E10: 317 | F10: 4.6 | G10: 97 | H10: 1.4 | I10: 6894 | J10: 100
B11: 국토교통부 | C11: 290 | D11: 6.3 | E11: 804 | F11: 17.4 | G11: 3520 | H11: 76.3 | I11: 4614 | J11: 100
B12: 기타 부처 | C12: 6870 | D12: 29.6 | E12: 6719 | F12: 28.9 | G12: 9633 | H12: 41.5 | I12: 23222 | J12: 100
B13: 합계 | C13: 46415 | D13: 32.7 | E13: 30458 | F13: 21.5 | G13: 64883 | H13: 45.8 | I13: 141757 | J13: 100
A14: 2020년 | B14: 과학기술정보통신부 | C14: 32335 | D14: 58 | E14: 9814 | F14: 17.6 | G14: 13648 | H14: 24.5 | I14: 55797 | J14: 100
B15: 산업통상자원부 | C15: 3571 | D15: 12.2 | E15: 11671 | F15: 39.8 | G15: 14046 | H15: 48 | I15: 29287 | J15: 100
B16: 방위사업청 | C16: 704 | D16: 2.3 | E16: 7686 | F16: 25 | G16: 22296 | H16: 72.7 | I16: 30686 | J16: 100
B17: 중소벤처기업부 | C17: - | D17: - | E17: 344 | F17: 2.6 | G17: 12866 | H17: 97.4 | I17: 13210 | J17: 100
B18: 교육부 | C18: 6986 | D18: 91.2 | E18: 572 | F18: 7.5 | G18: 106 | H18: 1.4 | I18: 7664 | J18: 100
B19: 국토교통부 | C19: 210 | D19: 4.3 | E19: 851 | F19: 17.3 | G19: 3863 | H19: 78.5 | I19: 4924 | J19: 100
B20: 기타 부처 | C20: 6908 | D20: 25.8 | E20: 7970 | F20: 29.7 | G20: 11929 | H20: 44.5 | I20: 26806 | J20: 100
B21: 합계 | C21: 50714 | D21: 30.1 | E21: 38907 | F21: 23.1 | G21: 78754 | H21: 46.8 | I21: 168375 | J21: 100
A22: 2021년 | B22: 과학기술정보통신부 | C22: 33929 | D22: 54.6 | E22: 12846 | F22: 20.7 | G22: 15408 | H22: 24.8 | I22: 62184 | J22: 100
B23: 산업통상자원부 | C23: 2614 | D23: 7.4 | E23: 10616 | F23: 30.1 | G23: 22019 | H23: 62.5 | I23: 35249 | J23: 100
B24: 방위사업청 | C24: 997 | D24: 3.2 | E24: 9302 | F24: 30.1 | G24: 20607 | H24: 66.7 | I24: 30905 | J24: 100
B25: 중소벤처기업부 | C25: - | D25: - | E25: 372 | F25: 2.3 | G25: 15602 | H25: 97.7 | I25: 15974 | J25: 100
B26: 교육부 | C26: 8073 | D26: 88.8 | E26: 876 | F26: 9.6 | G26: 144 | H26: 1.6 | I26: 9093 | J26: 100
B27: 국토교통부 | C27: 231 | D27: 4 | E27: 826 | F27: 14.5 | G27: 4646 | H27: 81.5 | I27: 5703 | J27: 100
B28: 기타 부처 | C28: 7224 | D28: 21.2 | E28: 10781 | F28: 31.6 | G28: 16140 | H28: 47.3 | I28: 34146 | J28: 100
B29: 합계 | C29: 53068 | D29: 27.5 | E29: 45620 | F29: 23.6 | G29: 94566 | H29: 48.9 | I29: 193253 | J29: 100
A30: 2022년 | B30: 과학기술정보통신부 | C30: 37523 | D30: 55.8 | E30: 14328 | F30: 21.3 | G30: 15441 | H30: 22.9 | I30: 67292 | J30: 100
B31: 산업통상자원부 | C31: 2549 | D31: 6.7 | E31: 9595 | F31: 25.3 | G31: 25749 | H31: 68 | I31: 37893 | J31: 100
B32: 방위사업청 | C32: 1048 | D32: 3.4 | E32: 13957 | F32: 44.7 | G32: 16244 | H32: 52 | I32: 31248 | J32: 100
B33: 중소벤처기업부 | C33: - | D33: - | E33: 208 | F33: 1.3 | G33: 15679 | H33: 98.7 | I33: 15888 | J33: 100
B34: 교육부 | C34: 8141 | D34: 88.1 | E34: 948 | F34: 10.3 | G34: 153 | H34: 1.7 | I34: 9241 | J34: 100
B35: 국토교통부 | C35: 225 | D35: 4.2 | E35: 458 | F35: 8.6 | G35: 4617 | H35: 87.1 | I35: 5300 | J35: 100
B36: 기타 부처 | C36: 8538 | D36: 21.1 | E36: 12845 | F36: 31.7 | G36: 19148 | H36: 47.2 | I36: 40531 | J36: 100
B37: 합계 | C37: 58024 | D37: 28 | E37: 52338 | F37: 25.2 | G37: 97032 | H37: 46.8 | I37: 207394 | J37: 100
A38: 2023년 | B38: 과학기술정보통신부 | C38: 37594 | D38: 53.9 | E38: 15618 | F38: 22.4 | G38: 16561 | H38: 23.7 | I38: 69773 | J38: 100
B39: 산업통상자원부 | C39: 2424 | D39: 5.8 | E39: 8148 | F39: 19.7 | G39: 30885 | H39: 74.5 | I39: 41457 | J39: 100
B40: 방위사업청 | C40: 980 | D40: 2.8 | E40: 20549 | F40: 58.7 | G40: 13505 | H40: 38.5 | I40: 35034 | J40: 100
B41: 중소벤처기업부 | C41: - | D41: - | E41: 1471 | F41: 8.9 | G41: 15053 | H41: 91.1 | I41: 16524 | J41: 100
B42: 교육부 | C42: 8463 | D42: 86.4 | E42: 1107 | F42: 11.3 | G42: 229 | H42: 2.3 | I42: 9799 | J42: 100
B43: 국토교통부 | C43: 148 | D43: 2.5 | E43: 520 | F43: 8.9 | G43: 5205 | H43: 88.6 | I43: 5873 | J43: 100
B44: 기타 부처 | C44: 8104 | D44: 21 | E44: 11541 | F44: 29.9 | G44: 18950 | H44: 49.1 | I44: 38596 | J44: 100
B45: 합계 | C45: 57714 | D45: 26.6 | E45: 58953 | F45: 27.2 | G45: 100389 | H45: 46.2 | I45: 217056 | J45: 100
A47: * 연구개발단계에서 기타를 제외한 금액
A48: * 연구개발단계에서 기타는 연구장비, 시설 등 연구개발단계 분류가 불가능한 경우에 해당

Sheet 2-2
A1: 2-2. 부처별 연구개발단계별 집행 추이, 2019-2023 | H1: 목차
N3: (단위 : 억원, %)
A4: 구 분 | C4: 2019년 | E4: 2020년 | G4: 2021년 | I4: 2022년 | K4: 2023년 | M4: 증감
C5: 금액 | D5: 비중 | E5: 금액 | F5: 비중 | G5: 금액(A) | H5: 비중 | I5: 금액(B) | J5: 비중 | K5: 금액(B) | L5: 비중 | M5: B-A | N5: %
A6: 과학기술정보통신부 | B6: 기초연구 | C6: 29232 | D6: 60.2 | E6: 32335 | F6: 58 | G6: 33929 | H6: 54.6 | I6: 37523 | J6: 55.8 | K6: 37594 | L6: 53.9 | M6: 71 | N6: 0.2
B7: 응용연구 | C7: 8313 | D7: 17.1 | E7: 9814 | F7: 17.6 | G7: 12846 | H7: 20.7 | I7: 14328 | J7: 21.3 | K7: 15618 | L7: 22.4 | M7: 1290 | N7: 9
B8: 개발연구 | C8: 10991 | D8: 22.6 | E8: 13648 | F8: 24.5 | G8: 15408 | H8: 24.8 | I8: 15441 | J8: 22.9 | K8: 16561 | L8: 23.7 | M8: 1119 | N8: 7.2
B9: 합계 | C9: 48537 | D9: 100 | E9: 55797 | F9: 100 | G9: 62184 | H9: 100 | I9: 67292 | J9: 100 | K9: 69773 | L9: 100 | M9: 2481 | N9: 3.7
A10: 교육부 | B10: 기초연구 | C10: 6480 | D10: 94 | E10: 6986 | F10: 91.2 | G10: 8073 | H10: 88.8 | I10: 8141 | J10: 88.1 | K10: 8463 | L10: 86.4 | M10: 322 | N10: 4
B11: 응용연구 | C11: 317 | D11: 4.6 | E11: 572 | F11: 7.5 | G11: 876 | H11: 9.6 | I11: 948 | J11: 10.3 | K11: 1107 | L11: 11.3 | M11: 159 | N11: 16.8
B12: 개발연구 | C12: 97 | D12: 1.4 | E12: 106 | F12: 1.4 | G12: 144 | H12: 1.6 | I12: 153 | J12: 1.7 | K12: 229 | L12: 2.3 | M12: 76 | N12: 49.9
B13: 합계 | C13: 6894 | D13: 100 | E13: 7664 | F13: 100 | G13: 9093 | H13: 100 | I13: 9241 | J13: 100 | K13: 9799 | L13: 100 | M13: 557 | N13: 6
A14: 국무조정실 | B14: 기초연구 | C14: 279 | D14: 48.6 | E14: 182 | F14: 39 | G14: 370 | H14: 43.9 | I14: 616 | J14: 67.3 | K14: 587 | L14: 55.1 | M14: △29 | N14: △4.7
B15: 응용연구 | C15: 244 | D15: 42.5 | E15: 242 | F15: 51.7 | G15: 394 | H15: 46.8 | I15: 231 | J15: 25.2 | K15: 456 | L15: 42.8 | M15: 225 | N15: 97.5
B16: 개발연구 | C16: 51 | D16: 8.9 | E16: 44 | F16: 9.3 | G16: 79 | H16: 9.3 | I16: 68 | J16: 7.4 | K16: 22 | L16: 2 | M16: △46 | N16: △68.2
B17: 합계 | C17: 575 | D17: 100 | E17: 467 | F17: 100 | G17: 842 | H17: 100 | I17: 915 | J17: 100 | K17: 1065 | L17: 100 | M17: 150 | N17: 16.4
A18: 국토교통부 | B18: 기초연구 | C18: 290 | D18: 6.3 | E18: 210 | F18: 4.3 | G18: 231 | H18: 4 | I18: 225 | J18: 4.2 | K18: 148 | L18: 2.5 | M18: △77 | N18: △34.2
B19: 응용연구 | C19: 804 | D19: 17.4 | E19: 851 | F19: 17.3 | G19: 826 | H19: 14.5 | I19: 458 | J19: 8.6 | K19: 520 | L19: 8.9 | M19: 62 | N19: 13.6
B20: 개발연구 | C20: 3520 | D20: 76.3 | E20: 3863 | F20: 78.5 | G20: 4646 | H20: 81.5 | I20: 4617 | J20: 87.1 | K20: 5205 | L20: 88.6 | M20: 588 | N20: 12.7
B21: 합계 | C21: 4614 | D21: 100 | E21: 4924 | F21: 100 | G21: 5703 | H21: 100 | I21: 5300 | J21: 100 | K21: 5873 | L21: 100 | M21: 573 | N21: 10.8
A22: 기상청 | B22: 기초연구 | C22: 521 | D22: 52.5 | E22: 436 | F22: 50.1 | G22: 137 | H22: 13.2 | I22: 137 | J22: 12.5 | K22: 57 | L22: 5.3 | M22: △79 | N22: △58.1
B23: 응용연구 | C23: 314 | D23: 31.6 | E23: 301 | F23: 34.6 | G23: 800 | H23: 77.2 | I23: 840 | J23: 76.9 | K23: 889 | L23: 82.1 | M23: 49 | N23: 5.8
B24: 개발연구 | C24: 158 | D24: 15.9 | E24: 134 | F24: 15.4 | G24: 100 | H24: 9.6 | I24: 115 | J24: 10.5 | K24: 136 | L24: 12.6 | M24: 21 | N24: 18.2
B25: 합계 | C25: 994 | D25: 100 | E25: 871 | F25: 100 | G25: 1037 | H25: 100 | I25: 1092 | J25: 100 | K25: 1082 | L25: 100 | M25: △9 | N25: △0.8
A26: 농림축산식품부 | B26: 기초연구 | C26: 239 | D26: 15 | E26: 234 | F26: 14.7 | G26: 245 | H26: 13.4 | I26: 296 | J26: 13.6 | K26: 313 | L26: 15.3 | M26: 17 | N26: 5.6
B27: 응용연구 | C27: 430 | D27: 27 | E27: 431 | F27: 27.1 | G27: 465 | H27: 25.4 | I27: 557 | J27: 25.5 | K27: 543 | L27: 26.6 | M27: △14 | N27: △2.4
B28: 개발연구 | C28: 923 | D28: 58 | E28: 925 | F28: 58.2 | G28: 1120 | H28: 61.2 | I28: 1334 | J28: 61 | K28: 1186 | L28: 58.1 | M28: △147 | N28: △11.1
B29: 합계 | C29: 1592 | D29: 100 | E29: 1590 | F29: 100 | G29: 1830 | H29: 100 | I29: 2187 | J29: 100 | K29: 2043 | L29: 100 | M29: △144 | N29: △6.6
A30: 농촌진흥청 | B30: 기초연구 | C30: 409 | D30: 12.1 | E30: 280 | F30: 7.5 | G30: 388 | H30: 8.9 | I30: 435 | J30: 9 | K30: 683 | L30: 14.8 | M30: 247 | N30: 56.8
B31: 응용연구 | C31: 2006 | D31: 59.4 | E31: 2461 | F31: 65.6 | G31: 2805 | H31: 64.2 | I31: 3166 | J31: 65.5 | K31: 2664 | L31: 57.8 | M31: △502 | N31: △15.9
B32: 개발연구 | C32: 964 | D32: 28.5 | E32: 1011 | F32: 27 | G32: 1180 | H32: 27 | I32: 1234 | J32: 25.5 | K32: 1261 | L32: 27.4 | M32: 27 | N32: 2.2
B33: 합계 | C33: 3378 | D33: 100 | E33: 3751 | F33: 100 | G33: 4372 | H33: 100 | I33: 4835 | J33: 100 | K33: 4607 | L33: 100 | M33: △228 | N33: △4.7
A34: 문화재청 | B34: 기초연구 | C34: 153 | D34: 92.8 | E34: 187 | F34: 92.5 | G34: 8 | H34: 9.2 | I34: 203 | J34: 58.6 | K34: 208 | L34: 55.1 | M34: 5 | N34: 2.5
B35: 응용연구 | C35: 12 | D35: 7.2 | E35: 12 | F35: 5.7 | G35: - | H35: - | I35: 21 | J35: 6 | K35: 21 | L35: 5.6 | M35: 0 | N35: 2
B36: 개발연구 | C36: - | D36: - | E36: 3 | F36: 1.7 | G36: 83 | H36: 90.8 | I36: 123 | J36: 35.4 | K36: 149 | L36: 39.3 | M36: 26 | N36: 21
B37: 합계 | C37: 165 | D37: 100 | E37: 202 | F37: 100 | G37: 91 | H37: 100 | I37: 347 | J37: 100 | K37: 378 | L37: 100 | M37: 31 | N37: 9.1
A38: 문화체육관광부 | B38: 기초연구 | C38: 4 | D38: 1.2 | E38: 5 | F38: 1.7 | G38: 38 | H38: 13.4 | I38: 5 | J38: 0.4 | K38: 11 | L38: 2.2 | M38: 6 | N38: 120
B39: 응용연구 | C39: 87 | D39: 28.9 | E39: 95 | F39: 31.8 | G39: 77 | H39: 27.3 | I39: 559 | J39: 45.9 | K39: 234 | L39: 47.9 | M39: △325 | N39: △58.1
B40: 개발연구 | C40: 211 | D40: 69.9 | E40: 199 | F40: 66.5 | G40: 167 | H40: 59.2 | I40: 655 | J40: 53.7 | K40: 244 | L40: 49.9 | M40: △411 | N40: △62.7
B41: 합계 | C41: 303 | D41: 100 | E41: 299 | F41: 100 | G41: 283 | H41: 100 | I41: 1219 | J41: 100 | K41: 489 | L41: 100 | M41: △729 | N41: △59.8
A42: 방위사업청 | B42: 기초연구 | C42: 627 | D42: 2.5 | E42: 704 | F42: 2.3 | G42: 997 | H42: 3.2 | I42: 1048 | J42: 3.4 | K42: 980 | L42: 2.8 | M42: △67 | N42: △6.4
B43: 응용연구 | C43: 7590 | D43: 29.9 | E43: 7686 | F43: 25 | G43: 9302 | H43: 30.1 | I43: 13957 | J43: 44.7 | K43: 20549 | L43: 58.7 | M43: 6592 | N43: 47.2
B44: 개발연구 | C44: 17146 | D44: 67.6 | E44: 22296 | F44: 72.7 | G44: 20607 | H44: 66.7 | I44: 16244 | J44: 52 | K44: 13505 | L44: 38.5 | M44: △2,738 | N44: △16.9
B45: 합계 | C45: 25363 | D45: 100 | E45: 30686 | F45: 100 | G45: 30905 | H45: 100 | I45: 31248 | J45: 100 | K45: 35034 | L45: 100 | M45: 3786 | N45: 12.1
A46: 다부처 | B46: 기초연구 | C46: 797 | D46: 27.9 | E46: 1145 | F46: 26.9 | G46: 1785 | H46: 22.4 | I46: 1678 | J46: 20.3 | K46: 1515 | L46: 17.6 | M46: △163 | N46: △9.7
B47: 응용연구 | C47: 270 | D47: 9.4 | E47: 362 | F47: 8.5 | G47: 1073 | H47: 13.4 | I47: 1204 | J47: 14.6 | K47: 1277 | L47: 14.9 | M47: 73 | N47: 6.1
B48: 개발연구 | C48: 1795 | D48: 62.7 | E48: 2748 | F48: 64.6 | G48: 5118 | H48: 64.2 | I48: 5365 | J48: 65.1 | K48: 5797 | L48: 67.5 | M48: 433 | N48: 8.1
B49: 합계 | C49: 2862 | D49: 100 | E49: 4254 | F49: 100 | G49: 7976 | H49: 100 | I49: 8246 | J49: 100 | K49: 8589 | L49: 100 | M49: 342 | N49: 4.2
A50: 보건복지부 | B50: 기초연구 | C50: 927 | D50: 24.9 | E50: 862 | F50: 19 | G50: 563 | H50: 13.4 | I50: 541 | J50: 14.4 | K50: 208 | L50: 6 | M50: △332 | N50: △61.5
B51: 응용연구 | C51: 1013 | D51: 27.2 | E51: 1103 | F51: 24.3 | G51: 1161 | H51: 27.6 | I51: 1133 | J51: 30.2 | K51: 927 | L51: 26.8 | M51: △206 | N51: △18.2
B52: 개발연구 | C52: 1778 | D52: 47.8 | E52: 2576 | F52: 56.7 | G52: 2483 | H52: 59 | I52: 2082 | J52: 55.4 | K52: 2318 | L52: 67.1 | M52: 236 | N52: 11.3
B53: 합계 | C53: 3718 | D53: 100 | E53: 4540 | F53: 100 | G53: 4207 | H53: 100 | I53: 3756 | J53: 100 | K53: 3454 | L53: 100 | M53: △302 | N53: △8.0
A54: 산림청 | B54: 기초연구 | C54: 363 | D54: 42.7 | E54: 388 | F54: 42.7 | G54: 494 | H54: 44.8 | I54: 578 | J54: 47.2 | K54: 550 | L54: 42.6 | M54: △27 | N54: △4.8
B55: 응용연구 | C55: 351 | D55: 41.3 | E55: 323 | F55: 35.6 | G55: 355 | H55: 32.2 | I55: 400 | J55: 32.7 | K55: 450 | L55: 34.8 | M55: 50 | N55: 12.5
B56: 개발연구 | C56: 136 | D56: 16 | E56: 197 | F56: 21.7 | G56: 254 | H56: 23.1 | I56: 247 | J56: 20.2 | K56: 292 | L56: 22.6 | M56: 45 | N56: 18.4
B57: 합계 | C57: 850 | D57: 100 | E57: 909 | F57: 100 | G57: 1104 | H57: 100 | I57: 1225 | J57: 100 | K57: 1292 | L57: 100 | M57: 68 | N57: 5.5
A58: 산업통상자원부 | B58: 기초연구 | C58: 2916 | D58: 12.3 | E58: 3571 | F58: 12.2 | G58: 2614 | H58: 7.4 | I58: 2549 | J58: 6.7 | K58: 2424 | L58: 5.8 | M58: △125 | N58: △4.9
B59: 응용연구 | C59: 6425 | D59: 27.1 | E59: 11671 | F59: 39.8 | G59: 10616 | H59: 30.1 | I59: 9595 | J59: 25.3 | K59: 8148 | L59: 19.7 | M59: △1,447 | N59: △15.1
B60: 개발연구 | C60: 14334 | D60: 60.5 | E60: 14046 | F60: 48 | G60: 22019 | H60: 62.5 | I60: 25749 | J60: 68 | K60: 30885 | L60: 74.5 | M60: 5135 | N60: 19.9
B61: 합계 | C61: 23675 | D61: 100 | E61: 29287 | F61: 100 | G61: 35249 | H61: 100 | I61: 37893 | J61: 100 | K61: 41457 | L61: 100 | M61: 3563 | N61: 9.4
A62: 식품의약품안전처 | B62: 기초연구 | C62: 247 | D62: 46.7 | E62: 334 | F62: 52.5 | G62: 374 | H62: 51.7 | I62: 395 | J62: 51.7 | K62: 531 | L62: 56.6 | M62: 136 | N62: 34.4
B63: 응용연구 | C63: 160 | D63: 30.4 | E63: 171 | F63: 26.9 | G63: 214 | H63: 29.6 | I63: 248 | J63: 32.4 | K63: 239 | L63: 25.5 | M63: △9 | N63: △3.6
B64: 개발연구 | C64: 121 | D64: 22.9 | E64: 131 | F64: 20.6 | G64: 135 | H64: 18.7 | I64: 121 | J64: 15.8 | K64: 168 | L64: 17.9 | M64: 47 | N64: 39.2
B65: 합계 | C65: 529 | D65: 100 | E65: 636 | F65: 100 | G65: 723 | H65: 100 | I65: 763 | J65: 100 | K65: 937 | L65: 100 | M65: 174 | N65: 22.8
A66: 원자력안전위원회 | B66: 기초연구 | C66: 146 | D66: 29.6 | E66: 122 | F66: 22.6 | G66: 124 | H66: 14.3 | I66: 112 | J66: 14.1 | K66: 101 | L66: 14 | M66: △11 | N66: △9.7
B67: 응용연구 | C67: 236 | D67: 47.9 | E67: 274 | F67: 50.8 | G67: 356 | H67: 41 | I67: 302 | J67: 37.8 | K67: 306 | L67: 42.2 | M67: 4 | N67: 1.3
B68: 개발연구 | C68: 111 | D68: 22.5 | E68: 144 | F68: 26.6 | G68: 388 | H68: 44.7 | I68: 384 | J68: 48.1 | K68: 318 | L68: 43.8 | M68: △66 | N68: △17.3
B69: 합계 | C69: 494 | D69: 100 | E69: 540 | F69: 100 | G69: 867 | H69: 100 | I69: 799 | J69: 100 | K69: 725 | L69: 100 | M69: △74 | N69: △9.2
A70: 중소벤처기업부 | B70: 기초연구 | C70: - | D70: - | E70: - | F70: - | G70: - | H70: - | I70: - | J70: 0 | K70: 0 | L70: 0 | M70: 0 | N70: -
B71: 응용연구 | C71: 289 | D71: 3.1 | E71: 344 | F71: 2.6 | G71: 372 | H71: 2.3 | I71: 208 | J71: 1.3 | K71: 1471 | L71: 8.9 | M71: 1263 | N71: 605.8
B72: 개발연구 | C72: 9163 | D72: 96.9 | E72: 12866 | F72: 97.4 | G72: 15602 | H72: 97.7 | I72: 15679 | J72: 98.7 | K72: 15053 | L72: 91.1 | M72: △626 | N72: △4.0
B73: 합계 | C73: 9452 | D73: 100 | E73: 13210 | F73: 100 | G73: 15974 | H73: 100 | I73: 15888 | J73: 100 | K73: 16524 | L73: 100 | M73: 637 | N73: 4
A74: 해양수산부 | B74: 기초연구 | C74: 1966 | D74: 46.5 | E74: 2016 | F74: 42.4 | G74: 1736 | H74: 31.8 | I74: 1868 | J74: 31.2 | K74: 1748 | L74: 24.9 | M74: △120 | N74: △6.4
B75: 응용연구 | C75: 676 | D75: 16 | E75: 889 | F75: 18.7 | G75: 1410 | H75: 25.8 | I75: 1237 | J75: 20.7 | K75: 1621 | L75: 23.1 | M75: 384 | N75: 31.1
B76: 개발연구 | C76: 1587 | D76: 37.5 | E76: 1852 | F76: 38.9 | G76: 2321 | H76: 42.5 | I76: 2880 | J76: 48.1 | K76: 3661 | L76: 52.1 | M76: 781 | N76: 27.1
B77: 합계 | C77: 4229 | D77: 100 | E77: 4757 | F77: 100 | G77: 5467 | H77: 100 | I77: 5985 | J77: 100 | K77: 7030 | L77: 100 | M77: 1045 | N77: 17.5
A78: 환경부 | B78: 기초연구 | C78: 631 | D78: 24.8 | E78: 506 | F78: 17.6 | G78: 497 | H78: 15.3 | I78: 488 | J78: 13.6 | K78: 668 | L78: 18.8 | M78: 180 | N78: 36.9
B79: 응용연구 | C79: 705 | D79: 27.7 | E79: 1009 | F79: 35.1 | G79: 1242 | H79: 38.2 | I79: 1479 | J79: 41.1 | K79: 1280 | L79: 36 | M79: △198 | N79: △13.4
B80: 개발연구 | C80: 1211 | D80: 47.6 | E80: 1355 | F80: 47.2 | G80: 1509 | H80: 46.5 | I80: 1628 | J80: 45.3 | K80: 1611 | L80: 45.3 | M80: △17 | N80: △1.0
B81: 합계 | C81: 2546 | D81: 100 | E81: 2871 | F81: 100 | G81: 3248 | H81: 100 | I81: 3595 | J81: 100 | K81: 3560 | L81: 100 | M81: △35 | N81: △1.0
A82: 기타 부처 | B82: 기초연구 | C82: 188 | D82: 19 | E82: 211 | F82: 18.9 | G82: 466 | H82: 22.2 | I82: 1186 | J82: 21.3 | K82: 923 | L82: 27.6 | M82: △263 | N82: △22.2
B83: 응용연구 | C83: 215 | D83: 21.7 | E83: 297 | F83: 26.6 | G83: 430 | H83: 20.5 | I83: 1469 | J83: 26.4 | K83: 632 | L83: 18.9 | M83: △836 | N83: △56.9
B84: 개발연구 | C84: 587 | D84: 59.3 | E84: 611 | F84: 54.6 | G84: 1204 | H84: 57.3 | I84: 2913 | J84: 52.3 | K84: 1788 | L84: 53.5 | M84: △1126 | N84: △38.6
B85: 합계 | C85: 989 | D85: 100 | E85: 1120 | F85: 100 | G85: 2100 | H85: 100 | I85: 5568 | J85: 100 | K85: 3343 | L85: 100 | M85: △2225 | N85: △40.0
A86: 합계 | B86: 기초연구 | C86: 46415 | D86: 32.7 | E86: 50714 | F86: 30.1 | G86: 53068 | H86: 27.5 | I86: 58024 | J86: 28 | K86: 57714 | L86: 26.6 | M86: △309 | N86: △0.5
B87: 응용연구 | C87: 30458 | D87: 21.5 | E87: 38907 | F87: 23.1 | G87: 45620 | H87: 23.6 | I87: 52338 | J87: 25.2 | K87: 58953 | L87: 27.2 | M87: 6615 | N87: 12.6
B88: 개발연구 | C88: 64883 | D88: 45.8 | E88: 78754 | F88: 46.8 | G88: 94566 | H88: 48.9 | I88: 97032 | J88: 46.8 | K88: 100389 | L88: 46.2 | M88: 3357 | N88: 3.5
B89: 합계 | C89: 141757 | D89: 100 | E89: 168375 | F89: 100 | G89: 193253 | H89: 100 | I89: 207394 | J89: 100 | K89: 217056 | L89: 100 | M89: 9663 | N89: 4.7
A91: * 기타 부처는 개인정보보호위원회, 경찰청, 고용노동부, 공정거래위원회, 관세청, 국방부, 기획재정부, 대통령경호처, 법무부, 법제처, 새만금개발청, 소방청, 여성가족부, 외교부, 인사혁신처, 조달청, 질병관리청, 통일부, 특허청, 해양경찰청, 행정안전부, 행정중심복합도시건설청의 총 22개 부･처･청･위원회의 합계임

Sheet 2-3
A1: 2-3. 주요부처별 연구수행주체별 집행 추이, 2019-2023 | H1: 목차
T3: (단위 : 억원, %)
A4: 연도 | B4: 구분 | C4: 국공립연구소 | E4: 출연연구소 | G4: 대학 | I4: 대기업 | K4: 중견기업 | M4: 중소기업 | O4: 정부부처 | Q4: 기타 | S4: 합계
C5: 금액 | D5: 비중 | E5: 금액 | F5: 비중 | G5: 금액 | H5: 비중 | I5: 금액 | J5: 비중 | K5: 금액 | L5: 비중 | M5: 금액 | N5: 비중 | O5: 금액 | P5: 비중 | Q5: 금액 | R5: 비중 | S5: 금액 | T5: 비중
A6: 2019년 | B6: 과학기술정보통신부 | C6: 218 | D6: 0.3 | E6: 42166 | F6: 60.4 | G6: 21178 | H6: 30.3 | I6: 326 | J6: 0.5 | K6: 420 | L6: 0.6 | M6: 2634 | N6: 3.8 | O6: 52 | P6: 0.1 | Q6: 2856 | R6: 4.1 | S6: 69851 | T6: 100
B7: 산업통상자원부 | C7: - | D7: - | E7: 4812 | F7: 14.9 | G7: 2798 | H7: 8.7 | I7: 1353 | J7: 4.2 | K7: 3639 | L7: 11.3 | M7: 13213 | N7: 40.9 | O7: - | P7: - | Q7: 6525 | R7: 20.2 | S7: 32339 | T7: 100
B8: 방위사업청 | C8: - | D8: - | E8: 18898 | F8: 59.7 | G8: 385 | H8: 1.2 | I8: 1372 | J8: 4.3 | K8: 9097 | L8: 28.7 | M8: 540 | N8: 1.7 | O8: 1296 | P8: 4.1 | Q8: 68 | R8: 0.2 | S8: 31657 | T8: 100
B9: 교육부 | C9: 6 | D9: 0 | E9: 1048 | F9: 5.5 | G9: 17834 | H9: 93.4 | I9: 0 | J9: 0 | K9: 0 | L9: 0 | M9: 28 | N9: 0.1 | O9: - | P9: - | Q9: 173 | R9: 0.9 | S9: 19089 | T9: 100
B10: 중소벤처기업부 | C10: - | D10: - | E10: 617 | F10: 6.1 | G10: 198 | H10: 1.9 | I10: 8 | J10: 0.1 | K10: 13 | L10: 0.1 | M10: 8981 | N10: 88.1 | O10: - | P10: - | Q10: 377 | R10: 3.7 | S10: 10194 | T10: 100
B11: 농촌진흥청 | C11: 4605 | D11: 71.2 | E11: 50 | F11: 0.8 | G11: 907 | H11: 14 | I11: 14 | J11: 0.2 | K11: 8 | L11: 0.1 | M11: 421 | N11: 6.5 | O11: 368 | P11: 5.7 | Q11: 93 | R11: 1.4 | S11: 6467 | T11: 100
B12: 기타 부처 | C12: 5698 | D12: 15.5 | E12: 15006 | F12: 40.9 | G12: 6977 | H12: 19 | I12: 663 | J12: 1.8 | K12: 987 | L12: 2.7 | M12: 5093 | N12: 13.9 | O12: 111 | P12: 0.3 | Q12: 2121 | R12: 5.8 | S12: 36656 | T12: 100
B13: 총합계 | C13: 10527 | D13: 5.1 | E13: 82597 | F13: 40 | G13: 50278 | H13: 24.4 | I13: 3735 | J13: 1.8 | K13: 14165 | L13: 6.9 | M13: 30910 | N13: 15 | O13: 1829 | P13: 0.9 | Q13: 12212 | R13: 5.9 | S13: 206254 | T13: 100
A14: 2020년 | B14: 과학기술정보통신부 | C14: 200 | D14: 0.3 | E14: 44130 | F14: 57.2 | G14: 24323 | H14: 31.5 | I14: 310 | J14: 0.4 | K14: 686 | L14: 0.9 | M14: 3747 | N14: 4.9 | O14: 30 | P14: 0 | Q14: 3713 | R14: 4.8 | S14: 77137 | T14: 100
B15: 산업통상자원부 | C15: - | D15: - | E15: 5905 | F15: 14.7 | G15: 2974 | H15: 7.4 | I15: 2024 | J15: 5 | K15: 4784 | L15: 11.9 | M15: 15967 | N15: 39.8 | O15: - | P15: - | Q15: 8459 | R15: 21.1 | S15: 40113 | T15: 100
B16: 방위사업청 | C16: - | D16: - | E16: 22525 | F16: 59.7 | G16: 468 | H16: 1.2 | I16: 642 | J16: 1.7 | K16: 11398 | L16: 30.2 | M16: 1010 | N16: 2.7 | O16: 1621 | P16: 4.3 | Q16: 51 | R16: 0.1 | S16: 37715 | T16: 100
B17: 교육부 | C17: 4 | D17: 0 | E17: 1161 | F17: 5.4 | G17: 20343 | H17: 94 | I17: - | J17: - | K17: 0 | L17: 0 | M17: 22 | N17: 0.1 | O17: - | P17: - | Q17: 115 | R17: 0.5 | S17: 21646 | T17: 100
B18: 중소벤처기업부 | C18: - | D18: - | E18: 788 | F18: 5.6 | G18: 264 | H18: 1.9 | I18: 3 | J18: 0 | K18: 61 | L18: 0.4 | M18: 12301 | N18: 87.6 | O18: - | P18: - | Q18: 629 | R18: 4.5 | S18: 14046 | T18: 100
B19: 농촌진흥청 | C19: 4828 | D19: 70.3 | E19: 69 | F19: 1 | G19: 1039 | H19: 15.1 | I19: 20 | J19: 0.3 | K19: 14 | L19: 0.2 | M19: 625 | N19: 9.1 | O19: 153 | P19: 2.2 | Q19: 121 | R19: 1.8 | S19: 6869 | T19: 100
B20: 기타 부처 | C20: 6291 | D20: 15.2 | E20: 15711 | F20: 38.1 | G20: 8097 | H20: 19.6 | I20: 822 | J20: 2 | K20: 1268 | L20: 3.1 | M20: 6081 | N20: 14.7 | O20: 110 | P20: 0.3 | Q20: 2898 | R20: 7 | S20: 41277 | T20: 100
B21: 총합계 | C21: 11323 | D21: 4.7 | E21: 90289 | F21: 37.8 | G21: 57508 | H21: 24.1 | I21: 3820 | J21: 1.6 | K21: 18212 | L21: 7.6 | M21: 39753 | N21: 16.6 | O21: 1914 | P21: 0.8 | Q21: 15986 | R21: 6.7 | S21: 238803 | T21: 100
A22: 2021년 | B22: 과학기술정보통신부 | C22: 219 | D22: 0.3 | E22: 45123 | F22: 54.1 | G22: 27846 | H22: 33.4 | I22: 175 | J22: 0.2 | K22: 395 | L22: 0.5 | M22: 4944 | N22: 5.9 | O22: 33 | P22: 0 | Q22: 4738 | R22: 5.7 | S22: 83472 | T22: 100
B23: 산업통상자원부 | C23: 41 | D23: 0.1 | E23: 6552 | F23: 14.1 | G23: 2536 | H23: 5.5 | I23: 2340 | J23: 5 | K23: 5037 | L23: 10.8 | M23: 19853 | N23: 42.7 | O23: - | P23: - | Q23: 10092 | R23: 21.7 | S23: 46451 | T23: 100
B24: 방위사업청 | C24: - | D24: - | E24: 23929 | F24: 62.2 | G24: 616 | H24: 1.6 | I24: 848 | J24: 2.2 | K24: 9296 | L24: 24.1 | M24: 1208 | N24: 3.1 | O24: 2139 | P24: 5.6 | Q24: 461 | R24: 1.2 | S24: 38497 | T24: 100
B25: 교육부 | C25: 1 | D25: 0 | E25: 997 | F25: 4.3 | G25: 21670 | H25: 94 | I25: - | J25: - | K25: - | L25: - | M25: 16 | N25: 0.1 | O25: - | P25: - | Q25: 374 | R25: 1.6 | S25: 23058 | T25: 100
B26: 중소벤처기업부 | C26: - | D26: - | E26: 884 | F26: 5.3 | G26: 325 | H26: 2 | I26: 7 | J26: 0 | K26: 128 | L26: 0.8 | M26: 14511 | N26: 87.2 | O26: - | P26: - | Q26: 794 | R26: 4.8 | S26: 16650 | T26: 100
B27: 농촌진흥청 | C27: 5578 | D27: 72.4 | E27: 81 | F27: 1 | G27: 1063 | H27: 13.8 | I27: 15 | J27: 0.2 | K27: 25 | L27: 0.3 | M27: 465 | N27: 6 | O27: 333 | P27: 4.3 | Q27: 145 | R27: 1.9 | S27: 7705 | T27: 100
B28: 기타 부처 | C28: 6474 | D28: 13 | E28: 18492 | F28: 37 | G28: 9262 | H28: 18.5 | I28: 942 | J28: 1.9 | K28: 1285 | L28: 2.6 | M28: 8724 | N28: 17.5 | O28: 129 | P28: 0.3 | Q28: 4650 | R28: 9.3 | S28: 49957 | T28: 100
B29: 총합계 | C29: 12313 | D29: 4.6 | E29: 96058 | F29: 36.1 | G29: 63317 | H29: 23.8 | I29: 4327 | J29: 1.6 | K29: 16166 | L29: 6.1 | M29: 49721 | N29: 18.7 | O29: 2634 | P29: 1 | Q29: 21254 | R29: 8 | S29: 265791 | T29: 100
A30: 2022년 | B30: 과학기술정보통신부 | C30: 225 | D30: 0.3 | E30: 47372 | F30: 53.2 | G30: 31026 | H30: 34.8 | I30: 195 | J30: 0.2 | K30: 422 | L30: 0.5 | M30: 5574 | N30: 6.3 | O30: 41 | P30: 0 | Q30: 4234 | R30: 4.8 | S30: 89089 | T30: 100
B31: 산업통상자원부 | C31: 9 | D31: 0 | E31: 7405 | F31: 14.6 | G31: 2795 | H31: 5.5 | I31: 3067 | J31: 6.1 | K31: 6887 | L31: 13.6 | M31: 20744 | N31: 40.9 | O31: - | P31: - | Q31: 9768 | R31: 19.3 | S31: 50675 | T31: 100
B32: 방위사업청 | C32: 23 | D32: 0.1 | E32: 26950 | F32: 65.6 | G32: 831 | H32: 2 | I32: 1761 | J32: 4.3 | K32: 9860 | L32: 24 | M32: 1634 | N32: 4 | O32: 2 | P32: 0 | Q32: - | R32: - | S32: 41061 | T32: 100
B33: 교육부 | C33: - | D33: - | E33: 536 | F33: 2.2 | G33: 23196 | H33: 97 | I33: 2 | J33: 0 | K33: - | L33: - | M33: 18 | N33: 0.1 | O33: - | P33: - | Q33: 152 | R33: 0.6 | S33: 23904 | T33: 100
B34: 중소벤처기업부 | C34: - | D34: - | E34: 890 | F34: 5.1 | G34: 320 | H34: 1.9 | I34: 3 | J34: 0 | K34: 128 | L34: 0.7 | M34: 15172 | N34: 87.7 | O34: - | P34: - | Q34: 784 | R34: 4.5 | S34: 17296 | T34: 100
B35: 농촌진흥청 | C35: 5743 | D35: 70.7 | E35: 90 | F35: 1.1 | G35: 1219 | H35: 15 | I35: 11 | J35: 0.1 | K35: 19 | L35: 0.2 | M35: 491 | N35: 6 | O35: 434 | P35: 5.3 | Q35: 116 | R35: 1.4 | S35: 8124 | T35: 100
B36: 기타 부처 | C36: 7025 | D36: 12.4 | E36: 20493 | F36: 36.2 | G36: 10351 | H36: 18.3 | I36: 850 | J36: 1.5 | K36: 1400 | L36: 2.5 | M36: 11291 | N36: 19.9 | O36: 149 | P36: 0.3 | Q36: 5075 | R36: 9 | S36: 56633 | T36: 100
B37: 총합계 | C37: 13024 | D37: 4.5 | E37: 103737 | F37: 36.2 | G37: 69738 | H37: 24.3 | I37: 5889 | J37: 2.1 | K37: 18716 | L37: 6.5 | M37: 54924 | N37: 19.2 | O37: 626 | P37: 0.2 | Q37: 20128 | R37: 7 | S37: 286782 | T37: 100
A38: 2022년 | B38: 과학기술정보통신부 | C38: 222 | D38: 0.2 | E38: 50068 | F38: 53.2 | G38: 32764 | H38: 34.8 | I38: 342 | J38: 0.4 | K38: 485 | L38: 0.5 | M38: 5801 | N38: 6.2 | O38: 63 | P38: 0.1 | Q38: 4400 | R38: 4.7 | S38: 94145 | T38: 100
B39: 산업통상자원부 | C39: 12 | D39: 0 | E39: 7391 | F39: 13.5 | G39: 3232 | H39: 5.9 | I39: 3630 | J39: 6.7 | K39: 8070 | L39: 14.8 | M39: 22296 | N39: 40.9 | O39: - | P39: - | Q39: 9945 | R39: 18.2 | S39: 54576 | T39: 100
B40: 방위사업청 | C40: 8 | D40: 0 | E40: 30644 | F40: 66.6 | G40: 742 | H40: 1.6 | I40: 3441 | J40: 7.5 | K40: 8719 | L40: 19 | M40: 2357 | N40: 5.1 | O40: - | P40: - | Q40: 80 | R40: 0.2 | S40: 45992 | T40: 100
B41: 교육부 | C41: - | D41: - | E41: 925 | F41: 3.3 | G41: 26559 | H41: 94.2 | I41: 2 | J41: 0 | K41: - | L41: - | M41: 191 | N41: 0.7 | O41: - | P41: - | Q41: 521 | R41: 1.8 | S41: 28199 | T41: 100
B42: 중소벤처기업부 | C42: - | D42: - | E42: 984 | F42: 5.4 | G42: 234 | H42: 1.3 | I42: - | J42: - | K42: 145 | L42: 0.8 | M42: 16189 | N42: 88.8 | O42: - | P42: - | Q42: 672 | R42: 3.7 | S42: 18224 | T42: 100
B43: 농촌진흥청 | C43: 6985 | D43: 79.6 | E43: 67 | F43: 0.8 | G43: 763 | H43: 8.7 | I43: 1 | J43: 0 | K43: 13 | L43: 0.1 | M43: 295 | N43: 3.4 | O43: 565 | P43: 6.4 | Q43: 89 | R43: 1 | S43: 8777 | T43: 100
B44: 기타 부처 | C44: 7177 | D44: 12.9 | E44: 20781 | F44: 37.2 | G44: 9739 | H44: 17.4 | I44: 705 | J44: 1.3 | K44: 1112 | L44: 2 | M44: 11251 | N44: 20.2 | O44: 126 | P44: 0.2 | Q44: 4926 | R44: 8.8 | S44: 55818 | T44: 100
B45: 총합계 | C45: 14404 | D45: 4.7 | E45: 110861 | F45: 36.3 | G45: 74033 | H45: 24.2 | I45: 8121 | J45: 2.7 | K45: 18545 | L45: 6.1 | M45: 58379 | N45: 19.1 | O45: 755 | P45: 0.2 | Q45: 20635 | R45: 6.7 | S45: 305731 | T45: 100
A47: * ｢2013년 국가연구개발사업 조사분석 시행계획｣에 따라 ’13년도부터 연구수행주체의 분류에 ‘중견기업’ 항목이 추가됨
A48: * 출연연구소는 국가과학기술연구회 소속 출연연, 경제인문사회연구회 소속 출연연, 연구관리 전문기관, 기타 출연연 등의 R&D 관련 출연연구기관을 포함
A49: * 국공립연구소는 국립연구소와 지방자치단체의 공립연구소를 포함
A50: * 기타는 비영리법인, 연구조합, 협회, 학회, 정부투자기관 등을 포함

Sheet 2-4
A1: 2-4. 부처별 연구수행주체별 집행 추이, 2019-2023 | H1: 목차
N3: (단위 : 억원, %)
A4: 구 분 | C4: 2019년 | E4: 2020년 | G4: 2021년 | I4: 2022년 | K4: 2023년 | M4: 증감
C5: 금액 | D5: 비중 | E5: 금액 | F5: 비중 | G5: 금액(A) | H5: 비중 | I5: 금액(B) | J5: 비중 | K5: 금액(B) | L5: 비중 | M5: B-A | N5: %
A6: 과학기술정보통신부 | B6: 국공립연구소 | C6: 218 | D6: 0.3 | E6: 200 | F6: 0.3 | G6: 219 | H6: 0.3 | I6: 225 | J6: 0.3 | K6: 222 | L6: 0.2 | M6: △4 | N6: △1.7
B7: 출연연구소 | C7: 42166 | D7: 60.4 | E7: 44130 | F7: 57.2 | G7: 45123 | H7: 54.1 | I7: 47372 | J7: 53.2 | K7: 50068 | L7: 53.2 | M7: 2696 | N7: 5.7
B8: 대학 | C8: 21178 | D8: 30.3 | E8: 24323 | F8: 31.5 | G8: 27846 | H8: 33.4 | I8: 31026 | J8: 34.8 | K8: 32764 | L8: 34.8 | M8: 1738 | N8: 5.6
B9: 대기업 | C9: 326 | D9: 0.5 | E9: 310 | F9: 0.4 | G9: 175 | H9: 0.2 | I9: 195 | J9: 0.2 | K9: 342 | L9: 0.4 | M9: 147 | N9: 75.3
B10: 중견기업 | C10: 420 | D10: 0.6 | E10: 686 | F10: 0.9 | G10: 395 | H10: 0.5 | I10: 422 | J10: 0.5 | K10: 485 | L10: 0.5 | M10: 63 | N10: 15
B11: 중소기업 | C11: 2634 | D11: 3.8 | E11: 3747 | F11: 4.9 | G11: 4944 | H11: 5.9 | I11: 5574 | J11: 6.3 | K11: 5801 | L11: 6.2 | M11: 227 | N11: 4.1
B12: 정부부처 | C12: 52 | D12: 0.1 | E12: 30 | F12: 0 | G12: 33 | H12: 0 | I12: 41 | J12: 0 | K12: 63 | L12: 0.1 | M12: 22 | N12: 54.9
B13: 기타 | C13: 2856 | D13: 4.1 | E13: 3713 | F13: 4.8 | G13: 4738 | H13: 5.7 | I13: 4234 | J13: 4.8 | K13: 4400 | L13: 4.7 | M13: 166 | N13: 3.9
B14: 소계 | C14: 69851 | D14: 100 | E14: 77137 | F14: 100 | G14: 83472 | H14: 100 | I14: 89089 | J14: 100 | K14: 94145 | L14: 100 | M14: 5057 | N14: 5.7
A15: 교육부 | B15: 국공립연구소 | C15: 6 | D15: 0 | E15: 4 | F15: 0 | G15: 1 | H15: 0 | I15: - | J15: - | K15: 0 | L15: 0 | M15: 0 | N15: -
B16: 출연연구소 | C16: 1048 | D16: 5.5 | E16: 1161 | F16: 5.4 | G16: 997 | H16: 4.3 | I16: 536 | J16: 2.2 | K16: 925 | L16: 3.3 | M16: 389 | N16: 72.5
B17: 대학 | C17: 17834 | D17: 93.4 | E17: 20343 | F17: 94 | G17: 21670 | H17: 94 | I17: 23196 | J17: 97 | K17: 26559 | L17: 94.2 | M17: 3363 | N17: 14.5
B18: 대기업 | C18: 0 | D18: 0 | E18: - | F18: - | G18: - | H18: - | I18: 2 | J18: 0 | K18: 2 | L18: 0 | M18: 0 | N18: 18.3
B19: 중견기업 | C19: 0 | D19: 0 | E19: 0 | F19: 0 | G19: - | H19: - | I19: - | J19: - | K19: 0 | L19: 0 | M19: 0 | N19: -
B20: 중소기업 | C20: 28 | D20: 0.1 | E20: 22 | F20: 0.1 | G20: 16 | H20: 0.1 | I20: 18 | J20: 0.1 | K20: 191 | L20: 0.7 | M20: 173 | N20: 962
B21: 정부부처 | C21: - | D21: - | E21: - | F21: - | G21: - | H21: - | I21: - | J21: - | K21: 0 | L21: 0 | M21: 0 | N21: -
B22: 기타 | C22: 173 | D22: 0.9 | E22: 115 | F22: 0.5 | G22: 374 | H22: 1.6 | I22: 152 | J22: 0.6 | K22: 521 | L22: 1.8 | M22: 369 | N22: 243.3
B23: 소계 | C23: 19089 | D23: 100 | E23: 21646 | F23: 100 | G23: 23058 | H23: 100 | I23: 23904 | J23: 100 | K23: 28199 | L23: 100 | M23: 4295 | N23: 18
A24: 국무조정실 | B24: 국공립연구소 | C24: - | D24: - | E24: - | F24: - | G24: - | H24: - | I24: - | J24: - | K24: 0 | L24: 0 | M24: 0 | N24: -
B25: 출연연구소 | C25: 5194 | D25: 99.9 | E25: 5164 | F25: 100 | G25: 5416 | H25: 99.8 | I25: 5571 | J25: 100 | K25: 5439 | L25: 100 | M25: △131 | N25: △2.4
B26: 대학 | C26: 6 | D26: 0.1 | E26: 1 | F26: 0 | G26: 8 | H26: 0.2 | I26: - | J26: - | K26: 0 | L26: 0 | M26: 0 | N26: -
B27: 대기업 | C27: - | D27: - | E27: - | F27: - | G27: - | H27: - | I27: - | J27: - | K27: 0 | L27: 0 | M27: 0 | N27: -
B28: 중견기업 | C28: - | D28: - | E28: - | F28: - | G28: - | H28: - | I28: - | J28: - | K28: 0 | L28: 0 | M28: 0 | N28: -
B29: 중소기업 | C29: - | D29: - | E29: - | F29: - | G29: - | H29: - | I29: - | J29: - | K29: 0 | L29: 0 | M29: 0 | N29: -
B30: 정부부처 | C30: - | D30: - | E30: - | F30: - | G30: - | H30: - | I30: - | J30: - | K30: 0 | L30: 0 | M30: 0 | N30: -
B31: 기타 | C31: 1 | D31: 0 | E31: - | F31: - | G31: - | H31: - | I31: - | J31: - | K31: 0 | L31: 0 | M31: 0 | N31: -
B32: 소계 | C32: 5201 | D32: 100 | E32: 5165 | F32: 100 | G32: 5424 | H32: 100 | I32: 5571 | J32: 100 | K32: 5439 | L32: 100 | M32: △131 | N32: △2.4
A33: 국방부 | B33: 국공립연구소 | C33: - | D33: - | E33: - | F33: - | G33: - | H33: - | I33: - | J33: - | K33: 0 | L33: 0 | M33: 0 | N33: -
B34: 출연연구소 | C34: 442 | D34: 88.1 | E34: 478 | F34: 90.4 | G34: 500 | H34: 92.3 | I34: 565 | J34: 85.4 | K34: 700 | L34: 86.9 | M34: 135 | N34: 23.9
B35: 대학 | C35: 3 | D35: 0.6 | E35: 2 | F35: 0.3 | G35: 2 | H35: 0.4 | I35: 14 | J35: 2.1 | K35: 0 | L35: 0 | M35: △14 | N35: △100.0
B36: 대기업 | C36: 38 | D36: 7.5 | E36: 35 | F36: 6.7 | G36: 30 | H36: 5.5 | I36: 19 | J36: 2.9 | K36: 24 | L36: 3 | M36: 5 | N36: 27.6
B37: 중견기업 | C37: 1 | D37: 0.2 | E37: - | F37: - | G37: - | H37: - | I37: - | J37: - | K37: 0 | L37: 0 | M37: 0 | N37: -
B38: 중소기업 | C38: 15 | D38: 3 | E38: 10 | F38: 1.9 | G38: 7 | H38: 1.4 | I38: 7 | J38: 1.1 | K38: 45 | L38: 5.5 | M38: 38 | N38: 530.1
B39: 정부부처 | C39: - | D39: - | E39: - | F39: - | G39: - | H39: - | I39: - | J39: - | K39: 0 | L39: 0 | M39: 0 | N39: -
B40: 기타 | C40: 3 | D40: 0.5 | E40: 4 | F40: 0.7 | G40: 3 | H40: 0.5 | I40: 57 | J40: 8.6 | K40: 37 | L40: 4.6 | M40: △20 | N40: △35.2
B41: 소계 | C41: 502 | D41: 100 | E41: 528 | F41: 100 | G41: 542 | H41: 100 | I41: 662 | J41: 100 | K41: 806 | L41: 100 | M41: 144 | N41: 21.7
A42: 국토교통부 | B42: 국공립연구소 | C42: - | D42: - | E42: - | F42: - | G42: - | H42: - | I42: - | J42: - | K42: 0 | L42: 0 | M42: 0 | N42: -
B43: 출연연구소 | C43: 2108 | D43: 43.2 | E43: 2032 | F43: 40.4 | G43: 2492 | H43: 41.7 | I43: 2596 | J43: 46.2 | K43: 3054 | L43: 50.6 | M43: 458 | N43: 17.6
B44: 대학 | C44: 1060 | D44: 21.7 | E44: 1041 | F44: 20.7 | G44: 1068 | H44: 17.9 | I44: 839 | J44: 14.9 | K44: 720 | L44: 11.9 | M44: △119 | N44: △14.2
B45: 대기업 | C45: 418 | D45: 8.6 | E45: 503 | F45: 10 | G45: 354 | H45: 5.9 | I45: 369 | J45: 6.6 | K45: 384 | L45: 6.4 | M45: 15 | N45: 4.1
B46: 중견기업 | C46: 76 | D46: 1.6 | E46: 150 | F46: 3 | G46: 131 | H46: 2.2 | I46: 100 | J46: 1.8 | K46: 53 | L46: 0.9 | M46: △46 | N46: △46.3
B47: 중소기업 | C47: 765 | D47: 15.7 | E47: 806 | F47: 16 | G47: 1083 | H47: 18.1 | I47: 992 | J47: 17.7 | K47: 830 | L47: 13.8 | M47: △162 | N47: △16.3
B48: 정부부처 | C48: - | D48: - | E48: - | F48: - | G48: - | H48: - | I48: - | J48: - | K48: 0 | L48: 0 | M48: 0 | N48: -
B49: 기타 | C49: 453 | D49: 9.3 | E49: 497 | F49: 9.9 | G49: 851 | H49: 14.2 | I49: 726 | J49: 12.9 | K49: 991 | L49: 16.4 | M49: 264 | N49: 36.4
B50: 소계 | C50: 4880 | D50: 100 | E50: 5030 | F50: 100 | G50: 5979 | H50: 100 | I50: 5622 | J50: 100 | K50: 6032 | L50: 100 | M50: 411 | N50: 7.3
A51: 기상청 | B51: 국공립연구소 | C51: 449 | D51: 40.6 | E51: 487 | F51: 49.2 | G51: 588 | H51: 50.6 | I51: 638 | J51: 51.6 | K51: 625 | L51: 51.1 | M51: △13 | N51: △2.0
B52: 출연연구소 | C52: 120 | D52: 10.9 | E52: 33 | F52: 3.4 | G52: 26 | H52: 2.3 | I52: 52 | J52: 4.2 | K52: 46 | L52: 3.8 | M52: △6 | N52: △10.9
B53: 대학 | C53: 209 | D53: 18.9 | E53: 228 | F53: 23.1 | G53: 173 | H53: 14.9 | I53: 149 | J53: 12 | K53: 170 | L53: 13.9 | M53: 21 | N53: 14.2
B54: 대기업 | C54: - | D54: - | E54: - | F54: - | G54: - | H54: - | I54: - | J54: - | K54: 0 | L54: 0 | M54: 0 | N54: -
B55: 중견기업 | C55: - | D55: - | E55: - | F55: - | G55: - | H55: - | I55: - | J55: - | K55: 0 | L55: 0 | M55: 0 | N55: -
B56: 중소기업 | C56: 58 | D56: 5.3 | E56: 68 | F56: 6.8 | G56: 77 | H56: 6.6 | I56: 65 | J56: 5.3 | K56: 56 | L56: 4.6 | M56: △9 | N56: △13.9
B57: 정부부처 | C57: 101 | D57: 9.1 | E57: 90 | F57: 9.1 | G57: 103 | H57: 8.9 | I57: 105 | J57: 8.5 | K57: 107 | L57: 8.7 | M57: 2 | N57: 1.6
B58: 기타 | C58: 168 | D58: 15.2 | E58: 84 | F58: 8.5 | G58: 194 | H58: 16.7 | I58: 227 | J58: 18.4 | K58: 219 | L58: 17.9 | M58: △8 | N58: △3.4
B59: 소계 | C59: 1106 | D59: 100 | E59: 990 | F59: 100 | G59: 1161 | H59: 100 | I59: 1236 | J59: 100 | K59: 1224 | L59: 100 | M59: △13 | N59: △1.0
A60: 농림축산식품부 | B60: 국공립연구소 | C60: 327 | D60: 16.7 | E60: 434 | F60: 20.9 | G60: 411 | H60: 18 | I60: 449 | J60: 16.9 | K60: 437 | L60: 17.3 | M60: △11 | N60: △2.5
B61: 출연연구소 | C61: 214 | D61: 11 | E61: 243 | F61: 11.7 | G61: 328 | H61: 14.4 | I61: 363 | J61: 13.6 | K61: 326 | L61: 12.9 | M61: △37 | N61: △10.1
B62: 대학 | C62: 557 | D62: 28.5 | E62: 621 | F62: 29.9 | G62: 708 | H62: 31 | I62: 775 | J62: 29.1 | K62: 723 | L62: 28.5 | M62: △53 | N62: △6.8
B63: 대기업 | C63: 18 | D63: 0.9 | E63: 7 | F63: 0.3 | G63: 11 | H63: 0.5 | I63: 18 | J63: 0.7 | K63: 23 | L63: 0.9 | M63: 4 | N63: 23
B64: 중견기업 | C64: 82 | D64: 4.2 | E64: 73 | F64: 3.5 | G64: 72 | H64: 3.2 | I64: 71 | J64: 2.7 | K64: 81 | L64: 3.2 | M64: 10 | N64: 13.3
B65: 중소기업 | C65: 644 | D65: 32.9 | E65: 577 | F65: 27.8 | G65: 642 | H65: 28.2 | I65: 829 | J65: 31.1 | K65: 805 | L65: 31.7 | M65: △24 | N65: △2.8
B66: 정부부처 | C66: 0 | D66: 0 | E66: 0 | F66: 0 | G66: - | H66: - | I66: - | J66: - | K66: 0 | L66: 0 | M66: 0 | N66: -
B67: 기타 | C67: 113 | D67: 5.8 | E67: 120 | F67: 5.8 | G67: 110 | H67: 4.8 | I67: 157 | J67: 5.9 | K67: 141 | L67: 5.5 | M67: △16 | N67: △10.5
B68: 소계 | C68: 1956 | D68: 100 | E68: 2076 | F68: 100 | G68: 2281 | H68: 100 | I68: 2662 | J68: 100 | K68: 2535 | L68: 100 | M68: △127 | N68: △4.8
A69: 농촌진흥청 | B69: 국공립연구소 | C69: 4605 | D69: 71.2 | E69: 4828 | F69: 70.3 | G69: 5578 | H69: 72.4 | I69: 5743 | J69: 70.7 | K69: 6985 | L69: 79.6 | M69: 1242 | N69: 21.6
B70: 출연연구소 | C70: 50 | D70: 0.8 | E70: 69 | F70: 1 | G70: 81 | H70: 1 | I70: 90 | J70: 1.1 | K70: 67 | L70: 0.8 | M70: △23 | N70: △25.5
B71: 대학 | C71: 907 | D71: 14 | E71: 1039 | F71: 15.1 | G71: 1063 | H71: 13.8 | I71: 1219 | J71: 15 | K71: 763 | L71: 8.7 | M71: △456 | N71: △37.4
B72: 대기업 | C72: 14 | D72: 0.2 | E72: 20 | F72: 0.3 | G72: 15 | H72: 0.2 | I72: 11 | J72: 0.1 | K72: 1 | L72: 0 | M72: △10 | N72: △91.3
B73: 중견기업 | C73: 8 | D73: 0.1 | E73: 14 | F73: 0.2 | G73: 25 | H73: 0.3 | I73: 19 | J73: 0.2 | K73: 13 | L73: 0.1 | M73: △6 | N73: △31.6
B74: 중소기업 | C74: 421 | D74: 6.5 | E74: 625 | F74: 9.1 | G74: 465 | H74: 6 | I74: 491 | J74: 6 | K74: 295 | L74: 3.4 | M74: △196 | N74: △40.0
B75: 정부부처 | C75: 368 | D75: 5.7 | E75: 153 | F75: 2.2 | G75: 333 | H75: 4.3 | I75: 434 | J75: 5.3 | K75: 565 | L75: 6.4 | M75: 131 | N75: 30.1
B76: 기타 | C76: 93 | D76: 1.4 | E76: 121 | F76: 1.8 | G76: 145 | H76: 1.9 | I76: 116 | J76: 1.4 | K76: 89 | L76: 1 | M76: △27 | N76: △23.3
B77: 소계 | C77: 6467 | D77: 100 | E77: 6869 | F77: 100 | G77: 7705 | H77: 100 | I77: 8124 | J77: 100 | K77: 8777 | L77: 100 | M77: 654 | N77: 8
A78: 문화재청 | B78: 국공립연구소 | C78: 445 | D78: 100 | E78: 507 | F78: 98.5 | G78: 299 | H78: 80 | I78: 539 | J78: 84.1 | K78: 548 | L78: 80.9 | M78: 9 | N78: 1.7
B79: 출연연구소 | C79: - | D79: - | E79: - | F79: - | G79: 49 | H79: 13.1 | I79: 61 | J79: 9.5 | K79: 84 | L79: 12.4 | M79: 23 | N79: 37.8
B80: 대학 | C80: - | D80: - | E80: - | F80: - | G80: 22 | H80: 5.9 | I80: 31 | J80: 4.8 | K80: 35 | L80: 5.1 | M80: 4 | N80: 12
B81: 대기업 | C81: - | D81: - | E81: - | F81: - | G81: - | H81: - | I81: - | J81: - | K81: 0 | L81: 0 | M81: 0 | N81: -
B82: 중견기업 | C82: - | D82: - | E82: - | F82: - | G82: - | H82: - | I82: - | J82: - | K82: 0 | L82: 0 | M82: 0 | N82: -
B83: 중소기업 | C83: - | D83: - | E83: - | F83: - | G83: - | H83: - | I83: 6 | J83: 1 | K83: 6 | L83: 0.9 | M83: 0 | N83: △5.5
B84: 정부부처 | C84: - | D84: - | E84: - | F84: - | G84: - | H84: - | I84: - | J84: - | K84: 0 | L84: 0 | M84: 0 | N84: -
B85: 기타 | C85: - | D85: - | E85: 8 | F85: 1.5 | G85: 4 | H85: 1 | I85: 4 | J85: 0.6 | K85: 5 | L85: 0.7 | M85: 1 | N85: 28.2
B86: 소계 | C86: 445 | D86: 100 | E86: 515 | F86: 100 | G86: 373 | H86: 100 | I86: 641 | J86: 100 | K86: 678 | L86: 100 | M86: 36 | N86: 5.7
A87: 문화체육관광부 | B87: 국공립연구소 | C87: - | D87: - | E87: - | F87: - | G87: 8 | H87: 0.7 | I87: 13 | J87: 1 | K87: 12 | L87: 0.9 | M87: △1 | N87: △7.7
B88: 출연연구소 | C88: 189 | D88: 27.5 | E88: 291 | F88: 31.1 | G88: 329 | H88: 29.8 | I88: 366 | J88: 28.4 | K88: 365 | L88: 28.2 | M88: △2 | N88: △0.5
B89: 대학 | C89: 175 | D89: 25.4 | E89: 228 | F89: 24.3 | G89: 245 | H89: 22.2 | I89: 237 | J89: 18.4 | K89: 201 | L89: 15.6 | M89: △36 | N89: △15.1
B90: 대기업 | C90: 3 | D90: 0.5 | E90: - | F90: - | G90: 10 | H90: 0.9 | I90: 6 | J90: 0.5 | K90: 0 | L90: 0 | M90: △6 | N90: △100.0
B91: 중견기업 | C91: - | D91: - | E91: 20 | F91: 2.2 | G91: 18 | H91: 1.6 | I91: 34 | J91: 2.7 | K91: 31 | L91: 2.4 | M91: △3 | N91: △9.8
B92: 중소기업 | C92: 221 | D92: 32.2 | E92: 271 | F92: 29 | G92: 342 | H92: 31 | I92: 401 | J92: 31 | K92: 464 | L92: 35.9 | M92: 64 | N92: 15.9
B93: 정부부처 | C93: - | D93: - | E93: - | F93: - | G93: - | H93: - | I93: - | J93: - | K93: 0 | L93: 0 | M93: 0 | N93: -
B94: 기타 | C94: 99 | D94: 14.4 | E94: 126 | F94: 13.4 | G94: 151 | H94: 13.7 | I94: 233 | J94: 18.1 | K94: 219 | L94: 16.9 | M94: △14 | N94: △6.2
B95: 소계 | C95: 687 | D95: 100 | E95: 937 | F95: 100 | G95: 1102 | H95: 100 | I95: 1290 | J95: 100 | K95: 1291 | L95: 100 | M95: 1 | N95: 0.1
A96: 방위사업청 | B96: 국공립연구소 | C96: - | D96: - | E96: - | F96: - | G96: - | H96: - | I96: 23 | J96: 0.1 | K96: 8 | L96: 0 | M96: △14 | N96: △62.4
B97: 출연연구소 | C97: 18898 | D97: 59.7 | E97: 22525 | F97: 59.7 | G97: 23929 | H97: 62.2 | I97: 26950 | J97: 65.6 | K97: 30644 | L97: 66.6 | M97: 3694 | N97: 13.7
B98: 대학 | C98: 385 | D98: 1.2 | E98: 468 | F98: 1.2 | G98: 616 | H98: 1.6 | I98: 831 | J98: 2 | K98: 742 | L98: 1.6 | M98: △89 | N98: △10.7
B99: 대기업 | C99: 1372 | D99: 4.3 | E99: 642 | F99: 1.7 | G99: 848 | H99: 2.2 | I99: 1761 | J99: 4.3 | K99: 3441 | L99: 7.5 | M99: 1679 | N99: 95.3
B100: 중견기업 | C100: 9097 | D100: 28.7 | E100: 11398 | F100: 30.2 | G100: 9296 | H100: 24.1 | I100: 9860 | J100: 24 | K100: 8719 | L100: 19 | M100: △1140 | N100: △11.6
B101: 중소기업 | C101: 540 | D101: 1.7 | E101: 1010 | F101: 2.7 | G101: 1208 | H101: 3.1 | I101: 1634 | J101: 4 | K101: 2357 | L101: 5.1 | M101: 722 | N101: 44.2
B102: 정부부처 | C102: 1296 | D102: 4.1 | E102: 1621 | F102: 4.3 | G102: 2139 | H102: 5.6 | I102: 2 | J102: 0 | K102: 0 | L102: 0 | M102: △2 | N102: △100.0
B103: 기타 | C103: 68 | D103: 0.2 | E103: 51 | F103: 0.1 | G103: 461 | H103: 1.2 | I103: - | J103: - | K103: 80 | L103: 0.2 | M103: 80 | N103: -
B104: 소계 | C104: 31657 | D104: 100 | E104: 37715 | F104: 100 | G104: 38497 | H104: 100 | I104: 41061 | J104: 100 | K104: 45992 | L104: 100 | M104: 4931 | N104: 12
A105: 다부처 | B105: 국공립연구소 | C105: 39 | D105: 1.3 | E105: 41 | F105: 0.9 | G105: 87 | H105: 1 | I105: 55 | J105: 0.6 | K105: 44 | L105: 0.5 | M105: △11 | N105: △19.7
B106: 출연연구소 | C106: 853 | D106: 27.8 | E106: 1705 | F106: 37.9 | G106: 3039 | H106: 35.2 | I106: 2905 | J106: 31.4 | K106: 3207 | L106: 34.3 | M106: 302 | N106: 10.4
B107: 대학 | C107: 397 | D107: 12.9 | E107: 840 | F107: 18.7 | G107: 1379 | H107: 15.9 | I107: 1390 | J107: 15 | K107: 918 | L107: 9.8 | M107: △472 | N107: △34.0
B108: 대기업 | C108: 25 | D108: 0.8 | E108: 45 | F108: 1 | G108: 83 | H108: 1 | I108: 164 | J108: 1.8 | K108: 114 | L108: 1.2 | M108: △51 | N108: △30.9
B109: 중견기업 | C109: 562 | D109: 18.3 | E109: 391 | F109: 8.7 | G109: 752 | H109: 8.7 | I109: 787 | J109: 8.5 | K109: 665 | L109: 7.1 | M109: △122 | N109: △15.5
B110: 중소기업 | C110: 1027 | D110: 33.5 | E110: 1078 | F110: 24 | G110: 2406 | H110: 27.8 | I110: 3332 | J110: 36 | K110: 4015 | L110: 42.9 | M110: 683 | N110: 20.5
B111: 정부부처 | C111: - | D111: - | E111: - | F111: - | G111: 1 | H111: 0 | I111: 1 | J111: 0 | K111: 1 | L111: 0 | M111: 0 | N111: 0
B112: 기타 | C112: 166 | D112: 5.4 | E112: 395 | F112: 8.8 | G112: 899 | H112: 10.4 | I112: 618 | J112: 6.7 | K112: 398 | L112: 4.2 | M112: △221 | N112: △35.7
B113: 소계 | C113: 3069 | D113: 100 | E113: 4493 | F113: 100 | G113: 8645 | H113: 100 | I113: 9252 | J113: 100 | K113: 9360 | L113: 100 | M113: 108 | N113: 1.2
A114: 보건복지부 | B114: 국공립연구소 | C114: 917 | D114: 17.8 | E114: 1140 | F114: 17.7 | G114: 391 | H114: 6.8 | I114: 359 | J114: 5.8 | K114: 108 | L114: 1.8 | M114: △251 | N114: △70.0
B115: 출연연구소 | C115: 946 | D115: 18.4 | E115: 916 | F115: 14.2 | G115: 931 | H115: 16.1 | I115: 991 | J115: 15.9 | K115: 908 | L115: 14.8 | M115: △84 | N115: △8.4
B116: 대학 | C116: 2223 | D116: 43.2 | E116: 2572 | F116: 40 | G116: 2301 | H116: 39.9 | I116: 2614 | J116: 42 | K116: 2876 | L116: 46.8 | M116: 262 | N116: 10
B117: 대기업 | C117: 15 | D117: 0.3 | E117: 31 | F117: 0.5 | G117: 351 | H117: 6.1 | I117: 14 | J117: 0.2 | K117: 24 | L117: 0.4 | M117: 10 | N117: 73.6
B118: 중견기업 | C118: 151 | D118: 2.9 | E118: 469 | F118: 7.3 | G118: 138 | H118: 2.4 | I118: 104 | J118: 1.7 | K118: 41 | L118: 0.7 | M118: △63 | N118: △60.4
B119: 중소기업 | C119: 506 | D119: 9.8 | E119: 841 | F119: 13.1 | G119: 893 | H119: 15.5 | I119: 1298 | J119: 20.9 | K119: 1314 | L119: 21.4 | M119: 16 | N119: 1.2
B120: 정부부처 | C120: - | D120: - | E120: - | F120: - | G120: - | H120: - | I120: - | J120: - | K120: 0 | L120: 0 | M120: 0 | N120: -
B121: 기타 | C121: 385 | D121: 7.5 | E121: 463 | F121: 7.2 | G121: 764 | H121: 13.2 | I121: 843 | J121: 13.6 | K121: 870 | L121: 14.2 | M121: 26 | N121: 3.1
B122: 소계 | C122: 5142 | D122: 100 | E122: 6433 | F122: 100 | G122: 5768 | H122: 100 | I122: 6224 | J122: 100 | K122: 6140 | L122: 100 | M122: △83 | N122: △1.3
A123: 산림청 | B123: 국공립연구소 | C123: 876 | D123: 80.5 | E123: 888 | F123: 77.4 | G123: 899 | H123: 66.7 | I123: 974 | J123: 66.2 | K123: 1106 | L123: 68.1 | M123: 132 | N123: 13.6
B124: 출연연구소 | C124: 12 | D124: 1.1 | E124: 9 | F124: 0.8 | G124: 20 | H124: 1.5 | I124: 23 | J124: 1.6 | K124: 22 | L124: 1.4 | M124: △1 | N124: △3.3
B125: 대학 | C125: 136 | D125: 12.5 | E125: 146 | F125: 12.7 | G125: 247 | H125: 18.4 | I125: 276 | J125: 18.8 | K125: 256 | L125: 15.7 | M125: △20 | N125: △7.3
B126: 대기업 | C126: 1 | D126: 0.1 | E126: - | F126: - | G126: - | H126: - | I126: - | J126: - | K126: 0 | L126: 0 | M126: 0 | N126: -
B127: 중견기업 | C127: 3 | D127: 0.2 | E127: 1 | F127: 0.1 | G127: 1 | H127: 0.1 | I127: 2 | J127: 0.1 | K127: 2 | L127: 0.1 | M127: 0 | N127: △9.3
B128: 중소기업 | C128: 37 | D128: 3.4 | E128: 69 | F128: 6 | G128: 110 | H128: 8.2 | I128: 117 | J128: 7.9 | K128: 153 | L128: 9.4 | M128: 37 | N128: 31.4
B129: 정부부처 | C129: - | D129: - | E129: - | F129: - | G129: 0 | H129: 0 | I129: 0 | J129: 0 | K129: 0 | L129: 0 | M129: 0 | N129: △100.0
B130: 기타 | C130: 24 | D130: 2.2 | E130: 35 | F130: 3.1 | G130: 70 | H130: 5.2 | I130: 80 | J130: 5.4 | K130: 86 | L130: 5.3 | M130: 6 | N130: 7.8
B131: 소계 | C131: 1088 | D131: 100 | E131: 1147 | F131: 100 | G131: 1348 | H131: 100 | I131: 1471 | J131: 100 | K131: 1625 | L131: 100 | M131: 154 | N131: 10.4
A132: 산업통상자원부 | B132: 국공립연구소 | C132: - | D132: - | E132: - | F132: - | G132: 41 | H132: 0.1 | I132: 9 | J132: 0 | K132: 12 | L132: 0 | M132: 3 | N132: 31.8
B133: 출연연구소 | C133: 4812 | D133: 14.9 | E133: 5905 | F133: 14.7 | G133: 6552 | H133: 14.1 | I133: 7405 | J133: 14.6 | K133: 7391 | L133: 13.5 | M133: △14 | N133: △0.2
B134: 대학 | C134: 2798 | D134: 8.7 | E134: 2974 | F134: 7.4 | G134: 2536 | H134: 5.5 | I134: 2795 | J134: 5.5 | K134: 3232 | L134: 5.9 | M134: 438 | N134: 15.7
B135: 대기업 | C135: 1353 | D135: 4.2 | E135: 2024 | F135: 5 | G135: 2340 | H135: 5 | I135: 3067 | J135: 6.1 | K135: 3630 | L135: 6.7 | M135: 563 | N135: 18.4
B136: 중견기업 | C136: 3639 | D136: 11.3 | E136: 4784 | F136: 11.9 | G136: 5037 | H136: 10.8 | I136: 6887 | J136: 13.6 | K136: 8070 | L136: 14.8 | M136: 1183 | N136: 17.2
B137: 중소기업 | C137: 13213 | D137: 40.9 | E137: 15967 | F137: 39.8 | G137: 19853 | H137: 42.7 | I137: 20744 | J137: 40.9 | K137: 22296 | L137: 40.9 | M137: 1551 | N137: 7.5
B138: 정부부처 | C138: - | D138: - | E138: - | F138: - | G138: - | H138: - | I138: - | J138: - | K138: 0 | L138: 0 | M138: 0 | N138: -
B139: 기타 | C139: 6525 | D139: 20.2 | E139: 8459 | F139: 21.1 | G139: 10092 | H139: 21.7 | I139: 9768 | J139: 19.3 | K139: 9945 | L139: 18.2 | M139: 177 | N139: 1.8
B140: 소계 | C140: 32339 | D140: 100 | E140: 40113 | F140: 100 | G140: 46451 | H140: 100 | I140: 50675 | J140: 100 | K140: 54576 | L140: 100 | M140: 3901 | N140: 7.7
A141: 식품의약품안전처 | B141: 국공립연구소 | C141: 264 | D141: 30.6 | E141: 262 | F141: 28.4 | G141: 268 | H141: 25.3 | I141: 256 | J141: 23.2 | K141: 286 | L141: 21.3 | M141: 30 | N141: 11.7
B142: 출연연구소 | C142: 47 | D142: 5.5 | E142: 45 | F142: 4.9 | G142: 47 | H142: 4.4 | I142: 60 | J142: 5.4 | K142: 81 | L142: 6.1 | M142: 22 | N142: 36.5
B143: 대학 | C143: 419 | D143: 48.6 | E143: 473 | F143: 51.3 | G143: 541 | H143: 51.2 | I143: 547 | J143: 49.6 | K143: 680 | L143: 50.7 | M143: 133 | N143: 24.3
B144: 대기업 | C144: 3 | D144: 0.3 | E144: - | F144: - | G144: 1 | H144: 0.1 | I144: 3 | J144: 0.3 | K144: 0 | L144: 0 | M144: △3 | N144: △100.0
B145: 중견기업 | C145: 5 | D145: 0.6 | E145: 5 | F145: 0.6 | G145: 8 | H145: 0.7 | I145: 3 | J145: 0.2 | K145: 4 | L145: 0.3 | M145: 2 | N145: 70.5
B146: 중소기업 | C146: 59 | D146: 6.8 | E146: 70 | F146: 7.5 | G146: 78 | H146: 7.4 | I146: 84 | J146: 7.6 | K146: 109 | L146: 8.1 | M146: 26 | N146: 30.6
B147: 정부부처 | C147: 10 | D147: 1.2 | E147: 13 | F147: 1.4 | G147: 15 | H147: 1.4 | I147: 25 | J147: 2.3 | K147: 9 | L147: 0.7 | M147: △16 | N147: △64.6
B148: 기타 | C148: 55 | D148: 6.4 | E148: 54 | F148: 5.8 | G148: 99 | H148: 9.4 | I148: 124 | J148: 11.3 | K148: 171 | L148: 12.8 | M148: 47 | N148: 37.7
B149: 소계 | C149: 862 | D149: 100 | E149: 921 | F149: 100 | G149: 1056 | H149: 100 | I149: 1102 | J149: 100 | K149: 1341 | L149: 100 | M149: 240 | N149: 21.7
A150: 원자력안전위원회 | B150: 국공립연구소 | C150: - | D150: - | E150: - | F150: - | G150: - | H150: - | I150: - | J150: - | K150: 0 | L150: 0 | M150: 0 | N150: -
B151: 출연연구소 | C151: 610 | D151: 82.1 | E151: 558 | F151: 76.6 | G151: 853 | H151: 74.6 | I151: 865 | J151: 75.3 | K151: 725 | L151: 74.1 | M151: △140 | N151: △16.2
B152: 대학 | C152: 103 | D152: 13.9 | E152: 121 | F152: 16.6 | G152: 187 | H152: 16.4 | I152: 168 | J152: 14.6 | K152: 140 | L152: 14.3 | M152: △28 | N152: △16.5
B153: 대기업 | C153: - | D153: - | E153: - | F153: - | G153: - | H153: - | I153: - | J153: - | K153: 0 | L153: 0 | M153: 0 | N153: -
B154: 중견기업 | C154: - | D154: - | E154: - | F154: - | G154: 0 | H154: 0 | I154: 0 | J154: 0 | K154: 1 | L154: 0.1 | M154: 0 | N154: 75
B155: 중소기업 | C155: 11 | D155: 1.5 | E155: 17 | F155: 2.3 | G155: 62 | H155: 5.4 | I155: 62 | J155: 5.4 | K155: 58 | L155: 5.9 | M155: △5 | N155: △7.6
B156: 정부부처 | C156: - | D156: - | E156: - | F156: - | G156: - | H156: - | I156: - | J156: - | K156: 0 | L156: 0 | M156: 0 | N156: -
B157: 기타 | C157: 19 | D157: 2.6 | E157: 32 | F157: 4.4 | G157: 41 | H157: 3.5 | I157: 53 | J157: 4.6 | K157: 56 | L157: 5.7 | M157: 3 | N157: 4.9
B158: 소계 | C158: 744 | D158: 100 | E158: 729 | F158: 100 | G158: 1143 | H158: 100 | I158: 1149 | J158: 100 | K158: 979 | L158: 100 | M158: △169 | N158: △14.8
A159: 중소벤처기업부 | B159: 국공립연구소 | C159: - | D159: - | E159: - | F159: - | G159: - | H159: - | I159: - | J159: - | K159: 0 | L159: 0 | M159: 0 | N159: -
B160: 출연연구소 | C160: 617 | D160: 6.1 | E160: 788 | F160: 5.6 | G160: 884 | H160: 5.3 | I160: 890 | J160: 5.1 | K160: 984 | L160: 5.4 | M160: 94 | N160: 10.6
B161: 대학 | C161: 198 | D161: 1.9 | E161: 264 | F161: 1.9 | G161: 325 | H161: 2 | I161: 320 | J161: 1.9 | K161: 234 | L161: 1.3 | M161: △87 | N161: △27.0
B162: 대기업 | C162: 8 | D162: 0.1 | E162: 3 | F162: 0 | G162: 7 | H162: 0 | I162: 3 | J162: 0 | K162: 0 | L162: 0 | M162: △3 | N162: △100.0
B163: 중견기업 | C163: 13 | D163: 0.1 | E163: 61 | F163: 0.4 | G163: 128 | H163: 0.8 | I163: 128 | J163: 0.7 | K163: 145 | L163: 0.8 | M163: 17 | N163: 13
B164: 중소기업 | C164: 8981 | D164: 88.1 | E164: 12301 | F164: 87.6 | G164: 14511 | H164: 87.2 | I164: 15172 | J164: 87.7 | K164: 16189 | L164: 88.8 | M164: 1017 | N164: 6.7
B165: 정부부처 | C165: - | D165: - | E165: - | F165: - | G165: - | H165: - | I165: - | J165: - | K165: 0 | L165: 0 | M165: 0 | N165: -
B166: 기타 | C166: 377 | D166: 3.7 | E166: 629 | F166: 4.5 | G166: 794 | H166: 4.8 | I166: 784 | J166: 4.5 | K166: 672 | L166: 3.7 | M166: △111 | N166: △14.2
B167: 소계 | C167: 10194 | D167: 100 | E167: 14046 | F167: 100 | G167: 16650 | H167: 100 | I167: 17296 | J167: 100 | K167: 18224 | L167: 100 | M167: 928 | N167: 5.4
A168: 해양수산부 | B168: 국공립연구소 | C168: 1271 | D168: 20.2 | E168: 1326 | F168: 19.5 | G168: 1378 | H168: 18.3 | I168: 1464 | J168: 17.5 | K168: 1501 | L168: 16.3 | M168: 37 | N168: 2.5
B169: 출연연구소 | C169: 3563 | D169: 56.5 | E169: 3501 | F169: 51.5 | G169: 3534 | H169: 47 | I169: 4064 | J169: 48.6 | K169: 4838 | L169: 52.5 | M169: 774 | N169: 19
B170: 대학 | C170: 573 | D170: 9.1 | E170: 569 | F170: 8.4 | G170: 779 | H170: 10.4 | I170: 831 | J170: 9.9 | K170: 900 | L170: 9.8 | M170: 70 | N170: 8.4
B171: 대기업 | C171: 23 | D171: 0.4 | E171: 85 | F171: 1.2 | G171: 27 | H171: 0.4 | I171: 40 | J171: 0.5 | K171: 32 | L171: 0.4 | M171: △7 | N171: △18.6
B172: 중견기업 | C172: 18 | D172: 0.3 | E172: 54 | F172: 0.8 | G172: 56 | H172: 0.7 | I172: 41 | J172: 0.5 | K172: 42 | L172: 0.5 | M172: 1 | N172: 1.9
B173: 중소기업 | C173: 696 | D173: 11 | E173: 1010 | F173: 14.8 | G173: 1405 | H173: 18.7 | I173: 1591 | J173: 19 | K173: 1501 | L173: 16.3 | M173: △90 | N173: △5.7
B174: 정부부처 | C174: - | D174: - | E174: - | F174: - | G174: - | H174: - | I174: - | J174: - | K174: 0 | L174: 0 | M174: 0 | N174: -
B175: 기타 | C175: 162 | D175: 2.6 | E175: 258 | F175: 3.8 | G175: 346 | H175: 4.6 | I175: 339 | J175: 4.1 | K175: 398 | L175: 4.3 | M175: 59 | N175: 17.4
B176: 소계 | C176: 6305 | D176: 100 | E176: 6803 | F176: 100 | G176: 7524 | H176: 100 | I176: 8370 | J176: 100 | K176: 9212 | L176: 100 | M176: 842 | N176: 10.1
A177: 환경부 | B177: 국공립연구소 | C177: 794 | D177: 24.5 | E177: 899 | F177: 24.5 | G177: 953 | H177: 23.8 | I177: 873 | J177: 20.5 | K177: 905 | L177: 21.4 | M177: 32 | N177: 3.7
B178: 출연연구소 | C178: 492 | D178: 15.2 | E178: 474 | F178: 12.9 | G178: 545 | H178: 13.6 | I178: 674 | J178: 15.9 | K178: 557 | L178: 13.2 | M178: △117 | N178: △17.4
B179: 대학 | C179: 852 | D179: 26.3 | E179: 957 | F179: 26.1 | G179: 1036 | H179: 25.8 | I179: 1165 | J179: 27.4 | K179: 1203 | L179: 28.4 | M179: 38 | N179: 3.3
B180: 대기업 | C180: 110 | D180: 3.4 | E180: 112 | F180: 3.1 | G180: 72 | H180: 1.8 | I180: 63 | J180: 1.5 | K180: 86 | L180: 2 | M180: 23 | N180: 36.8
B181: 중견기업 | C181: 83 | D181: 2.6 | E181: 96 | F181: 2.6 | G181: 90 | H181: 2.2 | I181: 124 | J181: 2.9 | K181: 124 | L181: 2.9 | M181: 0 | N181: △0.1
B182: 중소기업 | C182: 810 | D182: 25 | E182: 971 | F182: 26.5 | G182: 1175 | H182: 29.3 | I182: 1154 | J182: 27.2 | K182: 1161 | L182: 27.4 | M182: 7 | N182: 0.6
B183: 정부부처 | C183: - | D183: - | E183: - | F183: - | G183: - | H183: - | I183: - | J183: - | K183: 0 | L183: 0 | M183: 0 | N183: -
B184: 기타 | C184: 94 | D184: 2.9 | E184: 160 | F184: 4.4 | G184: 140 | H184: 3.5 | I184: 195 | J184: 4.6 | K184: 196 | L184: 4.6 | M184: 1 | N184: 0.4
B185: 소계 | C185: 3235 | D185: 100 | E185: 3670 | F185: 100 | G185: 4011 | H185: 100 | I185: 4247 | J185: 100 | K185: 4232 | L185: 100 | M185: △16 | N185: △0.4
A186: 기타 부처 | B186: 국공립연구소 | C186: 317 | D186: 22.1 | E186: 308 | F186: 16.7 | G186: 1194 | H186: 33.2 | I186: 1406 | J186: 19.7 | K186: 1605 | L186: 32.6 | M186: 200 | N186: 14.2
B187: 출연연구소 | C187: 216 | D187: 15.1 | E187: 262 | F187: 14.2 | G187: 384 | H187: 10.7 | I187: 1337 | J187: 18.7 | K187: 428 | L187: 8.7 | M187: △908 | N187: △67.9
B188: 대학 | C188: 264 | D188: 18.4 | E188: 298 | F188: 16.2 | G188: 565 | H188: 15.7 | I188: 1317 | J188: 18.5 | K188: 918 | L188: 18.6 | M188: △399 | N188: △30.3
B189: 대기업 | C189: 9 | D189: 0.7 | E189: 3 | F189: 0.1 | G189: 5 | H189: 0.1 | I189: 154 | J189: 2.2 | K189: 19 | L189: 0.4 | M189: △135 | N189: △87.6
B190: 중견기업 | C190: 7 | D190: 0.5 | E190: 8 | F190: 0.4 | G190: 20 | H190: 0.6 | I190: 133 | J190: 1.9 | K190: 68 | L190: 1.4 | M190: △66 | N190: △49.3
B191: 중소기업 | C191: 244 | D191: 17 | E191: 293 | F191: 15.9 | G191: 443 | H191: 12.3 | I191: 1354 | J191: 19 | K191: 734 | L191: 14.9 | M191: △619 | N191: △45.8
B192: 정부부처 | C192: - | D192: - | E192: 7 | F192: 0.4 | G192: 9 | H192: 0.3 | I192: 17 | J192: 0.2 | K192: 10 | L192: 0.2 | M192: △7 | N192: △42.5
B193: 기타 | C193: 377 | D193: 26.3 | E193: 662 | F193: 35.9 | G193: 978 | H193: 27.2 | I193: 1417 | J193: 19.9 | K193: 1141 | L193: 23.2 | M193: △276 | N193: △19.5
B194: 소계 | C194: 1435 | D194: 100 | E194: 1841 | F194: 100 | G194: 3598 | H194: 100 | I194: 7134 | J194: 100 | K194: 4923 | L194: 100 | M194: △2211 | N194: △31.0
A195: 합계 | B195: 국공립연구소 | C195: 10527 | D195: 5.1 | E195: 11323 | F195: 4.7 | G195: 12313 | H195: 4.6 | I195: 13024 | J195: 4.5 | K195: 14404 | L195: 4.7 | M195: 1379 | N195: 10.6
B196: 출연연구소 | C196: 82597 | D196: 40 | E196: 90289 | F196: 37.8 | G196: 96058 | H196: 36.1 | I196: 103737 | J196: 36.2 | K196: 110861 | L196: 36.3 | M196: 7124 | N196: 6.9
B197: 대학 | C197: 50278 | D197: 24.4 | E197: 57508 | F197: 24.1 | G197: 63317 | H197: 23.8 | I197: 69738 | J197: 24.3 | K197: 74033 | L197: 24.2 | M197: 4295 | N197: 6.2
B198: 대기업 | C198: 3735 | D198: 1.8 | E198: 3820 | F198: 1.6 | G198: 4327 | H198: 1.6 | I198: 5889 | J198: 2.1 | K198: 8121 | L198: 2.7 | M198: 2232 | N198: 37.9
B199: 중견기업 | C199: 14165 | D199: 6.9 | E199: 18212 | F199: 7.6 | G199: 16166 | H199: 6.1 | I199: 18716 | J199: 6.5 | K199: 18545 | L199: 6.1 | M199: △171 | N199: △0.9
B200: 중소기업 | C200: 30910 | D200: 15 | E200: 39753 | F200: 16.6 | G200: 49721 | H200: 18.7 | I200: 54924 | J200: 19.2 | K200: 58379 | L200: 19.1 | M200: 3454 | N200: 6.3
B201: 정부부처 | C201: 1829 | D201: 0.9 | E201: 1914 | F201: 0.8 | G201: 2634 | H201: 1 | I201: 626 | J201: 0.2 | K201: 755 | L201: 0.2 | M201: 129 | N201: 20.6
... 3 more rows

Sheet 2-5
A1: 2-5. 부처별 지역별 집행 추이, 2019-2023 | G1: 목차
N3: (단위 : 억원, %)
A4: 구 분 | C4: 2019년 | E4: 2020년 | G4: 2021년 | I4: 2022년 | K4: 2023년 | M4: 증감
C5: 금액 | D5: 비중 | E5: 금액 | F5: 비중 | G5: 금액(A) | H5: 비중 | I5: 금액(B) | J5: 비중 | K5: 금액(B) | L5: 비중 | M5: B-A | N5: %
A6: 과학기술정보통신부 | B6: 수도권 | C6: 21625 | D6: 31 | E6: 23939 | F6: 31.1 | G6: 27753 | H6: 33.4 | I6: 29679 | J6: 33.5 | K6: 31870 | L6: 34.1 | M6: 2191 | N6: 7.4
B7: 대전 | C7: 31828 | D7: 45.6 | E7: 34073 | F7: 44.3 | G7: 34052 | H7: 40.9 | I7: 36007 | J7: 40.7 | K7: 37817 | L7: 40.4 | M7: 1810 | N7: 5
B8: 지방* | C8: 16335 | D8: 23.4 | E8: 18961 | F8: 24.6 | G8: 21352 | H8: 25.7 | I8: 22837 | J8: 25.8 | K8: 23816 | L8: 25.5 | M8: 979 | N8: 4.3
B9: 합계 | C9: 69788 | D9: 100 | E9: 76973 | F9: 100 | G9: 83157 | H9: 100 | I9: 88523 | J9: 100 | K9: 93504 | L9: 100 | M9: 4981 | N9: 5.6
A10: 교육부 | B10: 수도권 | C10: 7425 | D10: 39.1 | E10: 8001 | F10: 37.1 | G10: 9700 | H10: 42.2 | I10: 8672 | J10: 36.5 | K10: 10307 | L10: 36.7 | M10: 1635 | N10: 18.9
B11: 대전 | C11: 1447 | D11: 7.6 | E11: 1626 | F11: 7.5 | G11: 1583 | H11: 6.9 | I11: 1571 | J11: 6.6 | K11: 1661 | L11: 5.9 | M11: 91 | N11: 5.8
B12: 지방* | C12: 10134 | D12: 53.3 | E12: 11946 | F12: 55.4 | G12: 11713 | H12: 50.9 | I12: 13547 | J12: 56.9 | K12: 16102 | L12: 57.4 | M12: 2555 | N12: 18.9
B13: 합계 | C13: 19005 | D13: 100 | E13: 21573 | F13: 100 | G13: 22996 | H13: 100 | I13: 23790 | J13: 100 | K13: 28070 | L13: 100 | M13: 4281 | N13: 18
A14: 국무조정실 | B14: 수도권 | C14: 576 | D14: 11.1 | E14: 653 | F14: 12.6 | G14: 680 | H14: 12.5 | I14: 568 | J14: 10.2 | K14: 419 | L14: 7.7 | M14: △149 | N14: △26.3
B15: 대전 | C15: - | D15: - | E15: - | F15: - | G15: 0 | H15: 0 | I15: - | J15: - | K15: 0 | L15: 0 | M15: 0 | N15: -
B16: 지방* | C16: 4625 | D16: 88.9 | E16: 4513 | F16: 87.4 | G16: 4744 | H16: 87.5 | I16: 5003 | J16: 89.8 | K16: 5021 | L16: 92.3 | M16: 18 | N16: 0.4
B17: 합계 | C17: 5201 | D17: 100 | E17: 5165 | F17: 100 | G17: 5424 | H17: 100 | I17: 5571 | J17: 100 | K17: 5439 | L17: 100 | M17: △131 | N17: △2.4
A18: 국방부 | B18: 수도권 | C18: 488 | D18: 97.2 | E18: 506 | F18: 95.8 | G18: 521 | H18: 96 | I18: 577 | J18: 87.6 | K18: 608 | L18: 76.7 | M18: 31 | N18: 5.4
B19: 대전 | C19: 0 | D19: 0.1 | E19: - | F19: - | G19: 1 | H19: 0.1 | I19: 34 | J19: 5.2 | K19: 129 | L19: 16.2 | M19: 95 | N19: 277.3
B20: 지방* | C20: 13 | D20: 2.7 | E20: 22 | F20: 4.2 | G20: 21 | H20: 3.8 | I20: 48 | J20: 7.2 | K20: 56 | L20: 7.1 | M20: 9 | N20: 18.3
B21: 합계 | C21: 502 | D21: 100 | E21: 528 | F21: 100 | G21: 542 | H21: 100 | I21: 659 | J21: 100 | K21: 793 | L21: 100 | M21: 134 | N21: 20.4
A22: 국토교통부 | B22: 수도권 | C22: 2852 | D22: 58.5 | E22: 2943 | F22: 58.9 | G22: 3640 | H22: 62.3 | I22: 3345 | J22: 61.1 | K22: 3306 | L22: 58.4 | M22: △39 | N22: △1.2
B23: 대전 | C23: 1113 | D23: 22.8 | E23: 952 | F23: 19.1 | G23: 1094 | H23: 18.7 | I23: 1176 | J23: 21.5 | K23: 1214 | L23: 21.5 | M23: 38 | N23: 3.2
B24: 지방* | C24: 912 | D24: 18.7 | E24: 1099 | F24: 22 | G24: 1111 | H24: 19 | I24: 949 | J24: 17.4 | K24: 1137 | L24: 20.1 | M24: 187 | N24: 19.7
B25: 합계 | C25: 4878 | D25: 100 | E25: 4995 | F25: 100 | G25: 5846 | H25: 100 | I25: 5471 | J25: 100 | K25: 5657 | L25: 100 | M25: 186 | N25: 3.4
A26: 기상청 | B26: 수도권 | C26: 346 | D26: 31.3 | E26: 302 | F26: 30.6 | G26: 387 | H26: 33.6 | I26: 366 | J26: 29.9 | K26: 339 | L26: 27.8 | M26: △27 | N26: △7.3
B27: 대전 | C27: 103 | D27: 9.3 | E27: 20 | F27: 2 | G27: 18 | H27: 1.6 | I27: 76 | J27: 6.2 | K27: 99 | L27: 8.1 | M27: 23 | N27: 30.1
B28: 지방* | C28: 656 | D28: 59.3 | E28: 666 | F28: 67.5 | G28: 749 | H28: 64.9 | I28: 782 | J28: 63.9 | K28: 780 | L28: 64.1 | M28: △2 | N28: △0.3
B29: 합계 | C29: 1106 | D29: 100 | E29: 988 | F29: 100 | G29: 1154 | H29: 100 | I29: 1224 | J29: 100 | K29: 1218 | L29: 100 | M29: △6 | N29: △0.5
A30: 농림축산식품부 | B30: 수도권 | C30: 634 | D30: 32.5 | E30: 524 | F30: 25.5 | G30: 570 | H30: 25.4 | I30: 668 | J30: 25.6 | K30: 654 | L30: 26 | M30: △15 | N30: △2.2
B31: 대전 | C31: 65 | D31: 3.3 | E31: 115 | F31: 5.6 | G31: 166 | H31: 7.4 | I31: 225 | J31: 8.6 | K31: 181 | L31: 7.2 | M31: △44 | N31: △19.4
B32: 지방* | C32: 1253 | D32: 64.2 | E32: 1411 | F32: 68.8 | G32: 1510 | H32: 67.2 | I32: 1717 | J32: 65.8 | K32: 1683 | L32: 66.8 | M32: △34 | N32: △2.0
B33: 합계 | C33: 1952 | D33: 100 | E33: 2050 | F33: 100 | G33: 2246 | H33: 100 | I33: 2610 | J33: 100 | K33: 2518 | L33: 100 | M33: △92 | N33: △3.5
A34: 농촌진흥청 | B34: 수도권 | C34: 800 | D34: 12.4 | E34: 840 | F34: 12.3 | G34: 903 | H34: 11.7 | I34: 970 | J34: 12 | K34: 725 | L34: 8.4 | M34: △244 | N34: △25.2
B35: 대전 | C35: 105 | D35: 1.6 | E35: 138 | F35: 2 | G35: 152 | H35: 2 | I35: 168 | J35: 2.1 | K35: 101 | L35: 1.2 | M35: △67 | N35: △40.0
B36: 지방* | C36: 5550 | D36: 86 | E36: 5833 | F36: 85.6 | G36: 6629 | H36: 86.3 | I36: 6961 | J36: 86 | K36: 7856 | L36: 90.5 | M36: 895 | N36: 12.9
B37: 합계 | C37: 6455 | D37: 100 | E37: 6811 | F37: 100 | G37: 7683 | H37: 100 | I37: 8099 | J37: 100 | K37: 8682 | L37: 100 | M37: 584 | N37: 7.2
A38: 문화재청 | B38: 수도권 | C38: 12 | D38: 2.8 | E38: 13 | F38: 2.5 | G38: - | H38: - | I38: - | J38: - | K38: 0 | L38: 0 | M38: 0 | N38: -
B39: 대전 | C39: 341 | D39: 76.5 | E39: 393 | F39: 76.4 | G39: 347 | H39: 93.1 | I39: 600 | J39: 93.6 | K39: 632 | L39: 93.3 | M39: 32 | N39: 5.3
B40: 지방* | C40: 92 | D40: 20.7 | E40: 108 | F40: 21 | G40: 26 | H40: 6.9 | I40: 41 | J40: 6.4 | K40: 46 | L40: 6.7 | M40: 4 | N40: 10.8
B41: 합계 | C41: 445 | D41: 100 | E41: 515 | F41: 100 | G41: 373 | H41: 100 | I41: 641 | J41: 100 | K41: 678 | L41: 100 | M41: 36 | N41: 5.7
A42: 문화체육관광부 | B42: 수도권 | C42: 378 | D42: 55.6 | E42: 414 | F42: 44.3 | G42: 536 | H42: 48.7 | I42: 630 | J42: 48.8 | K42: 691 | L42: 54.1 | M42: 61 | N42: 9.8
B43: 대전 | C43: 157 | D43: 23.1 | E43: 262 | F43: 28 | G43: 318 | H43: 28.8 | I43: 381 | J43: 29.5 | K43: 360 | L43: 28.1 | M43: △21 | N43: △5.5
B44: 지방* | C44: 145 | D44: 21.3 | E44: 259 | F44: 27.7 | G44: 248 | H44: 22.5 | I44: 280 | J44: 21.7 | K44: 227 | L44: 17.8 | M44: △53 | N44: △18.8
B45: 합계 | C45: 680 | D45: 100 | E45: 935 | F45: 100 | G45: 1102 | H45: 100 | I45: 1290 | J45: 100 | K45: 1278 | L45: 100 | M45: △12 | N45: △0.9
A46: 방위사업청 | B46: 수도권 | C46: 3753 | D46: 11.9 | E46: 3676 | F46: 9.8 | G46: 5256 | H46: 13.7 | I46: 4552 | J46: 11.3 | K46: 6548 | L46: 14.5 | M46: 1996 | N46: 43.8
B47: 대전 | C47: 15954 | D47: 50.4 | E47: 19046 | F47: 50.7 | G47: 20574 | H47: 53.5 | I47: 23207 | J47: 57.5 | K47: 27582 | L47: 61 | M47: 4375 | N47: 18.9
B48: 지방* | C48: 11949 | D48: 37.7 | E48: 14873 | F48: 39.6 | G48: 12592 | H48: 32.8 | I48: 12616 | J48: 31.2 | K48: 11120 | L48: 24.6 | M48: △1496 | N48: △11.9
B49: 합계 | C49: 31657 | D49: 100 | E49: 37595 | F49: 100 | G49: 38422 | H49: 100 | I49: 40375 | J49: 100 | K49: 45250 | L49: 100 | M49: 4875 | N49: 12.1
A50: 다부처 | B50: 수도권 | C50: 1228 | D50: 40 | E50: 1866 | F50: 41.6 | G50: 3448 | H50: 40.5 | I50: 4073 | J50: 45.3 | K50: 3414 | L50: 39.6 | M50: △659 | N50: △16.2
B51: 대전 | C51: 847 | D51: 27.6 | E51: 1525 | F51: 34 | G51: 3037 | H51: 35.7 | I51: 3108 | J51: 34.5 | K51: 3553 | L51: 41.2 | M51: 446 | N51: 14.3
B52: 지방* | C52: 994 | D52: 32.4 | E52: 1092 | F52: 24.3 | G52: 2031 | H52: 23.9 | I52: 1816 | J52: 20.2 | K52: 1661 | L52: 19.2 | M52: △155 | N52: △8.6
B53: 합계 | C53: 3069 | D53: 100 | E53: 4483 | F53: 100 | G53: 8517 | H53: 100 | I53: 8997 | J53: 100 | K53: 8628 | L53: 100 | M53: △368 | N53: △4.1
A54: 보건복지부 | B54: 수도권 | C54: 3137 | D54: 61 | E54: 4045 | F54: 63.6 | G54: 3953 | H54: 69.9 | I54: 4360 | J54: 70.2 | K54: 4622 | L54: 75.4 | M54: 262 | N54: 6
B55: 대전 | C55: 207 | D55: 4 | E55: 214 | F55: 3.4 | G55: 176 | H55: 3.1 | I55: 193 | J55: 3.1 | K55: 238 | L55: 3.9 | M55: 45 | N55: 23.4
B56: 지방* | C56: 1799 | D56: 35 | E56: 2105 | F56: 33.1 | G56: 1523 | H56: 26.9 | I56: 1658 | J56: 26.7 | K56: 1271 | L56: 20.7 | M56: △387 | N56: △23.4
B57: 합계 | C57: 5142 | D57: 100 | E57: 6364 | F57: 100 | G57: 5652 | H57: 100 | I57: 6212 | J57: 100 | K57: 6132 | L57: 100 | M57: △80 | N57: △1.3
A58: 산림청 | B58: 수도권 | C58: 896 | D58: 82.4 | E58: 920 | F58: 80.2 | G58: 999 | H58: 74.2 | I58: 1086 | J58: 73.8 | K58: 1232 | L58: 75.9 | M58: 145 | N58: 13.4
B59: 대전 | C59: 27 | D59: 2.5 | E59: 29 | F59: 2.6 | G59: 58 | H59: 4.3 | I59: 67 | J59: 4.5 | K59: 68 | L59: 4.2 | M59: 1 | N59: 1.1
B60: 지방* | C60: 165 | D60: 15.1 | E60: 198 | F60: 17.2 | G60: 289 | H60: 21.5 | I60: 318 | J60: 21.6 | K60: 323 | L60: 19.9 | M60: 6 | N60: 1.7
B61: 합계 | C61: 1088 | D61: 100 | E61: 1147 | F61: 100 | G61: 1346 | H61: 100 | I61: 1471 | J61: 100 | K61: 1623 | L61: 100 | M61: 152 | N61: 10.3
A62: 산업통상자원부 | B62: 수도권 | C62: 12569 | D62: 40.7 | E62: 10679 | F62: 36.4 | G62: 8899 | H62: 36.2 | I62: 10137 | J62: 37.5 | K62: 22510 | L62: 43.3 | M62: 12373 | N62: 122.1
B63: 대전 | C63: 2853 | D63: 9.2 | E63: 3176 | F63: 10.8 | G63: 3178 | H63: 12.9 | I63: 3361 | J63: 12.4 | K63: 4980 | L63: 9.6 | M63: 1619 | N63: 48.2
B64: 지방* | C64: 15458 | D64: 50.1 | E64: 15509 | F64: 52.8 | G64: 12528 | H64: 50.9 | I64: 13539 | J64: 50.1 | K64: 24459 | L64: 47.1 | M64: 10920 | N64: 80.7
B65: 합계 | C65: 30881 | D65: 100 | E65: 29365 | F65: 100 | G65: 24604 | H65: 100 | I65: 27038 | J65: 100 | K65: 51949 | L65: 100 | M65: 24912 | N65: 92.1
A66: 식품의약품안전처 | B66: 수도권 | C66: 405 | D66: 47 | E66: 425 | F66: 46.1 | G66: 508 | H66: 48.2 | I66: 578 | J66: 52.6 | K66: 714 | L66: 54.2 | M66: 136 | N66: 23.5
B67: 대전 | C67: 40 | D67: 4.6 | E67: 48 | F67: 5.2 | G67: 50 | H67: 4.7 | I67: 46 | J67: 4.2 | K67: 59 | L67: 4.5 | M67: 13 | N67: 28.3
B68: 지방* | C68: 418 | D68: 48.4 | E68: 448 | F68: 48.6 | G68: 495 | H68: 47 | I68: 475 | J68: 43.2 | K68: 545 | L68: 41.4 | M68: 70 | N68: 14.7
B69: 합계 | C69: 862 | D69: 100 | E69: 921 | F69: 100 | G69: 1053 | H69: 100 | I69: 1099 | J69: 100 | K69: 1318 | L69: 100 | M69: 219 | N69: 19.9
A70: 원자력안전위원회 | B70: 수도권 | C70: 71 | D70: 9.5 | E70: 106 | F70: 14.6 | G70: 185 | H70: 16.2 | I70: 196 | J70: 17.1 | K70: 181 | L70: 18.5 | M70: △15 | N70: △7.6
B71: 대전 | C71: 628 | D71: 84.5 | E71: 571 | F71: 78.3 | G71: 867 | H71: 76.1 | I71: 874 | J71: 76.5 | K71: 733 | L71: 75 | M71: △142 | N71: △16.2
B72: 지방* | C72: 45 | D72: 6 | E72: 52 | F72: 7.1 | G72: 87 | H72: 7.6 | I72: 73 | J72: 6.4 | K72: 63 | L72: 6.5 | M72: △10 | N72: △13.2
B73: 합계 | C73: 744 | D73: 100 | E73: 729 | F73: 100 | G73: 1139 | H73: 100 | I73: 1143 | J73: 100 | K73: 977 | L73: 100 | M73: △166 | N73: △14.5
A74: 중소벤처기업부 | B74: 수도권 | C74: 4955 | D74: 48.6 | E74: 6821 | F74: 48.6 | G74: 7963 | H74: 48.1 | I74: 8398 | J74: 48.7 | K74: 8651 | L74: 47.9 | M74: 253 | N74: 3
B75: 대전 | C75: 1111 | D75: 10.9 | E75: 1493 | F75: 10.6 | G75: 1040 | H75: 6.3 | I75: 1193 | J75: 6.9 | K75: 1140 | L75: 6.3 | M75: △53 | N75: △4.4
B76: 지방* | C76: 4125 | D76: 40.5 | E76: 5709 | F76: 40.7 | G76: 7556 | H76: 45.6 | I76: 7646 | J76: 44.4 | K76: 8262 | L76: 45.8 | M76: 616 | N76: 8.1
B77: 합계 | C77: 10192 | D77: 100 | E77: 14022 | F77: 100 | G77: 16559 | H77: 100 | I77: 17237 | J77: 100 | K77: 18054 | L77: 100 | M77: 817 | N77: 4.7
A78: 해양수산부 | B78: 수도권 | C78: 1655 | D78: 26.2 | E78: 1962 | F78: 29 | G78: 2142 | H78: 28.7 | I78: 2301 | J78: 28.2 | K78: 2835 | L78: 31.4 | M78: 534 | N78: 23.2
B79: 대전 | C79: 1008 | D79: 16 | E79: 915 | F79: 13.5 | G79: 907 | H79: 12.1 | I79: 1084 | J79: 13.3 | K79: 1404 | L79: 15.6 | M79: 320 | N79: 29.5
B80: 지방* | C80: 3642 | D80: 57.8 | E80: 3885 | F80: 57.4 | G80: 4424 | H80: 59.2 | I80: 4771 | J80: 58.5 | K80: 4781 | L80: 53 | M80: 10 | N80: 0.2
B81: 합계 | C81: 6305 | D81: 100 | E81: 6762 | F81: 100 | G81: 7473 | H81: 100 | I81: 8156 | J81: 100 | K81: 9020 | L81: 100 | M81: 864 | N81: 10.6
A82: 환경부 | B82: 수도권 | C82: 2175 | D82: 67.6 | E82: 2530 | F82: 69.9 | G82: 2743 | H82: 72.5 | I82: 2841 | J82: 70.4 | K82: 2930 | L82: 71.9 | M82: 89 | N82: 3.1
B83: 대전 | C83: 414 | D83: 12.9 | E83: 357 | F83: 9.9 | G83: 351 | H83: 9.3 | I83: 378 | J83: 9.4 | K83: 303 | L83: 7.4 | M83: △75 | N83: △19.9
B84: 지방* | C84: 627 | D84: 19.5 | E84: 730 | F84: 20.2 | G84: 690 | H84: 18.2 | I84: 817 | J84: 20.2 | K84: 844 | L84: 20.7 | M84: 28 | N84: 3.4
B85: 합계 | C85: 3217 | D85: 100 | E85: 3617 | F85: 100 | G85: 3783 | H85: 100 | I85: 4035 | J85: 100 | K85: 4076 | L85: 100 | M85: 42 | N85: 1
A86: 기타 부처** | B86: 수도권 | C86: 745 | D86: 52.1 | E86: 948 | F86: 55.6 | G86: 1305 | H86: 42.7 | I86: 2674 | J86: 44 | K86: 1468 | L86: 31.2 | M86: △1205 | N86: △45.1
B87: 대전 | C87: 189 | D87: 13.3 | E87: 178 | F87: 10.4 | G87: 242 | H87: 7.9 | I87: 949 | J87: 15.6 | K87: 796 | L87: 17 | M87: △153 | N87: △16.1
B88: 지방* | C88: 494 | D88: 34.6 | E88: 579 | F88: 34 | G88: 1507 | H88: 49.4 | I88: 2454 | J88: 40.4 | K88: 2434 | L88: 51.8 | M88: △20 | N88: △0.8
B89: 합계 | C89: 1429 | D89: 100 | E89: 1704 | F89: 100 | G89: 3054 | H89: 100 | I89: 6077 | J89: 100 | K89: 4699 | L89: 100 | M89: △1378 | N89: △22.7
A90: 합계 | B90: 수도권 | C90: 66726 | D90: 32.6 | E90: 72113 | F90: 31.7 | G90: 82092 | H90: 33.9 | I90: 86671 | J90: 33.4 | K90: 104025 | L90: 34.7 | M90: 17354 | N90: 20
B91: 대전 | C91: 58439 | D91: 28.6 | E91: 65132 | F91: 28.7 | G91: 68208 | H91: 28.2 | I91: 74698 | J91: 28.8 | K91: 83050 | L91: 27.7 | M91: 8352 | N91: 11.2
B92: 지방* | C92: 79432 | D92: 38.8 | E92: 89996 | F92: 39.6 | G92: 91825 | H92: 37.9 | I92: 98349 | J92: 37.9 | K92: 112490 | L92: 37.6 | M92: 14142 | N92: 14.4
B93: 합계 | C93: 204597 | D93: 100 | E93: 227242 | F93: 100 | G93: 242125 | H93: 100 | I93: 259717 | J93: 100 | K93: 299565 | L93: 100 | M93: 39848 | N93: 15.3
A95: * 지방은 지방 중 대전을 제외한 지역
A96: ** 기타 부처는 개인정보보호위원회, 경찰청, 고용노동부, 공정거래위원회, 관세청, 기획재정부, 대통령경호처, 법무부, 법제처, 새만금개발청, 소방청, 여성가족부, 외교부, 인사혁신처, 조달청, 질병관리청, 통일부, 특허청, 해양경찰청, 행정안전부, 행정중심복합도시건설청의 총 21개 부･처･청･위원회의 합계임
A97: *** 지역별 집행현황 분석은 지역 구분이 수도권, 지방으로 분류가 가능한 세부과제가 분석대상이며 2023년도에는 29조 9565억원이 대상금액(지역 구분이 해외 또는 기타인 경우는 제외)

Sheet 2-6
A1: 2-6. 부처별 국가과학기술표준분류 연구분야별 상세분류 집행 현황(2023년) | J1: 목차
V3: (단위 : 억원)
A4: 대분류 | B4: 중분류 | C4: 과학기술정보통신부 | D4: 교육부 | E4: 국방부 | F4: 국토교통부 | G4: 기상청 | H4: 농림축산식품부 | I4: 농촌진흥청 | J4: 다부처 | K4: 문화체육관광부 | L4: 방위사업청 | M4: 보건복지부 | N4: 산림청 | O4: 산업통상자원부 | P4: 식품의약품안전처 | Q4: 원자력안전위원회 | R4: 중소벤처기업부 | S4: 해양수산부 | T4: 환경부 | U4: 기타 부처 | V4: 합계
A8: 수학 | B8: 기하학 | C8: 76 | D8: 8 | E8: - | F8: - | G8: - | H8: - | I8: - | J8: - | K8: - | L8: - | M8: - | N8: - | O8: - | P8: - | Q8: - | R8: - | S8: - | T8: - | U8: - | V8: 84
B9: 대수학 | C9: 96 | D9: 27 | E9: - | F9: - | G9: - | H9: - | I9: - | J9: - | K9: - | L9: - | M9: - | N9: - | O9: - | P9: - | Q9: - | R9: 8 | S9: - | T9: - | U9: - | V9: 131
B10: 위상수학 | C10: 49 | D10: 11 | E10: - | F10: - | G10: - | H10: - | I10: - | J10: - | K10: - | L10: - | M10: - | N10: - | O10: - | P10: - | Q10: - | R10: - | S10: - | T10: - | U10: - | V10: 60
B11: 응용수학 | C11: 206 | D11: 38 | E11: - | F11: - | G11: - | H11: - | I11: - | J11: 1 | K11: - | L11: 4 | M11: - | N11: - | O11: - | P11: - | Q11: - | R11: 4 | S11: - | T11: - | U11: - | V11: 253
B12: 응용통계 | C12: 109 | D12: 20 | E12: - | F12: - | G12: - | H12: - | I12: - | J12: 1 | K12: - | L12: - | M12: 1 | N12: - | O12: 50 | P12: - | Q12: - | R12: 1 | S12: - | T12: - | U12: 3 | V12: 185
B13: 이산/정보수학 | C13: 120 | D13: 9 | E13: - | F13: - | G13: - | H13: - | I13: - | J13: - | K13: - | L13: - | M13: - | N13: - | O13: - | P13: 4 | Q13: - | R13: 5 | S13: - | T13: - | U13: - | V13: 137
B14: 통계 방법론·계산 | C14: 64 | D14: 17 | E14: - | F14: - | G14: - | H14: - | I14: 1 | J14: - | K14: - | L14: - | M14: 0 | N14: - | O14: - | P14: 2 | Q14: - | R14: 1 | S14: - | T14: 1 | U14: 1 | V14: 86
B15: 통계이론 | C15: 42 | D15: 7 | E15: - | F15: - | G15: - | H15: - | I15: - | J15: - | K15: - | L15: - | M15: - | N15: - | O15: - | P15: - | Q15: - | R15: - | S15: - | T15: - | U15: - | V15: 49
B16: 해석학 | C16: 138 | D16: 30 | E16: - | F16: - | G16: - | H16: - | I16: - | J16: - | K16: - | L16: - | M16: - | N16: - | O16: - | P16: - | Q16: - | R16: 0 | S16: - | T16: - | U16: - | V16: 168
B17: 확률/확률과정 | C17: 29 | D17: 2 | E17: - | F17: - | G17: - | H17: - | I17: - | J17: - | K17: - | L17: - | M17: - | N17: - | O17: - | P17: - | Q17: - | R17: - | S17: - | T17: - | U17: - | V17: 32
B18: 기타 수학 | C18: 121 | D18: 30 | E18: - | F18: - | G18: - | H18: - | I18: - | J18: - | K18: - | L18: - | M18: - | N18: - | O18: - | P18: - | Q18: - | R18: 1 | S18: - | T18: - | U18: - | V18: 152
B19: 합계 | C19: 1050 | D19: 200 | E19: 0 | F19: 0 | G19: 0 | H19: 0 | I19: 1 | J19: 2 | K19: 0 | L19: 4 | M19: 1 | N19: 0 | O19: 50 | P19: 6 | Q19: 0 | R19: 19 | S19: 0 | T19: 1 | U19: 4 | V19: 1337
A20: 물리학 | B20: 광학·양자전자학 | C20: 550 | D20: 37 | E20: - | F20: - | G20: - | H20: - | I20: - | J20: 18 | K20: - | L20: 200 | M20: 0 | N20: - | O20: 61 | P20: - | Q20: - | R20: 15 | S20: - | T20: - | U20: 3 | V20: 884
B21: 복합물리 | C21: 147 | D21: 13 | E21: - | F21: - | G21: - | H21: - | I21: - | J21: - | K21: - | L21: - | M21: 1 | N21: - | O21: 1 | P21: - | Q21: 0 | R21: 2 | S21: - | T21: - | U21: - | V21: 163
B22: 원자/분자물리 | C22: 603 | D22: 2 | E22: - | F22: - | G22: - | H22: - | I22: - | J22: - | K22: - | L22: 62 | M22: - | N22: - | O22: 3 | P22: - | Q22: - | R22: - | S22: - | T22: - | U22: - | V22: 670
B23: 유체·플라즈마물리 | C23: 854 | D23: 11 | E23: - | F23: - | G23: - | H23: - | I23: - | J23: 2 | K23: - | L23: 12 | M23: 0 | N23: - | O23: 5 | P23: - | Q23: - | R23: 3 | S23: - | T23: - | U23: - | V23: 887
B24: 응집물질물리 | C24: 1242 | D24: 146 | E24: - | F24: - | G24: - | H24: - | I24: - | J24: 2 | K24: - | L24: 2 | M24: - | N24: - | O24: 102 | P24: - | Q24: - | R24: 4 | S24: - | T24: - | U24: - | V24: 1498
B25: 입자/장물리 | C25: 1897 | D25: 62 | E25: - | F25: - | G25: - | H25: - | I25: - | J25: - | K25: - | L25: 7 | M25: - | N25: - | O25: - | P25: - | Q25: - | R25: 1 | S25: - | T25: - | U25: - | V25: 1967
B26: 천체물리 | C26: 82 | D26: 22 | E26: - | F26: - | G26: - | H26: - | I26: - | J26: - | K26: - | L26: - | M26: - | N26: - | O26: - | P26: - | Q26: - | R26: - | S26: - | T26: - | U26: - | V26: 103
B27: 통계물리 | C27: 61 | D27: 10 | E27: - | F27: - | G27: - | H27: - | I27: - | J27: - | K27: - | L27: - | M27: - | N27: - | O27: - | P27: - | Q27: - | R27: - | S27: - | T27: - | U27: - | V27: 71
B28: 핵물리 | C28: 191 | D28: 11 | E28: - | F28: - | G28: - | H28: - | I28: - | J28: - | K28: - | L28: - | M28: - | N28: - | O28: - | P28: - | Q28: - | R28: - | S28: - | T28: - | U28: - | V28: 202
B29: 기타 물리학 | C29: 138 | D29: 42 | E29: - | F29: - | G29: - | H29: - | I29: - | J29: - | K29: - | L29: - | M29: 2 | N29: - | O29: - | P29: - | Q29: 1 | R29: - | S29: - | T29: - | U29: - | V29: 183
B30: 합계 | C30: 5765 | D30: 357 | E30: 0 | F30: 0 | G30: 0 | H30: 0 | I30: 0 | J30: 21 | K30: 0 | L30: 283 | M30: 3 | N30: 0 | O30: 171 | P30: 0 | Q30: 1 | R30: 25 | S30: 0 | T30: 0 | U30: 3 | V30: 6628
A31: 화학 | B31: 고분자화학 | C31: 200 | D31: 52 | E31: - | F31: - | G31: - | H31: 3 | I31: 1 | J31: 11 | K31: - | L31: 1 | M31: 3 | N31: 2 | O31: 661 | P31: - | Q31: - | R31: 111 | S31: 3 | T31: 6 | U31: - | V31: 1054
B32: 광화학 | C32: 26 | D32: 7 | E32: - | F32: 0 | G32: - | H32: 3 | I32: 0 | J32: - | K32: - | L32: - | M32: 1 | N32: - | O32: 23 | P32: - | Q32: - | R32: 2 | S32: - | T32: - | U32: - | V32: 63
B33: 무기화학 | C33: 219 | D33: 40 | E33: - | F33: - | G33: - | H33: - | I33: - | J33: 5 | K33: - | L33: - | M33: 1 | N33: - | O33: 79 | P33: - | Q33: - | R33: 17 | S33: - | T33: 5 | U33: - | V33: 365
B34: 물리화학 | C34: 304 | D34: 46 | E34: - | F34: - | G34: - | H34: 2 | I34: - | J34: 5 | K34: - | L34: - | M34: - | N34: - | O34: 7 | P34: - | Q34: - | R34: 1 | S34: - | T34: - | U34: - | V34: 366
B35: 분석화학 | C35: 145 | D35: 67 | E35: - | F35: - | G35: 2 | H35: 1 | I35: 0 | J35: 3 | K35: - | L35: 11 | M35: 1 | N35: - | O35: 45 | P35: 6 | Q35: 1 | R35: 9 | S35: 0 | T35: 9 | U35: 32 | V35: 332
B36: 생화학 | C36: 69 | D36: 9 | E36: - | F36: - | G36: - | H36: - | I36: 1 | J36: 1 | K36: - | L36: - | M36: 1 | N36: - | O36: 7 | P36: - | Q36: - | R36: 3 | S36: 2 | T36: - | U36: 0 | V36: 94
B37: 유기화학 | C37: 419 | D37: 38 | E37: - | F37: - | G37: - | H37: 2 | I37: - | J37: 24 | K37: - | L37: - | M37: 7 | N37: 2 | O37: 87 | P37: - | Q37: - | R37: 37 | S37: 8 | T37: 3 | U37: 4 | V37: 632
B38: 융합화학 | C38: 96 | D38: 29 | E38: - | F38: - | G38: - | H38: - | I38: - | J38: 3 | K38: - | L38: - | M38: 1 | N38: - | O38: 29 | P38: - | Q38: 1 | R38: 2 | S38: - | T38: - | U38: 2 | V38: 162
B39: 재료화학 | C39: 420 | D39: 64 | E39: - | F39: - | G39: - | H39: 0 | I39: - | J39: 16 | K39: - | L39: 3 | M39: 7 | N39: - | O39: 468 | P39: - | Q39: - | R39: 32 | S39: 1 | T39: 3 | U39: - | V39: 1014
B40: 전기화학 | C40: 223 | D40: 21 | E40: - | F40: - | G40: - | H40: 1 | I40: 2 | J40: 25 | K40: - | L40: - | M40: 3 | N40: 1 | O40: 173 | P40: - | Q40: - | R40: 12 | S40: - | T40: 23 | U40: - | V40: 484
B41: 기타 화학 | C41: 755 | D41: 28 | E41: - | F41: - | G41: - | H41: - | I41: - | J41: 2 | K41: - | L41: - | M41: - | N41: - | O41: 47 | P41: 2 | Q41: - | R41: 18 | S41: - | T41: 1 | U41: 7 | V41: 861
B42: 합계 | C42: 2877 | D42: 400 | E42: 0 | F42: 0 | G42: 2 | H42: 13 | I42: 5 | J42: 94 | K42: 0 | L42: 16 | M42: 24 | N42: 6 | O42: 1627 | P42: 8 | Q42: 2 | R42: 244 | S42: 15 | T42: 50 | U42: 45 | V42: 5428
A43: 지구과학(지구/대기/해양/천문) | B43: 극지과학 | C43: 78 | D43: 3 | E43: - | F43: - | G43: - | H43: - | I43: - | J43: - | K43: - | L43: 4 | M43: - | N43: - | O43: - | P43: - | Q43: - | R43: - | S43: 1497 | T43: - | U43: - | V43: 1582
B44: 기상과학 | C44: 13 | D44: 5 | E44: - | F44: - | G44: 736 | H44: - | I44: - | J44: 1 | K44: - | L44: - | M44: - | N44: - | O44: 1 | P44: - | Q44: - | R44: 4 | S44: 8 | T44: - | U44: 1 | V44: 768
B45: 기후과학 | C45: 185 | D45: 20 | E45: - | F45: - | G45: 160 | H45: - | I45: 8 | J45: - | K45: - | L45: - | M45: - | N45: 0 | O45: 16 | P45: - | Q45: - | R45: - | S45: 85 | T45: 88 | U45: 2 | V45: 563
B46: 대기과학 | C46: 103 | D46: 33 | E46: - | F46: - | G46: 79 | H46: - | I46: - | J46: 1 | K46: - | L46: 4 | M46: - | N46: 1 | O46: 13 | P46: - | Q46: - | R46: 1 | S46: 13 | T46: 65 | U46: - | V46: 313
B47: 우주과학 | C47: 603 | D47: 6 | E47: - | F47: - | G47: - | H47: - | I47: - | J47: 4 | K47: - | L47: - | M47: 0 | N47: - | O47: 10 | P47: - | Q47: - | R47: - | S47: - | T47: - | U47: - | V47: 623
B48: 자연재해 분석/예측 | C48: 98 | D48: 16 | E48: - | F48: 1 | G48: 143 | H48: 1 | I48: - | J48: 0 | K48: - | L48: - | M48: - | N48: 10 | O48: 2 | P48: - | Q48: 6 | R48: 0 | S48: 66 | T48: 16 | U48: 120 | V48: 479
B49: 지구물리학 | C49: 115 | D49: 21 | E49: - | F49: - | G49: 32 | H49: - | I49: - | J49: - | K49: - | L49: - | M49: - | N49: - | O49: 87 | P49: - | Q49: 4 | R49: 0 | S49: 2 | T49: - | U49: 7 | V49: 268
B50: 지구화학 | C50: 39 | D50: 6 | E50: - | F50: - | G50: - | H50: - | I50: - | J50: - | K50: - | L50: - | M50: - | N50: - | O50: - | P50: - | Q50: - | R50: - | S50: - | T50: 2 | U50: 1 | V50: 48
B51: 지질과학 | C51: 627 | D51: 27 | E51: - | F51: - | G51: - | H51: - | I51: - | J51: - | K51: - | L51: - | M51: - | N51: 0 | O51: 5 | P51: - | Q51: 1 | R51: 0 | S51: 25 | T51: 4 | U51: 25 | V51: 715
B52: 천문우주관측기술 | C52: 363 | D52: 1 | E52: - | F52: - | G52: - | H52: - | I52: - | J52: 13 | K52: - | L52: - | M52: - | N52: - | O52: - | P52: - | Q52: - | R52: - | S52: - | T52: - | U52: - | V52: 377
B53: 천문학 | C53: 327 | D53: 28 | E53: - | F53: - | G53: - | H53: - | I53: - | J53: - | K53: - | L53: - | M53: - | N53: - | O53: - | P53: - | Q53: - | R53: - | S53: - | T53: - | U53: - | V53: 355
B54: 해양과학 | C54: 153 | D54: 33 | E54: - | F54: - | G54: 5 | H54: - | I54: - | J54: - | K54: - | L54: - | M54: - | N54: - | O54: - | P54: - | Q54: - | R54: 2 | S54: 547 | T54: - | U54: - | V54: 740
B55: 해양생명 | C55: 25 | D55: 5 | E55: - | F55: - | G55: - | H55: - | I55: - | J55: - | K55: - | L55: - | M55: - | N55: - | O55: - | P55: - | Q55: - | R55: 0 | S55: 222 | T55: - | U55: - | V55: 252
B56: 해양자원 | C56: 6 | D56: 0 | E56: - | F56: - | G56: 2 | H56: - | I56: - | J56: - | K56: - | L56: 56 | M56: - | N56: - | O56: 90 | P56: - | Q56: - | R56: 1 | S56: 250 | T56: 5 | U56: 9 | V56: 420
B57: 기타 지구과학 | C57: 16 | D57: 22 | E57: - | F57: - | G57: 11 | H57: - | I57: - | J57: - | K57: - | L57: - | M57: - | N57: - | O57: - | P57: - | Q57: 23 | R57: - | S57: 1 | T57: - | U57: - | V57: 73
B58: 합계 | C58: 2751 | D58: 226 | E58: 0 | F58: 1 | G58: 1169 | H58: 1 | I58: 8 | J58: 19 | K58: 0 | L58: 64 | M58: 0 | N58: 11 | O58: 224 | P58: 0 | Q58: 33 | R58: 9 | S58: 2715 | T58: 181 | U58: 165 | V58: 7576
A59: 생명과학 | B59: 면역학/생리학 | C59: 447 | D59: 105 | E59: - | F59: - | G59: - | H59: 6 | I59: 1 | J59: 36 | K59: - | L59: - | M59: 50 | N59: - | O59: 14 | P59: 13 | Q59: - | R59: 20 | S59: 1 | T59: 1 | U59: 10 | V59: 704
B60: 발생/신경생물학 | C60: 735 | D60: 97 | E60: - | F60: - | G60: - | H60: 2 | I60: 3 | J60: 18 | K60: - | L60: - | M60: 28 | N60: - | O60: 16 | P60: 10 | Q60: - | R60: 10 | S60: 0 | T60: 1 | U60: 17 | V60: 937
B61: 분류/생태/환경생물학 | C61: 225 | D61: 110 | E61: - | F61: - | G61: - | H61: 2 | I61: 10 | J61: 1 | K61: - | L61: - | M61: 3 | N61: 30 | O61: - | P61: 0 | Q61: - | R61: 1 | S61: 10 | T61: 259 | U61: 6 | V61: 656
B62: 분자세포생물학 | C62: 1274 | D62: 301 | E62: - | F62: - | G62: - | H62: 4 | I62: 0 | J62: 38 | K62: - | L62: - | M62: 30 | N62: - | O62: - | P62: 1 | Q62: - | R62: 28 | S62: 5 | T62: 1 | U62: 16 | V62: 1699
B63: 산업바이오 | C63: 255 | D63: 35 | E63: - | F63: - | G63: - | H63: 55 | I63: 26 | J63: 20 | K63: - | L63: 3 | M63: 20 | N63: 16 | O63: 482 | P63: 10 | Q63: - | R63: 315 | S63: 136 | T63: 11 | U63: 9 | V63: 1395
B64: 생물공학 | C64: 456 | D64: 60 | E64: - | F64: - | G64: - | H64: 19 | I64: 16 | J64: 6 | K64: - | L64: 9 | M64: 28 | N64: 5 | O64: 71 | P64: 4 | Q64: - | R64: 45 | S64: 15 | T64: 11 | U64: 1 | V64: 744
B65: 생물위해성 | C65: 78 | D65: 7 | E65: - | F65: - | G65: - | H65: 1 | I65: 0 | J65: - | K65: - | L65: - | M65: 2 | N65: - | O65: 25 | P65: 2 | Q65: - | R65: 0 | S65: 16 | T65: 23 | U65: 5 | V65: 159
B66: 생화학/구조생물학 | C66: 444 | D66: 62 | E66: - | F66: - | G66: - | H66: 1 | I66: 1 | J66: 6 | K66: - | L66: - | M66: 11 | N66: - | O66: - | P66: 1 | Q66: - | R66: 10 | S66: - | T66: - | U66: 5 | V66: 540
B67: 유전학·유전체학 | C67: 698 | D67: 92 | E67: - | F67: - | G67: - | H67: 11 | I67: 22 | J67: 52 | K67: - | L67: - | M67: 34 | N67: - | O67: 11 | P67: 18 | Q67: - | R67: 35 | S67: 6 | T67: 26 | U67: 24 | V67: 1027
B68: 융합바이오 | C68: 1171 | D68: 148 | E68: - | F68: - | G68: - | H68: 30 | I68: 16 | J68: 88 | K68: - | L68: 9 | M68: 50 | N68: 2 | O68: 219 | P68: 3 | Q68: - | R68: 97 | S68: 13 | T68: 10 | U68: 18 | V68: 1877
B69: 기타 생명과학 | C69: 1108 | D69: 51 | E69: - | F69: - | G69: - | H69: 8 | I69: 10 | J69: 35 | K69: - | L69: - | M69: 13 | N69: - | O69: 137 | P69: 2 | Q69: - | R69: 11 | S69: - | T69: 5 | U69: 2 | V69: 1380
B70: 합계 | C70: 6890 | D70: 1068 | E70: 0 | F70: 0 | G70: 0 | H70: 139 | I70: 105 | J70: 299 | K70: 0 | L70: 21 | M70: 272 | N70: 53 | O70: 973 | P70: 62 | Q70: 0 | R70: 572 | S70: 203 | T70: 348 | U70: 114 | V70: 11120
A71: 농림수산식품 | B71: 농림수산식품경영/정보 등 | C71: 7 | D71: 1 | E71: - | F71: - | G71: - | H71: 13 | I71: 123 | J71: 8 | K71: - | L71: - | M71: - | N71: 6 | O71: 5 | P71: - | Q71: - | R71: 5 | S71: 11 | T71: - | U71: - | V71: 179
B72: 농생물학 | C72: 96 | D72: 54 | E72: - | F72: - | G72: - | H72: 139 | I72: 721 | J72: 4 | K72: - | L72: - | M72: - | N72: 5 | O72: 1 | P72: 1 | Q72: - | R72: 15 | S72: - | T72: 6 | U72: 12 | V72: 1054
B73: 농수축산물 품질·안전 관리 | C73: 32 | D73: 3 | E73: - | F73: - | G73: - | H73: 30 | I73: 142 | J73: 1 | K73: - | L73: - | M73: - | N73: 1 | O73: 2 | P73: 73 | Q73: - | R73: 6 | S73: 59 | T73: - | U73: - | V73: 348
B74: 농업·식품 기계·설비 | C74: 59 | D74: 10 | E74: - | F74: - | G74: - | H74: 350 | I74: 317 | J74: 129 | K74: - | L74: - | M74: - | N74: 4 | O74: 114 | P74: 0 | Q74: - | R74: 64 | S74: - | T74: - | U74: - | V74: 1047
B75: 농업인프라 공학 | C75: 7 | D75: 6 | E75: - | F75: - | G75: - | H75: 48 | I75: 252 | J75: 15 | K75: - | L75: - | M75: - | N75: - | O75: 2 | P75: - | Q75: - | R75: 9 | S75: - | T75: - | U75: - | V75: 339
B76: 농업환경생태 | C76: 22 | D76: 17 | E76: - | F76: 0 | G76: - | H76: 35 | I76: 594 | J76: 22 | K76: - | L76: - | M76: - | N76: 2 | O76: 19 | P76: - | Q76: - | R76: 14 | S76: - | T76: 1 | U76: 1 | V76: 729
B77: 농화학 | C77: 56 | D77: 12 | E77: - | F77: - | G77: - | H77: 56 | I77: 184 | J77: 1 | K77: - | L77: - | M77: - | N77: 4 | O77: 11 | P77: 20 | Q77: - | R77: 9 | S77: - | T77: 6 | U77: - | V77: 359
B78: 동물자원과학 | C78: 172 | D78: 57 | E78: - | F78: - | G78: - | H78: 91 | I78: 890 | J78: 51 | K78: 2 | L78: - | M78: 4 | N78: - | O78: 7 | P78: 2 | Q78: - | R78: 34 | S78: - | T78: - | U78: - | V78: 1310
B79: 산림자원학 | C79: 18 | D79: 11 | E79: - | F79: - | G79: - | H79: 1 | I79: 7 | J79: - | K79: - | L79: - | M79: - | N79: 1193 | O79: - | P79: - | Q79: - | R79: 1 | S79: 1 | T79: 2 | U79: 1 | V79: 1235
B80: 수산양식 | C80: 63 | D80: 33 | E80: - | F80: - | G80: - | H80: - | I80: 2 | J80: - | K80: - | L80: - | M80: - | N80: 1 | O80: 10 | P80: - | Q80: - | R80: 20 | S80: 497 | T80: - | U80: - | V80: 626
B81: 수산자원/어장환경 | C81: 10 | D81: 4 | E81: - | F81: - | G81: - | H81: - | I81: 1 | J81: - | K81: - | L81: - | M81: - | N81: - | O81: - | P81: 17 | Q81: - | R81: 3 | S81: 235 | T81: - | U81: - | V81: 269
B82: 수의과학 | C82: 239 | D82: 55 | E82: - | F82: - | G82: - | H82: 589 | I82: 36 | J82: 8 | K82: - | L82: - | M82: 2 | N82: 1 | O82: 7 | P82: 6 | Q82: - | R82: 36 | S82: - | T82: 57 | U82: 3 | V82: 1036
B83: 식량작물과학 | C83: 138 | D83: 53 | E83: - | F83: - | G83: - | H83: 40 | I83: 1444 | J83: 7 | K83: - | L83: - | M83: - | N83: 1 | O83: 1 | P83: - | Q83: - | R83: 9 | S83: - | T83: - | U83: - | V83: 1694
B84: 식품과학 | C84: 351 | D84: 69 | E84: - | F84: - | G84: - | H84: 213 | I84: 171 | J84: - | K84: - | L84: - | M84: 1 | N84: 6 | O84: 34 | P84: 135 | Q84: - | R84: 87 | S84: 28 | T84: - | U84: 0 | V84: 1094
B85: 식품영양과학 | C85: 206 | D85: 44 | E85: - | F85: - | G85: - | H85: 70 | I85: 133 | J85: - | K85: - | L85: - | M85: - | N85: 13 | O85: 21 | P85: 24 | Q85: - | R85: 149 | S85: 29 | T85: - | U85: 2 | V85: 691
B86: 식품조리/외식/식생활개선 | C86: 27 | D86: 1 | E86: - | F86: - | G86: - | H86: 13 | I86: 16 | J86: - | K86: - | L86: - | M86: - | N86: 0 | O86: - | P86: 1 | Q86: - | R86: 9 | S86: - | T86: - | U86: - | V86: 66
B87: 어업생산/이용가공 | C87: 5 | D87: 2 | E87: - | F87: - | G87: - | H87: - | I87: - | J87: - | K87: - | L87: - | M87: - | N87: - | O87: 0 | P87: 1 | Q87: - | R87: 5 | S87: 196 | T87: - | U87: - | V87: 210
B88: 원예특용작물과학 | C88: 87 | D88: 38 | E88: - | F88: - | G88: - | H88: 192 | I88: 1857 | J88: 91 | K88: - | L88: - | M88: 1 | N88: 15 | O88: 3 | P88: 0 | Q88: - | R88: 20 | S88: - | T88: - | U88: - | V88: 2304
B89: 임산공학 | C89: 23 | D89: 15 | E89: - | F89: - | G89: - | H89: 1 | I89: 4 | J89: 7 | K89: - | L89: - | M89: - | N89: 78 | O89: - | P89: - | Q89: - | R89: 22 | S89: 6 | T89: 4 | U89: 5 | V89: 165
B90: 조경학 | C90: 2 | D90: 3 | E90: - | F90: - | G90: - | H90: 1 | I90: 10 | J90: - | K90: - | L90: - | M90: - | N90: 27 | O90: - | P90: - | Q90: - | R90: 3 | S90: - | T90: - | U90: - | V90: 46
B91: 기타 농림수산식품 | C91: 292 | D91: 20 | E91: - | F91: - | G91: - | H91: 223 | I91: 699 | J91: 12 | K91: - | L91: - | M91: - | N91: 36 | O91: 44 | P91: 5 | Q91: - | R91: 15 | S91: 1000 | T91: - | U91: - | V91: 2345
B92: 합계 | C92: 1914 | D92: 508 | E92: 0 | F92: 0 | G92: 0 | H92: 2104 | I92: 7601 | J92: 355 | K92: 2 | L92: 0 | M92: 8 | N92: 1393 | O92: 281 | P92: 283 | Q92: 0 | R92: 533 | S92: 2061 | T92: 76 | U92: 24 | V92: 17146
A93: 보건의료 | B93: 간호과학 | C93: 171 | D93: 48 | E93: - | F93: - | G93: - | H93: - | I93: - | J93: 9 | K93: - | L93: - | M93: 11 | N93: 2 | O93: 13 | P93: - | Q93: - | R93: 3 | S93: - | T93: - | U93: - | V93: 257
B94: 독성·안전성 평가·관리 | C94: 414 | D94: 14 | E94: - | F94: - | G94: - | H94: 2 | I94: 0 | J94: 16 | K94: - | L94: - | M94: 42 | N94: - | O94: 73 | P94: 162 | Q94: - | R94: 8 | S94: - | T94: 60 | U94: 7 | V94: 797
B95: 보건학 | C95: 166 | D95: 56 | E95: - | F95: 1 | G95: - | H95: 0 | I95: 2 | J95: 9 | K95: - | L95: 8 | M95: 172 | N95: 3 | O95: 32 | P95: 22 | Q95: - | R95: 20 | S95: - | T95: 9 | U95: 114 | V95: 614
B96: 식품안전관리 | C96: 11 | D96: 2 | E96: - | F96: - | G96: - | H96: 4 | I96: - | J96: 2 | K96: - | L96: - | M96: - | N96: - | O96: 3 | P96: 135 | Q96: - | R96: 7 | S96: - | T96: - | U96: 5 | V96: 169
B97: 신약·의약품개발 | C97: 2443 | D97: 260 | E97: - | F97: - | G97: - | H97: 20 | I97: 1 | J97: 1062 | K97: - | L97: 70 | M97: 1111 | N97: 5 | O97: 925 | P97: 110 | Q97: - | R97: 390 | S97: 11 | T97: 1 | U97: 322 | V97: 6732
B98: 영양관리 | C98: 14 | D98: 6 | E98: - | F98: - | G98: - | H98: 1 | I98: 2 | J98: - | K98: - | L98: - | M98: 2 | N98: - | O98: - | P98: 9 | Q98: - | R98: 10 | S98: - | T98: - | U98: - | V98: 44
B99: 의료기기 | C99: 1211 | D99: 110 | E99: - | F99: - | G99: - | H99: 4 | I99: - | J99: 1261 | K99: 14 | L99: 12 | M99: 544 | N99: 2 | O99: 980 | P99: 17 | Q99: - | R99: 795 | S99: 4 | T99: - | U99: 18 | V99: 4973
B100: 의료기기·S/W 안전관리 | C100: 90 | D100: 1 | E100: - | F100: - | G100: - | H100: - | I100: - | J100: 50 | K100: - | L100: - | M100: 51 | N100: - | O100: 119 | P100: 127 | Q100: - | R100: 18 | S100: - | T100: - | U100: 0 | V100: 456
B101: 의료정보/ 시스템 | C101: 237 | D101: 27 | E101: - | F101: - | G101: - | H101: 7 | I101: - | J101: 69 | K101: - | L101: - | M101: 390 | N101: - | O101: 445 | P101: 4 | Q101: - | R101: 112 | S101: - | T101: - | U101: 49 | V101: 1342
B102: 의생명과학 | C102: 2485 | D102: 462 | E102: - | F102: - | G102: - | H102: 6 | I102: - | J102: 72 | K102: - | L102: 6 | M102: 320 | N102: - | O102: 20 | P102: 19 | Q102: - | R102: 43 | S102: 3 | T102: 0 | U102: 137 | V102: 3572
B103: 의약품안전관리 | C103: 18 | D103: 0 | E103: - | F103: - | G103: - | H103: 2 | I103: - | J103: 21 | K103: - | L103: - | M103: 16 | N103: - | O103: 23 | P103: 166 | Q103: - | R103: 14 | S103: - | T103: - | U103: 0 | V103: 260
B104: 임상의학 | C104: 1523 | D104: 249 | E104: - | F104: - | G104: - | H104: 3 | I104: 0 | J104: 222 | K104: - | L104: - | M104: 1194 | N104: 9 | O104: 55 | P104: 45 | Q104: - | R104: 40 | S104: 2 | T104: 10 | U104: 205 | V104: 3557
B105: 치의과학 | C105: 273 | D105: 46 | E105: - | F105: - | G105: - | H105: - | I105: 1 | J105: 64 | K105: - | L105: - | M105: 36 | N105: - | O105: 30 | P105: 3 | Q105: - | R105: 48 | S105: 2 | T105: - | U105: - | V105: 503
B106: 한의과학 | C106: 758 | D106: 41 | E106: - | F106: - | G106: - | H106: - | I106: - | J106: - | K106: - | L106: - | M106: 188 | N106: 2 | O106: 7 | P106: 14 | Q106: - | R106: 4 | S106: - | T106: - | U106: - | V106: 1013
B107: 기타 보건의료 | C107: 667 | D107: 110 | E107: 5 | F107: 1 | G107: - | H107: 1 | I107: - | J107: 111 | K107: - | L107: - | M107: 1469 | N107: 10 | O107: 64 | P107: 46 | Q107: - | R107: 82 | S107: - | T107: - | U107: 1058 | V107: 3624
B108: 합계 | C108: 10479 | D108: 1433 | E108: 5 | F108: 2 | G108: 0 | H108: 50 | I108: 7 | J108: 2968 | K108: 14 | L108: 96 | M108: 5547 | N108: 32 | O108: 2788 | P108: 880 | Q108: 0 | R108: 1595 | S108: 22 | T108: 81 | U108: 1916 | V108: 27912
A109: 기계 | B109: 국방기계 | C109: 43 | D109: 4 | E109: 9 | F109: - | G109: - | H109: - | I109: - | J109: 236 | K109: - | L109: 12316 | M109: - | N109: - | O109: 29 | P109: - | Q109: - | R109: 14 | S109: - | T109: 1 | U109: 0 | V109: 12652
B110: 나노/마이크로기계시스템 | C110: 490 | D110: 65 | E110: - | F110: - | G110: 1 | H110: - | I110: - | J110: 14 | K110: - | L110: 15 | M110: 4 | N110: - | O110: 192 | P110: - | Q110: - | R110: 49 | S110: - | T110: 3 | U110: 5 | V110: 837
B111: 로봇/자동화기계 | C111: 792 | D111: 106 | E111: - | F111: 29 | G111: - | H111: 45 | I111: 2 | J111: 196 | K111: 8 | L111: 292 | M111: 19 | N111: 5 | O111: 1598 | P111: - | Q111: - | R111: 663 | S111: 42 | T111: 12 | U111: 17 | V111: 3827
B112: 산업/일반기계 | C112: 191 | D112: 7 | E112: - | F112: 16 | G112: - | H112: 14 | I112: 5 | J112: 3 | K112: - | L112: - | M112: - | N112: 2 | O112: 526 | P112: - | Q112: - | R112: 367 | S112: 47 | T112: - | U112: 4 | V112: 1182
B113: 생산기반기술 | C113: 455 | D113: 45 | E113: - | F113: 15 | G113: - | H113: 6 | I113: 5 | J113: 27 | K113: - | L113: 2 | M113: - | N113: 1 | O113: 580 | P113: - | Q113: - | R113: 292 | S113: - | T113: 5 | U113: - | V113: 1432
B114: 에너지/환경기계시스템 | C114: 432 | D114: 56 | E114: - | F114: 67 | G114: - | H114: 10 | I114: 9 | J114: 32 | K114: - | L114: 63 | M114: 2 | N114: 4 | O114: 1238 | P114: - | Q114: - | R114: 328 | S114: 1 | T114: 114 | U114: 13 | V114: 2368
B115: 요소부품 | C115: 43 | D115: 8 | E115: - | F115: 5 | G115: - | H115: 0 | I115: 0 | J115: 10 | K115: - | L115: 57 | M115: 1 | N115: - | O115: 284 | P115: - | Q115: - | R115: 329 | S115: - | T115: - | U115: 2 | V115: 737
B116: 우주시스템 | C116: 3321 | D116: 6 | E116: - | F116: 10 | G116: 29 | H116: - | I116: - | J116: 846 | K116: - | L116: 513 | M116: - | N116: - | O116: 6 | P116: - | Q116: - | R116: 18 | S116: 130 | T116: - | U116: 53 | V116: 4932
B117: 자동차/철도차량 | C117: 379 | D117: 119 | E117: 6 | F117: 584 | G117: - | H117: 4 | I117: 0 | J117: 27 | K117: - | L117: 223 | M117: 3 | N117: - | O117: 4371 | P117: - | Q117: - | R117: 631 | S117: 73 | T117: 14 | U117: 43 | V117: 6477
B118: 재난안전기계 | C118: 74 | D118: 3 | E118: 21 | F118: 13 | G118: 1 | H118: - | I118: - | J118: 128 | K118: - | L118: 26 | M118: 3 | N118: - | O118: 75 | P118: - | Q118: 0 | R118: 49 | S118: 2 | T118: 3 | U118: 184 | V118: 584
B119: 정밀생산기계 | C119: 219 | D119: 32 | E119: - | F119: 2 | G119: - | H119: 1 | I119: - | J119: 4 | K119: - | L119: - | M119: - | N119: 2 | O119: 633 | P119: - | Q119: - | R119: 263 | S119: - | T119: 0 | U119: 0 | V119: 1156
B120: 조선/해양시스템 | C120: 97 | D120: 24 | E120: - | F120: - | G120: - | H120: - | I120: - | J120: 17 | K120: - | L120: 127 | M120: - | N120: - | O120: 1189 | P120: - | Q120: - | R120: 325 | S120: 1125 | T120: 13 | U120: 95 | V120: 3013
B121: 측정표준/시험평가기술 | C121: 917 | D121: 16 | E121: - | F121: 8 | G121: - | H121: 0 | I121: 13 | J121: 26 | K121: 18 | L121: 31 | M121: 0 | N121: - | O121: 258 | P121: 24 | Q121: 3 | R121: 64 | S121: 12 | T121: - | U121: 33 | V121: 1421
B122: 항공시스템 | C122: 388 | D122: 89 | E122: 17 | F122: 114 | G122: - | H122: - | I122: 0 | J122: 170 | K122: 6 | L122: 1644 | M122: - | N122: - | O122: 718 | P122: - | Q122: - | R122: 107 | S122: - | T122: - | U122: - | V122: 3253
B123: 기타 기계 | C123: 1404 | D123: 24 | E123: - | F123: - | G123: - | H123: 1 | I123: 2 | J123: 4 | K123: - | L123: 161 | M123: 0 | N123: - | O123: 522 | P123: 10 | Q123: - | R123: 55 | S123: - | T123: 22 | U123: 187 | V123: 2392
B124: 합계 | C124: 9243 | D124: 605 | E124: 52 | F124: 863 | G124: 31 | H124: 80 | I124: 38 | J124: 1740 | K124: 32 | L124: 15470 | M124: 32 | N124: 13 | O124: 12218 | P124: 34 | Q124: 3 | R124: 3554 | S124: 1432 | T124: 189 | U124: 635 | V124: 46264
A125: 재료 | B125: 고분자재료 | C125: 749 | D125: 115 | E125: - | F125: 15 | G125: 1 | H125: 10 | I125: 1 | J125: 55 | K125: - | L125: 33 | M125: 8 | N125: 3 | O125: 1067 | P125: - | Q125: - | R125: 271 | S125: 2 | T125: 13 | U125: - | V125: 2340
B126: 국방소재 | C126: 42 | D126: 4 | E126: 0 | F126: 0 | G126: - | H126: - | I126: - | J126: 95 | K126: - | L126: 512 | M126: - | N126: - | O126: 50 | P126: - | Q126: - | R126: 8 | S126: - | T126: - | U126: 1 | V126: 713
B127: 금속재료 | C127: 1083 | D127: 98 | E127: 25 | F127: 2 | G127: - | H127: - | I127: - | J127: 63 | K127: - | L127: 717 | M127: - | N127: - | O127: 1394 | P127: 2 | Q127: 0 | R127: 239 | S127: 2 | T127: 2 | U127: 9 | V127: 3636
B128: 분석/물성 평가기술 | C128: 250 | D128: 26 | E128: - | F128: 3 | G128: - | H128: - | I128: - | J128: 4 | K128: - | L128: 14 | M128: - | N128: - | O128: 123 | P128: 4 | Q128: - | R128: 3 | S128: 6 | T128: - | U128: 2 | V128: 435
B129: 세라믹재료 | C129: 619 | D129: 97 | E129: - | F129: 11 | G129: - | H129: 0 | I129: 0 | J129: 18 | K129: - | L129: 30 | M129: - | N129: - | O129: 813 | P129: 0 | Q129: - | R129: 163 | S129: - | T129: 0 | U129: 11 | V129: 1763
B130: 소성가공/분말 | C130: 84 | D130: 3 | E130: 42 | F130: 1 | G130: - | H130: - | I130: - | J130: 79 | K130: - | L130: 24 | M130: - | N130: - | O130: 632 | P130: - | Q130: - | R130: 105 | S130: - | T130: - | U130: - | V130: 971
B131: 열/표면처리 | C131: 120 | D131: 15 | E131: - | F131: 1 | G131: - | H131: 1 | I131: - | J131: 19 | K131: - | L131: 8 | M131: - | N131: - | O131: 364 | P131: - | Q131: - | R131: 121 | S131: - | T131: - | U131: 3 | V131: 650
B132: 주조/용접/접합 | C132: 79 | D132: 1 | E132: - | F132: 1 | G132: - | H132: - | I132: - | J132: 5 | K132: - | L132: 7 | M132: - | N132: - | O132: 512 | P132: - | Q132: - | R132: 91 | S132: - | T132: - | U132: - | V132: 696
B133: 기타 재료 | C133: 645 | D133: 42 | E133: - | F133: - | G133: - | H133: 1 | I133: 0 | J133: 5 | K133: - | L133: - | M133: 2 | N133: 1 | O133: 35 | P133: - | Q133: - | R133: 19 | S133: 0 | T133: - | U133: - | V133: 751
B134: 합계 | C134: 3672 | D134: 401 | E134: 68 | F134: 34 | G134: 1 | H134: 12 | I134: 1 | J134: 342 | K134: 0 | L134: 1345 | M134: 10 | N134: 3 | O134: 4991 | P134: 6 | Q134: 0 | R134: 1019 | S134: 10 | T134: 15 | U134: 25 | V134: 11956
A135: 화공 | B135: 고분자 공정기술 | C135: 291 | D135: 32 | E135: - | F135: - | G135: - | H135: 6 | I135: - | J135: 11 | K135: - | L135: - | M135: 1 | N135: - | O135: 199 | P135: - | Q135: - | R135: 133 | S135: 0 | T135: - | U135: 0 | V135: 675
B136: 나노 화학공정기술 | C136: 702 | D136: 77 | E136: - | F136: - | G136: - | H136: 0 | I136: 3 | J136: 11 | K136: - | L136: 1 | M136: 2 | N136: 1 | O136: 179 | P136: - | Q136: - | R136: 63 | S136: - | T136: 6 | U136: - | V136: 1046
B137: 무기화생방/화력탄약 | C137: 6 | D137: - | E137: - | F137: - | G137: - | H137: - | I137: - | J137: 11 | K137: - | L137: 685 | M137: - | N137: - | O137: 28 | P137: - | Q137: - | R137: 3 | S137: - | T137: - | U137: - | V137: 734
B138: 생물화학 공정기술 | C138: 302 | D138: 33 | E138: - | F138: - | G138: - | H138: 3 | I138: 3 | J138: 7 | K138: - | L138: - | M138: 6 | N138: - | O138: 33 | P138: - | Q138: - | R138: 12 | S138: 23 | T138: 2 | U138: - | V138: 423
B139: 섬유제조 | C139: 37 | D139: 7 | E139: 1 | F139: - | G139: - | H139: 1 | I139: - | J139: 13 | K139: - | L139: - | M139: - | N139: - | O139: 351 | P139: - | Q139: - | R139: 104 | S139: 1 | T139: - | U139: - | V139: 515
B140: 섬유제품 | C140: 55 | D140: 6 | E140: 1 | F140: - | G140: - | H140: 1 | I140: - | J140: 15 | K140: - | L140: - | M140: - | N140: 1 | O140: 748 | P140: - | Q140: - | R140: 148 | S140: 0 | T140: 3 | U140: 3 | V140: 982
B141: 염색가공 | C141: 2 | D141: 0 | E141: 1 | F141: - | G141: - | H141: - | I141: - | J141: 3 | K141: - | L141: - | M141: - | N141: - | O141: 22 | P141: - | Q141: - | R141: 57 | S141: 1 | T141: - | U141: - | V141: 85
B142: 정밀화학 | C142: 83 | D142: 24 | E142: - | F142: - | G142: - | H142: - | I142: 1 | J142: 20 | K142: - | L142: 24 | M142: 2 | N142: - | O142: 652 | P142: 4 | Q142: - | R142: 162 | S142: 1 | T142: 10 | U142: 0 | V142: 984
B143: 화학공정 | C143: 761 | D143: 60 | E143: - | F143: 36 | G143: - | H143: 3 | I143: 1 | J143: 11 | K143: - | L143: 11 | M143: - | N143: - | O143: 723 | P143: - | Q143: - | R143: 53 | S143: 1 | T143: 12 | U143: - | V143: 1673
B144: 화학공정 안전기술 | C144: 8 | D144: 3 | E144: - | F144: - | G144: - | H144: - | I144: - | J144: 2 | K144: - | L144: 1 | M144: - | N144: - | O144: 48 | P144: - | Q144: - | R144: 4 | S144: - | T144: 11 | U144: 20 | V144: 96
B145: 화학제품 | C145: 6 | D145: - | E145: 1 | F145: 3 | G145: - | H145: - | I145: - | J145: 3 | K145: - | L145: - | M145: 1 | N145: - | O145: 142 | P145: - | Q145: - | R145: 85 | S145: 1 | T145: 3 | U145: 2 | V145: 246
B146: 기타 화공 | C146: 46 | D146: 19 | E146: - | F146: - | G146: - | H146: - | I146: - | J146: 9 | K146: - | L146: - | M146: - | N146: - | O146: 1 | P146: - | Q146: - | R146: 4 | S146: - | T146: - | U146: 93 | V146: 173
B147: 합계 | C147: 2299 | D147: 261 | E147: 4 | F147: 39 | G147: 0 | H147: 15 | I147: 7 | J147: 117 | K147: 0 | L147: 723 | M147: 12 | N147: 2 | O147: 3127 | P147: 4 | Q147: 0 | R147: 827 | S147: 30 | T147: 46 | U147: 118 | V147: 7632
A148: 전기/전자 | B148: 가정용기기/전자응용기기 | C148: 23 | D148: 3 | E148: - | F148: 2 | G148: - | H148: - | I148: - | J148: 16 | K148: - | L148: - | M148: 2 | N148: 0 | O148: 304 | P148: - | Q148: - | R148: 204 | S148: - | T148: - | U148: 2 | V148: 556
B149: 계측기기 | C149: 249 | D149: 8 | E149: - | F149: 17 | G149: - | H149: 1 | I149: 2 | J149: 21 | K149: - | L149: 2 | M149: 3 | N149: 1 | O149: 359 | P149: - | Q149: - | R149: 231 | S149: 10 | T149: 7 | U149: 20 | V149: 930
B150: 광응용기기 | C150: 469 | D150: 26 | E150: - | F150: 2 | G150: - | H150: 2 | I150: - | J150: 68 | K150: - | L150: 254 | M150: 1 | N150: - | O150: 379 | P150: - | Q150: - | R150: 241 | S150: 2 | T150: 1 | U150: 13 | V150: 1458
B151: 디스플레이 | C151: 304 | D151: 26 | E151: - | F151: - | G151: - | H151: 0 | I151: - | J151: 7 | K151: 4 | L151: 8 | M151: - | N151: - | O151: 2376 | P151: - | Q151: - | R151: 250 | S151: - | T151: - | U151: - | V151: 2977
B152: 무기센서 및 제어 | C152: 226 | D152: 18 | E152: - | F152: 10 | G152: - | H152: - | I152: - | J152: 142 | K152: - | L152: 5936 | M152: 0 | N152: 1 | O152: 48 | P152: 1 | Q152: 2 | R152: 29 | S152: 3 | T152: 6 | U152: 4 | V152: 6427
B153: 반도체 소자·회로 | C153: 2804 | D153: 236 | E153: - | F153: - | G153: - | H153: 5 | I153: - | J153: 112 | K153: - | L153: 41 | M153: 1 | N153: - | O153: 2277 | P153: - | Q153: 1 | R153: 233 | S153: - | T153: - | U153: - | V153: 5710
B154: 반도체장비 | C154: 434 | D154: 8 | E154: - | F154: - | G154: - | H154: - | I154: - | J154: 20 | K154: - | L154: - | M154: - | N154: - | O154: 1389 | P154: - | Q154: - | R154: 390 | S154: - | T154: - | U154: - | V154: 2240
B155: 영상/음향기기 | C155: 278 | D155: 9 | E155: - | F155: 1 | G155: - | H155: - | I155: 0 | J155: 32 | K155: 1 | L155: 22 | M155: - | N155: - | O155: 47 | P155: - | Q155: - | R155: 69 | S155: 3 | T155: - | U155: 13 | V155: 476
B156: 전기전자부품 | C156: 275 | D156: 34 | E156: - | F156: 28 | G156: - | H156: 7 | I156: - | J156: 72 | K156: - | L156: 75 | M156: 2 | N156: - | O156: 1066 | P156: - | Q156: - | R156: 301 | S156: 1 | T156: 6 | U156: 2 | V156: 1869
B157: 전지 | C157: 478 | D157: 67 | E157: - | F157: - | G157: - | H157: - | I157: - | J157: 54 | K157: - | L157: 208 | M157: 3 | N157: 2 | O157: 1545 | P157: - | Q157: - | R157: 225 | S157: 6 | T157: 15 | U157: - | V157: 2602
B158: 중전기기 | C158: 297 | D158: 19 | E158: - | F158: 85 | G158: - | H158: 3 | I158: 1 | J158: 3 | K158: - | L158: 75 | M158: - | N158: - | O158: 1083 | P158: - | Q158: - | R158: 298 | S158: 3 | T158: - | U158: - | V158: 1866
B159: 기타 전기/전자 | C159: 932 | D159: 66 | E159: - | F159: - | G159: - | H159: 2 | I159: - | J159: 35 | K159: - | L159: 8458 | M159: 6 | N159: 2 | O159: 187 | P159: - | Q159: - | R159: 86 | S159: - | T159: - | U159: 94 | V159: 9866
B160: 합계 | C160: 6770 | D160: 520 | E160: 0 | F160: 145 | G160: 0 | H160: 20 | I160: 2 | J160: 582 | K160: 5 | L160: 15081 | M160: 17 | N160: 6 | O160: 11059 | P160: 1 | Q160: 3 | R160: 2557 | S160: 27 | T160: 34 | U160: 147 | V160: 36977
A161: 정보/통신 | B161: 국방정보통신 | C161: 110 | D161: 8 | E161: 75 | F161: 1 | G161: - | H161: - | I161: - | J161: 95 | K161: - | L161: 3079 | M161: 1 | N161: - | O161: 5 | P161: 0 | Q161: - | R161: 38 | S161: - | T161: - | U161: 1 | V161: 3412
B162: 디지털 방송·콘텐츠 | C162: 402 | D162: 2 | E162: - | F162: - | G162: 2 | H162: - | I162: - | J162: 0 | K162: 24 | L162: - | M162: - | N162: - | O162: 6 | P162: - | Q162: - | R162: 47 | S162: - | T162: - | U162: 1 | V162: 483
B163: 무선 통신·네트워크 | C163: 1097 | D163: 52 | E163: - | F163: 5 | G163: - | H163: - | I163: - | J163: 113 | K163: - | L163: 199 | M163: 1 | N163: 4 | O163: 81 | P163: - | Q163: - | R163: 109 | S163: - | T163: - | U163: 11 | V163: 1673
B164: 소프트웨어 | C164: 2608 | D164: 105 | E164: 5 | F164: 155 | G164: 2 | H164: 16 | I164: 6 | J164: 159 | K164: 33 | L164: 78 | M164: 41 | N164: 10 | O164: 1348 | P164: 9 | Q164: 0 | R164: 2304 | S164: 38 | T164: 3 | U164: 78 | V164: 7001
B165: 위성/전파 | C165: 1261 | D165: 6 | E165: - | F165: 456 | G165: - | H165: 4 | I165: 11 | J165: 321 | K165: - | L165: 971 | M165: 3 | N165: - | O165: 27 | P165: 1 | Q165: - | R165: 27 | S165: 234 | T165: 21 | U165: 10 | V165: 3353
B166: 유선 통신·네트워크 | C166: 546 | D166: 5 | E166: - | F166: 15 | G166: - | H166: - | I166: - | J166: 4 | K166: 2 | L166: - | M166: - | N166: - | O166: 50 | P166: - | Q166: - | R166: 19 | S166: 7 | T166: - | U166: - | V166: 648
B167: 재난정보통신 | C167: 144 | D167: 3 | E167: - | F167: 38 | G167: 1 | H167: 2 | I167: 1 | J167: 56 | K167: - | L167: - | M167: - | N167: 14 | O167: 35 | P167: - | Q167: - | R167: 37 | S167: 11 | T167: 53 | U167: 295 | V167: 688
B168: 정보보호 | C168: 2329 | D168: 43 | E168: 13 | F168: 54 | G168: - | H168: - | I168: - | J168: 71 | K168: 3 | L168: 73 | M168: 3 | N168: - | O168: 115 | P168: 3 | Q168: 2 | R168: 115 | S168: 22 | T168: - | U168: 62 | V168: 2906
B169: 정보이론 | C169: 4718 | D169: 249 | E169: 12 | F169: 59 | G169: 9 | H169: 8 | I169: 8 | J169: 224 | K169: 44 | L169: 355 | M169: 32 | N169: 7 | O169: 532 | P169: 14 | Q169: 3 | R169: 477 | S169: 19 | T169: 10 | U169: 149 | V169: 6929
B170: 정보통신 모듈/부품 | C170: 600 | D170: 73 | E170: - | F170: 13 | G170: - | H170: - | I170: 0 | J170: 18 | K170: - | L170: 75 | M170: - | N170: 0 | O170: 417 | P170: - | Q170: - | R170: 130 | S170: 5 | T170: - | U170: 29 | V170: 1359
B171: 정보통신 융합 디바이스 | C171: 131 | D171: 10 | E171: - | F171: 50 | G171: - | H171: 0 | I171: - | J171: 1 | K171: - | L171: - | M171: 1 | N171: 1 | O171: 110 | P171: 1 | Q171: - | R171: 105 | S171: 8 | T171: - | U171: 18 | V171: 436
B172: 정보통신 융합 서비스 | C172: 348 | D172: 19 | E172: - | F172: 42 | G172: - | H172: 0 | I172: 1 | J172: 9 | K172: 14 | L172: 6 | M172: 10 | N172: - | O172: 62 | P172: 0 | Q172: - | R172: 351 | S172: 14 | T172: - | U172: 34 | V172: 909
B173: 기타 정보/통신 | C173: 2439 | D173: 215 | E173: - | F173: 6 | G173: - | H173: 1 | I173: - | J173: 15 | K173: - | L173: - | M173: 1 | N173: 1 | O173: 159 | P173: - | Q173: - | R173: 42 | S173: - | T173: 7 | U173: 7 | V173: 2894
B174: 합계 | C174: 16733 | D174: 790 | E174: 104 | F174: 893 | G174: 13 | H174: 31 | I174: 27 | J174: 1087 | K174: 120 | L174: 4835 | M174: 94 | N174: 38 | O174: 2944 | P174: 29 | Q174: 5 | R174: 3801 | S174: 358 | T174: 94 | U174: 694 | V174: 32692
A175: 에너지/자원 | B175: 가스에너지 | C175: 36 | D175: 1 | E175: - | F175: 13 | G175: - | H175: 2 | I175: 2 | J175: - | K175: - | L175: - | M175: - | N175: - | O175: 325 | P175: - | Q175: - | R175: 8 | S175: - | T175: - | U175: - | V175: 386
B176: 수화력발전 | C176: 26 | D176: 1 | E176: - | F176: - | G176: - | H176: - | I176: - | J176: - | K176: - | L176: - | M176: - | N176: - | O176: 406 | P176: - | Q176: - | R176: 11 | S176: - | T176: - | U176: - | V176: 444
B177: 스마트그리드 | C177: 187 | D177: 7 | E177: - | F177: 0 | G177: - | H177: - | I177: - | J177: 2 | K177: - | L177: - | M177: - | N177: - | O177: 866 | P177: - | Q177: - | R177: 65 | S177: 5 | T177: 2 | U177: - | V177: 1135
B178: 신재생에너지 | C178: 1768 | D178: 92 | E178: - | F178: 208 | G178: - | H178: 20 | I178: 16 | J178: 92 | K178: - | L178: 132 | M178: - | N178: 4 | O178: 3652 | P178: - | Q178: - | R178: 512 | S178: 193 | T178: 107 | U178: 14 | V178: 6810
B179: 온실가스 처리 | C179: 324 | D179: 7 | E179: - | F179: 10 | G179: - | H179: 1 | I179: 4 | J179: 83 | K179: - | L179: - | M179: - | N179: - | O179: 599 | P179: - | Q179: - | R179: 21 | S179: 9 | T179: 13 | U179: 1 | V179: 1072
B180: 자원탐사/개발/활용 | C180: 188 | D180: 16 | E180: - | F180: 89 | G180: - | H180: - | I180: - | J180: 19 | K180: - | L180: - | M180: - | N180: - | O180: 473 | P180: - | Q180: - | R180: 12 | S180: - | T180: 2 | U180: - | V180: 799
B181: 전력시스템 | C181: 221 | D181: 5 | E181: - | F181: 54 | G181: - | H181: - | I181: - | J181: 1 | K181: - | L181: 7 | M181: - | N181: - | O181: 656 | P181: - | Q181: - | R181: 27 | S181: - | T181: - | U181: 1 | V181: 972
B182: 기타 에너지/자원 | C182: 507 | D182: 66 | E182: - | F182: - | G182: - | H182: 3 | I182: 3 | J182: 3 | K182: - | L182: 21 | M182: - | N182: - | O182: 563 | P182: - | Q182: - | R182: 26 | S182: 12 | T182: - | U182: - | V182: 1204
B183: 합계 | C183: 3258 | D183: 195 | E183: 0 | F183: 374 | G183: 0 | H183: 26 | I183: 25 | J183: 199 | K183: 0 | L183: 160 | M183: 0 | N183: 4 | O183: 7539 | P183: 0 | Q183: 0 | R183: 683 | S183: 220 | T183: 124 | U183: 16 | V183: 12823
A184: 원자력 | B184: 방사선기술 | C184: 447 | D184: 12 | E184: - | F184: - | G184: - | H184: 2 | I184: - | J184: 46 | K184: - | L184: - | M184: 2 | N184: - | O184: 57 | P184: - | Q184: 49 | R184: 20 | S184: 1 | T184: 1 | U184: 3 | V184: 641
B185: 원자력 기반기술 | C185: 243 | D185: 1 | E185: - | F185: - | G185: - | H185: - | I185: - | J185: - | K185: - | L185: - | M185: - | N185: - | O185: 16 | P185: - | Q185: - | R185: 4 | S185: - | T185: - | U185: - | V185: 264
B186: 원자력계측/제어기술 | C186: 127 | D186: 0 | E186: - | F186: - | G186: - | H186: - | I186: - | J186: - | K186: - | L186: - | M186: - | N186: - | O186: 95 | P186: 3 | Q186: 14 | R186: 16 | S186: 2 | T186: - | U186: - | V186: 257
B187: 원자력시설 건설·운영·해체 | C187: 439 | D187: - | E187: - | F187: - | G187: - | H187: - | I187: - | J187: - | K187: - | L187: - | M187: - | N187: - | O187: 91 | P187: - | Q187: 8 | R187: 15 | S187: - | T187: - | U187: - | V187: 552
B188: 원자력안전기술 | C188: 354 | D188: 4 | E188: - | F188: - | G188: - | H188: - | I188: - | J188: 19 | K188: - | L188: - | M188: 0 | N188: - | O188: 189 | P188: - | Q188: 526 | R188: 14 | S188: - | T188: - | U188: - | V188: 1106
B189: 원자로계통/핵심기기기술 | C189: 135 | D189: 1 | E189: - | F189: - | G189: - | H189: - | I189: - | J189: 11 | K189: - | L189: - | M189: - | N189: - | O189: 52 | P189: - | Q189: 4 | R189: 1 | S189: - | T189: - | U189: - | V189: 205
B190: 원자로노심기술 | C190: 90 | D190: - | E190: - | F190: - | G190: - | H190: - | I190: - | J190: 5 | K190: - | L190: - | M190: - | N190: - | O190: 17 | P190: - | Q190: 0 | R190: - | S190: - | T190: - | U190: - | V190: 113
B191: 핵연료/원자력소재 | C191: 211 | D191: - | E191: - | F191: - | G191: - | H191: - | I191: - | J191: 18 | K191: - | L191: - | M191: - | N191: - | O191: 98 | P191: - | Q191: 6 | R191: 4 | S191: - | T191: - | U191: - | V191: 337
B192: 핵연료주기/방사성폐기물관리기술 | C192: 725 | D192: 6 | E192: - | F192: - | G192: - | H192: - | I192: - | J192: 1 | K192: - | L192: - | M192: - | N192: - | O192: 592 | P192: - | Q192: 27 | R192: 24 | S192: - | T192: - | U192: - | V192: 1375
B193: 핵융합 | C193: 240 | D193: 1 | E193: - | F193: - | G193: - | H193: - | I193: - | J193: 1117 | K193: - | L193: - | M193: - | N193: - | O193: - | P193: - | Q193: - | R193: 1 | S193: - | T193: - | U193: - | V193: 1359
B194: 기타 원자력 | C194: 1216 | D194: 5 | E194: - | F194: - | G194: - | H194: - | I194: - | J194: 4 | K194: - | L194: 71 | M194: - | N194: - | O194: 35 | P194: - | Q194: 277 | R194: 10 | S194: - | T194: - | U194: - | V194: 1617
B195: 합계 | C195: 4228 | D195: 30 | E195: 0 | F195: 0 | G195: 0 | H195: 2 | I195: 0 | J195: 1222 | K195: 0 | L195: 71 | M195: 3 | N195: 0 | O195: 1242 | P195: 3 | Q195: 911 | R195: 109 | S195: 2 | T195: 1 | U195: 3 | V195: 7827
A196: 환경 | B196: 대기질 관리 | C196: 336 | D196: 15 | E196: - | F196: 39 | G196: - | H196: 8 | I196: 17 | J196: 17 | K196: - | L196: - | M196: 3 | N196: 8 | O196: 226 | P196: - | Q196: - | R196: 89 | S196: 31 | T196: 269 | U196: 13 | V196: 1069
B197: 물관리 | C197: 177 | D197: 46 | E197: - | F197: 8 | G197: 0 | H197: 3 | I197: - | J197: 5 | K197: - | L197: - | M197: - | N197: - | O197: 21 | P197: - | Q197: - | R197: 88 | S197: 3 | T197: 800 | U197: 9 | V197: 1160
B198: 생태계 복원/관리 | C198: 15 | D198: 19 | E198: - | F198: 9 | G198: - | H198: - | I198: 0 | J198: - | K198: - | L198: - | M198: - | N198: 11 | O198: 0 | P198: - | Q198: - | R198: 11 | S198: 4 | T198: 82 | U198: - | V198: 150
B199: 소음/진동관리 | C199: 14 | D199: 1 | E199: - | F199: 2 | G199: - | H199: - | I199: - | J199: 2 | K199: - | L199: - | M199: - | N199: 0 | O199: 16 | P199: - | Q199: - | R199: 6 | S199: - | T199: 1 | U199: 5 | V199: 46
B200: 위해성평가/관리 | C200: 14 | D200: 13 | E200: - | F200: 6 | G200: - | H200: 0 | I200: 2 | J200: - | K200: - | L200: - | M200: - | N200: - | O200: 2 | P200: 4 | Q200: - | R200: 1 | S200: - | T200: 150 | U200: 4 | V200: 197
B201: 작업환경기술 | C201: 5 | D201: 5 | E201: - | F201: - | G201: - | H201: - | I201: - | J201: - | K201: - | L201: - | M201: - | N201: - | O201: 14 | P201: - | Q201: - | R201: 9 | S201: - | T201: - | U201: 11 | V201: 44
B202: 청정생산/설비 | C202: 18 | D202: 0 | E202: - | F202: 0 | G202: - | H202: 0 | I202: - | J202: - | K202: - | L202: - | M202: - | N202: - | O202: 286 | P202: - | Q202: - | R202: 43 | S202: 0 | T202: 10 | U202: 1 | V202: 359
B203: 측정분석장비/장치 | C203: 51 | D203: 1 | E203: - | F203: - | G203: - | H203: 0 | I203: 2 | J203: 3 | K203: - | L203: 16 | M203: - | N203: 5 | O203: 53 | P203: 0 | Q203: 4 | R203: 26 | S203: 0 | T203: 64 | U203: 17 | V203: 243
B204: 친환경 공정 | C204: 61 | D204: 8 | E204: - | F204: 20 | G204: - | H204: 2 | I204: 1 | J204: 2 | K204: - | L204: - | M204: - | N204: - | O204: 102 | P204: - | Q204: - | R204: 53 | S204: 0 | T204: 34 | U204: - | V204: 284
... 93 more rows

Sheet 2-7
A1: 2-7. 부처별 국가과학기술표준분류 적용분야별 집행 현황(2023년) | I1: 목차
X3: (단위 : 억원, %)
A4: 구분 | B4: 적용분야 | C4: 과학기술정보통신부 | D4: 교육부 | E4: 국무조정실 | F4: 국방부 | G4: 국토교통부 | H4: 기상청 | I4: 농림축산식품부 | J4: 농촌진흥청 | K4: 다부처 | L4: 문화재청 | M4: 문화체육관광부 | N4: 방위사업청 | O4: 보건복지부 | P4: 산림청 | Q4: 산업통상자원부 | R4: 식품의약품안전처 | S4: 원자력안전위원회 | T4: 중소벤처기업부 | U4: 해양수산부 | V4: 환경부 | W4: 기타 부처 | X4: 합계
A7: 공공분야 | B7: 지식의 진보(비목적 연구) | C7: 12206 | D7: 9728 | E7: 269 | F7: 0 | G7: 44 | H7: 18 | I7: 0 | J7: 51 | K7: 61 | L7: 25 | M7: 4 | N7: 9 | O7: 94 | P7: 32 | Q7: 233 | R7: 92 | S7: 18 | T7: 334 | U7: 91 | V7: 12 | W7: 176 | X7: 23496
B8: 건강 | C8: 12751 | D8: 1683 | E8: 38 | F8: 0 | G8: 0 | H8: 15 | I8: 3 | J8: 239 | K8: 1127 | L8: 0 | M8: 32 | N8: 36 | O8: 2783 | P8: 57 | Q8: 904 | R8: 483 | S8: 19 | T8: 660 | U8: 185 | V8: 65 | W8: 1559 | X8: 22637
B9: 국방 | C9: 1386 | D9: 29 | E9: 0 | F9: 679 | G9: 15 | H9: 0 | I9: 0 | J9: 0 | K9: 1000 | L9: 0 | M9: 0 | N9: 44970 | O9: 0 | P9: 0 | Q9: 228 | R9: 0 | S9: 1 | T9: 132 | U9: 5 | V9: 1 | W9: 31 | X9: 48476
B10: 사회구조 및 관계 | C10: 191 | D10: 778 | E10: 288 | F10: 0 | G10: 2 | H10: 1 | I10: 0 | J10: 2 | K10: 4 | L10: 0 | M10: 5 | N10: 1 | O10: 0 | P10: 1 | Q10: 47 | R10: 1 | S10: 0 | T10: 29 | U10: 4 | V10: 2 | W10: 14 | X10: 1370
B11: 에너지 | C11: 7935 | D11: 256 | E11: 119 | F11: 0 | G11: 449 | H11: 4 | I11: 2 | J11: 42 | K11: 1246 | L11: 0 | M11: 0 | N11: 126 | O11: 0 | P11: 9 | Q11: 5103 | R11: 0 | S11: 422 | T11: 840 | U11: 264 | V11: 24 | W11: 18 | X11: 16860
B12: 우주개발 및 탐사 | C12: 4710 | D12: 20 | E12: 0 | F12: 0 | G12: 249 | H12: 99 | I12: 0 | J12: 13 | K12: 937 | L12: 0 | M12: 0 | N12: 558 | O12: 1 | P12: 0 | Q12: 64 | R12: 0 | S12: 0 | T12: 27 | U12: 341 | V12: 11 | W12: 36 | X12: 7066
B13: 지구개발 및 탐사 | C13: 765 | D13: 45 | E13: 0 | F13: 0 | G13: 11 | H13: 204 | I13: 0 | J13: 2 | K13: 12 | L13: 0 | M13: 0 | N13: 5 | O13: 0 | P13: 2 | Q13: 450 | R13: 0 | S13: 3 | T13: 3 | U13: 1532 | V13: 9 | W13: 0 | X13: 3042
B14: 교통/정보통신/기타 기반시설 | C14: 6208 | D14: 163 | E14: 179 | F14: 8 | G14: 2049 | H14: 0 | I14: 0 | J14: 45 | K14: 379 | L14: 0 | M14: 59 | N14: 58 | O14: 11 | P14: 1 | Q14: 794 | R14: 2 | S14: 9 | T14: 1038 | U14: 112 | V14: 11 | W14: 419 | X14: 11545
B15: 환경 | C15: 2041 | D15: 367 | E15: 41 | F15: 0 | G15: 285 | H15: 53 | I15: 1 | J15: 249 | K15: 118 | L15: 0 | M15: 5 | N15: 30 | O15: 0 | P15: 111 | Q15: 959 | R15: 38 | S15: 89 | T15: 675 | U15: 1009 | V15: 3665 | W15: 164 | X15: 9897
B16: 사회질서 및 안전 | C16: 1133 | D16: 124 | E16: 1 | F16: 13 | G16: 89 | H16: 300 | I16: 0 | J16: 25 | K16: 527 | L16: 2 | M16: 2 | N16: 8 | O16: 5 | P16: 12 | Q16: 281 | R16: 84 | S16: 42 | T16: 214 | U16: 118 | V16: 28 | W16: 843 | X16: 3849
B17: 문화, 여가증진, 종교 및 매스미디어 | C17: 100 | D17: 154 | E17: 0 | F17: 0 | G17: 0 | H17: 0 | I17: 0 | J17: 2 | K17: 12 | L17: 375 | M17: 278 | N17: 0 | O17: 0 | P17: 14 | Q17: 27 | R17: 0 | S17: 0 | T17: 102 | U17: 33 | V17: 0 | W17: 0 | X17: 1098
B18: 교육 및 인력양성 | C18: 2652 | D18: 11062 | E18: 458 | F18: 8 | G18: 18 | H18: 0 | I18: 0 | J18: 202 | K18: 14 | L18: 10 | M18: 44 | N18: 0 | O18: 33 | P18: 1 | Q18: 123 | R18: 54 | S18: 1 | T18: 96 | U18: 0 | V18: 7 | W18: 47 | X18: 14830
B19: 기타 공공목적 | C19: 16281 | D19: 787 | E19: 3556 | F19: 25 | G19: 779 | H19: 490 | I19: 65 | J19: 1446 | K19: 340 | L19: 233 | M19: 114 | N19: 1 | O19: 1131 | P19: 108 | Q19: 7466 | R19: 290 | S19: 364 | T19: 1272 | U19: 1688 | V19: 126 | W19: 1253 | X19: 37814
B20: 소계 | C20: 68359 | D20: 25195 | E20: 4949 | F20: 731 | G20: 3989 | H20: 1182 | I20: 71 | J20: 2319 | K20: 5778 | L20: 645 | M20: 542 | N20: 45801 | O20: 4058 | P20: 349 | Q20: 16679 | R20: 1043 | S20: 965 | T20: 5422 | U20: 5383 | V20: 3960 | W20: 4559 | X20: 201981
A21: 산업분야 | B21: 농업, 임업 및 어업 | C21: 700 | D21: 231 | E21: 179 | F21: 0 | G21: 1 | H21: 0 | I21: 2417 | J21: 6159 | K21: 515 | L21: 0 | M21: 0 | N21: 0 | O21: 2 | P21: 1110 | Q21: 265 | R21: 25 | S21: 0 | T21: 252 | U21: 1900 | V21: 22 | W21: 6 | X21: 13783
B22: 제조업(음식료품 및 담배) | C22: 206 | D22: 36 | E22: 0 | F22: 0 | G22: 0 | H22: 0 | I22: 7 | J22: 59 | K22: 4 | L22: 0 | M22: 0 | N22: 0 | O22: 0 | P22: 5 | Q22: 120 | R22: 27 | S22: 0 | T22: 327 | U22: 63 | V22: 0 | W22: 0 | X22: 855
B23: 제조업(섬유, 의복 및 가죽제품) | C23: 114 | D23: 27 | E23: 0 | F23: 0 | G23: 0 | H23: 0 | I23: 0 | J23: 1 | K23: 39 | L23: 0 | M23: 0 | N23: 10 | O23: 0 | P23: 2 | Q23: 651 | R23: 3 | S23: 0 | T23: 412 | U23: 2 | V23: 0 | W23: 1 | X23: 1263
B24: 제조업(목재, 종이 및 인쇄) | C24: 25 | D24: 7 | E24: 0 | F24: 0 | G24: 2 | H24: 0 | I24: 0 | J24: 1 | K24: 13 | L24: 2 | M24: 0 | N24: 0 | O24: 0 | P24: 73 | Q24: 24 | R24: 1 | S24: 0 | T24: 76 | U24: 0 | V24: 0 | W24: 3 | X24: 225
B25: 제조업(화학물질 및 화학제품) | C25: 1970 | D25: 221 | E25: 0 | F25: 0 | G25: 38 | H25: 0 | I25: 0 | J25: 25 | K25: 62 | L25: 0 | M25: 0 | N25: 0 | O25: 23 | P25: 10 | Q25: 3472 | R25: 7 | S25: 0 | T25: 1124 | U25: 77 | V25: 38 | W25: 10 | X25: 7079
B26: 제조업(의료용물질 및 의약품) | C26: 1193 | D26: 189 | E26: 0 | F26: 0 | G26: 0 | H26: 0 | I26: 4 | J26: 11 | K26: 752 | L26: 0 | M26: 0 | N26: 20 | O26: 497 | P26: 2 | Q26: 832 | R26: 64 | S26: 0 | T26: 400 | U26: 72 | V26: 1 | W26: 3 | X26: 4041
B27: 제조업(비금속광물 및 금속제품) | C27: 708 | D27: 61 | E27: 0 | F27: 25 | G27: 13 | H27: 0 | I27: 0 | J27: 1 | K27: 11 | L27: 2 | M27: 0 | N27: 0 | O27: 4 | P27: 0 | Q27: 2247 | R27: 0 | S27: 0 | T27: 652 | U27: 3 | V27: 3 | W27: 7 | X27: 3737
B28: 제조업(전자부품, 컴퓨터, 영상, 음향 및 통신장비) | C28: 5668 | D28: 370 | E28: 0 | F28: 0 | G28: 43 | H28: 0 | I28: 7 | J28: 3 | K28: 118 | L28: 0 | M28: 10 | N28: 39 | O28: 8 | P28: 9 | Q28: 4917 | R28: 2 | S28: 1 | T28: 1313 | U28: 35 | V28: 0 | W28: 50 | X28: 12594
B29: 제조업(의료, 정밀, 광학기기 및 시계) | C29: 1611 | D29: 142 | E29: 0 | F29: 17 | G29: 2 | H29: 0 | I29: 0 | J29: 1 | K29: 1139 | L29: 0 | M29: 0 | N29: 3 | O29: 337 | P29: 1 | Q29: 1821 | R29: 63 | S29: 0 | T29: 1013 | U29: 5 | V29: 2 | W29: 14 | X29: 6172
B30: 제조업(전기 및 기계장비) | C30: 1615 | D30: 180 | E30: 0 | F30: 0 | G30: 218 | H30: 3 | I30: 11 | J30: 25 | K30: 173 | L30: 2 | M30: 3 | N30: 25 | O30: 5 | P30: 9 | Q30: 6874 | R30: 1 | S30: 1 | T30: 2281 | U30: 117 | V30: 6 | W30: 28 | X30: 11575
B31: 제조업(자동차 및 운송장비) | C31: 1047 | D31: 134 | E31: 0 | F31: 6 | G31: 407 | H31: 0 | I31: 0 | J31: 1 | K31: 57 | L31: 0 | M31: 0 | N31: 83 | O31: 2 | P31: 2 | Q31: 6954 | R31: 0 | S31: 0 | T31: 1120 | U31: 320 | V31: 5 | W31: 12 | X31: 10151
B32: 전기, 가스, 증기 및 수도사업 | C32: 137 | D32: 10 | E32: 0 | F32: 0 | G32: 80 | H32: 0 | I32: 0 | J32: 0 | K32: 6 | L32: 0 | M32: 0 | N32: 0 | O32: 0 | P32: 1 | Q32: 854 | R32: 0 | S32: 0 | T32: 37 | U32: 0 | V32: 22 | W32: 6 | X32: 1153
B33: 하수, 폐기물처리, 원료재생 및 환경복원업 | C33: 307 | D33: 48 | E33: 0 | F33: 0 | G33: 25 | H33: 0 | I33: 2 | J33: 14 | K33: 1 | L33: 0 | M33: 0 | N33: 0 | O33: 0 | P33: 5 | Q33: 322 | R33: 0 | S33: 0 | T33: 95 | U33: 9 | V33: 44 | W33: 3 | X33: 874
B34: 건설업 | C34: 741 | D34: 161 | E34: 0 | F34: 0 | G34: 977 | H34: 0 | I34: 0 | J34: 0 | K34: 10 | L34: 0 | M34: 0 | N34: 0 | O34: 3 | P34: 8 | Q34: 559 | R34: 0 | S34: 0 | T34: 245 | U34: 125 | V34: 26 | W34: 22 | X34: 2878
B35: 출판, 영상, 방송통신 및 정보서비스업 | C35: 1696 | D35: 70 | E35: 4 | F35: 0 | G35: 10 | H35: 0 | I35: 0 | J35: 5 | K35: 16 | L35: 0 | M35: 266 | N35: 0 | O35: 12 | P35: 1 | Q35: 225 | R35: 4 | S35: 0 | T35: 868 | U35: 47 | V35: 1 | W35: 16 | X35: 3241
B36: 전문, 과학 및 기술서비스업 | C36: 4560 | D36: 558 | E36: 3 | F36: 24 | G36: 131 | H36: 37 | I36: 1 | J36: 74 | K36: 303 | L36: 16 | M36: 143 | N36: 11 | O36: 218 | P36: 25 | Q36: 1260 | R36: 31 | S36: 5 | T36: 1129 | U36: 709 | V36: 66 | W36: 130 | X36: 9435
B37: 교육 서비스업 | C37: 190 | D37: 107 | E37: 19 | F37: 0 | G37: 7 | H37: 0 | I37: 0 | J37: 1 | K37: 6 | L37: 1 | M37: 31 | N37: 0 | O37: 7 | P37: 2 | Q37: 206 | R37: 0 | S37: 0 | T37: 147 | U37: 4 | V37: 0 | W37: 1 | X37: 729
B38: 보건업 및 사회복지 서비스업 | C38: 762 | D38: 116 | E38: 286 | F38: 0 | G38: 0 | H38: 0 | I38: 0 | J38: 8 | K38: 275 | L38: 0 | M38: 17 | N38: 0 | O38: 921 | P38: 4 | Q38: 347 | R38: 51 | S38: 0 | T38: 216 | U38: 30 | V38: 11 | W38: 23 | X38: 3066
B39: 예술, 스포츠 및 여가관련 서비스업 | C39: 82 | D39: 79 | E39: 0 | F39: 0 | G39: 21 | H39: 0 | I39: 0 | J39: 0 | K39: 5 | L39: 5 | M39: 248 | N39: 0 | O39: 2 | P39: 0 | Q39: 45 | R39: 0 | S39: 0 | T39: 100 | U39: 6 | V39: 0 | W39: 0 | X39: 592
B40: 기타 산업 | C40: 2453 | D40: 257 | E40: 0 | F40: 3 | G40: 67 | H40: 2 | I40: 15 | J40: 70 | K40: 78 | L40: 5 | M40: 31 | N40: 0 | O40: 41 | P40: 5 | Q40: 5904 | R40: 19 | S40: 6 | T40: 994 | U40: 304 | V40: 26 | W40: 30 | X40: 10308
B41: 소계 | C41: 25786 | D41: 3004 | E41: 490 | F41: 75 | G41: 2044 | H41: 41 | I41: 2465 | J41: 6458 | K41: 3582 | L41: 32 | M41: 749 | N41: 190 | O41: 2082 | P41: 1276 | Q41: 37897 | R41: 298 | S41: 14 | T41: 12801 | U41: 3829 | V41: 272 | W41: 364 | X41: 103751
A42: 합계 | C42: 94145 | D42: 28199 | E42: 5439 | F42: 806 | G42: 6032 | H42: 1224 | I42: 2535 | J42: 8777 | K42: 9360 | L42: 678 | M42: 1291 | N42: 45992 | O42: 6140 | P42: 1625 | Q42: 54576 | R42: 1341 | S42: 979 | T42: 18224 | U42: 9212 | V42: 4232 | W42: 4923 | X42: 305731
A44: * 과학기술표준분류 개편(’12)에 따라 적용분야의 일부 분류 명칭 변경(‘건강증진 및 보건’→‘건강’, ‘에너지의 생산, 배분 및 합리적이용’→‘에너지’, ‘하부구조 및 토지의 계획적 사용’→‘교통/ 정보통신/기타 기반시설’, ‘환경보전’→‘환경’, ‘문화 및 여가증진’→‘문화, 여가증진, 종교 및 매스미디어’), ‘교육 및 인력양성’ 분류 신설)
A45: ** 기타 부처는 개인정보보호위원회, 경찰청, 고용노동부, 공정거래위원회, 관세청, 기획재정부, 대통령경호처, 법무부, 법제처, 새만금개발청, 소방청, 여성가족부, 외교부, 인사혁신처, 조달청, 질병관리청, 통일부, 특허청, 해양경찰청, 행정안전부, 행정중심복합도시건설청의 총 21개 부･처･청･위원회의 합계임

Sheet 2-8
A1: 2-8. 부처별 미래유망기술(6T)별 상세분류 집행 현황(2023년) | I1: 목차
X3: (단위 : 억원)
A4: 대분류 | B4: 중분류 | C4: 소분류 | D4: 과학기술정보통신부 | E4: 교육부 | F4: 국방부 | G4: 국토교통부 | H4: 기상청 | I4: 농림축산식품부 | J4: 농촌진흥청 | K4: 다부처 | L4: 문화재청 | M4: 문화체육관광부 | N4: 방위사업청 | O4: 보건복지부 | P4: 산림청 | Q4: 산업통상자원부 | R4: 식품의약품안전처 | S4: 원자력안전위원회 | T4: 중소벤처기업부 | U4: 해양수산부 | V4: 환경부 | W4: 기타 부처 | X4: 합계
A7: IT(정보기술) | B7: 핵심부품 | C7: 테라비트급 광통신 부품기술 | D7: 261 | E7: 1 | F7: - | G7: - | H7: - | I7: - | J7: 2 | K7: - | L7: - | M7: - | N7: - | O7: - | P7: - | Q7: 168 | R7: 1 | S7: - | T7: 254 | U7: - | V7: - | W7: - | X7: 687
C8: 집적회로기술 | D8: 2358 | E8: 67 | F8: - | G8: 53 | H8: - | I8: 9 | J8: - | K8: 95 | L8: - | M8: - | N8: 58 | O8: - | P8: - | Q8: 2352 | R8: - | S8: - | T8: 269 | U8: 20 | V8: - | W8: 12 | X8: 5293
C9: 차세대디스플레이기술 | D9: 542 | E9: 33 | F9: - | G9: - | H9: - | I9: - | J9: - | K9: 14 | L9: - | M9: - | N9: 5 | O9: - | P9: - | Q9: 2518 | R9: - | S9: - | T9: 239 | U9: - | V9: - | W9: - | X9: 3350
C10: 고밀도 정보저장장치 기술 | D10: 256 | E10: 8 | F10: - | G10: - | H10: - | I10: - | J10: - | K10: - | L10: - | M10: - | N10: 20 | O10: - | P10: - | Q10: 162 | R10: - | S10: - | T10: 16 | U10: - | V10: - | W10: - | X10: 461
C11: 기타 정보통신 부품기술 | D11: 1002 | E11: 126 | F11: - | G11: 53 | H11: - | I11: 12 | J11: - | K11: 150 | L11: - | M11: - | N11: 55 | O11: - | P11: 1 | Q11: 1387 | R11: 4 | S11: - | T11: 454 | U11: - | V11: 1 | W11: 24 | X11: 3267
B12: 차세대 네트워크 기반 | C12: 4세대 이동통신 | D12: 288 | E12: 16 | F12: - | G12: 55 | H12: - | I12: - | J12: 4 | K12: 101 | L12: - | M12: - | N12: 324 | O12: 5 | P12: - | Q12: 51 | R12: - | S12: - | T12: 56 | U12: - | V12: - | W12: - | X12: 899
C13: 대용량 광전송 시스템기술 | D13: 159 | E13: 2 | F13: - | G13: - | H13: - | I13: - | J13: - | K13: - | L13: - | M13: - | N13: 1 | O13: - | P13: - | Q13: - | R13: - | S13: - | T13: 15 | U13: - | V13: - | W13: - | X13: 177
C14: 고속인터넷 네트워킹기술 | D14: 593 | E14: 17 | F14: - | G14: - | H14: - | I14: - | J14: - | K14: - | L14: - | M14: - | N14: 46 | O14: 2 | P14: - | Q14: 22 | R14: - | S14: - | T14: 32 | U14: - | V14: - | W14: 6 | X14: 718
C15: 기타 네트워크기술 | D15: 1185 | E15: 25 | F15: - | G15: 67 | H15: - | I15: 4 | J15: 9 | K15: 7 | L15: - | M15: - | N15: 226 | O15: 2 | P15: 5 | Q15: 205 | R15: 2 | S15: - | T15: 116 | U15: 89 | V15: - | W15: 52 | X15: 1994
B16: 정보처리 시스템 및 S/W | C16: 멀티미디어 단말기 및 운영체계기술 | D16: 114 | E16: 23 | F16: - | G16: 16 | H16: - | I16: - | J16: - | K16: 42 | L16: - | M16: 9 | N16: 73 | O16: 5 | P16: - | Q16: 85 | R16: - | S16: - | T16: 160 | U16: 7 | V16: - | W16: 10 | X16: 542
C17: 정보보안 및 암호기술 | D17: 2142 | E17: 32 | F17: 38 | G17: 24 | H17: - | I17: - | J17: - | K17: 60 | L17: - | M17: - | N17: 357 | O17: 6 | P17: - | Q17: 81 | R17: 5 | S17: 9 | T17: 176 | U17: 20 | V17: - | W17: 64 | X17: 3015
C18: 전자상거래 기술 | D18: 15 | E18: 7 | F18: - | G18: 1 | H18: - | I18: - | J18: 1 | K18: - | L18: - | M18: 3 | N18: - | O18: - | P18: - | Q18: 64 | R18: - | S18: - | T18: 222 | U18: - | V18: - | W18: - | X18: 312
C19: 신호처리기술(영상･음성처리･인식･합성) | D19: 1240 | E19: 123 | F19: 24 | G19: 14 | H19: - | I19: - | J19: 6 | K19: 312 | L19: - | M19: 43 | N19: 1571 | O19: 60 | P19: 8 | Q19: 452 | R19: - | S19: 9 | T19: 439 | U19: 7 | V19: - | W19: 64 | X19: 4371
C20: 정보검색 및 DB기술 | D20: 862 | E20: 42 | F20: - | G20: 42 | H20: 25 | I20: 8 | J20: 35 | K20: 36 | L20: - | M20: 47 | N20: 95 | O20: 29 | P20: 9 | Q20: 219 | R20: 12 | S20: 5 | T20: 429 | U20: 28 | V20: 14 | W20: 57 | X20: 1992
C21: 기타 정보처리시스템 및 S/W 기술 | D21: 4792 | E21: 288 | F21: - | G21: 703 | H21: 16 | I21: 49 | J21: 55 | K21: 217 | L21: - | M21: 24 | N21: 1263 | O21: 57 | P21: 43 | Q21: 2268 | R21: 4 | S21: 7 | T21: 2713 | U21: 506 | V21: 84 | W21: 386 | X21: 13475
B22: 기타 정보기술 | C22: 기타 정보기술 | D22: 5705 | E22: 566 | F22: 38 | G22: 717 | H22: 6 | I22: 70 | J22: 74 | K22: 271 | L22: - | M22: 127 | N22: 2482 | O22: 28 | P22: 35 | Q22: 1580 | R22: 4 | S22: 6 | T22: 1062 | U22: 220 | V22: 463 | W22: 279 | X22: 13732
B23: 소계 | D23: 21514 | E23: 1375 | F23: 100 | G23: 1744 | H23: 47 | I23: 151 | J23: 185 | K23: 1305 | L23: 0 | M23: 251 | N23: 6575 | O23: 194 | P23: 100 | Q23: 11613 | R23: 32 | S23: 36 | T23: 6651 | U23: 897 | V23: 562 | W23: 953 | X23: 54285
A24: BT(생명공학기술) | B24: 기초/기반기술 | C24: 유전체기반 기술 | D24: 1480 | E24: 151 | F24: - | G24: - | H24: - | I24: 37 | J24: 104 | K24: 72 | L24: - | M24: - | N24: 10 | O24: 113 | P24: - | Q24: 29 | R24: 37 | S24: - | T24: 41 | U24: 36 | V24: 3 | W24: 110 | X24: 2221
C25: 단백질체 연구 | D25: 317 | E25: 45 | F25: - | G25: - | H25: - | I25: 1 | J25: 6 | K25: 16 | L25: - | M25: - | N25: - | O25: 26 | P25: - | Q25: 16 | R25: - | S25: - | T25: 30 | U25: - | V25: - | W25: 8 | X25: 465
C26: 생물정보학 기술 | D26: 389 | E26: 96 | F26: - | G26: - | H26: - | I26: 5 | J26: 38 | K26: 7 | L26: - | M26: - | N26: 3 | O26: 51 | P26: 7 | Q26: 28 | R26: 19 | S26: - | T26: 14 | U26: 7 | V26: 12 | W26: 39 | X26: 715
C27: 생명현상 및 기능연구 | D27: 2941 | E27: 663 | F27: - | G27: - | H27: - | I27: 7 | J27: 71 | K27: 8 | L27: - | M27: - | N27: - | O27: 101 | P27: - | Q27: 39 | R27: 5 | S27: - | T27: 25 | U27: - | V27: 49 | W27: 82 | X27: 3990
C28: 뇌신경과학 연구 | D28: 1405 | E28: 199 | F28: - | G28: - | H28: - | I28: - | J28: - | K28: 116 | L28: - | M28: - | N28: - | O28: 79 | P28: 3 | Q28: 63 | R28: 11 | S28: - | T28: 24 | U28: - | V28: - | W28: 58 | X28: 1957
C29: 생물공정 기술 | D29: 293 | E29: 32 | F29: - | G29: - | H29: - | I29: 12 | J29: 14 | K29: 12 | L29: - | M29: - | N29: - | O29: 54 | P29: 10 | Q29: 245 | R29: - | S29: - | T29: 78 | U29: 37 | V29: - | W29: - | X29: 786
C30: 생명공학 산물 안전성 및 유효성 평가기술 | D30: 418 | E30: 15 | F30: - | G30: - | H30: - | I30: 18 | J30: 36 | K30: 59 | L30: - | M30: - | N30: - | O30: 202 | P30: 10 | Q30: 125 | R30: 91 | S30: - | T30: 48 | U30: 4 | V30: - | W30: 10 | X30: 1035
C31: 바이오칩 개발기술 | D31: 359 | E31: 40 | F31: - | G31: - | H31: - | I31: 7 | J31: - | K31: 78 | L31: - | M31: - | N31: - | O31: 25 | P31: - | Q31: 197 | R31: - | S31: - | T31: 56 | U31: - | V31: - | W31: 7 | X31: 769
C32: 기타 기초･기반기술 | D32: 1218 | E32: 152 | F32: - | G32: 29 | H32: - | I32: 26 | J32: 324 | K32: 60 | L32: - | M32: - | N32: 11 | O32: 339 | P32: 12 | Q32: 305 | R32: 40 | S32: - | T32: 118 | U32: 90 | V32: 55 | W32: 14 | X32: 2791
B33: 보건의료 관련응용 | C33: 바이오신약 개발기술 | D33: 1979 | E33: 267 | F33: - | G33: - | H33: - | I33: 24 | J33: - | K33: 697 | L33: - | M33: - | N33: 82 | O33: 479 | P33: - | Q33: 451 | R33: 43 | S33: - | T33: 251 | U33: 24 | V33: - | W33: 330 | X33: 4627
C34: 난치성 질환 치료기술 | D34: 2209 | E34: 253 | F34: - | G34: - | H34: - | I34: 10 | J34: - | K34: 281 | L34: - | M34: - | N34: - | O34: 415 | P34: - | Q34: 107 | R34: 14 | S34: - | T34: 100 | U34: - | V34: - | W34: 31 | X34: 3421
C35: 생체조직 재생기술 | D35: 544 | E35: 62 | F35: - | G35: - | H35: - | I35: 1 | J35: - | K35: 49 | L35: - | M35: - | N35: 16 | O35: 192 | P35: 2 | Q35: 118 | R35: 2 | S35: - | T35: 67 | U35: - | V35: - | W35: 29 | X35: 1084
C36: 유전자 치료기술 | D36: 235 | E36: 27 | F36: - | G36: - | H36: - | I36: - | J36: - | K36: 57 | L36: - | M36: - | N36: 3 | O36: 34 | P36: - | Q36: 34 | R36: 16 | S36: - | T36: 23 | U36: - | V36: - | W36: 3 | X36: 433
C37: 기능성 바이오소재 기반기술 | D37: 917 | E37: 100 | F37: - | G37: - | H37: - | I37: 54 | J37: 58 | K37: 70 | L37: - | M37: - | N37: - | O37: 60 | P37: 29 | Q37: 517 | R37: 14 | S37: - | T37: 364 | U37: 115 | V37: 13 | W37: 1 | X37: 2312
C38: 한방응용기술 | D38: 789 | E38: 40 | F38: - | G38: - | H38: - | I38: 5 | J38: - | K38: - | L38: - | M38: - | N38: - | O38: 197 | P38: - | Q38: - | R38: 23 | S38: - | T38: 11 | U38: 4 | V38: - | W38: - | X38: 1069
C39: 의과학･의공학 기술 | D39: 1844 | E39: 291 | F39: - | G39: - | H39: - | I39: 3 | J39: 4 | K39: 907 | L39: - | M39: 65 | N39: 10 | O39: 695 | P39: 12 | Q39: 529 | R39: 61 | S39: 2 | T39: 341 | U39: 26 | V39: - | W39: 36 | X39: 4827
C40: 식품생명공학기술 | D40: 406 | E40: 74 | F40: - | G40: - | H40: - | I40: 70 | J40: 54 | K40: - | L40: - | M40: - | N40: - | O40: - | P40: 8 | Q40: 60 | R40: 100 | S40: - | T40: 155 | U40: 24 | V40: - | W40: 5 | X40: 955
C41: 기타 보건의료관련 응용기술 | D41: 2058 | E41: 300 | F41: - | G41: 3 | H41: - | I41: 36 | J41: 24 | K41: 673 | L41: - | M41: - | N41: - | O41: 2300 | P41: 10 | Q41: 845 | R41: 229 | S41: 3 | T41: 620 | U41: 50 | V41: 21 | W41: 885 | X41: 8058
B42: 농업/해양/환경 관련응용 | C42: 유전자 변형 생물체 개발기술 | D42: 151 | E42: 32 | F42: - | G42: - | H42: - | I42: 9 | J42: 388 | K42: 31 | L42: - | M42: - | N42: - | O42: 9 | P42: - | Q42: 18 | R42: - | S42: - | T42: 3 | U42: 18 | V42: - | W42: 2 | X42: 661
C43: 농업･해양 생물자원의 보존 및 이용기술 | D43: 221 | E43: 145 | F43: - | G43: - | H43: - | I43: 178 | J43: 2118 | K43: 13 | L43: - | M43: - | N43: 13 | O43: 1 | P43: 271 | Q43: 8 | R43: - | S43: - | T43: 62 | U43: 473 | V43: 51 | W43: - | X43: 3553
C44: 동식물 병해충 제어기술 | D44: 147 | E44: 44 | F44: - | G44: - | H44: - | I44: 394 | J44: 376 | K44: 1 | L44: - | M44: - | N44: - | O44: - | P44: 11 | Q44: 14 | R44: - | S44: - | T44: 33 | U44: 47 | V44: 11 | W44: - | X44: 1077
C45: 환경 생명공학기술 | D45: 149 | E45: 33 | F45: - | G45: - | H45: - | I45: 7 | J45: 44 | K45: 11 | L45: - | M45: - | N45: - | O45: - | P45: 11 | Q45: 18 | R45: 3 | S45: - | T45: 13 | U45: 12 | V45: 534 | W45: - | X45: 836
C46: 기타 농업･해양･환경 응용기술 | D46: 250 | E46: 86 | F46: - | G46: 2 | H46: 20 | I46: 789 | J46: 3422 | K46: 197 | L46: - | M46: - | N46: - | O46: - | P46: 39 | Q46: 59 | R46: 27 | S46: - | T46: 111 | U46: 579 | V46: 9 | W46: 9 | X46: 5600
B47: 소계 | D47: 20718 | E47: 3147 | F47: 0 | G47: 34 | H47: 20 | I47: 1692 | J47: 7080 | K47: 3416 | L47: 0 | M47: 65 | N47: 147 | O47: 5370 | P47: 436 | Q47: 3822 | R47: 734 | S47: 5 | T47: 2589 | U47: 1546 | V47: 758 | W47: 1660 | X47: 53240
A48: NT(나노기술) | B48: 나노소자 및 시스템 | C48: 나노전자 소자기술 | D48: 1186 | E48: 68 | F48: - | G48: - | H48: - | I48: - | J48: 5 | K48: - | L48: - | M48: - | N48: - | O48: - | P48: - | Q48: 318 | R48: - | S48: - | T48: 37 | U48: - | V48: - | W48: - | X48: 1614
C49: 나노정보 저장기술 | D49: 56 | E49: 23 | F49: - | G49: - | H49: - | I49: - | J49: - | K49: - | L49: - | M49: - | N49: - | O49: - | P49: - | Q49: 2 | R49: - | S49: - | T49: - | U49: - | V49: - | W49: - | X49: 81
C50: 가변 파장 광소자기술 | D50: 108 | E50: 4 | F50: - | G50: - | H50: - | I50: - | J50: - | K50: 22 | L50: - | M50: - | N50: - | O50: - | P50: - | Q50: 52 | R50: - | S50: - | T50: 10 | U50: - | V50: - | W50: - | X50: 196
C51: 나노 photonics기술 | D51: 325 | E51: 25 | F51: - | G51: - | H51: - | I51: - | J51: - | K51: - | L51: - | M51: - | N51: 6 | O51: 1 | P51: - | Q51: 65 | R51: - | S51: - | T51: 15 | U51: - | V51: - | W51: - | X51: 437
C52: 기타 나노소자 및 시스템기술 | D52: 356 | E52: 37 | F52: - | G52: - | H52: - | I52: - | J52: - | K52: - | L52: - | M52: - | N52: 7 | O52: - | P52: - | Q52: 94 | R52: - | S52: - | T52: 29 | U52: - | V52: 5 | W52: - | X52: 528
B53: 나노소재 | C53: 나노소재기술(나노분말소재, 광학용 나노소재, 고기능 시너지 소재, 촉매･환경･기능소재에 중점) | D53: 1960 | E53: 363 | F53: - | G53: 1 | H53: - | I53: 17 | J53: - | K53: 70 | L53: - | M53: - | N53: 34 | O53: 2 | P53: 5 | Q53: 1533 | R53: - | S53: - | T53: 374 | U53: 4 | V53: 184 | W53: - | X53: 4548
C54: 기타 나노소재기술 | D54: 1003 | E54: 179 | F54: - | G54: 37 | H54: - | I54: 4 | J54: - | K54: 21 | L54: - | M54: - | N54: 57 | O54: - | P54: 5 | Q54: 546 | R54: - | S54: - | T54: 201 | U54: 2 | V54: - | W54: 6 | X54: 2061
B55: 나노 바이오보건 | C55: 나노 바이오 물질 합성 및 분석기술 | D55: 330 | E55: 53 | F55: - | G55: - | H55: - | I55: - | J55: - | K55: 23 | L55: - | M55: - | N55: - | O55: 11 | P55: - | Q55: 48 | R55: - | S55: - | T55: 8 | U55: - | V55: 3 | W55: - | X55: 476
C56: 의약 약물전달 시스템 | D56: 176 | E56: 25 | F56: - | G56: - | H56: - | I56: - | J56: - | K56: 32 | L56: - | M56: - | N56: - | O56: 87 | P56: 1 | Q56: 62 | R56: 1 | S56: - | T56: 26 | U56: 2 | V56: - | W56: - | X56: 411
C57: 기타 나노바이오보건기술 | D57: 165 | E57: 7 | F57: - | G57: - | H57: - | I57: - | J57: - | K57: 18 | L57: - | M57: - | N57: 95 | O57: 12 | P57: - | Q57: 33 | R57: 3 | S57: - | T57: 5 | U57: - | V57: - | W57: - | X57: 339
B58: 나노기반/공정 | C58: 원자･분자 레벨 물질 조작기술 | D58: 274 | E58: 15 | F58: - | G58: - | H58: - | I58: - | J58: - | K58: - | L58: - | M58: - | N58: 29 | O58: - | P58: - | Q58: 67 | R58: - | S58: - | T58: 10 | U58: - | V58: - | W58: - | X58: 395
C59: 나노 측정기술(100 nm이하) | D59: 190 | E59: 10 | F59: - | G59: - | H59: - | I59: - | J59: - | K59: 1 | L59: - | M59: - | N59: - | O59: - | P59: - | Q59: 208 | R59: - | S59: - | T59: 31 | U59: - | V59: - | W59: - | X59: 440
C60: 나노모사기술 | D60: 82 | E60: 7 | F60: - | G60: - | H60: - | I60: - | J60: - | K60: - | L60: - | M60: - | N60: - | O60: - | P60: - | Q60: - | R60: - | S60: - | T60: 1 | U60: - | V60: - | W60: - | X60: 90
C61: 계면 혹은 표면의 나노구조화기술 | D61: 141 | E61: 16 | F61: - | G61: - | H61: - | I61: - | J61: - | K61: 5 | L61: - | M61: - | N61: 17 | O61: - | P61: - | Q61: 26 | R61: - | S61: - | T61: 33 | U61: - | V61: - | W61: - | X61: 238
C62: 나노 신기능 분자합성기술 | D62: 176 | E62: 32 | F62: - | G62: - | H62: - | I62: - | J62: - | K62: - | L62: - | M62: - | N62: - | O62: - | P62: - | Q62: 13 | R62: - | S62: - | T62: 4 | U62: - | V62: 4 | W62: - | X62: 228
C63: 나노패터닝 공정기술 | D63: 167 | E63: 28 | F63: - | G63: - | H63: - | I63: - | J63: - | K63: 6 | L63: - | M63: - | N63: 7 | O63: - | P63: - | Q63: 93 | R63: - | S63: - | T63: 22 | U63: - | V63: - | W63: - | X63: 323
C64: 나노화학 공정기술 | D64: 182 | E64: 9 | F64: - | G64: - | H64: - | I64: - | J64: - | K64: 3 | L64: - | M64: - | N64: 19 | O64: - | P64: - | Q64: 207 | R64: - | S64: - | T64: 27 | U64: - | V64: - | W64: - | X64: 447
C65: 기타 나노기반 공정기술 | D65: 416 | E65: 30 | F65: - | G65: - | H65: - | I65: - | J65: - | K65: 7 | L65: - | M65: - | N65: 8 | O65: 1 | P65: - | Q65: 333 | R65: - | S65: - | T65: 75 | U65: 2 | V65: 4 | W65: - | X65: 877
B66: 소계 | D66: 7296 | E66: 931 | F66: 0 | G66: 38 | H66: 0 | I66: 21 | J66: 5 | K66: 207 | L66: 0 | M66: 0 | N66: 281 | O66: 114 | P66: 10 | Q66: 3698 | R66: 4 | S66: 0 | T66: 908 | U66: 11 | V66: 200 | W66: 6 | X66: 13729
A67: ST(우주항공기술) | B67: 위성기술 | C67: 위성설계 및 개발기술 | D67: 1514 | E67: 2 | F67: - | G67: 148 | H67: - | I67: - | J67: - | K67: 952 | L67: - | M67: - | N67: 1713 | O67: - | P67: - | Q67: - | R67: - | S67: - | T67: 5 | U67: 123 | V67: 2 | W67: 39 | X67: 4497
C68: 위성관제기술 | D68: 163 | E68: - | F68: - | G68: - | H68: 98 | I68: - | J68: - | K68: 18 | L68: - | M68: - | N68: 9 | O68: - | P68: - | Q68: 0 | R68: - | S68: - | T68: 0 | U68: 49 | V68: - | W68: 10 | X68: 346
C69: 차세대 통신위성 탑재체기술 | D69: 156 | E69: 7 | F69: - | G69: 71 | H69: - | I69: - | J69: - | K69: 305 | L69: - | M69: - | N69: 245 | O69: - | P69: - | Q69: 3 | R69: - | S69: - | T69: 3 | U69: 158 | V69: - | W69: - | X69: 948
C70: 기타 위성기술 | D70: 458 | E70: 5 | F70: - | G70: 17 | H70: 7 | I70: - | J70: 13 | K70: 25 | L70: - | M70: - | N70: 587 | O70: - | P70: - | Q70: 3 | R70: - | S70: - | T70: 14 | U70: 75 | V70: 5 | W70: 68 | X70: 1278
B71: 발사체기술 | C71: 로켓추진 기관기술 | D71: 1387 | E71: 2 | F71: - | G71: - | H71: - | I71: - | J71: - | K71: 33 | L71: - | M71: - | N71: 425 | O71: - | P71: - | Q71: 6 | R71: - | S71: - | T71: 6 | U71: - | V71: - | W71: - | X71: 1859
C72: 소형위성 발사체개발기술 | D72: 51 | E72: 1 | F72: - | G72: - | H72: - | I72: - | J72: - | K72: 3 | L72: - | M72: - | N72: 185 | O72: - | P72: - | Q72: 7 | R72: - | S72: - | T72: 2 | U72: - | V72: - | W72: - | X72: 249
C73: 발사운용, 통제 및 관제기술 | D73: 97 | E73: - | F73: - | G73: - | H73: - | I73: - | J73: - | K73: - | L73: - | M73: - | N73: 16 | O73: - | P73: - | Q73: 4 | R73: - | S73: - | T73: 1 | U73: - | V73: - | W73: - | X73: 118
C74: 기타 발사체기술 | D74: 26 | E74: 52 | F74: - | G74: - | H74: - | I74: - | J74: - | K74: - | L74: - | M74: - | N74: 375 | O74: - | P74: - | Q74: 22 | R74: - | S74: - | T74: 6 | U74: - | V74: - | W74: - | X74: 482
B75: 항공기기술 | C75: 항공기 체계종합 및 비행성능기반기술 | D75: 171 | E75: 13 | F75: - | G75: 44 | H75: - | I75: - | J75: - | K75: 50 | L75: - | M75: - | N75: 3382 | O75: - | P75: - | Q75: 171 | R75: - | S75: - | T75: 3 | U75: - | V75: - | W75: - | X75: 3835
C76: 지능형 자율비행 무인비행기기 시스템(UAV)기술 | D76: 284 | E76: 38 | F76: - | G76: 32 | H76: - | I76: - | J76: - | K76: 181 | L76: - | M76: - | N76: 1043 | O76: - | P76: - | Q76: 62 | R76: - | S76: - | T76: 45 | U76: 2 | V76: - | W76: 9 | X76: 1695
C77: 다목적 헬리콥터기술개발 | D77: 11 | E77: 1 | F77: - | G77: - | H77: - | I77: - | J77: - | K77: - | L77: - | M77: - | N77: 1544 | O77: - | P77: - | Q77: 21 | R77: - | S77: - | T77: 1 | U77: - | V77: - | W77: - | X77: 1577
C78: 기타항공기기술 | D78: 82 | E78: 3 | F78: 84 | G78: 76 | H78: - | I78: - | J78: - | K78: 140 | L78: - | M78: 7 | N78: 1226 | O78: - | P78: - | Q78: 589 | R78: - | S78: - | T78: 58 | U78: - | V78: - | W78: - | X78: 2265
B79: 기타 | C79: 기타 우주항공기술 | D79: 1355 | E79: 26 | F79: - | G79: 226 | H79: 2 | I79: - | J79: - | K79: 56 | L79: - | M79: - | N79: 159 | O79: - | P79: - | Q79: 177 | R79: - | S79: - | T79: 15 | U79: 431 | V79: - | W79: - | X79: 2447
B80: 소계 | D80: 5754 | E80: 151 | F80: 84 | G80: 615 | H80: 106 | I80: 0 | J80: 13 | K80: 1762 | L80: 0 | M80: 7 | N80: 10909 | O80: 0 | P80: 0 | Q80: 1065 | R80: 0 | S80: 0 | T80: 159 | U80: 839 | V80: 6 | W80: 125 | X80: 21595
A81: ET(환경기술) | B81: 환경기반 | C81: 대기오염물질 저감 및 제거기술 | D81: 691 | E81: 44 | F81: - | G81: 45 | H81: - | I81: 20 | J81: 60 | K81: 144 | L81: - | M81: - | N81: - | O81: 0 | P81: 17 | Q81: 1286 | R81: 0 | S81: - | T81: 346 | U81: 68 | V81: 295 | W81: 18 | X81: 3036
C82: 자연환경･오염토양･지하수의 정화･복원기술 | D82: 553 | E82: 70 | F82: - | G82: - | H82: - | I82: - | J82: 34 | K82: - | L82: - | M82: - | N82: - | O82: - | P82: 7 | Q82: - | R82: - | S82: 2 | T82: 7 | U82: - | V82: 138 | W82: 4 | X82: 814
C83: 수질오염처리 및 재이용기술 | D83: 176 | E83: 34 | F83: - | G83: 20 | H83: - | I83: 1 | J83: - | K83: 8 | L83: - | M83: - | N83: - | O83: - | P83: - | Q83: 77 | R83: - | S83: - | T83: 95 | U83: 7 | V83: 41 | W83: - | X83: 458
C84: 폐기물 처리 및 활용기술 | D84: 467 | E84: 48 | F84: - | G84: 92 | H84: - | I84: 28 | J84: 24 | K84: 5 | L84: - | M84: 6 | N84: - | O84: - | P84: 2 | Q84: 991 | R84: 3 | S84: 5 | T84: 325 | U84: 6 | V84: 28 | W84: 6 | X84: 2035
C85: 환경관리･정보 및 시스템기술 | D85: 424 | E85: 106 | F85: - | G85: 176 | H85: 42 | I85: 17 | J85: 51 | K85: 13 | L85: - | M85: - | N85: 5 | O85: - | P85: 36 | Q85: 142 | R85: - | S85: 45 | T85: 117 | U85: 61 | V85: 398 | W85: 83 | X85: 1716
C86: 기타 환경기반기술 | D86: 915 | E86: 156 | F86: - | G86: 122 | H86: 133 | I86: 1 | J86: 75 | K86: 10 | L86: - | M86: - | N86: 57 | O86: - | P86: 514 | Q86: 589 | R86: 15 | S86: 13 | T86: 236 | U86: 2 | V86: 728 | W86: 20 | X86: 3587
B87: 에너지 | C87: 에너지소재 기술 | D87: 1939 | E87: 193 | F87: - | G87: 35 | H87: - | I87: 1 | J87: - | K87: 26 | L87: - | M87: - | N87: 49 | O87: - | P87: - | Q87: 2379 | R87: - | S87: - | T87: 305 | U87: 106 | V87: - | W87: - | X87: 5032
C88: 미활용 에너지 이용기술 | D88: 309 | E88: 18 | F88: - | G88: - | H88: - | I88: 7 | J88: 4 | K88: 1119 | L88: - | M88: - | N88: - | O88: - | P88: 8 | Q88: 723 | R88: - | S88: - | T88: 70 | U88: 36 | V88: 5 | W88: - | X88: 2297
C89: 고효율 반응분리공정기술 | D89: 142 | E89: 3 | F89: - | G89: - | H89: - | I89: - | J89: - | K89: - | L89: - | M89: - | N89: 7 | O89: - | P89: - | Q89: 296 | R89: - | S89: - | T89: 7 | U89: - | V89: - | W89: - | X89: 455
C90: 연료전지기술 | D90: 257 | E90: 71 | F90: - | G90: 54 | H90: - | I90: - | J90: 1 | K90: 75 | L90: - | M90: - | N90: 130 | O90: - | P90: - | Q90: 1615 | R90: - | S90: - | T90: 135 | U90: 28 | V90: - | W90: - | X90: 2365
C91: 수소생산 이용기술 | D91: 598 | E91: 42 | F91: - | G91: 291 | H91: - | I91: 9 | J91: 27 | K91: 38 | L91: - | M91: - | N91: 16 | O91: - | P91: - | Q91: 1423 | R91: - | S91: - | T91: 227 | U91: 70 | V91: - | W91: - | X91: 2740
C92: 바이오에너지 기술 | D92: 112 | E92: 6 | F92: - | G92: 51 | H92: - | I92: 14 | J92: 8 | K92: 15 | L92: - | M92: - | N92: - | O92: - | P92: 8 | Q92: 58 | R92: - | S92: - | T92: 49 | U92: 7 | V92: 1 | W92: - | X92: 329
C93: 에너지저장 이용기술 | D93: 402 | E93: 32 | F93: - | G93: 56 | H93: - | I93: 1 | J93: 1 | K93: 43 | L93: - | M93: - | N93: 28 | O93: - | P93: 5 | Q93: 1552 | R93: - | S93: - | T93: 226 | U93: 56 | V93: - | W93: 16 | X93: 2420
C94: 기타 에너지기술 | D94: 3455 | E94: 77 | F94: - | G94: 174 | H94: - | I94: 13 | J94: 22 | K94: 122 | L94: - | M94: - | N94: 513 | O94: - | P94: - | Q94: 6081 | R94: - | S94: 169 | T94: 436 | U94: 217 | V94: 9 | W94: 48 | X94: 11337
B95: 청정생산 | C95: 청정원천공정 기술 | D95: 149 | E95: 3 | F95: - | G95: 50 | H95: - | I95: - | J95: - | K95: 6 | L95: - | M95: - | N95: - | O95: - | P95: 3 | Q95: 157 | R95: - | S95: - | T95: 29 | U95: - | V95: - | W95: - | X95: 396
C96: 환경친화형소재(Eco-material)개발기술 | D96: 292 | E96: 12 | F96: - | G96: 61 | H96: - | I96: 3 | J96: 15 | K96: 11 | L96: - | M96: - | N96: - | O96: 2 | P96: 29 | Q96: 752 | R96: 2 | S96: - | T96: 261 | U96: 10 | V96: 26 | W96: - | X96: 1474
C97: 유해성 원부재료 대체기술 | D97: 11 | E97: - | F97: - | G97: - | H97: - | I97: - | J97: - | K97: - | L97: - | M97: - | N97: - | O97: - | P97: 2 | Q97: 102 | R97: - | S97: - | T97: 45 | U97: - | V97: 13 | W97: - | X97: 173
C98: 공정내재자원화(Internal Recycle) 기술 | D98: 68 | E98: 0 | F98: - | G98: 5 | H98: - | I98: - | J98: - | K98: - | L98: - | M98: - | N98: - | O98: - | P98: - | Q98: 105 | R98: - | S98: - | T98: 27 | U98: - | V98: - | W98: - | X98: 205
C99: 기타 청정생산기술 | D99: 173 | E99: 13 | F99: - | G99: 43 | H99: - | I99: 1 | J99: 62 | K99: 3 | L99: - | M99: - | N99: - | O99: - | P99: 2 | Q99: 333 | R99: - | S99: - | T99: 139 | U99: - | V99: 13 | W99: - | X99: 784
B100: 해양환경 | C100: 해양환경 관리기술 | D100: 97 | E100: 23 | F100: - | G100: - | H100: - | I100: - | J100: - | K100: 126 | L100: - | M100: - | N100: 33 | O100: - | P100: 0 | Q100: 89 | R100: 32 | S100: 2 | T100: 45 | U100: 948 | V100: - | W100: 5 | X100: 1402
C101: 연안생태계 복원기술 | D101: 4 | E101: 6 | F101: - | G101: 4 | H101: - | I101: - | J101: - | K101: - | L101: - | M101: - | N101: - | O101: - | P101: - | Q101: - | R101: - | S101: - | T101: - | U101: 112 | V101: - | W101: - | X101: 126
C102: 기타 해양환경기술 | D102: 125 | E102: 18 | F102: - | G102: 5 | H102: 8 | I102: - | J102: - | K102: 12 | L102: - | M102: - | N102: 5 | O102: - | P102: - | Q102: 99 | R102: - | S102: 13 | T102: 44 | U102: 453 | V102: - | W102: 41 | X102: 822
B103: 소계 | D103: 11359 | E103: 975 | F103: 0 | G103: 1282 | H103: 183 | I103: 116 | J103: 384 | K103: 1774 | L103: 0 | M103: 6 | N103: 843 | O103: 2 | P103: 634 | Q103: 18849 | R103: 53 | S103: 250 | T103: 3172 | U103: 2188 | V103: 1697 | W103: 240 | X103: 44005
A104: CT(문화기술) | B104: 문화컨텐츠 | C104: 가상현실 및 인공지능 응용기술 | D104: 1191 | E104: 18 | F104: 15 | G104: 69 | H104: - | I104: - | J104: 3 | K104: 153 | L104: - | M104: 425 | N104: 33 | O104: 118 | P104: - | Q104: 307 | R104: 4 | S104: 6 | T104: 215 | U104: - | V104: - | W104: 104 | X104: 2661
C105: 디지털영상･음향 및 디자인기술 | D105: 66 | E105: 7 | F105: - | G105: - | H105: - | I105: - | J105: - | K105: - | L105: - | M105: 34 | N105: - | O105: - | P105: 3 | Q105: 6 | R105: - | S105: - | T105: 13 | U105: 3 | V105: - | W105: 5 | X105: 136
C106: 디지털 컨텐츠 저작도구 | D106: 139 | E106: 11 | F106: - | G106: - | H106: - | I106: - | J106: - | K106: 9 | L106: - | M106: 114 | N106: - | O106: 10 | P106: 1 | Q106: 25 | R106: - | S106: - | T106: 50 | U106: - | V106: - | W106: - | X106: 359
C107: 게임엔진 제작 및 기반기술 | D107: 2 | E107: - | F107: - | G107: - | H107: - | I107: - | J107: - | K107: - | L107: - | M107: 31 | N107: - | O107: - | P107: - | Q107: - | R107: - | S107: - | T107: 5 | U107: - | V107: - | W107: - | X107: 37
C108: 기타 문화컨텐츠기술 | D108: 44 | E108: 21 | F108: - | G108: - | H108: - | I108: - | J108: 4 | K108: - | L108: - | M108: 247 | N108: - | O108: - | P108: 6 | Q108: 17 | R108: - | S108: - | T108: 32 | U108: 7 | V108: - | W108: - | X108: 378
B109: 생활문화 | C109: 사이버 커뮤니케이션 기술 | D109: 17 | E109: 2 | F109: - | G109: - | H109: - | I109: - | J109: - | K109: - | L109: - | M109: - | N109: - | O109: - | P109: - | Q109: 16 | R109: - | S109: - | T109: 4 | U109: - | V109: - | W109: 4 | X109: 44
C110: 인터엑티브 미디어기술 | D110: 45 | E110: 6 | F110: - | G110: - | H110: - | I110: - | J110: - | K110: 4 | L110: - | M110: 23 | N110: - | O110: 5 | P110: - | Q110: 12 | R110: - | S110: - | T110: 11 | U110: - | V110: - | W110: - | X110: 105
C111: 제품디자인기술 | D111: 7 | E111: 8 | F111: - | G111: - | H111: - | I111: 4 | J111: 7 | K111: 17 | L111: - | M111: - | N111: - | O111: 2 | P111: - | Q111: 278 | R111: - | S111: - | T111: 21 | U111: - | V111: - | W111: - | X111: 343
C112: 기타 생활문화기술 | D112: 6 | E112: 4 | F112: - | G112: - | H112: - | I112: - | J112: 12 | K112: 3 | L112: - | M112: 10 | N112: - | O112: 1 | P112: - | Q112: 35 | R112: - | S112: - | T112: 9 | U112: - | V112: - | W112: - | X112: 79
B113: 문화유산 | C113: 문화원형 복원기술 | D113: 3 | E113: 5 | F113: - | G113: - | H113: - | I113: - | J113: - | K113: 3 | L113: 136 | M113: 10 | N113: - | O113: - | P113: - | Q113: - | R113: - | S113: - | T113: - | U113: - | V113: - | W113: - | X113: 156
C114: 기타 문화유산기술 | D114: 5 | E114: 13 | F114: - | G114: - | H114: - | I114: - | J114: 3 | K114: 11 | L114: 8 | M114: 2 | N114: - | O114: - | P114: - | Q114: 8 | R114: - | S114: - | T114: - | U114: - | V114: - | W114: - | X114: 50
B115: 소계 | D115: 1526 | E115: 94 | F115: 15 | G115: 69 | H115: 0 | I115: 4 | J115: 29 | K115: 197 | L115: 144 | M115: 895 | N115: 33 | O115: 136 | P115: 10 | Q115: 702 | R115: 4 | S115: 6 | T115: 360 | U115: 10 | V115: 0 | W115: 113 | X115: 4348
A116: 기타 | B116: 위의 미래유망신기술(6T) 103개 세분류에 속하지 않는 기타 연구 | D116: 25870 | E116: 11549 | F116: 607 | G116: 2249 | H116: 862 | I116: 551 | J116: 1082 | K116: 699 | L116: 534 | M116: 67 | N116: 27204 | O116: 324 | P116: 435 | Q116: 14809 | R116: 515 | S116: 682 | T116: 4384 | U116: 3722 | V116: 1009 | W116: 1806 | X116: 98961
A117: 합계 | D117: 94037 | E117: 18222 | F117: 806 | G117: 6032 | H117: 1218 | I117: 2535 | J117: 8777 | K117: 9360 | L117: 678 | M117: 1291 | N117: 45992 | O117: 6140 | P117: 1625 | Q117: 54559 | R117: 1341 | S117: 979 | T117: 18224 | U117: 9212 | V117: 4232 | W117: 4903 | X117: 290164
A119: * 기술분야별 집행현황 분석은 인문사회 분야를 제외한 과학기술 분야와 국방(비밀 세부과제 포함) 분야의 연구개발사업이 분석대상(2023년의 경우에는 63,879개 세부과제, 29조 164억원)임
A120: ** 기타 부처는 개인정보보호위원회, 경찰청, 고용노동부, 공정거래위원회, 관세청, 국무조정실, 기획재정부, 대통령경호처, 법무부, 법제처, 새만금개발청, 소방청, 여성가족부, 외교부, 인사혁신처, 조달청, 질병관리청, 통일부, 특허청, 해양경찰청, 행정안전부, 행정중심복합도시건설청의 총 22개 부･처･청･위원회의 합계임

Sheet 2-9
A1: 2-9. 부처별 국가전략기술 세부중점기술별 집행 현황(2023년) | H1: 목차
W3: (단위 : 억원)
A4: 전략기술 | B4: 세부중점기술 | C4: 과학기술정보통신부 | D4: 교육부 | E4: 국방부 | F4: 국토교통부 | G4: 기상청 | H4: 농림축산식품부 | I4: 농촌진흥청 | J4: 다부처 | K4: 문화재청 | L4: 문화체육관광부 | M4: 방위사업청 | N4: 보건복지부 | O4: 산림청 | P4: 산업통상자원부 | Q4: 식품의약품안전처 | R4: 원자력안전위원회 | S4: 중소벤처기업부 | T4: 해양수산부 | U4: 환경부 | V4: 기타 부처 | W4: 합계
A8: 반도체·디스플레이 | B8: 반도체·디스플레이 소재·부품·장비 | C8: 2432 | D8: 562 | E8: 0 | F8: 6 | G8: 0 | H8: 0 | I8: 0 | J8: 215 | K8: 0 | L8: 0 | M8: 0 | N8: 0 | O8: 0 | P8: 497 | Q8: 0 | R8: 0 | S8: 417 | T8: 4 | U8: 0 | V8: 0 | W8: 4133
B9: 반도체 첨단패키징 | C9: 164 | D9: 41 | E9: 0 | F9: 0 | G9: 0 | H9: 0 | I9: 0 | J9: 6 | K9: 0 | L9: 0 | M9: 0 | N9: 0 | O9: 0 | P9: 32 | Q9: 0 | R9: 0 | S9: 27 | T9: 0 | U9: 0 | V9: 0 | W9: 270
B10: 차세대 고성능 센서 | C10: 626 | D10: 81 | E10: 0 | F10: 57 | G10: 0 | H10: 0 | I10: 5 | J10: 79 | K10: 0 | L10: 0 | M10: 47 | N10: 0 | O10: 0 | P10: 246 | Q10: 0 | R10: 0 | S10: 50 | T10: 14 | U10: 14 | V10: 0 | W10: 1218
B11: 고성능·저전력 인공지능 반도체 | C11: 2188 | D11: 187 | E11: 0 | F11: 0 | G11: 0 | H11: 0 | I11: 0 | J11: 36 | K11: 0 | L11: 0 | M11: 0 | N11: 0 | O11: 0 | P11: 129 | Q11: 0 | R11: 0 | S11: 41 | T11: 0 | U11: 0 | V11: 0 | W11: 2581
B12: 고집적·저항기반 메모리 | C12: 320 | D12: 20 | E12: 0 | F12: 0 | G12: 0 | H12: 0 | I12: 6 | J12: 0 | K12: 0 | L12: 0 | M12: 0 | N12: 0 | O12: 0 | P12: 38 | Q12: 0 | R12: 0 | S12: 14 | T12: 0 | U12: 0 | V12: 6 | W12: 404
B13: 전력반도체 | C13: 233 | D13: 50 | E13: 0 | F13: 0 | G13: 0 | H13: 0 | I13: 0 | J13: 0 | K13: 0 | L13: 0 | M13: 10 | N13: 0 | O13: 0 | P13: 133 | Q13: 0 | R13: 0 | S13: 55 | T13: 0 | U13: 0 | V13: 0 | W13: 480
B14: 무기발광 디스플레이 | C14: 154 | D14: 29 | E14: 0 | F14: 0 | G14: 0 | H14: 0 | I14: 0 | J14: 0 | K14: 0 | L14: 0 | M14: 0 | N14: 0 | O14: 0 | P14: 0 | Q14: 0 | R14: 0 | S14: 7 | T14: 0 | U14: 0 | V14: 0 | W14: 190
B15: 프리폼 디스플레이 | C15: 112 | D15: 5 | E15: 0 | F15: 0 | G15: 0 | H15: 0 | I15: 0 | J15: 0 | K15: 0 | L15: 0 | M15: 0 | N15: 0 | O15: 0 | P15: 0 | Q15: 0 | R15: 0 | S15: 3 | T15: 0 | U15: 0 | V15: 0 | W15: 120
B16: 소계 | C16: 6230 | D16: 976 | E16: 0 | F16: 63 | G16: 0 | H16: 0 | I16: 11 | J16: 336 | K16: 0 | L16: 0 | M16: 57 | N16: 0 | O16: 0 | P16: 1073 | Q16: 0 | R16: 0 | S16: 614 | T16: 18 | U16: 14 | V16: 6 | W16: 9397
A17: 이차전지 | B17: 이차전지 모듈·시스템 | C17: 151 | D17: 56 | E17: 0 | F17: 0 | G17: 0 | H17: 0 | I17: 0 | J17: 45 | K17: 0 | L17: 0 | M17: 57 | N17: 0 | O17: 0 | P17: 68 | Q17: 0 | R17: 0 | S17: 62 | T17: 0 | U17: 0 | V17: 0 | W17: 440
B18: 이차전지 재사용·재활용 | C18: 81 | D18: 8 | E18: 0 | F18: 0 | G18: 0 | H18: 0 | I18: 0 | J18: 0 | K18: 0 | L18: 0 | M18: 0 | N18: 0 | O18: 0 | P18: 9 | Q18: 0 | R18: 0 | S18: 56 | T18: 0 | U18: 0 | V18: 0 | W18: 155
B19: 리튬이온전지 및 핵심소재 | C19: 405 | D19: 97 | E19: 0 | F19: 0 | G19: 0 | H19: 0 | I19: 0 | J19: 6 | K19: 0 | L19: 0 | M19: 0 | N19: 0 | O19: 0 | P19: 68 | Q19: 0 | R19: 0 | S19: 69 | T19: 0 | U19: 0 | V19: 0 | W19: 645
B20: 차세대 이차전지 소재·셀 | C20: 924 | D20: 102 | E20: 0 | F20: 0 | G20: 0 | H20: 0 | I20: 0 | J20: 6 | K20: 0 | L20: 0 | M20: 116 | N20: 0 | O20: 0 | P20: 112 | Q20: 0 | R20: 0 | S20: 83 | T20: 0 | U20: 0 | V20: 0 | W20: 1342
B21: 소계 | C21: 1562 | D21: 263 | E21: 0 | F21: 0 | G21: 0 | H21: 0 | I21: 0 | J21: 56 | K21: 0 | L21: 0 | M21: 173 | N21: 0 | O21: 0 | P21: 257 | Q21: 0 | R21: 0 | S21: 271 | T21: 0 | U21: 0 | V21: 0 | W21: 2581
A22: 첨단 모빌리티 | B22: 자율주행시스템 | C22: 771 | D22: 78 | E22: 0 | F22: 505 | G22: 0 | H22: 9 | I22: 3 | J22: 43 | K22: 0 | L22: 0 | M22: 54 | N22: 0 | O22: 0 | P22: 174 | Q22: 0 | R22: 0 | S22: 58 | T22: 20 | U22: 0 | V22: 189 | W22: 1903
B23: 도심항공교통(UAM) | C23: 317 | D23: 44 | E23: 0 | F23: 231 | G23: 0 | H23: 0 | I23: 0 | J23: 2 | K23: 0 | L23: 0 | M23: 0 | N23: 0 | O23: 0 | P23: 17 | Q23: 0 | R23: 0 | S23: 19 | T23: 2 | U23: 0 | V23: 0 | W23: 632
B24: 전기·수소차 | C24: 335 | D24: 43 | E24: 0 | F24: 276 | G24: 0 | H24: 0 | I24: 2 | J24: 0 | K24: 0 | L24: 0 | M24: 0 | N24: 0 | O24: 0 | P24: 394 | Q24: 0 | R24: 0 | S24: 211 | T24: 0 | U24: 0 | V24: 14 | W24: 1275
B25: 소계 | C25: 1422 | D25: 165 | E25: 0 | F25: 1012 | G25: 0 | H25: 9 | I25: 5 | J25: 45 | K25: 0 | L25: 0 | M25: 54 | N25: 0 | O25: 0 | P25: 585 | Q25: 0 | R25: 0 | S25: 288 | T25: 22 | U25: 0 | V25: 203 | W25: 3809
A26: 차세대 원자력 | B26: 소형모듈형원자로(SMR) | C26: 231 | D26: 5 | E26: 0 | F26: 0 | G26: 0 | H26: 0 | I26: 0 | J26: 27 | K26: 0 | L26: 0 | M26: 77 | N26: 0 | O26: 0 | P26: 66 | Q26: 0 | R26: 3 | S26: 5 | T26: 0 | U26: 0 | V26: 0 | W26: 413
B27: 선진원자력시스템·폐기물관리 | C27: 700 | D27: 25 | E27: 0 | F27: 0 | G27: 0 | H27: 0 | I27: 0 | J27: 22 | K27: 0 | L27: 0 | M27: 71 | N27: 0 | O27: 0 | P27: 437 | Q27: 0 | R27: 3 | S27: 28 | T27: 0 | U27: 0 | V27: 0 | W27: 1286
B28: 소계 | C28: 931 | D28: 30 | E28: 0 | F28: 0 | G28: 0 | H28: 0 | I28: 0 | J28: 49 | K28: 0 | L28: 0 | M28: 148 | N28: 0 | O28: 0 | P28: 503 | Q28: 0 | R28: 6 | S28: 33 | T28: 0 | U28: 0 | V28: 0 | W28: 1700
A29: 첨단바이오 | B29: 디지털헬스 데이터 분석·활용 | C29: 2836 | D29: 397 | E29: 0 | F29: 0 | G29: 0 | H29: 4 | I29: 24 | J29: 545 | K29: 0 | L29: 20 | M29: 95 | N29: 245 | O29: 0 | P29: 40 | Q29: 21 | R29: 0 | S29: 290 | T29: 0 | U29: 8 | V29: 181 | W29: 4706
B30: 합성생물학 | C30: 2086 | D30: 326 | E30: 0 | F30: 0 | G30: 0 | H30: 4 | I30: 53 | J30: 217 | K30: 0 | L30: 0 | M30: 9 | N30: 14 | O30: 4 | P30: 2 | Q30: 0 | R30: 0 | S30: 139 | T30: 18 | U30: 17 | V30: 0 | W30: 2889
B31: 유전자·세포 치료 | C31: 5055 | D31: 738 | E31: 0 | F31: 0 | G31: 0 | H31: 2 | I31: 157 | J31: 189 | K31: 0 | L31: 0 | M31: 0 | N31: 630 | O31: 0 | P31: 8 | Q31: 13 | R31: 0 | S31: 123 | T31: 23 | U31: 0 | V31: 62 | W31: 7000
B32: 감염병 백신·치료 | C32: 1767 | D32: 212 | E32: 0 | F32: 0 | G32: 0 | H32: 35 | I32: 37 | J32: 39 | K32: 0 | L32: 0 | M32: 72 | N32: 269 | O32: 0 | P32: 3 | Q32: 19 | R32: 0 | S32: 37 | T32: 12 | U32: 0 | V32: 331 | W32: 2832
B33: 소계 | C33: 11744 | D33: 1673 | E33: 0 | F33: 0 | G33: 0 | H33: 46 | I33: 271 | J33: 990 | K33: 0 | L33: 20 | M33: 176 | N33: 1158 | O33: 4 | P33: 53 | Q33: 53 | R33: 0 | S33: 588 | T33: 53 | U33: 25 | V33: 574 | W33: 17427
A34: 우주항공·해양 | B34: 해양자원탐사 | C34: 287 | D34: 41 | E34: 0 | F34: 0 | G34: 128 | H34: 0 | I34: 0 | J34: 38 | K34: 0 | L34: 0 | M34: 39 | N34: 0 | O34: 0 | P34: 445 | Q34: 0 | R34: 0 | S34: 14 | T34: 159 | U34: 5 | V34: 0 | W34: 1158
B35: 달착륙·표면탐사 | C35: 187 | D35: 4 | E35: 0 | F35: 0 | G35: 0 | H35: 0 | I35: 0 | J35: 0 | K35: 0 | L35: 0 | M35: 42 | N35: 0 | O35: 0 | P35: 0 | Q35: 0 | R35: 0 | S35: 4 | T35: 0 | U35: 0 | V35: 0 | W35: 237
B36: 우주관측·센싱 | C36: 2495 | D36: 37 | E36: 0 | F36: 384 | G36: 0 | H36: 0 | I36: 15 | J36: 609 | K36: 0 | L36: 0 | M36: 933 | N36: 0 | O36: 0 | P36: 0 | Q36: 0 | R36: 0 | S36: 17 | T36: 0 | U36: 0 | V36: 39 | W36: 4528
B37: 첨단 항공가스터빈엔진·부품 | C37: 160 | D37: 80 | E37: 0 | F37: 4 | G37: 0 | H37: 0 | I37: 0 | J37: 153 | K37: 0 | L37: 0 | M37: 912 | N37: 0 | O37: 0 | P37: 276 | Q37: 0 | R37: 0 | S37: 8 | T37: 0 | U37: 0 | V37: 0 | W37: 1595
B38: 대형 다단연소사이클 엔진 | C38: 392 | D38: 2 | E38: 0 | F38: 0 | G38: 0 | H38: 0 | I38: 0 | J38: 0 | K38: 0 | L38: 0 | M38: 1 | N38: 0 | O38: 0 | P38: 0 | Q38: 0 | R38: 0 | S38: 0 | T38: 0 | U38: 0 | V38: 0 | W38: 396
B39: 소계 | C39: 3521 | D39: 165 | E39: 0 | F39: 388 | G39: 128 | H39: 0 | I39: 15 | J39: 800 | K39: 0 | L39: 0 | M39: 1927 | N39: 0 | O39: 0 | P39: 721 | Q39: 0 | R39: 0 | S39: 44 | T39: 159 | U39: 5 | V39: 39 | W39: 7914
A40: 수소 | B40: 수소연료전지 및 발전 | C40: 437 | D40: 36 | E40: 0 | F40: 88 | G40: 0 | H40: 0 | I40: 28 | J40: 99 | K40: 0 | L40: 0 | M40: 132 | N40: 0 | O40: 0 | P40: 144 | Q40: 0 | R40: 0 | S40: 67 | T40: 37 | U40: 8 | V40: 0 | W40: 1075
B41: 수소저장·운송 | C41: 449 | D41: 13 | E41: 0 | F41: 94 | G41: 0 | H41: 0 | I41: 0 | J41: 10 | K41: 0 | L41: 0 | M41: 0 | N41: 0 | O41: 0 | P41: 127 | Q41: 0 | R41: 0 | S41: 25 | T41: 0 | U41: 0 | V41: 5 | W41: 724
B42: 수전해 수소생산 | C42: 709 | D42: 69 | E42: 0 | F42: 108 | G42: 0 | H42: 0 | I42: 9 | J42: 0 | K42: 0 | L42: 0 | M42: 0 | N42: 0 | O42: 0 | P42: 112 | Q42: 0 | R42: 0 | S42: 24 | T42: 0 | U42: 0 | V42: 0 | W42: 1031
B43: 소계 | C43: 1595 | D43: 117 | E43: 0 | F43: 291 | G43: 0 | H43: 0 | I43: 37 | J43: 109 | K43: 0 | L43: 0 | M43: 132 | N43: 0 | O43: 0 | P43: 383 | Q43: 0 | R43: 0 | S43: 116 | T43: 37 | U43: 8 | V43: 5 | W43: 2830
A44: 사이버보안 | B44: 데이터·AI 보안 | C44: 567 | D44: 38 | E44: 18 | F44: 23 | G44: 0 | H44: 0 | I44: 19 | J44: 25 | K44: 0 | L44: 0 | M44: 305 | N44: 8 | O44: 0 | P44: 28 | Q44: 4 | R44: 0 | S44: 55 | T44: 20 | U44: 0 | V44: 9 | W44: 1119
B45: 신산업·가상융합 보안 | C45: 321 | D45: 17 | E45: 0 | F45: 0 | G45: 0 | H45: 0 | I45: 3 | J45: 57 | K45: 0 | L45: 21 | M45: 0 | N45: 4 | O45: 0 | P45: 31 | Q45: 2 | R45: 0 | S45: 14 | T45: 0 | U45: 0 | V45: 9 | W45: 479
B46: 네트워크·클라우드 보안 | C46: 271 | D46: 13 | E46: 0 | F46: 1 | G46: 0 | H46: 0 | I46: 0 | J46: 3 | K46: 0 | L46: 0 | M46: 5 | N46: 0 | O46: 0 | P46: 7 | Q46: 6 | R46: 0 | S46: 44 | T46: 0 | U46: 0 | V46: 0 | W46: 350
B47: 디지털 취약점 분석·대응(공급망 보안) | C47: 211 | D47: 1 | E47: 0 | F47: 20 | G47: 0 | H47: 0 | I47: 0 | J47: 22 | K47: 0 | L47: 0 | M47: 310 | N47: 0 | O47: 0 | P47: 0 | Q47: 2 | R47: 19 | S47: 4 | T47: 0 | U47: 0 | V47: 0 | W47: 590
B48: 소계 | C48: 1370 | D48: 69 | E48: 18 | F48: 44 | G48: 0 | H48: 0 | I48: 22 | J48: 107 | K48: 0 | L48: 21 | M48: 620 | N48: 12 | O48: 0 | P48: 65 | Q48: 14 | R48: 19 | S48: 118 | T48: 20 | U48: 0 | V48: 18 | W48: 2538
A49: 인공지능 | B49: 산업활용·혁신 AI | C49: 2525 | D49: 146 | E49: 0 | F49: 171 | G49: 0 | H49: 5 | I49: 1007 | J49: 79 | K49: 0 | L49: 66 | M49: 0 | N49: 38 | O49: 0 | P49: 228 | Q49: 0 | R49: 2 | S49: 615 | T49: 26 | U49: 23 | V49: 121 | W49: 5052
B50: 안전·신뢰 AI | C50: 625 | D50: 43 | E50: 0 | F50: 96 | G50: 1 | H50: 0 | I50: 3 | J50: 156 | K50: 0 | L50: 8 | M50: 6 | N50: 2 | O50: 0 | P50: 43 | Q50: 2 | R50: 204 | S50: 96 | T50: 2 | U50: 14 | V50: 157 | W50: 1459
B51: 효율적 학습 및 AI인프라(SW/HW) 고도화 | C51: 1903 | D51: 154 | E51: 0 | F51: 78 | G51: 0 | H51: 0 | I51: 19 | J51: 84 | K51: 0 | L51: 59 | M51: 45 | N51: 10 | O51: 0 | P51: 31 | Q51: 0 | R51: 0 | S51: 336 | T51: 0 | U51: 3 | V51: 38 | W51: 2760
B52: 첨단 AI모델링·의사결정(인지·판단·추론) | C52: 2268 | D52: 188 | E52: 0 | F52: 213 | G52: 0 | H52: 1 | I52: 27 | J52: 265 | K52: 0 | L52: 125 | M52: 446 | N52: 20 | O52: 3 | P52: 69 | Q52: 4 | R52: 0 | S52: 339 | T52: 24 | U52: 3 | V52: 47 | W52: 4044
B53: 소계 | C53: 7322 | D53: 531 | E53: 0 | F53: 559 | G53: 1 | H53: 6 | I53: 1057 | J53: 585 | K53: 0 | L53: 258 | M53: 497 | N53: 70 | O53: 3 | P53: 372 | Q53: 5 | R53: 205 | S53: 1386 | T53: 52 | U53: 43 | V53: 363 | W53: 13315
A54: 차세대 통신 | B54: 고효율 5G·6G 통신부품 | C54: 703 | D54: 3 | E54: 0 | F54: 0 | G54: 0 | H54: 0 | I54: 0 | J54: 6 | K54: 0 | L54: 0 | M54: 121 | N54: 0 | O54: 0 | P54: 7 | Q54: 0 | R54: 0 | S54: 34 | T54: 0 | U54: 0 | V54: 0 | W54: 873
B55: 오픈랜(Open-RAN) | C55: 138 | D55: 1 | E55: 0 | F55: 0 | G55: 0 | H55: 0 | I55: 0 | J55: 3 | K55: 0 | L55: 0 | M55: 0 | N55: 0 | O55: 0 | P55: 0 | Q55: 0 | R55: 0 | S55: 0 | T55: 0 | U55: 0 | V55: 0 | W55: 142
B56: 5G·6G 위성통신 | C56: 235 | D56: 69 | E56: 0 | F56: 32 | G56: 0 | H56: 0 | I56: 4 | J56: 253 | K56: 0 | L56: 0 | M56: 151 | N56: 0 | O56: 0 | P56: 1 | Q56: 0 | R56: 0 | S56: 8 | T56: 0 | U56: 0 | V56: 19 | W56: 772
B57: 6G | C57: 598 | D57: 34 | E57: 0 | F57: 0 | G57: 0 | H57: 0 | I57: 0 | J57: 0 | K57: 0 | L57: 0 | M57: 1 | N57: 0 | O57: 0 | P57: 0 | Q57: 0 | R57: 2 | S57: 16 | T57: 0 | U57: 0 | V57: 0 | W57: 650
B58: 5G 고도화(5G-Adv) | C58: 854 | D58: 7 | E58: 0 | F58: 0 | G58: 0 | H58: 0 | I58: 0 | J58: 171 | K58: 0 | L58: 0 | M58: 125 | N58: 0 | O58: 0 | P58: 0 | Q58: 0 | R58: 0 | S58: 16 | T58: 0 | U58: 0 | V58: 0 | W58: 1172
B59: 소계 | C59: 2528 | D59: 114 | E59: 0 | F59: 32 | G59: 0 | H59: 0 | I59: 4 | J59: 433 | K59: 0 | L59: 0 | M59: 397 | N59: 0 | O59: 0 | P59: 8 | Q59: 0 | R59: 2 | S59: 73 | T59: 0 | U59: 0 | V59: 19 | W59: 3609
A60: 첨단로봇·제조 | B60: 가상제조 | C60: 130 | D60: 9 | E60: 0 | F60: 6 | G60: 0 | H60: 0 | I60: 0 | J60: 10 | K60: 0 | L60: 0 | M60: 0 | N60: 0 | O60: 0 | P60: 7 | Q60: 0 | R60: 6 | S60: 32 | T60: 0 | U60: 0 | V60: 0 | W60: 202
B61: 로봇 정밀제어·구동 부품·SW | C61: 357 | D61: 21 | E61: 0 | F61: 39 | G61: 0 | H61: 9 | I61: 17 | J61: 131 | K61: 0 | L61: 18 | M61: 115 | N61: 18 | O61: 0 | P61: 51 | Q61: 0 | R61: 0 | S61: 216 | T61: 24 | U61: 0 | V61: 15 | W61: 1031
B62: 로봇 자율이동 | C62: 179 | D62: 9 | E62: 0 | F62: 3 | G62: 0 | H62: 11 | I62: 9 | J62: 50 | K62: 0 | L62: 0 | M62: 438 | N62: 0 | O62: 0 | P62: 15 | Q62: 0 | R62: 0 | S62: 43 | T62: 0 | U62: 0 | V62: 5 | W62: 762
B63: 인간·로봇 상호작용 | C63: 394 | D63: 51 | E63: 0 | F63: 0 | G63: 0 | H63: 0 | I63: 0 | J63: 106 | K63: 0 | L63: 6 | M63: 77 | N63: 58 | O63: 0 | P63: 15 | Q63: 5 | R63: 0 | S63: 31 | T63: 0 | U63: 0 | V63: 0 | W63: 744
B64: 고난도 자율조작 | C64: 146 | D64: 30 | E64: 0 | F64: 0 | G64: 0 | H64: 0 | I64: 1 | J64: 0 | K64: 0 | L64: 0 | M64: 0 | N64: 2 | O64: 0 | P64: 0 | Q64: 2 | R64: 0 | S64: 21 | T64: 0 | U64: 0 | V64: 0 | W64: 201
B65: 소계 | C65: 1206 | D65: 119 | E65: 0 | F65: 48 | G65: 0 | H65: 21 | I65: 27 | J65: 297 | K65: 0 | L65: 24 | M65: 630 | N65: 78 | O65: 0 | P65: 88 | Q65: 7 | R65: 6 | S65: 344 | T65: 24 | U65: 0 | V65: 20 | W65: 2939
A66: 양자 | B66: 양자통신 | C66: 238 | D66: 4 | E66: 0 | F66: 0 | G66: 0 | H66: 0 | I66: 0 | J66: 6 | K66: 0 | L66: 0 | M66: 36 | N66: 0 | O66: 0 | P66: 0 | Q66: 0 | R66: 0 | S66: 3 | T66: 0 | U66: 0 | V66: 20 | W66: 308
B67: 양자컴퓨팅 | C67: 1201 | D67: 74 | E67: 0 | F67: 0 | G67: 0 | H67: 0 | I67: 0 | J67: 0 | K67: 0 | L67: 0 | M67: 11 | N67: 0 | O67: 0 | P67: 2 | Q67: 0 | R67: 21 | S67: 2 | T67: 0 | U67: 0 | V67: 0 | W67: 1310
B68: 양자센싱 | C68: 277 | D68: 6 | E68: 0 | F68: 0 | G68: 0 | H68: 0 | I68: 0 | J68: 5 | K68: 0 | L68: 0 | M68: 106 | N68: 0 | O68: 0 | P68: 0 | Q68: 0 | R68: 0 | S68: 1 | T68: 0 | U68: 0 | V68: 0 | W68: 395
B69: 소계 | C69: 1717 | D69: 85 | E69: 0 | F69: 0 | G69: 0 | H69: 0 | I69: 0 | J69: 11 | K69: 0 | L69: 0 | M69: 153 | N69: 0 | O69: 0 | P69: 2 | Q69: 0 | R69: 21 | S69: 6 | T69: 0 | U69: 0 | V69: 20 | W69: 2013
A70: 기타 | B70: 위의 국가전략기술 분류에 속하지 않는 기타 연구 | C70: 52891 | D70: 13915 | E70: 788 | F70: 3596 | G70: 1089 | H70: 2453 | I70: 7328 | J70: 5542 | K70: 678 | L70: 969 | M70: 41028 | N70: 4823 | O70: 1618 | P70: 50450 | Q70: 1261 | R70: 720 | S70: 14344 | T70: 8828 | U70: 4137 | V70: 3636 | W70: 220092
A71: 합계 | C71: 94037 | D71: 18222 | E71: 806 | F71: 6032 | G71: 1218 | H71: 2535 | I71: 8777 | J71: 9360 | K71: 678 | L71: 1291 | M71: 45992 | N71: 6140 | O71: 1625 | P71: 54559 | Q71: 1341 | R71: 979 | S71: 18224 | T71: 9212 | U71: 4232 | V71: 4903 | W71: 290164
A73: * 기술분야별 집행현황 분석은 인문사회 분야를 제외한 과학기술 분야와 국방(비밀 세부과제 포함) 분야의 연구개발사업이 분석대상(2023년의 경우에는 63,879개 세부과제, 29조 164억원)임
A74: ** 기타 부처는 개인정보보호위원회, 경찰청, 고용노동부, 공정거래위원회, 관세청, 국무조정실, 기획재정부, 대통령경호처, 법무부, 법제처, 새만금개발청, 소방청, 여성가족부, 외교부, 인사혁신처, 조달청, 질병관리청, 통일부, 특허청, 해양경찰청, 행정안전부, 행정중심복합도시건설청의 총 22개 부･처･청･위원회의 합계임

Sheet 3-1
A1: 3-1. 연구수행주체별 국가과학기술표준분류 연구분야별 상세분류 집행 현황(2023년) | K1: 목차
K3: (단위 : 억원)
A4: 대분류 | B4: 중분류 | C4: 국공립 | D4: 출연 | E4: 대학 | F4: 대기업 | G4: 중견 | H4: 중소 | I4: 정부 | J4: 기타 | K4: 합계
C5: 연구소 | D5: 연구소 | G5: 기업 | H5: 기업 | I5: 부처
A6: 수학 | B6: 기하학 | C6: 0 | D6: 38 | E6: 46 | F6: 0 | G6: 0 | H6: 0 | I6: 0 | J6: 0 | K6: 84
B7: 대수학 | C7: 0 | D7: 16 | E7: 108 | F7: 0 | G7: 0 | H7: 0 | I7: 0 | J7: 8 | K7: 132
B8: 위상수학 | C8: 0 | D8: 3 | E8: 57 | F8: 0 | G8: 0 | H8: 0 | I8: 0 | J8: 0 | K8: 60
B9: 응용수학 | C9: 0 | D9: 39 | E9: 206 | F9: 0 | G9: 0 | H9: 7 | I9: 0 | J9: 0 | K9: 252
B10: 응용통계 | C10: 0 | D10: 0 | E10: 129 | F10: 0 | G10: 0 | H10: 10 | I10: 0 | J10: 46 | K10: 185
B11: 이산/정보수학 | C11: 0 | D11: 50 | E11: 78 | F11: 0 | G11: 0 | H11: 7 | I11: 0 | J11: 2 | K11: 137
B12: 통계 방법론·계산 | C12: 0 | D12: 0 | E12: 83 | F12: 0 | G12: 0 | H12: 2 | I12: 0 | J12: 0 | K12: 85
B13: 통계이론 | C13: 0 | D13: 4 | E13: 42 | F13: 0 | G13: 0 | H13: 3 | I13: 0 | J13: 0 | K13: 49
B14: 해석학 | C14: 0 | D14: 3 | E14: 165 | F14: 0 | G14: 0 | H14: 0 | I14: 0 | J14: 0 | K14: 168
B15: 확률/확률과정 | C15: 0 | D15: 1 | E15: 31 | F15: 0 | G15: 0 | H15: 0 | I15: 0 | J15: 0 | K15: 32
B16: 기타 수학 | C16: 0 | D16: 118 | E16: 32 | F16: 0 | G16: 0 | H16: 1 | I16: 0 | J16: 0 | K16: 151
B17: 합계 | C17: 0 | D17: 273 | E17: 976 | F17: 0 | G17: 0 | H17: 31 | I17: 0 | J17: 57 | K17: 1337
A18: 물리학 | B18: 광학·양자전자학 | C18: 0 | D18: 330 | E18: 373 | F18: 0 | G18: 9 | H18: 131 | I18: 0 | J18: 41 | K18: 884
B19: 복합물리 | C19: 0 | D19: 104 | E19: 55 | F19: 0 | G19: 0 | H19: 3 | I19: 0 | J19: 1 | K19: 163
B20: 원자/분자물리 | C20: 0 | D20: 296 | E20: 345 | F20: 2 | G20: 0 | H20: 7 | I20: 0 | J20: 19 | K20: 669
B21: 유체·플라즈마물리 | C21: 0 | D21: 790 | E21: 86 | F21: 0 | G21: 0 | H21: 11 | I21: 0 | J21: 0 | K21: 887
B22: 응집물질물리 | C22: 0 | D22: 520 | E22: 871 | F22: 2 | G22: 35 | H22: 66 | I22: 0 | J22: 5 | K22: 1499
B23: 입자/장물리 | C23: 0 | D23: 1057 | E23: 891 | F23: 0 | G23: 0 | H23: 8 | I23: 0 | J23: 12 | K23: 1968
B24: 천체물리 | C24: 0 | D24: 55 | E24: 48 | F24: 0 | G24: 0 | H24: 0 | I24: 0 | J24: 0 | K24: 103
B25: 통계물리 | C25: 0 | D25: 16 | E25: 54 | F25: 0 | G25: 0 | H25: 0 | I25: 0 | J25: 0 | K25: 70
B26: 핵물리 | C26: 0 | D26: 110 | E26: 92 | F26: 0 | G26: 0 | H26: 0 | I26: 0 | J26: 0 | K26: 202
B27: 기타 물리학 | C27: 0 | D27: 79 | E27: 51 | F27: 0 | G27: 0 | H27: 0 | I27: 0 | J27: 53 | K27: 183
B28: 합계 | C28: 0 | D28: 3355 | E28: 2866 | F28: 5 | G28: 44 | H28: 227 | I28: 0 | J28: 131 | K28: 6628
A29: 화학 | B29: 고분자화학 | C29: 0 | D29: 175 | E29: 168 | F29: 47 | G29: 171 | H29: 418 | I29: 0 | J29: 75 | K29: 1054
B30: 광화학 | C30: 0 | D30: 10 | E30: 22 | F30: 0 | G30: 0 | H30: 31 | I30: 0 | J30: 0 | K30: 63
B31: 무기화학 | C31: 0 | D31: 24 | E31: 240 | F31: 25 | G31: 18 | H31: 49 | I31: 0 | J31: 10 | K31: 366
B32: 물리화학 | C32: 0 | D32: 101 | E32: 249 | F32: 4 | G32: 0 | H32: 11 | I32: 0 | J32: 0 | K32: 365
B33: 분석화학 | C33: 10 | D33: 67 | E33: 192 | F33: 1 | G33: 0 | H33: 27 | I33: 1 | J33: 36 | K33: 334
B34: 생화학 | C34: 0 | D34: 35 | E34: 49 | F34: 0 | G34: 0 | H34: 10 | I34: 0 | J34: 0 | K34: 94
B35: 유기화학 | C35: 0 | D35: 139 | E35: 332 | F35: 0 | G35: 68 | H35: 90 | I35: 1 | J35: 2 | K35: 632
B36: 융합화학 | C36: 0 | D36: 51 | E36: 76 | F36: 0 | G36: 4 | H36: 7 | I36: 0 | J36: 24 | K36: 162
B37: 재료화학 | C37: 0 | D37: 254 | E37: 234 | F37: 17 | G37: 66 | H37: 136 | I37: 0 | J37: 308 | K37: 1015
B38: 전기화학 | C38: 0 | D38: 81 | E38: 176 | F38: 42 | G38: 32 | H38: 153 | I38: 0 | J38: 1 | K38: 485
B39: 기타 화학 | C39: 9 | D39: 712 | E39: 68 | F39: 12 | G39: 3 | H39: 44 | I39: 0 | J39: 13 | K39: 861
B40: 합계 | C40: 19 | D40: 1648 | E40: 1806 | F40: 147 | G40: 363 | H40: 974 | I40: 1 | J40: 469 | K40: 5427
A41: 지구과학(지구/대기/해양/천문) | B41: 극지과학 | C41: 0 | D41: 1538 | E41: 24 | F41: 0 | G41: 0 | H41: 8 | I41: 0 | J41: 12 | K41: 1582
B42: 기상과학 | C42: 477 | D42: 27 | E42: 63 | F42: 0 | G42: 0 | H42: 29 | I42: 56 | J42: 117 | K42: 769
B43: 기후과학 | C43: 70 | D43: 131 | E43: 236 | F43: 14 | G43: 0 | H43: 23 | I43: 0 | J43: 89 | K43: 563
B44: 대기과학 | C44: 6 | D44: 33 | E44: 203 | F44: 4 | G44: 0 | H44: 33 | I44: 0 | J44: 33 | K44: 312
B45: 우주과학 | C45: 0 | D45: 547 | E45: 38 | F45: 0 | G45: 0 | H45: 4 | I45: 0 | J45: 35 | K45: 624
B46: 자연재해 분석/예측 | C46: 95 | D46: 116 | E46: 155 | F46: 0 | G46: 0 | H46: 50 | I46: 51 | J46: 12 | K46: 479
B47: 지구물리학 | C47: 2 | D47: 179 | E47: 86 | F47: 0 | G47: 0 | H47: 0 | I47: 0 | J47: 0 | K47: 267
B48: 지구화학 | C48: 1 | D48: 19 | E48: 27 | F48: 0 | G48: 0 | H48: 1 | I48: 0 | J48: 0 | K48: 48
B49: 지질과학 | C49: 6 | D49: 560 | E49: 134 | F49: 0 | G49: 5 | H49: 9 | I49: 0 | J49: 0 | K49: 714
B50: 천문우주관측기술 | C50: 0 | D50: 367 | E50: 8 | F50: 0 | G50: 1 | H50: 1 | I50: 0 | J50: 0 | K50: 377
B51: 천문학 | C51: 0 | D51: 223 | E51: 132 | F51: 0 | G51: 0 | H51: 0 | I51: 0 | J51: 1 | K51: 356
B52: 해양과학 | C52: 0 | D52: 352 | E52: 229 | F52: 2 | G52: 0 | H52: 134 | I52: 0 | J52: 23 | K52: 740
B53: 해양생명 | C53: 0 | D53: 131 | E53: 75 | F53: 0 | G53: 3 | H53: 40 | I53: 0 | J53: 3 | K53: 252
B54: 해양자원 | C54: 1 | D54: 272 | E54: 36 | F54: 0 | G54: 56 | H54: 53 | I54: 0 | J54: 2 | K54: 420
B55: 기타 지구과학 | C55: 0 | D55: 45 | E55: 28 | F55: 0 | G55: 0 | H55: 0 | I55: 0 | J55: 0 | K55: 73
B56: 합계 | C56: 659 | D56: 4541 | E56: 1473 | F56: 20 | G56: 65 | H56: 383 | I56: 107 | J56: 327 | K56: 7575
A57: 생명과학 | B57: 면역학/생리학 | C57: 10 | D57: 71 | E57: 510 | F57: 0 | G57: 1 | H57: 100 | I57: 0 | J57: 13 | K57: 705
B58: 발생/신경생물학 | C58: 11 | D58: 252 | E58: 623 | F58: 0 | G58: 1 | H58: 34 | I58: 0 | J58: 16 | K58: 937
B59: 분류/생태/환경생물학 | C59: 171 | D59: 88 | E59: 338 | F59: 0 | G59: 0 | H59: 29 | I59: 0 | J59: 28 | K59: 654
B60: 분자세포생물학 | C60: 8 | D60: 246 | E60: 1359 | F60: 0 | G60: 0 | H60: 68 | I60: 0 | J60: 17 | K60: 1698
B61: 산업바이오 | C61: 15 | D61: 237 | E61: 263 | F61: 0 | G61: 90 | H61: 585 | I61: 0 | J61: 205 | K61: 1395
B62: 생물공학 | C62: 9 | D62: 165 | E62: 376 | F62: 14 | G62: 3 | H62: 109 | I62: 0 | J62: 68 | K62: 744
B63: 생물위해성 | C63: 7 | D63: 71 | E63: 66 | F63: 0 | G63: 3 | H63: 9 | I63: 0 | J63: 3 | K63: 159
B64: 생화학/구조생물학 | C64: 0 | D64: 137 | E64: 362 | F64: 0 | G64: 0 | H64: 28 | I64: 0 | J64: 14 | K64: 541
B65: 유전학·유전체학 | C65: 54 | D65: 208 | E65: 581 | F65: 0 | G65: 5 | H65: 120 | I65: 0 | J65: 60 | K65: 1028
B66: 융합바이오 | C66: 19 | D66: 461 | E66: 958 | F66: 1 | G66: 22 | H66: 324 | I66: 0 | J66: 93 | K66: 1878
B67: 기타 생명과학 | C67: 9 | D67: 936 | E67: 227 | F67: 0 | G67: 0 | H67: 44 | I67: 2 | J67: 163 | K67: 1381
B68: 합계 | C68: 313 | D68: 2871 | E68: 5664 | F68: 15 | G68: 125 | H68: 1450 | I68: 2 | J68: 679 | K68: 11119
A69: 농림수산식품 | B69: 농림수산식품경영/정보 등 | C69: 38 | D69: 12 | E69: 20 | F69: 0 | G69: 1 | H69: 44 | I69: 62 | J69: 4 | K69: 181
B70: 농생물학 | C70: 376 | D70: 16 | E70: 347 | F70: 1 | G70: 0 | H70: 88 | I70: 167 | J70: 59 | K70: 1054
B71: 농수축산물 품질·안전 관리 | C71: 132 | D71: 31 | E71: 117 | F71: 0 | G71: 2 | H71: 54 | I71: 8 | J71: 4 | K71: 348
B72: 농업·식품 기계·설비 | C72: 197 | D72: 63 | E72: 223 | F72: 4 | G72: 65 | H72: 360 | I72: 67 | J72: 70 | K72: 1049
B73: 농업인프라 공학 | C73: 232 | D73: 10 | E73: 50 | F73: 1 | G73: 0 | H73: 38 | I73: 0 | J73: 7 | K73: 338
B74: 농업환경생태 | C74: 411 | D74: 21 | E74: 130 | F74: 1 | G74: 23 | H74: 31 | I74: 105 | J74: 9 | K74: 731
B75: 농화학 | C75: 68 | D75: 44 | E75: 118 | F75: 0 | G75: 2 | H75: 109 | I75: 8 | J75: 10 | K75: 359
B76: 동물자원과학 | C76: 826 | D76: 63 | E76: 287 | F76: 2 | G76: 3 | H76: 102 | I76: 1 | J76: 26 | K76: 1310
B77: 산림자원학 | C77: 1033 | D77: 7 | E77: 126 | F77: 0 | G77: 0 | H77: 32 | I77: 0 | J77: 37 | K77: 1235
B78: 수산양식 | C78: 252 | D78: 22 | E78: 194 | F78: 0 | G78: 1 | H78: 144 | I78: 0 | J78: 13 | K78: 626
B79: 수산자원/어장환경 | C79: 148 | D79: 4 | E79: 64 | F79: 0 | G79: 0 | H79: 46 | I79: 0 | J79: 6 | K79: 268
B80: 수의과학 | C80: 413 | D80: 101 | E80: 325 | F80: 0 | G80: 7 | H80: 172 | I80: 0 | J80: 18 | K80: 1036
B81: 식량작물과학 | C81: 1340 | D81: 44 | E81: 250 | F81: 0 | G81: 1 | H81: 43 | I81: 7 | J81: 9 | K81: 1694
B82: 식품과학 | C82: 132 | D82: 250 | E82: 419 | F82: 5 | G82: 19 | H82: 240 | I82: 1 | J82: 28 | K82: 1094
B83: 식품영양과학 | C83: 82 | D83: 90 | E83: 237 | F83: 2 | G83: 22 | H83: 248 | I83: 0 | J83: 10 | K83: 691
B84: 식품조리/외식/식생활개선 | C84: 4 | D84: 25 | E84: 11 | F84: 0 | G84: 1 | H84: 24 | I84: 0 | J84: 0 | K84: 65
B85: 어업생산/이용가공 | C85: 22 | D85: 24 | E85: 55 | F85: 0 | G85: 2 | H85: 63 | I85: 0 | J85: 45 | K85: 211
B86: 원예특용작물과학 | C86: 1756 | D86: 33 | E86: 272 | F86: 4 | G86: 11 | H86: 179 | I86: 2 | J86: 48 | K86: 2305
B87: 임산공학 | C87: 7 | D87: 12 | E87: 88 | F87: 0 | G87: 0 | H87: 43 | I87: 0 | J87: 16 | K87: 166
B88: 조경학 | C88: 30 | D88: 0 | E88: 12 | F88: 0 | G88: 0 | H88: 3 | I88: 0 | J88: 0 | K88: 45
B89: 기타 농림수산식품 | C89: 1567 | D89: 462 | E89: 146 | F89: 0 | G89: 3 | H89: 63 | I89: 89 | J89: 13 | K89: 2343
B90: 합계 | C90: 9066 | D90: 1333 | E90: 3489 | F90: 21 | G90: 163 | H90: 2126 | I90: 517 | J90: 431 | K90: 17146
A91: 보건의료 | B91: 간호과학 | C91: 1 | D91: 0 | E91: 228 | F91: 3 | G91: 0 | H91: 19 | I91: 0 | J91: 5 | K91: 256
B92: 독성·안전성 평가·관리 | C92: 40 | D92: 394 | E92: 229 | F92: 0 | G92: 2 | H92: 77 | I92: 0 | J92: 55 | K92: 797
B93: 보건학 | C93: 58 | D93: 99 | E93: 336 | F93: 0 | G93: 0 | H93: 63 | I93: 0 | J93: 57 | K93: 613
B94: 식품안전관리 | C94: 63 | D94: 11 | E94: 70 | F94: 0 | G94: 0 | H94: 15 | I94: 1 | J94: 9 | K94: 169
B95: 신약·의약품개발 | C95: 176 | D95: 993 | E95: 2496 | F95: 7 | G95: 278 | H95: 2045 | I95: 0 | J95: 737 | K95: 6732
B96: 영양관리 | C96: 5 | D96: 2 | E96: 23 | F96: 0 | G96: 0 | H96: 13 | I96: 0 | J96: 0 | K96: 43
B97: 의료기기 | C97: 41 | D97: 409 | E97: 1337 | F97: 12 | G97: 85 | H97: 2807 | I97: 0 | J97: 281 | K97: 4972
B98: 의료기기·S/W 안전관리 | C98: 24 | D98: 49 | E98: 135 | F98: 0 | G98: 0 | H98: 99 | I98: 0 | J98: 149 | K98: 456
B99: 의료정보/ 시스템 | C99: 4 | D99: 105 | E99: 539 | F99: 0 | G99: 12 | H99: 554 | I99: 0 | J99: 128 | K99: 1342
B100: 의생명과학 | C100: 77 | D100: 475 | E100: 2698 | F100: 0 | G100: 23 | H100: 145 | I100: 0 | J100: 155 | K100: 3573
B101: 의약품안전관리 | C101: 41 | D101: 11 | E101: 111 | F101: 0 | G101: 8 | H101: 57 | I101: 0 | J101: 32 | K101: 260
B102: 임상의학 | C102: 55 | D102: 193 | E102: 2532 | F102: 3 | G102: 24 | H102: 347 | I102: 0 | J102: 402 | K102: 3556
B103: 치의과학 | C103: 0 | D103: 2 | E103: 357 | F103: 0 | G103: 27 | H103: 112 | I103: 0 | J103: 5 | K103: 503
B104: 한의과학 | C104: 12 | D104: 540 | E104: 419 | F104: 0 | G104: 3 | H104: 17 | I104: 0 | J104: 22 | K104: 1013
B105: 기타 보건의료 | C105: 1027 | D105: 1003 | E105: 794 | F105: 10 | G105: 22 | H105: 504 | I105: 0 | J105: 264 | K105: 3624
B106: 합계 | C106: 1624 | D106: 4285 | E106: 12306 | F106: 34 | G106: 486 | H106: 6873 | I106: 2 | J106: 2302 | K106: 27912
A107: 기계 | B107: 국방기계 | C107: 0 | D107: 6001 | E107: 176 | F107: 1245 | G107: 4586 | H107: 635 | I107: 0 | J107: 9 | K107: 12652
B108: 나노/마이크로기계시스템 | C108: 0 | D108: 154 | E108: 432 | F108: 0 | G108: 36 | H108: 138 | I108: 0 | J108: 77 | K108: 837
B109: 로봇/자동화기계 | C109: 6 | D109: 724 | E109: 640 | F109: 98 | G109: 259 | H109: 1528 | I109: 0 | J109: 573 | K109: 3828
B110: 산업/일반기계 | C110: 2 | D110: 117 | E110: 87 | F110: 17 | G110: 65 | H110: 723 | I110: 0 | J110: 172 | K110: 1183
B111: 생산기반기술 | C111: 4 | D111: 475 | E111: 290 | F111: 18 | G111: 37 | H111: 484 | I111: 0 | J111: 125 | K111: 1433
B112: 에너지/환경기계시스템 | C112: 4 | D112: 686 | E112: 333 | F112: 163 | G112: 111 | H112: 979 | I112: 0 | J112: 92 | K112: 2368
B113: 요소부품 | C113: 0 | D113: 56 | E113: 55 | F113: 18 | G113: 68 | H113: 496 | I113: 0 | J113: 44 | K113: 737
B114: 우주시스템 | C114: 31 | D114: 3979 | E114: 126 | F114: 29 | G114: 372 | H114: 378 | I114: 14 | J114: 3 | K114: 4932
B115: 자동차/철도차량 | C115: 5 | D115: 351 | E115: 337 | F115: 428 | G115: 1467 | H115: 2098 | I115: 0 | J115: 1791 | K115: 6477
B116: 재난안전기계 | C116: 27 | D116: 160 | E116: 37 | F116: 18 | G116: 53 | H116: 202 | I116: 0 | J116: 87 | K116: 584
B117: 정밀생산기계 | C117: 0 | D117: 388 | E117: 122 | F117: 54 | G117: 75 | H117: 450 | I117: 0 | J117: 65 | K117: 1154
B118: 조선/해양시스템 | C118: 0 | D118: 813 | E118: 308 | F118: 144 | G118: 112 | H118: 1066 | I118: 0 | J118: 570 | K118: 3013
B119: 측정표준/시험평가기술 | C119: 34 | D119: 972 | E119: 118 | F119: 31 | G119: 20 | H119: 128 | I119: 0 | J119: 118 | K119: 1421
B120: 항공시스템 | C120: 0 | D120: 640 | E120: 277 | F120: 195 | G120: 1421 | H120: 654 | I120: 0 | J120: 67 | K120: 3254
B121: 기타 기계 | C121: 3 | D121: 1737 | E121: 339 | F121: 9 | G121: 0 | H121: 73 | I121: 0 | J121: 230 | K121: 2391
B122: 합계 | C122: 115 | D122: 17253 | E122: 3677 | F122: 2468 | G122: 8681 | H122: 10033 | I122: 14 | J122: 4024 | K122: 46265
A123: 재료 | B123: 고분자재료 | C123: 0 | D123: 328 | E123: 709 | F123: 63 | G123: 227 | H123: 884 | I123: 0 | J123: 129 | K123: 2340
B124: 국방소재 | C124: 0 | D124: 330 | E124: 63 | F124: 106 | G124: 29 | H124: 166 | I124: 0 | J124: 19 | K124: 713
B125: 금속재료 | C125: 2 | D125: 961 | E125: 614 | F125: 679 | G125: 269 | H125: 1014 | I125: 0 | J125: 96 | K125: 3635
B126: 분석/물성 평가기술 | C126: 0 | D126: 153 | E126: 162 | F126: 21 | G126: 2 | H126: 72 | I126: 0 | J126: 25 | K126: 435
B127: 세라믹재료 | C127: 10 | D127: 478 | E127: 522 | F127: 28 | G127: 203 | H127: 429 | I127: 0 | J127: 93 | K127: 1763
B128: 소성가공/분말 | C128: 0 | D128: 181 | E128: 26 | F128: 11 | G128: 133 | H128: 595 | I128: 0 | J128: 25 | K128: 971
B129: 열/표면처리 | C129: 0 | D129: 92 | E129: 90 | F129: 11 | G129: 93 | H129: 305 | I129: 0 | J129: 60 | K129: 651
B130: 주조/용접/접합 | C130: 0 | D130: 71 | E130: 10 | F130: 15 | G130: 199 | H130: 384 | I130: 0 | J130: 17 | K130: 696
B131: 기타 재료 | C131: 0 | D131: 522 | E131: 170 | F131: 1 | G131: 0 | H131: 27 | I131: 0 | J131: 32 | K131: 752
B132: 합계 | C132: 12 | D132: 3116 | E132: 2365 | F132: 935 | G132: 1155 | H132: 3876 | I132: 0 | J132: 495 | K132: 11954
A133: 화공 | B133: 고분자 공정기술 | C133: 0 | D133: 44 | E133: 281 | F133: 18 | G133: 49 | H133: 249 | I133: 0 | J133: 34 | K133: 675
B134: 나노 화학공정기술 | C134: 0 | D134: 269 | E134: 518 | F134: 0 | G134: 26 | H134: 166 | I134: 0 | J134: 66 | K134: 1045
B135: 무기화생방/화력탄약 | C135: 0 | D135: 370 | E135: 24 | F135: 145 | G135: 9 | H135: 171 | I135: 0 | J135: 15 | K135: 734
B136: 생물화학 공정기술 | C136: 0 | D136: 29 | E136: 359 | F136: 2 | G136: 4 | H136: 30 | I136: 0 | J136: 0 | K136: 424
B137: 섬유제조 | C137: 0 | D137: 17 | E137: 31 | F137: 8 | G137: 38 | H137: 356 | I137: 0 | J137: 65 | K137: 515
B138: 섬유제품 | C138: 0 | D138: 39 | E138: 34 | F138: 35 | G138: 105 | H138: 608 | I138: 0 | J138: 161 | K138: 982
B139: 염색가공 | C139: 0 | D139: 1 | E139: 2 | F139: 0 | G139: 15 | H139: 59 | I139: 0 | J139: 9 | K139: 86
B140: 정밀화학 | C140: 0 | D140: 39 | E140: 102 | F140: 27 | G140: 179 | H140: 555 | I140: 0 | J140: 83 | K140: 985
B141: 화학공정 | C141: 1 | D141: 551 | E141: 445 | F141: 149 | G141: 63 | H141: 332 | I141: 0 | J141: 132 | K141: 1673
B142: 화학공정 안전기술 | C142: 0 | D142: 20 | E142: 29 | F142: 20 | G142: 0 | H142: 16 | I142: 0 | J142: 11 | K142: 96
B143: 화학제품 | C143: 1 | D143: 9 | E143: 6 | F143: 10 | G143: 16 | H143: 174 | I143: 0 | J143: 31 | K143: 247
B144: 기타 화공 | C144: 1 | D144: 1 | E144: 67 | F144: 0 | G144: 1 | H144: 9 | I144: 0 | J144: 93 | K144: 172
B145: 합계 | C145: 3 | D145: 1388 | E145: 1900 | F145: 413 | G145: 505 | H145: 2723 | I145: 0 | J145: 700 | K145: 7632
A146: 전기/전자 | B146: 가정용기기/전자응용기기 | C146: 0 | D146: 65 | E146: 43 | F146: 0 | G146: 47 | H146: 292 | I146: 0 | J146: 110 | K146: 557
B147: 계측기기 | C147: 1 | D147: 155 | E147: 108 | F147: 8 | G147: 13 | H147: 598 | I147: 0 | J147: 47 | K147: 930
B148: 광응용기기 | C148: 0 | D148: 259 | E148: 276 | F148: 26 | G148: 179 | H148: 651 | I148: 0 | J148: 66 | K148: 1457
B149: 디스플레이 | C149: 0 | D149: 190 | E149: 227 | F149: 98 | G149: 564 | H149: 1536 | I149: 0 | J149: 362 | K149: 2977
B150: 무기센서 및 제어 | C150: 0 | D150: 3275 | E150: 177 | F150: 428 | G150: 1985 | H150: 539 | I150: 0 | J150: 23 | K150: 6427
B151: 반도체 소자·회로 | C151: 0 | D151: 971 | E151: 1823 | F151: 76 | G151: 462 | H151: 1648 | I151: 0 | J151: 730 | K151: 5710
B152: 반도체장비 | C152: 0 | D152: 293 | E152: 213 | F152: 49 | G152: 468 | H152: 1102 | I152: 0 | J152: 116 | K152: 2241
B153: 영상/음향기기 | C153: 0 | D153: 148 | E153: 75 | F153: 0 | G153: 32 | H153: 144 | I153: 0 | J153: 78 | K153: 477
B154: 전기전자부품 | C154: 0 | D154: 245 | E154: 163 | F154: 30 | G154: 252 | H154: 984 | I154: 0 | J154: 196 | K154: 1870
B155: 전지 | C155: 0 | D155: 479 | E155: 340 | F155: 123 | G155: 210 | H155: 937 | I155: 0 | J155: 513 | K155: 2602
B156: 중전기기 | C156: 0 | D156: 354 | E156: 157 | F156: 213 | G156: 58 | H156: 833 | I156: 0 | J156: 251 | K156: 1866
B157: 기타 전기/전자 | C157: 87 | D157: 9100 | E157: 210 | F157: 0 | G157: 112 | H157: 179 | I157: 0 | J157: 178 | K157: 9866
B158: 합계 | C158: 88 | D158: 15533 | E158: 3810 | F158: 1051 | G158: 4381 | H158: 9443 | I158: 0 | J158: 2672 | K158: 36978
A159: 정보/통신 | B159: 국방정보통신 | C159: 0 | D159: 1978 | E159: 102 | F159: 312 | G159: 450 | H159: 411 | I159: 0 | J159: 158 | K159: 3411
B160: 디지털 방송·콘텐츠 | C160: 0 | D160: 301 | E160: 38 | F160: 0 | G160: 0 | H160: 114 | I160: 0 | J160: 30 | K160: 483
B161: 무선 통신·네트워크 | C161: 3 | D161: 606 | E161: 370 | F161: 50 | G161: 174 | H161: 288 | I161: 0 | J161: 183 | K161: 1674
B162: 소프트웨어 | C162: 2 | D162: 880 | E162: 1009 | F162: 48 | G162: 273 | H162: 4258 | I162: 2 | J162: 530 | K162: 7002
B163: 위성/전파 | C163: 77 | D163: 2631 | E163: 236 | F163: 164 | G163: 54 | H163: 149 | I163: 0 | J163: 42 | K163: 3353
B164: 유선 통신·네트워크 | C164: 0 | D164: 363 | E164: 72 | F164: 0 | G164: 4 | H164: 68 | I164: 0 | J164: 140 | K164: 647
B165: 재난정보통신 | C165: 24 | D165: 211 | E165: 166 | F165: 2 | G165: 0 | H165: 212 | I165: 0 | J165: 73 | K165: 688
B166: 정보보호 | C166: 3 | D166: 1486 | E166: 569 | F166: 46 | G166: 24 | H166: 597 | I166: 0 | J166: 180 | K166: 2905
B167: 정보이론 | C167: 5 | D167: 1603 | E167: 2687 | F167: 195 | G167: 108 | H167: 1948 | I167: 1 | J167: 381 | K167: 6928
B168: 정보통신 모듈/부품 | C168: 0 | D168: 363 | E168: 198 | F168: 63 | G168: 95 | H168: 564 | I168: 0 | J168: 76 | K168: 1359
B169: 정보통신 융합 디바이스 | C169: 0 | D169: 110 | E169: 54 | F169: 9 | G169: 17 | H169: 192 | I169: 0 | J169: 54 | K169: 436
B170: 정보통신 융합 서비스 | C170: 0 | D170: 137 | E170: 187 | F170: 22 | G170: 14 | H170: 476 | I170: 0 | J170: 72 | K170: 908
B171: 기타 정보/통신 | C171: 35 | D171: 1929 | E171: 394 | F171: 8 | G171: 4 | H171: 142 | I171: 0 | J171: 382 | K171: 2894
B172: 합계 | C172: 150 | D172: 12597 | E172: 6083 | F172: 920 | G172: 1219 | H172: 9419 | I172: 3 | J172: 2301 | K172: 32692
A173: 에너지/자원 | B173: 가스에너지 | C173: 0 | D173: 32 | E173: 16 | F173: 23 | G173: 39 | H173: 180 | I173: 0 | J173: 97 | K173: 387
B174: 수화력발전 | C174: 0 | D174: 83 | E174: 36 | F174: 151 | G174: 24 | H174: 139 | I174: 0 | J174: 12 | K174: 445
B175: 스마트그리드 | C175: 0 | D175: 320 | E175: 149 | F175: 73 | G175: 18 | H175: 434 | I175: 0 | J175: 142 | K175: 1136
B176: 신재생에너지 | C176: 8 | D176: 1824 | E176: 938 | F176: 862 | G176: 563 | H176: 1938 | I176: 0 | J176: 678 | K176: 6811
B177: 온실가스 처리 | C177: 0 | D177: 407 | E177: 106 | F177: 273 | G177: 51 | H177: 133 | I177: 0 | J177: 102 | K177: 1072
B178: 자원탐사/개발/활용 | C178: 0 | D178: 597 | E178: 71 | F178: 0 | G178: 1 | H178: 111 | I178: 0 | J178: 20 | K178: 800
B179: 전력시스템 | C179: 0 | D179: 394 | E179: 128 | F179: 76 | G179: 37 | H179: 262 | I179: 0 | J179: 74 | K179: 971
B180: 기타 에너지/자원 | C180: 0 | D180: 874 | E180: 116 | F180: 24 | G180: 7 | H180: 118 | I180: 0 | J180: 64 | K180: 1203
B181: 합계 | C181: 8 | D181: 4530 | E181: 1559 | F181: 1481 | G181: 741 | H181: 3314 | I181: 0 | J181: 1190 | K181: 12823
A182: 원자력 | B182: 방사선기술 | C182: 0 | D182: 346 | E182: 101 | F182: 11 | G182: 2 | H182: 99 | I182: 0 | J182: 82 | K182: 641
B183: 원자력 기반기술 | C183: 0 | D183: 166 | E183: 67 | F183: 0 | G183: 0 | H183: 24 | I183: 0 | J183: 8 | K183: 265
B184: 원자력계측/제어기술 | C184: 0 | D184: 94 | E184: 33 | F184: 3 | G184: 9 | H184: 117 | I184: 0 | J184: 0 | K184: 256
B185: 원자력시설 건설·운영·해체 | C185: 0 | D185: 474 | E185: 3 | F185: 18 | G185: 0 | H185: 32 | I185: 0 | J185: 26 | K185: 553
B186: 원자력안전기술 | C186: 0 | D186: 670 | E186: 149 | F186: 60 | G186: 0 | H186: 216 | I186: 0 | J186: 10 | K186: 1105
B187: 원자로계통/핵심기기기술 | C187: 0 | D187: 128 | E187: 30 | F187: 14 | G187: 5 | H187: 23 | I187: 0 | J187: 4 | K187: 204
B188: 원자로노심기술 | C188: 0 | D188: 78 | E188: 24 | F188: 6 | G188: 0 | H188: 0 | I188: 0 | J188: 5 | K188: 113
B189: 핵연료/원자력소재 | C189: 0 | D189: 195 | E189: 47 | F189: 7 | G189: 0 | H189: 33 | I189: 0 | J189: 55 | K189: 337
B190: 핵연료주기/방사성폐기물관리기술 | C190: 0 | D190: 686 | E190: 58 | F190: 14 | G190: 20 | H190: 245 | I190: 0 | J190: 352 | K190: 1375
B191: 핵융합 | C191: 0 | D191: 1318 | E191: 41 | F191: 0 | G191: 0 | H191: 1 | I191: 0 | J191: 0 | K191: 1360
B192: 기타 원자력 | C192: 0 | D192: 1429 | E192: 17 | F192: 5 | G192: 1 | H192: 47 | I192: 0 | J192: 117 | K192: 1616
B193: 합계 | C193: 0 | D193: 5584 | E193: 571 | F193: 139 | G193: 37 | H193: 837 | I193: 0 | J193: 658 | K193: 7826
A194: 환경 | B194: 대기질 관리 | C194: 47 | D194: 331 | E194: 225 | F194: 1 | G194: 84 | H194: 300 | I194: 0 | J194: 81 | K194: 1069
B195: 물관리 | C195: 461 | D195: 119 | E195: 244 | F195: 20 | G195: 12 | H195: 287 | I195: 0 | J195: 18 | K195: 1161
B196: 생태계 복원/관리 | C196: 5 | D196: 14 | E196: 101 | F196: 9 | G196: 0 | H196: 17 | I196: 0 | J196: 3 | K196: 149
B197: 소음/진동관리 | C197: 1 | D197: 8 | E197: 6 | F197: 6 | G197: 2 | H197: 24 | I197: 0 | J197: 0 | K197: 47
B198: 위해성평가/관리 | C198: 6 | D198: 69 | E198: 84 | F198: 0 | G198: 0 | H198: 18 | I198: 0 | J198: 19 | K198: 196
B199: 작업환경기술 | C199: 0 | D199: 1 | E199: 17 | F199: 0 | G199: 0 | H199: 26 | I199: 0 | J199: 0 | K199: 44
B200: 청정생산/설비 | C200: 0 | D200: 38 | E200: 16 | F200: 16 | G200: 56 | H200: 217 | I200: 0 | J200: 16 | K200: 359
B201: 측정분석장비/장치 | C201: 5 | D201: 57 | E201: 50 | F201: 7 | G201: 0 | H201: 115 | I201: 0 | J201: 9 | K201: 243
... 96 more rows

Sheet 3-2
A1: 3-2. 연구수행주체별 국가과학기술표준분류 적용분야별 집행 현황(2023년) | J1: 목차
K3: (단위 : 억원)
A4: 구분 | B4: 적용분야 | C4: 국공립연구소 | D4: 출연연구소 | E4: 대학 | F4: 대기업 | G4: 중견기업 | H4: 중소기업 | I4: 정부부처 | J4: 기타 | K4: 합계
A5: 공공분야 | B5: 지식의 진보(비목적 연구) | C5: 126 | D5: 7351 | E5: 14588 | F5: 12 | G5: 11 | H5: 294 | I5: 3 | J5: 1110 | K5: 23495
B6: 건강 | C6: 1291 | D6: 5889 | E6: 11460 | F6: 5 | G6: 215 | H6: 2608 | I6: 1 | J6: 1168 | K6: 22637
B7: 국방 | C7: 4 | D7: 32152 | E7: 868 | F7: 3294 | G7: 8807 | H7: 3159 | I7: 0 | J7: 192 | K7: 48476
B8: 사회구조 및 관계 | C8: 8 | D8: 759 | E8: 456 | F8: 0 | G8: 1 | H8: 101 | I8: 0 | J8: 46 | K8: 1371
B9: 에너지 | C9: 20 | D9: 8667 | E9: 2944 | F9: 964 | G9: 527 | H9: 2758 | I9: 0 | J9: 982 | K9: 16862
B10: 우주개발 및 탐사 | C10: 112 | D10: 5683 | E10: 308 | F10: 137 | G10: 325 | H10: 481 | I10: 14 | J10: 5 | K10: 7065
B11: 지구개발 및 탐사 | C11: 180 | D11: 2496 | E11: 215 | F11: 0 | G11: 3 | H11: 86 | I11: 0 | J11: 62 | K11: 3042
B12: 교통/정보통신/기타 기반시설 | C12: 59 | D12: 5882 | E12: 1226 | F12: 210 | G12: 256 | H12: 2660 | I12: 0 | J12: 1252 | K12: 11545
B13: 환경 | C13: 1054 | D13: 2499 | E13: 2725 | F13: 278 | G13: 230 | H13: 2592 | I13: 0 | J13: 519 | K13: 9897
B14: 사회질서 및 안전 | C14: 451 | D14: 1046 | E14: 931 | F14: 86 | G14: 48 | H14: 918 | I14: 10 | J14: 360 | K14: 3850
B15: 문화, 여가증진, 종교 및 매스미디어 | C15: 381 | D15: 198 | E15: 235 | F15: 1 | G15: 0 | H15: 231 | I15: 0 | J15: 51 | K15: 1097
B16: 교육 및 인력양성 | C16: 215 | D16: 1333 | E16: 12708 | F16: 0 | G16: 14 | H16: 180 | I16: 0 | J16: 380 | K16: 14830
B17: 기타 공공목적 | C17: 2385 | D17: 22909 | E17: 3760 | F17: 70 | G17: 541 | H17: 2256 | I17: 263 | J17: 5630 | K17: 37814
B18: 소계 | C18: 6287.620997 | D18: 96863.50535 | E18: 52423.2578 | F18: 5057.33402 | G18: 10976.59867 | H18: 18323.45597 | I18: 291.49 | J18: 11757.44838 | K18: 201980.7112
A19: 산업분야 | B19: 농업, 임업 및 어업 | C19: 7763 | D19: 808 | E19: 2372 | F19: 34 | G19: 146 | H19: 1810 | I19: 455 | J19: 395 | K19: 13783
B20: 제조업(음식료품 및 담배) | C20: 28 | D20: 54 | E20: 201 | F20: 0 | G20: 39 | H20: 516 | I20: 0 | J20: 17 | K20: 855
B21: 제조업(섬유,의복 및 가죽제품) | C21: 0 | D21: 32 | E21: 131 | F21: 38 | G21: 63 | H21: 883 | I21: 0 | J21: 116 | K21: 1263
B22: 제조업(목재,종이 및 인쇄) | C22: 44 | D22: 3 | E22: 62 | F22: 0 | G22: 5 | H22: 105 | I22: 0 | J22: 5 | K22: 224
B23: 제조업(화학물질 및 화학제품) | C23: 1 | D23: 989 | E23: 1562 | F23: 202 | G23: 888 | H23: 3092 | I23: 5 | J23: 341 | K23: 7080
B24: 제조업(의료용물질 및 의약품) | C24: 16 | D24: 306 | E24: 1391 | F24: 21 | G24: 233 | H24: 1780 | I24: 0 | J24: 295 | K24: 4042
B25: 제조업(비금속광물 및 금속제품) | C25: 2 | D25: 538 | E25: 453 | F25: 368 | G25: 367 | H25: 1836 | I25: 0 | J25: 173 | K25: 3737
B26: 제조업(전자부품, 컴퓨터, 영상, 음향 및 통신장비) | C26: 4 | D26: 1948 | E26: 3427 | F26: 371 | G26: 1001 | H26: 4922 | I26: 0 | J26: 921 | K26: 12594
B27: 제조업(의료,정밀,광학기기 및 시계) | C27: 31 | D27: 446 | E27: 1455 | F27: 2 | G27: 216 | H27: 3589 | I27: 0 | J27: 431 | K27: 6170
B28: 제조업(전기 및 기계장비) | C28: 8 | D28: 1415 | E28: 1151 | F28: 858 | G28: 1253 | H28: 6235 | I28: 0 | J28: 655 | K28: 11575
B29: 제조업(자동차 및 운송장비) | C29: 1 | D29: 856 | E29: 631 | F29: 420 | G29: 2585 | H29: 4406 | I29: 0 | J29: 1253 | K29: 10152
B30: 전기,가스,증기 및 수도사업 | C30: 0 | D30: 121 | E30: 166 | F30: 212 | G30: 8 | H30: 550 | I30: 0 | J30: 97 | K30: 1154
B31: 하수,폐기물처리, 원료재생 및 환경복원업 | C31: 7 | D31: 117 | E31: 253 | F31: 22 | G31: 25 | H31: 426 | I31: 0 | J31: 24 | K31: 874
B32: 건설업 | C32: 4 | D32: 833 | E32: 1027 | F32: 73 | G32: 35 | H32: 806 | I32: 0 | J32: 102 | K32: 2880
B33: 출판, 영상, 방송통신 및 정보서비스업 | C33: 1 | D33: 581 | E33: 490 | F33: 0 | G33: 22 | H33: 1822 | I33: 0 | J33: 324 | K33: 3240
B34: 전문, 과학 및 기술서비스업 | C34: 125 | D34: 1635 | E34: 3348 | F34: 110 | G34: 70 | H34: 3224 | I34: 3 | J34: 920 | K34: 9435
B35: 교육 서비스업 | C35: 2 | D35: 68 | E35: 231 | F35: 0 | G35: 34 | H35: 332 | I35: 0 | J35: 62 | K35: 729
B36: 보건업 및 사회복지 서비스업 | C36: 27 | D36: 483 | E36: 1502 | F36: 3 | G36: 38 | H36: 772 | I36: 0 | J36: 241 | K36: 3066
B37: 예술, 스포츠 및 여가관련 서비스업 | C37: 5 | D37: 131 | E37: 156 | F37: 0 | G37: 0 | H37: 250 | I37: 0 | J37: 49 | K37: 591
B38: 기타 산업 | C38: 48 | D38: 2633 | E38: 1601 | F38: 329 | G38: 542 | H38: 2700 | I38: 0 | J38: 2455 | K38: 10308
B39: 소계 | C39: 8115.948818 | D39: 13997.30177 | E39: 21610.2183 | F39: 3063.494762 | G39: 7568.132287 | H39: 40055.17139 | I39: 463.06 | J39: 8877.308054 | K39: 103750.6354
A40: 합계 | C40: 14404 | D40: 110861 | E40: 74033 | F40: 8121 | G40: 18545 | H40: 58379 | I40: 755 | J40: 20635 | K40: 305731
A42: * 출연연구소는 경제인문사회연구회, 국가과학기술연구회, 연구관리 전문기관, 기타 출연연 등의 R&D 관련 출연연구기관을 포함
A43: * 국공립연구소는 국립연구소와 지방자치단체의 공립연구소를 포함
A44: * 기타는 비영리법인, 연구조합, 협회, 학회, 정부투자기관 등을 포함

Sheet 3-3
A1: 3-3. 연구수행주체별 미래유망기술(6T)별 상세분류 집행 현황(2023년) | J1: 목차
L3: (단위 : 억원)
A4: 대분류 | B4: 중분류 | C4: 소분류 | D4: 국공립 | E4: 출연 | F4: 대학 | G4: 대기업 | H4: 중견 | I4: 중소 | J4: 정부 | K4: 기타 | L4: 합계
D5: 연구소 | E5: 연구소 | H5: 기업 | I5: 기업 | J5: 부처
A6: IT(정보기술) | B6: 핵심부품 | C6: 테라비트급 광통신 부품기술 | D6: 2 | E6: 220 | F6: 25 | G6: 0 | H6: 8 | I6: 193 | J6: 0 | K6: 239 | L6: 687
C7: 집적회로기술 | D7: 0 | E7: 822 | F7: 1151 | G7: 149 | H7: 626 | I7: 2150 | J7: 0 | K7: 395 | L7: 5293
C8: 차세대디스플레이기술 | D8: 0 | E8: 265 | F8: 328 | G8: 157 | H8: 686 | I8: 1656 | J8: 0 | K8: 259 | L8: 3350
C9: 고밀도 정보저장장치 기술 | D9: 0 | E9: 48 | F9: 231 | G9: 24 | H9: 36 | I9: 103 | J9: 0 | K9: 18 | L9: 461
C10: 기타 정보통신 부품기술 | D10: 0 | E10: 512 | F10: 508 | G10: 44 | H10: 440 | I10: 1532 | J10: 0 | K10: 231 | L10: 3267
B11: 차세대 네트워크 기반 | C11: 4세대 이동통신 | D11: 5 | E11: 264 | F11: 155 | G11: 232 | H11: 34 | I11: 125 | J11: 0 | K11: 85 | L11: 899
C12: 대용량 광전송 시스템기술 | D12: 0 | E12: 67 | F12: 61 | G12: 0 | H12: 20 | I12: 29 | J12: 0 | K12: 0 | L12: 177
C13: 고속인터넷 네트워킹기술 | D13: 0 | E13: 326 | F13: 91 | G13: 0 | H13: 0 | I13: 68 | J13: 0 | K13: 233 | L13: 718
C14: 기타 네트워크기술 | D14: 10 | E14: 698 | F14: 359 | G14: 100 | H14: 242 | I14: 423 | J14: 0 | K14: 162 | L14: 1994
B15: 정보처리 시스템 및 S/W | C15: 멀티미디어 단말기 및 운영체계기술 | D15: 0 | E15: 61 | F15: 104 | G15: 27 | H15: 33 | I15: 312 | J15: 0 | K15: 5 | L15: 542
C16: 정보보안 및 암호기술 | D16: 3 | E16: 1314 | F16: 742 | G16: 47 | H16: 97 | I16: 647 | J16: 0 | K16: 165 | L16: 3015
C17: 전자상거래 기술 | D17: 0 | E17: 2 | F17: 24 | G17: 0 | H17: 3 | I17: 277 | J17: 1 | K17: 6 | L17: 312
C18: 신호처리기술 (영상･음성처리･인식･합성) | D18: 20 | E18: 990 | F18: 921 | G18: 94 | H18: 829 | I18: 1387 | J18: 0 | K18: 130 | L18: 4371
C19: 정보검색 및 DB기술 | D19: 39 | E19: 507 | F19: 402 | G19: 29 | H19: 32 | I19: 900 | J19: 2 | K19: 82 | L19: 1992
C20: 기타 정보처리시스템 및 S/W 기술 | D20: 56 | E20: 3421 | F20: 2366 | G20: 162 | H20: 340 | I20: 5977 | J20: 0 | K20: 1153 | L20: 13475
B21: 기타 정보기술 | C21: 기타 정보기술 | D21: 312 | E21: 5741 | F21: 2504 | G21: 148 | H21: 792 | I21: 2971 | J21: 8 | K21: 1255 | L21: 13732
B22: 소계 | D22: 446 | E22: 15257 | F22: 9973 | G22: 1213 | H22: 4218 | I22: 18750 | J22: 11 | K22: 4417 | L22: 54285
A23: BT(생명공학기술) | B23: 기초/기반기술 | C23: 유전체기반 기술 | D23: 121 | E23: 699 | F23: 1086 | G23: 6 | H23: 5 | I23: 195 | J23: 0 | K23: 109 | L23: 2221
C24: 단백질체 연구 | D24: 11 | E24: 61 | F24: 323 | G24: 0 | H24: 8 | I24: 48 | J24: 0 | K24: 14 | L24: 465
C25: 생물정보학 기술 | D25: 46 | E25: 73 | F25: 496 | G25: 1 | H25: 3 | I25: 73 | J25: 2 | K25: 20 | L25: 715
C26: 생명현상 및 기능연구 | D26: 149 | E26: 423 | F26: 3278 | G26: 0 | H26: 7 | I26: 61 | J26: 0 | K26: 72 | L26: 3990
C27: 뇌신경과학 연구 | D27: 4 | E27: 533 | F27: 1254 | G27: 0 | H27: 5 | I27: 97 | J27: 0 | K27: 63 | L27: 1957
C28: 생물공정 기술 | D28: 5 | E28: 70 | F28: 358 | G28: 2 | H28: 57 | I28: 278 | J28: 0 | K28: 15 | L28: 786
C29: 생명공학 산물 안전성 및 유효성 평가기술 | D29: 35 | E29: 286 | F29: 304 | G29: 0 | H29: 11 | I29: 231 | J29: 0 | K29: 168 | L29: 1035
C30: 바이오칩 개발기술 | D30: 0 | E30: 67 | F30: 420 | G30: 0 | H30: 0 | I30: 271 | J30: 0 | K30: 11 | L30: 769
C31: 기타 기초･기반기술 | D31: 412 | E31: 1015 | F31: 791 | G31: 16 | H31: 115 | I31: 328 | J31: 7 | K31: 107 | L31: 2791
B32: 보건의료 관련응용 | C32: 바이오신약 개발기술 | D32: 185 | E32: 825 | F32: 1693 | G32: 0 | H32: 152 | I32: 1271 | J32: 0 | K32: 501 | L32: 4627
C33: 난치성 질환 치료기술 | D33: 14 | E33: 522 | F33: 2225 | G33: 0 | H33: 21 | I33: 467 | J33: 0 | K33: 171 | L33: 3421
C34: 생체조직 재생기술 | D34: 15 | E34: 80 | F34: 695 | G34: 0 | H34: 2 | I34: 261 | J34: 0 | K34: 31 | L34: 1084
C35: 유전자 치료기술 | D35: 3 | E35: 48 | F35: 250 | G35: 0 | H35: 10 | I35: 97 | J35: 0 | K35: 24 | L35: 433
C36: 기능성 바이오소재 기반기술 | D36: 46 | E36: 398 | F36: 827 | G36: 22 | H36: 77 | I36: 853 | J36: 0 | K36: 88 | L36: 2312
C37: 한방응용기술 | D37: 3 | E37: 597 | F37: 416 | G37: 0 | H37: 5 | I37: 27 | J37: 0 | K37: 21 | L37: 1069
C38: 의과학･의공학 기술 | D38: 35 | E38: 551 | F38: 2111 | G38: 0 | H38: 116 | I38: 1536 | J38: 0 | K38: 478 | L38: 4827
C39: 식품생명공학기술 | D39: 44 | E39: 227 | F39: 395 | G39: 2 | H39: 10 | I39: 247 | J39: 0 | K39: 30 | L39: 955
C40: 기타 보건의료관련 응용기술 | D40: 740 | E40: 1406 | F40: 2762 | G40: 39 | H40: 177 | I40: 2326 | J40: 1 | K40: 606 | L40: 8058
B41: 농업/해양/환경 관련응용 | C41: 유전자 변형 생물체 개발기술 | D41: 341 | E41: 42 | F41: 217 | G41: 0 | H41: 0 | I41: 59 | J41: 0 | K41: 3 | L41: 661
C42: 농업･해양 생물자원의 보존 및 이용기술 | D42: 2406 | E42: 196 | F42: 601 | G42: 0 | H42: 16 | I42: 288 | J42: 2 | K42: 43 | L42: 3553
C43: 동식물 병해충 제어기술 | D43: 349 | E43: 31 | F43: 491 | G43: 1 | H43: 10 | I43: 180 | J43: 0 | K43: 15 | L43: 1077
C44: 환경 생명공학기술 | D44: 30 | E44: 204 | F44: 361 | G44: 39 | H44: 93 | I44: 90 | J44: 0 | K44: 20 | L44: 836
C45: 기타 농업･해양･환경 응용기술 | D45: 3558 | E45: 292 | F45: 842 | G45: 7 | H45: 47 | I45: 629 | J45: 91 | K45: 134 | L45: 5600
B46: 소계 | D46: 8553 | E46: 8649 | F46: 22196 | G46: 136 | H46: 947 | I46: 9912 | J46: 103 | K46: 2744 | L46: 53240
A47: NT(나노기술) | B47: 나노소자 및 시스템 | C47: 나노전자 소자기술 | D47: 0 | E47: 269 | F47: 1093 | G47: 0 | H47: 29 | I47: 139 | J47: 0 | K47: 84 | L47: 1614
C48: 나노정보 저장기술 | D48: 0 | E48: 5 | F48: 76 | G48: 0 | H48: 0 | I48: 0 | J48: 0 | K48: 0 | L48: 81
C49: 가변 파장 광소자기술 | D49: 0 | E49: 38 | F49: 52 | G49: 0 | H49: 10 | I49: 81 | J49: 0 | K49: 14 | L49: 196
C50: 나노 photonics기술 | D50: 0 | E50: 18 | F50: 350 | G50: 0 | H50: 42 | I50: 15 | J50: 0 | K50: 11 | L50: 437
C51: 기타 나노소자 및 시스템기술 | D51: 0 | E51: 175 | F51: 203 | G51: 0 | H51: 3 | I51: 103 | J51: 0 | K51: 44 | L51: 528
B52: 나노소재 | C52: 나노소재기술(나노분말소재, 광학용 나노소재, 고기능 시너지 소재, 촉매･환경･기능소재에 중점) | D52: 0 | E52: 581 | F52: 1891 | G52: 10 | H52: 250 | I52: 1281 | J52: 0 | K52: 535 | L52: 4548
C53: 기타 나노소재기술 | D53: 5 | E53: 355 | F53: 868 | G53: 12 | H53: 187 | I53: 534 | J53: 0 | K53: 100 | L53: 2061
B54: 나노 바이오보건 | C54: 나노 바이오 물질 합성 및 분석기술 | D54: 0 | E54: 197 | F54: 189 | G54: 0 | H54: 0 | I54: 85 | J54: 0 | K54: 5 | L54: 476
C55: 의약 약물전달 시스템 | D55: 0 | E55: 15 | F55: 235 | G55: 0 | H55: 38 | I55: 122 | J55: 0 | K55: 0 | L55: 411
C56: 기타 나노바이오보건기술 | D56: 0 | E56: 182 | F56: 101 | G56: 0 | H56: 0 | I56: 49 | J56: 0 | K56: 7 | L56: 339
B57: 나노기반/공정 | C57: 원자･분자 레벨 물질 조작기술 | D57: 0 | E57: 194 | F57: 128 | G57: 0 | H57: 27 | I57: 42 | J57: 0 | K57: 4 | L57: 395
C58: 나노 측정기술(100nm이하) | D58: 0 | E58: 59 | F58: 114 | G58: 0 | H58: 25 | I58: 221 | J58: 0 | K58: 20 | L58: 440
C59: 나노모사기술 | D59: 0 | E59: 4 | F59: 78 | G59: 8 | H59: 0 | I59: 1 | J59: 0 | K59: 0 | L59: 90
C60: 계면 혹은 표면의 나노구조화기술 | D60: 0 | E60: 57 | F60: 118 | G60: 0 | H60: 0 | I60: 59 | J60: 0 | K60: 3 | L60: 238
C61: 나노 신기능 분자합성기술 | D61: 0 | E61: 134 | F61: 73 | G61: 0 | H61: 0 | I61: 20 | J61: 0 | K61: 0 | L61: 228
C62: 나노패터닝 공정기술 | D62: 0 | E62: 35 | F62: 161 | G62: 0 | H62: 56 | I62: 63 | J62: 0 | K62: 8 | L62: 323
C63: 나노화학 공정기술 | D63: 0 | E63: 42 | F63: 170 | G63: 0 | H63: 73 | I63: 159 | J63: 0 | K63: 3 | L63: 447
C64: 기타 나노기반 공정기술 | D64: 0 | E64: 315 | F64: 140 | G64: 26 | H64: 51 | I64: 318 | J64: 0 | K64: 26 | L64: 877
B65: 소계 | D65: 5 | E65: 2677 | F65: 6042 | G65: 56 | H65: 790 | I65: 3293 | J65: 0 | K65: 865 | L65: 13729
A66: ST(우주항공기술) | B66: 위성기술 | C66: 위성설계 및 개발기술 | D66: 0 | E66: 3589 | F66: 201 | G66: 105 | H66: 321 | I66: 281 | J66: 0 | K66: 0 | L66: 4497
C67: 위성관제기술 | D67: 98 | E67: 224 | F67: 11 | G67: 0 | H67: 0 | I67: 13 | J67: 0 | K67: 0 | L67: 346
C68: 차세대 통신위성 탑재체기술 | D68: 0 | E68: 684 | F68: 64 | G68: 128 | H68: 0 | I68: 72 | J68: 0 | K68: 0 | L68: 948
C69: 기타 위성기술 | D69: 17 | E69: 789 | F69: 106 | G69: 37 | H69: 142 | I69: 182 | J69: 4 | K69: 1 | L69: 1278
B70: 발사체기술 | C70: 로켓추진 기관기술 | D70: 0 | E70: 1761 | F70: 29 | G70: 25 | H70: 0 | I70: 44 | J70: 0 | K70: 0 | L70: 1859
C71: 소형위성 발사체개발기술 | D71: 0 | E71: 221 | F71: 5 | G71: 4 | H71: 0 | I71: 20 | J71: 0 | K71: 0 | L71: 249
C72: 발사운용, 통제 및 관제기술 | D72: 0 | E72: 95 | F72: 1 | G72: 0 | H72: 0 | I72: 22 | J72: 0 | K72: 0 | L72: 118
C73: 기타 발사체기술 | D73: 0 | E73: 309 | F73: 64 | G73: 70 | H73: 8 | I73: 31 | J73: 0 | K73: 0 | L73: 482
B74: 항공기기술 | C74: 항공기 체계종합 및 비행성능기반기술 | D74: 0 | E74: 392 | F74: 86 | G74: 33 | H74: 3234 | I74: 60 | J74: 0 | K74: 30 | L74: 3835
C75: 지능형 자율비행 무인비행기기 시스템(UAV)기술 | D75: 0 | E75: 969 | F75: 196 | G75: 8 | H75: 191 | I75: 308 | J75: 0 | K75: 22 | L75: 1695
C76: 다목적 헬리콥터기술개발 | D76: 0 | E76: 38 | F76: 27 | G76: 0 | H76: 1490 | I76: 21 | J76: 0 | K76: 0 | L76: 1577
C77: 기타 항공기기술 | D77: 0 | E77: 803 | F77: 79 | G77: 336 | H77: 637 | I77: 391 | J77: 0 | K77: 18 | L77: 2265
B78: 기타 | C78: 기타 우주항공기술 | D78: 2 | E78: 1975 | F78: 157 | G78: 40 | H78: 34 | I78: 179 | J78: 14 | K78: 45 | L78: 2447
B79: 소계 | D79: 116 | E79: 11851 | F79: 1028 | G79: 785 | H79: 6058 | I79: 1622 | J79: 18 | K79: 116 | L79: 21595
A80: ET(환경기술) | B80: 환경기반 | C80: 대기오염물질 저감 및 제거기술 | D80: 60 | E80: 819 | F80: 379 | G80: 312 | H80: 234 | I80: 1046 | J80: 0 | K80: 187 | L80: 3036
C81: 자연환경･오염토양･지하수의 정화･복원기술 | D81: 49 | E81: 483 | F81: 202 | G81: 0 | H81: 5 | I81: 69 | J81: 0 | K81: 5 | L81: 814
C82: 수질오염처리 및 재이용기술 | D82: 18 | E82: 73 | F82: 164 | G82: 0 | H82: 10 | I82: 189 | J82: 0 | K82: 4 | L82: 458
C83: 폐기물 처리 및 활용기술 | D83: 39 | E83: 372 | F83: 237 | G83: 52 | H83: 160 | I83: 900 | J83: 0 | K83: 275 | L83: 2035
C84: 환경관리･정보 및 시스템기술 | D84: 120 | E84: 320 | F84: 647 | G84: 86 | H84: 5 | I84: 420 | J84: 0 | K84: 118 | L84: 1716
C85: 기타 환경기반기술 | D85: 1122 | E85: 843 | F85: 678 | G85: 17 | H85: 145 | I85: 508 | J85: 0 | K85: 274 | L85: 3587
B86: 에너지 | C86: 에너지소재 기술 | D86: 0 | E86: 1233 | F86: 1281 | G86: 279 | H86: 316 | I86: 1435 | J86: 0 | K86: 489 | L86: 5032
C87: 미활용 에너지 이용기술 | D87: 5 | E87: 1410 | F87: 185 | G87: 175 | H87: 74 | I87: 422 | J87: 0 | K87: 26 | L87: 2297
C88: 고효율 반응분리공정기술 | D88: 0 | E88: 184 | F88: 88 | G88: 29 | H88: 18 | I88: 127 | J88: 0 | K88: 10 | L88: 455
C89: 연료전지기술 | D89: 1 | E89: 373 | F89: 233 | G89: 456 | H89: 356 | I89: 624 | J89: 0 | K89: 322 | L89: 2365
C90: 수소생산 이용기술 | D90: 10 | E90: 606 | F90: 374 | G90: 456 | H90: 219 | I90: 764 | J90: 0 | K90: 310 | L90: 2740
C91: 바이오에너지 기술 | D91: 8 | E91: 49 | F91: 96 | G91: 3 | H91: 11 | I91: 96 | J91: 0 | K91: 66 | L91: 329
C92: 에너지저장 이용기술 | D92: 1 | E92: 498 | F92: 243 | G92: 217 | H92: 195 | I92: 867 | J92: 0 | K92: 399 | L92: 2420
C93: 기타 에너지기술 | D93: 7 | E93: 4652 | F93: 1631 | G93: 754 | H93: 535 | I93: 2690 | J93: 0 | K93: 1069 | L93: 11337
B94: 청정생산 | C94: 청정원천공정 기술 | D94: 0 | E94: 233 | F94: 37 | G94: 40 | H94: 10 | I94: 70 | J94: 0 | K94: 7 | L94: 396
C95: 환경친화형소재 (Eco-material)개발기술 | D95: 13 | E95: 247 | F95: 150 | G95: 18 | H95: 212 | I95: 764 | J95: 0 | K95: 71 | L95: 1474
C96: 유해성 원부재료 대체기술 | D96: 0 | E96: 7 | F96: 10 | G96: 0 | H96: 44 | I96: 110 | J96: 0 | K96: 2 | L96: 173
C97: 공정내재자원화 (Internal Recycle) 기술 | D97: 0 | E97: 4 | F97: 2 | G97: 0 | H97: 5 | I97: 108 | J97: 0 | K97: 86 | L97: 205
C98: 기타 청정생산기술 | D98: 21 | E98: 207 | F98: 74 | G98: 13 | H98: 52 | I98: 355 | J98: 0 | K98: 61 | L98: 784
B99: 해양환경 | C99: 해양환경 관리기술 | D99: 48 | E99: 587 | F99: 360 | G99: 7 | H99: 19 | I99: 293 | J99: 0 | K99: 87 | L99: 1402
C100: 연안생태계 복원기술 | D100: 0 | E100: 5 | F100: 59 | G100: 3 | H100: 0 | I100: 58 | J100: 0 | K100: 0 | L100: 126
C101: 기타 해양환경기술 | D101: 38 | E101: 309 | F101: 169 | G101: 9 | H101: 2 | I101: 257 | J101: 0 | K101: 39 | L101: 822
B102: 소계 | D102: 1560 | E102: 13514 | F102: 7299 | G102: 2926 | H102: 2628 | I102: 12174 | J102: 0 | K102: 3905 | L102: 44005
A103: CT(문화기술) | B103: 문화컨텐츠 | C103: 가상현실 및 인공지능 응용기술 | D103: 0 | E103: 530 | F103: 699 | G103: 22 | H103: 53 | I103: 970 | J103: 0 | K103: 386 | L103: 2661
C104: 디지털영상･음향 및 디자인기술 | D104: 5 | E104: 9 | F104: 58 | G104: 0 | H104: 3 | I104: 47 | J104: 0 | K104: 15 | L104: 136
C105: 디지털 컨텐츠 저작도구 | D105: 0 | E105: 48 | F105: 50 | G105: 0 | H105: 22 | I105: 183 | J105: 0 | K105: 56 | L105: 359
C106: 게임엔진 제작 및 기반기술 | D106: 0 | E106: 13 | F106: 10 | G106: 0 | H106: 0 | I106: 15 | J106: 0 | K106: 0 | L106: 37
C107: 기타 문화컨텐츠기술 | D107: 6 | E107: 138 | F107: 69 | G107: 0 | H107: 0 | I107: 121 | J107: 1 | K107: 44 | L107: 378
B108: 생활문화 | C108: 사이버 커뮤니케이션 기술 | D108: 1 | E108: 2 | F108: 16 | G108: 0 | H108: 0 | I108: 20 | J108: 0 | K108: 5 | L108: 44
C109: 인터엑티브 미디어기술 | D109: 0 | E109: 39 | F109: 32 | G109: 0 | H109: 0 | I109: 32 | J109: 0 | K109: 2 | L109: 105
C110: 제품디자인기술 | D110: 0 | E110: 1 | F110: 38 | G110: 0 | H110: 48 | I110: 180 | J110: 0 | K110: 76 | L110: 343
C111: 기타 생활문화기술 | D111: 12 | E111: 11 | F111: 19 | G111: 0 | H111: 15 | I111: 23 | J111: 0 | K111: 0 | L111: 79
B112: 문화유산 | C112: 문화원형 복원기술 | D112: 13 | E112: 94 | F112: 45 | G112: 0 | H112: 0 | I112: 0 | J112: 0 | K112: 5 | L112: 156
C113: 기타 문화유산기술 | D113: 11 | E113: 12 | F113: 25 | G113: 0 | H113: 0 | I113: 2 | J113: 0 | K113: 0 | L113: 50
B114: 소계 | D114: 47 | E114: 897 | F114: 1060 | G114: 22 | H114: 142 | I114: 1591 | J114: 1 | K114: 589 | L114: 4348
A115: 기타 | B115: 위의 미래유망신기술(6T) 103개 세분류에 속하지 않는 기타 연구 | D115: 3672 | E115: 51832 | F115: 17368 | G115: 2982 | H115: 3759 | I115: 10833 | J115: 622 | K115: 7893 | L115: 98961
A116: 합계 | D116: 14400 | E116: 104677 | F116: 64966 | G116: 8121 | H116: 18542 | I116: 58176 | J116: 755 | K116: 20528 | L116: 290164
A118: * 기술분야별 집행현황 분석은 인문사회 분야를 제외한 과학기술 분야와 국방(비밀 세부과제 포함) 분야의 연구개발사업이 분석대상(2023년의 경우에는 63,879개 세부과제, 29조 164억원)임
A119: * 출연연구소는 경제인문사회연구회, 국가과학기술연구회, 연구관리 전문기관, 기타 출연연 등의 R&D 관련 출연연구기관을 포함
A120: * 국공립연구소는 국립연구소와 지방자치단체의 공립연구소를 포함
A121: * 기타는 비영리법인, 연구조합, 협회, 학회, 정부투자기관 등을 포함

Sheet 3-4
A1: 3-4. 연구수행주체별 국가전략기술별 중점기술 집행 현황(2023년) | I1: 목차
K3: (단위 : 억원)
A4: 전략기술 | B4: 세부중점기술 | C4: 국공립연구소 | D4: 출연 | E4: 대학 | F4: 대기업 | G4: 중견 | H4: 중소 | I4: 정부 | J4: 기타 | K4: 합계
D5: 연구소 | G5: 기업 | H5: 기업 | I5: 부처
A6: 반도체·디스플레이 | B6: 반도체·디스플레이 소재·부품·장비 | C6: 0 | D6: 1079 | E6: 1769 | F6: 0 | G6: 141 | H6: 910 | I6: 0 | J6: 234 | K6: 4133
B7: 반도체 첨단패키징 | C7: 0 | D7: 35 | E7: 133 | F7: 0 | G7: 45 | H7: 35 | I7: 0 | J7: 22 | K7: 270
B8: 차세대 고성능 센서 | C8: 0 | D8: 432 | E8: 425 | F8: 0 | G8: 85 | H8: 233 | I8: 0 | J8: 43 | K8: 1218
B9: 고성능·저전력 인공지능 반도체 | C9: 0 | D9: 551 | E9: 1157 | F9: 80 | G9: 113 | H9: 608 | I9: 0 | J9: 73 | K9: 2581
B10: 고집적·저항기반 메모리 | C10: 0 | D10: 56 | E10: 283 | F10: 0 | G10: 0 | H10: 37 | I10: 0 | J10: 28 | K10: 404
B11: 전력반도체 | C11: 0 | D11: 67 | E11: 190 | F11: 32 | G11: 0 | H11: 151 | I11: 0 | J11: 40 | K11: 480
B12: 무기발광 디스플레이 | C12: 0 | D12: 45 | E12: 126 | F12: 0 | G12: 9 | H12: 9 | I12: 0 | J12: 0 | K12: 190
B13: 프리폼 디스플레이 | C13: 0 | D13: 10 | E13: 84 | F13: 0 | G13: 0 | H13: 3 | I13: 0 | J13: 23 | K13: 120
B14: 소계 | C14: 0 | D14: 2276 | E14: 4166 | F14: 112 | G14: 393 | H14: 1985 | I14: 0 | J14: 464 | K14: 9397
A15: 이차전지 | B15: 이차전지 모듈·시스템 | C15: 0 | D15: 162 | E15: 117 | F15: 0 | G15: 0 | H15: 123 | I15: 0 | J15: 38 | K15: 440
B16: 이차전지 재사용·재활용 | C16: 0 | D16: 19 | E16: 62 | F16: 0 | G16: 0 | H16: 70 | I16: 0 | J16: 4 | K16: 155
B17: 리튬이온전지 및 핵심소재 | C17: 0 | D17: 187 | E17: 306 | F17: 9 | G17: 15 | H17: 122 | I17: 0 | J17: 6 | K17: 645
B18: 차세대 이차전지 소재·셀 | C18: 0 | D18: 482 | E18: 626 | F18: 11 | G18: 29 | H18: 175 | I18: 0 | J18: 19 | K18: 1342
B19: 소계 | C19: 0 | D19: 850 | E19: 1111 | F19: 20 | G19: 44 | H19: 489 | I19: 0 | J19: 66 | K19: 2581
A20: 첨단 모빌리티 | B20: 자율주행시스템 | C20: 0 | D20: 289 | E20: 385 | F20: 109 | G20: 142 | H20: 361 | I20: 0 | J20: 617 | K20: 1903
B21: 도심항공교통(UAM) | C21: 0 | D21: 329 | E21: 199 | F21: 0 | G21: 5 | H21: 87 | I21: 0 | J21: 11 | K21: 632
B22: 전기·수소차 | C22: 0 | D22: 284 | E22: 155 | F22: 45 | G22: 100 | H22: 383 | I22: 0 | J22: 308 | K22: 1275
B23: 소계 | C23: 0 | D23: 902 | E23: 738 | F23: 154 | G23: 247 | H23: 831 | I23: 0 | J23: 936 | K23: 3809
A24: 차세대 원자력 | B24: 소형모듈형원자로(SMR) | C24: 0 | D24: 205 | E24: 95 | F24: 14 | G24: 0 | H24: 75 | I24: 0 | J24: 25 | K24: 413
B25: 선진원자력시스템·폐기물관리 | C25: 0 | D25: 682 | E25: 108 | F25: 18 | G25: 33 | H25: 167 | I25: 0 | J25: 278 | K25: 1286
B26: 소계 | C26: 0 | D26: 887 | E26: 203 | F26: 32 | G26: 33 | H26: 241 | I26: 0 | J26: 303 | K26: 1700
A27: 첨단바이오 | B27: 디지털헬스 데이터 분석·활용 | C27: 31 | D27: 938 | E27: 2471 | F27: 0 | G27: 49 | H27: 1059 | I27: 0 | J27: 158 | K27: 4706
B28: 합성생물학 | C28: 15 | D28: 806 | E28: 1646 | F28: 0 | G28: 20 | H28: 366 | I28: 4 | J28: 33 | K28: 2889
B29: 유전자·세포 치료 | C29: 176 | D29: 1309 | E29: 4808 | F29: 0 | G29: 21 | H29: 578 | I29: 0 | J29: 108 | K29: 7000
B30: 감염병 백신·치료 | C30: 176 | D30: 859 | E30: 1160 | F30: 14 | G30: 21 | H30: 217 | I30: 0 | J30: 386 | K30: 2832
B31: 소계 | C31: 397 | D31: 3912 | E31: 10084 | F31: 14 | G31: 111 | H31: 2220 | I31: 4 | J31: 685 | K31: 17427
A32: 우주항공·해양 | B32: 해양자원탐사 | C32: 133 | D32: 697 | E32: 213 | F32: 0 | G32: 14 | H32: 49 | I32: 0 | J32: 52 | K32: 1158
B33: 달착륙·표면탐사 | C33: 0 | D33: 115 | E33: 40 | F33: 48 | G33: 25 | H33: 7 | I33: 0 | J33: 2 | K33: 237
B34: 우주관측·센싱 | C34: 2 | D34: 3635 | E34: 212 | F34: 59 | G34: 121 | H34: 499 | I34: 0 | J34: 1 | K34: 4528
B35: 첨단 항공가스터빈엔진·부품 | C35: 0 | D35: 469 | E35: 184 | F35: 435 | G35: 12 | H35: 248 | I35: 0 | J35: 247 | K35: 1595
B36: 대형 다단연소사이클 엔진 | C36: 0 | D36: 377 | E36: 8 | F36: 1 | G36: 6 | H36: 2 | I36: 0 | J36: 1 | K36: 396
B37: 소계 | C37: 136 | D37: 5292 | E37: 657 | F37: 543 | G37: 179 | H37: 805 | I37: 0 | J37: 303 | K37: 7914
A38: 수소 | B38: 수소연료전지 및 발전 | C38: 0 | D38: 449 | E38: 279 | F38: 120 | G38: 2 | H38: 209 | I38: 0 | J38: 17 | K38: 1075
B39: 수소저장·운송 | C39: 0 | D39: 316 | E39: 203 | F39: 23 | G39: 10 | H39: 136 | I39: 0 | J39: 36 | K39: 724
B40: 수전해 수소생산 | C40: 0 | D40: 241 | E40: 559 | F40: 103 | G40: 0 | H40: 66 | I40: 0 | J40: 62 | K40: 1031
B41: 소계 | C41: 0 | D41: 1006 | E41: 1042 | F41: 246 | G41: 12 | H41: 411 | I41: 0 | J41: 114 | K41: 2830
A42: 사이버보안 | B42: 데이터·AI 보안 | C42: 19 | D42: 389 | E42: 349 | F42: 11 | G42: 27 | H42: 247 | I42: 0 | J42: 78 | K42: 1119
B43: 신산업·가상융합 보안 | C43: 5 | D43: 195 | E43: 119 | F43: 0 | G43: 0 | H43: 101 | I43: 0 | J43: 59 | K43: 479
B44: 네트워크·클라우드 보안 | C44: 0 | D44: 132 | E44: 69 | F44: 0 | G44: 0 | H44: 145 | I44: 0 | J44: 4 | K44: 350
B45: 디지털 취약점 분석·대응(공급망 보안) | C45: 0 | D45: 207 | E45: 107 | F45: 30 | G45: 137 | H45: 80 | I45: 0 | J45: 29 | K45: 590
B46: 소계 | C46: 23 | D46: 922 | E46: 644 | F46: 40 | G46: 164 | H46: 573 | I46: 0 | J46: 170 | K46: 2538
A47: 인공지능 | B47: 산업활용·혁신 AI | C47: 977 | D47: 751 | E47: 1379 | F47: 121 | G47: 76 | H47: 1578 | I47: 0 | J47: 170 | K47: 5052
B48: 안전·신뢰 AI | C48: 1 | D48: 363 | E48: 642 | F48: 38 | G48: 1 | H48: 348 | I48: 2 | J48: 65 | K48: 1459
B49: 효율적 학습 및 AI인프라(SW/HW) 고도화 | C49: 12 | D49: 783 | E49: 986 | F49: 56 | G49: 23 | H49: 808 | I49: 0 | J49: 92 | K49: 2760
B50: 첨단 AI모델링·의사결정(인지·판단·추론) | C50: 17 | D50: 796 | E50: 1710 | F50: 104 | G50: 225 | H50: 1011 | I50: 4 | J50: 178 | K50: 4044
B51: 소계 | C51: 1008 | D51: 2693 | E51: 4716 | F51: 318 | G51: 325 | H51: 3744 | I51: 5 | J51: 505 | K51: 13315
A52: 차세대 통신 | B52: 고효율 5G·6G 통신부품 | C52: 0 | D52: 364 | E52: 128 | F52: 0 | G52: 143 | H52: 172 | I52: 0 | J52: 66 | K52: 873
B53: 오픈랜(Open-RAN) | C53: 0 | D53: 83 | E53: 6 | F53: 0 | G53: 30 | H53: 23 | I53: 0 | J53: 0 | K53: 142
B54: 5G·6G 위성통신 | C54: 4 | D54: 379 | E54: 161 | F54: 128 | G54: 14 | H54: 63 | I54: 0 | J54: 22 | K54: 772
B55: 6G | C55: 2 | D55: 324 | E55: 284 | F55: 0 | G55: 0 | H55: 20 | I55: 0 | J55: 20 | K55: 650
B56: 5G 고도화(5G-Adv) | C56: 0 | D56: 470 | E56: 203 | F56: 99 | G56: 0 | H56: 167 | I56: 0 | J56: 233 | K56: 1172
B57: 소계 | C57: 6 | D57: 1620 | E57: 782 | F57: 227 | G57: 188 | H57: 445 | I57: 0 | J57: 341 | K57: 3609
A58: 첨단로봇·제조 | B58: 가상제조 | C58: 0 | D58: 56 | E58: 69 | F58: 7 | G58: 0 | H58: 69 | I58: 0 | J58: 0 | K58: 202
B59: 로봇 정밀제어·구동 부품·SW | C59: 11 | D59: 350 | E59: 187 | F59: 12 | G59: 12 | H59: 397 | I59: 0 | J59: 62 | K59: 1031
B60: 로봇 자율이동 | C60: 9 | D60: 546 | E60: 71 | F60: 4 | G60: 13 | H60: 94 | I60: 0 | J60: 26 | K60: 762
B61: 인간·로봇 상호작용 | C61: 19 | D61: 248 | E61: 261 | F61: 22 | G61: 27 | H61: 142 | I61: 0 | J61: 26 | K61: 744
B62: 고난도 자율조작 | C62: 0 | D62: 115 | E62: 51 | F62: 0 | G62: 0 | H62: 33 | I62: 0 | J62: 2 | K62: 201
B63: 소계 | C63: 39 | D63: 1314 | E63: 639 | F63: 44 | G63: 52 | H63: 735 | I63: 0 | J63: 116 | K63: 2939
A64: 양자 | B64: 양자통신 | C64: 0 | D64: 99 | E64: 190 | F64: 6 | G64: 0 | H64: 12 | I64: 0 | J64: 0 | K64: 308
B65: 양자컴퓨팅 | C65: 0 | D65: 593 | E65: 679 | F65: 8 | G65: 0 | H65: 15 | I65: 0 | J65: 16 | K65: 1310
B66: 양자센싱 | C66: 0 | D66: 257 | E66: 120 | F66: 0 | G66: 0 | H66: 18 | I66: 0 | J66: 0 | K66: 395
B67: 소계 | C67: 0 | D67: 949 | E67: 989 | F67: 14 | G67: 0 | H67: 45 | I67: 0 | J67: 16 | K67: 2013
A68: 기타 | B68: 위의 국가전략기술 분류에 속하지 않는 기타 연구 | C68: 12791 | D68: 82052 | E68: 39192 | F68: 6356 | G68: 16794 | H68: 45650 | I68: 745 | J68: 16511 | K68: 220092
A69: 합계 | C69: 14400 | D69: 104677 | E69: 64966 | F69: 8121 | G69: 18542 | H69: 58176 | I69: 755 | J69: 20528 | K69: 290164
A71: * 기술분야별 집행현황 분석은 인문사회 분야를 제외한 과학기술 분야와 국방(비밀 세부과제 포함) 분야의 연구개발사업이 분석대상(2023년의 경우에는 63,879개 세부과제, 29조 164억원)임
A72: * 출연연구소는 경제인문사회연구회, 국가과학기술연구회, 연구관리 전문기관, 기타 출연연 등의 R&D 관련 출연연구기관을 포함
A73: * 국공립연구소는 국립연구소와 지방자치단체의 공립연구소를 포함
A74: * 기타는 비영리법인, 연구조합, 협회, 학회, 정부투자기관 등을 포함

Sheet 3-5
A1: 3-5. 연구수행주체별 비목별 집행 추이, 2019-2023 | H1: 목차
T3: (단위 : 억원, %)
A4: 연도 | B4: 구분 | C4: 국공립연구소 | E4: 출연연구소 | G4: 대학 | I4: 대기업 | K4: 중견기업 | M4: 중소기업 | O4: 정부부처 | Q4: 기타 | S4: 합계
C5: 금액 | D5: 비중 | E5: 금액 | F5: 비중 | G5: 금액 | H5: 비중 | I5: 금액 | J5: 비중 | K5: 금액 | L5: 비중 | M5: 금액 | N5: 비중 | O5: 금액 | P5: 비중 | Q5: 금액 | R5: 비중 | S5: 금액 | T5: 비중
A6: 2019년 | B6: 인건비(현금) | C6: 3816 | D6: 36.5 | E6: 17305 | F6: 29.5 | G6: 12626 | H6: 28.6 | I6: 283 | J6: 9.1 | K6: 200 | L6: 3.2 | M6: 6764 | N6: 18.6 | O6: 19 | P6: 3.6 | Q6: 1670 | R6: 11.2 | S6: 42683 | T6: 24.5
B7: 직접비(현금) | C7: 6419 | D7: 61.4 | E7: 35769 | F7: 61 | G7: 24643 | H7: 55.8 | I7: 2657 | J7: 85.1 | K7: 5755 | L7: 91.2 | M7: 27315 | N7: 75.2 | O7: 513 | P7: 96.3 | Q7: 12090 | R7: 80.9 | S7: 115162 | T7: 66
B8: 간접비 | C8: 40 | D8: 0.4 | E8: 4135 | F8: 7.1 | G8: 6333 | H8: 14.3 | I8: 136 | J8: 4.3 | K8: 252 | L8: 4 | M8: 1344 | N8: 3.7 | O8: 0 | P8: 0 | Q8: 1063 | R8: 7.1 | S8: 13302 | T8: 7.6
B9: 위탁연구비 | C9: 175 | D9: 1.7 | E9: 1411 | F9: 2.4 | G9: 561 | H9: 1.3 | I9: 47 | J9: 1.5 | K9: 100 | L9: 1.6 | M9: 917 | N9: 2.5 | O9: 0 | P9: 0 | Q9: 125 | R9: 0.8 | S9: 3337 | T9: 1.9
B10: 소계 | C10: 10449 | D10: 100 | E10: 58620 | F10: 100 | G10: 44163 | H10: 100 | I10: 3123 | J10: 100 | K10: 6307 | L10: 100 | M10: 36340 | N10: 100 | O10: 532 | P10: 100 | Q10: 14949 | R10: 100 | S10: 174484 | T10: 100
B11: 물건비 | C11: 78 | E11: 9 | G11: 355 | I11: 0 | K11: 5 | M11: 54 | O11: 0 | Q11: 10 | S11: 511
B12: 합계 | C12: 10528 | E12: 58629 | G12: 44518 | I12: 3123 | K12: 6312 | M12: 36394 | O12: 532 | Q12: 14959 | S12: 174995
A13: 2020년 | B13: 인건비(현금) | C13: 3231 | D13: 29.4 | E13: 18584 | F13: 29.6 | G13: 14824 | H13: 29.6 | I13: 339 | J13: 7.4 | K13: 328 | L13: 4.1 | M13: 5126 | N13: 12.2 | O13: 35 | P13: 11.8 | Q13: 3294 | R13: 16.5 | S13: 45759 | T13: 23
B14: 직접비(현금) | C14: 7603 | D14: 69.1 | E14: 38195 | F14: 60.9 | G14: 27712 | H14: 55.3 | I14: 3989 | J14: 87.4 | K14: 7316 | L14: 91.1 | M14: 33983 | N14: 81.1 | O14: 256 | P14: 87.3 | Q14: 15190 | R14: 75.9 | S14: 134244 | T14: 67.6
B15: 간접비 | C15: 17 | D15: 0.2 | E15: 4428 | F15: 7.1 | G15: 7061 | H15: 14.1 | I15: 179 | J15: 3.9 | K15: 296 | L15: 3.7 | M15: 1567 | N15: 3.7 | O15: 3 | P15: 0.9 | Q15: 1352 | R15: 6.8 | S15: 14902 | T15: 7.5
B16: 위탁연구비 | C16: 150 | D16: 1.4 | E16: 1505 | F16: 2.4 | G16: 557 | H16: 1.1 | I16: 59 | J16: 1.3 | K16: 90 | L16: 1.1 | M16: 1210 | N16: 2.9 | O16: 0 | P16: 0 | Q16: 180 | R16: 0.9 | S16: 3751 | T16: 1.9
B17: 소계 | C17: 11001 | D17: 100 | E17: 62713 | F17: 100 | G17: 50153 | H17: 100 | I17: 4565 | J17: 100 | K17: 8030 | L17: 100 | M17: 41886 | N17: 100 | O17: 293 | P17: 100 | Q17: 20016 | R17: 100 | S17: 198657 | T17: 100
B18: 물건비 | C18: 324 | E18: 4 | G18: 1031 | I18: 0 | K18: 3 | M18: 0 | O18: 0 | Q18: 0 | S18: 1362
B19: 합계 | C19: 11325 | E19: 62717 | G19: 51184 | I19: 4565 | K19: 8033 | M19: 41886 | O19: 293 | Q19: 20016 | S19: 200019
A20: 2021년 | B20: 인건비(현금) | C20: 2812 | D20: 22.7 | E20: 20171 | F20: 30.1 | G20: 16974 | H20: 30 | I20: 270 | J20: 5.6 | K20: 448 | L20: 6 | M20: 5966 | N20: 11.7 | O20: 46 | P20: 9.4 | Q20: 4587 | R20: 17.7 | S20: 51276 | T20: 22.7
B21: 직접비(현금) | C21: 9390 | D21: 75.7 | E21: 40054 | F21: 59.7 | G21: 31177 | H21: 55.1 | I21: 4318 | J21: 89.1 | K21: 6614 | L21: 88 | M21: 41694 | N21: 81.6 | O21: 448 | P21: 90.5 | Q21: 19237 | R21: 74.4 | S21: 152932 | T21: 67.7
B22: 간접비 | C22: 35 | D22: 0.3 | E22: 4968 | F22: 7.4 | G22: 7834 | H22: 13.9 | I22: 216 | J22: 4.4 | K22: 358 | L22: 4.8 | M22: 2029 | N22: 4 | O22: 0 | P22: 0.1 | Q22: 1770 | R22: 6.8 | S22: 17211 | T22: 7.6
B23: 위탁연구비 | C23: 173 | D23: 1.4 | E23: 1867 | F23: 2.8 | G23: 559 | H23: 1 | I23: 42 | J23: 0.9 | K23: 98 | L23: 1.3 | M23: 1427 | N23: 2.8 | O23: 0 | P23: 0 | Q23: 252 | R23: 1 | S23: 4419 | T23: 2
B24: 소계 | C24: 12410 | D24: 100 | E24: 67061 | F24: 100 | G24: 56544 | H24: 100 | I24: 4846 | J24: 100 | K24: 7519 | L24: 100 | M24: 51117 | N24: 100 | O24: 495 | P24: 100 | Q24: 25847 | R24: 100 | S24: 225839 | T24: 100
B25: 물건비 | C25: 15 | E25: 5 | G25: 533 | I25: 0 | K25: 0 | M25: 8 | O25: 0 | Q25: 30 | S25: 592
B26: 합계 | C26: 12426 | E26: 67066 | G26: 57078 | I26: 4846 | K26: 7519 | M26: 51125 | O26: 495 | Q26: 25877 | S26: 226431
A27: 2022년 | B27: 인건비(현금) | C27: 3075 | D27: 23.1 | E27: 20585 | F27: 28.7 | G27: 18987 | H27: 30 | I27: 384 | J27: 7.6 | K27: 623 | L27: 6.4 | M27: 7138 | N27: 12.8 | O27: 46 | P27: 7.3 | Q27: 5172 | R27: 20.9 | S27: 56009 | T27: 22.9
B28: 직접비(현금) | C28: 10038 | D28: 75.3 | E28: 44099 | F28: 61.4 | G28: 35256 | H28: 55.7 | I28: 4332 | J28: 86.1 | K28: 8541 | L28: 88.4 | M28: 44528 | N28: 79.7 | O28: 578 | P28: 92.7 | Q28: 17329 | R28: 70.2 | S28: 164701 | T28: 67.4
B29: 간접비 | C29: 18 | D29: 0.1 | E29: 5408 | F29: 7.5 | G29: 8476 | H29: 13.4 | I29: 278 | J29: 5.5 | K29: 445 | L29: 4.6 | M29: 2422 | N29: 4.3 | O29: 0 | P29: 0.1 | Q29: 1923 | R29: 7.8 | S29: 18970 | T29: 7.8
B30: 위탁연구비 | C30: 192 | D30: 1.4 | E30: 1709 | F30: 2.4 | G30: 549 | H30: 0.9 | I30: 39 | J30: 0.8 | K30: 56 | L30: 0.6 | M30: 1813 | N30: 3.2 | O30: 0 | P30: 0 | Q30: 274 | R30: 1.1 | S30: 4633 | T30: 1.9
B31: 소계 | C31: 13323 | D31: 100 | E31: 71802 | F31: 100 | G31: 63267 | H31: 100 | I31: 5033 | J31: 100 | K31: 9665 | L31: 100 | M31: 55902 | N31: 100 | O31: 624 | P31: 100 | Q31: 24698 | R31: 100 | S31: 244313 | T31: 100
B32: 물건비 | C32: 19 | E32: 49 | G32: 0 | I32: 0 | K32: 0 | M32: 5 | O32: 0 | Q32: 0 | S32: 72
B33: 합계 | C33: 13341 | E33: 71851 | G33: 63267 | I33: 5033 | K33: 9665 | M33: 55907 | O33: 624 | Q33: 24698 | S33: 244386
A34: 2023년 | B34: 인건비(현금) | C34: 4693 | D34: 31.7 | E34: 20672 | F34: 27.5 | G34: 20492 | H34: 30.7 | I34: 404 | J34: 7 | K34: 712 | L34: 6.8 | M34: 10392 | N34: 17.8 | O34: 49 | P34: 6.5 | Q34: 5317 | R34: 21.4 | S34: 62731 | T34: 24.4
B35: 직접비(현금) | C35: 9792 | D35: 66.2 | E35: 47727 | F35: 63.6 | G35: 37313 | H35: 55.9 | I35: 5099 | J35: 87.7 | K35: 9249 | L35: 87.9 | M35: 43991 | N35: 75.4 | O35: 702 | P35: 93.3 | Q35: 17374 | R35: 70 | S35: 171248 | T35: 66.6
B36: 간접비 | C36: 125 | D36: 0.8 | E36: 4869 | F36: 6.5 | G36: 8400 | H36: 12.6 | I36: 292 | J36: 5 | K36: 511 | L36: 4.9 | M36: 2516 | N36: 4.3 | O36: 1 | P36: 0.2 | Q36: 1895 | R36: 7.6 | S36: 18609 | T36: 7.2
B37: 위탁연구비 | C37: 188 | D37: 1.3 | E37: 1782 | F37: 2.4 | G37: 587 | H37: 0.9 | I37: 20 | J37: 0.3 | K37: 53 | L37: 0.5 | M37: 1480 | N37: 2.5 | O37: 0 | P37: 0 | Q37: 248 | R37: 1 | S37: 4359 | T37: 1.7
B38: 소계 | C38: 14797 | D38: 100 | E38: 75050 | F38: 100 | G38: 66793 | H38: 100 | I38: 5815 | J38: 100 | K38: 10524 | L38: 100 | M38: 58379 | N38: 100 | O38: 753 | P38: 100 | Q38: 24835 | R38: 100 | S38: 256946 | T38: 100
B39: 물건비 | C39: 18 | E39: 0 | G39: 0 | I39: 0 | K39: 0 | M39: 12 | O39: 2 | Q39: 0 | S39: 32
B40: 합계 | C40: 14816 | E40: 75050 | G40: 66793 | I40: 5815 | K40: 10524 | M40: 58390 | O40: 755 | Q40: 24835 | S40: 256978
A42: * 비목별 집행현황은 인문사회 및 국방(비밀 세부과제 포함) 분야를 제외한 63,014개 세부과제, 정부연구비(24조 3,366억원)와 대응자금(현금)(1조 3,611억원) 합계(25조 6,978억원)의 비목별 비중을 산출

Sheet 4-1
A1: 4-1. 연구개발단계별 연구수행주체 집행 추이, 2019-2023 | H1: 목차
L3: (단위 : 억원, %)
A4: 구 분 | C4: 2019년 | E4: 2020년 | G4: 2021년 | I4: 2022년 | K4: 2023년
C5: 금액 | D5: 비중 | E5: 금액 | F5: 비중 | G5: 금액 | H5: 비중 | I5: 금액 | J5: 비중 | K5: 금액 | L5: 비중
A6: 기초연구 | B6: 국공립연구소 | C6: 1820 | D6: 3.9 | E6: 1863 | F6: 3.7 | G6: 1791 | H6: 3.4 | I6: 2300 | J6: 4 | K6: 2289 | L6: 4
B7: 출연연구소 | C7: 16623 | D7: 35.8 | E7: 17692 | F7: 34.9 | G7: 16935 | H7: 31.9 | I7: 18330 | J7: 31.6 | K7: 17056 | L7: 29.6
B8: 대학 | C8: 24777 | D8: 53.4 | E8: 27598 | F8: 54.4 | G8: 30911 | H8: 58.2 | I8: 33744 | J8: 58.2 | K8: 34617 | L8: 60
B9: 대기업 | C9: 147 | D9: 0.3 | E9: 179 | F9: 0.4 | G9: 113 | H9: 0.2 | I9: 193 | J9: 0.3 | K9: 229 | L9: 0.4
B10: 중견기업 | C10: 216 | D10: 0.5 | E10: 307 | F10: 0.6 | G10: 237 | H10: 0.4 | I10: 172 | J10: 0.3 | K10: 228 | L10: 0.4
B11: 중소기업 | C11: 1393 | D11: 3 | E11: 1704 | F11: 3.4 | G11: 1432 | H11: 2.7 | I11: 1431 | J11: 2.5 | K11: 1512 | L11: 2.6
B12: 정부부처 | C12: 117 | D12: 0.3 | E12: 70 | F12: 0.1 | G12: 9 | H12: 0 | I12: 29 | J12: 0 | K12: 6 | L12: 0
B13: 기타 | C13: 1322 | D13: 2.8 | E13: 1301 | F13: 2.6 | G13: 1639 | H13: 3.1 | I13: 1825 | J13: 3.1 | K13: 1776 | L13: 3.1
B14: 합계 | C14: 46415 | D14: 100 | E14: 50714 | F14: 100 | G14: 53068 | H14: 100 | I14: 58024 | J14: 100 | K14: 57714 | L14: 100
A15: 응용연구 | B15: 국공립연구소 | C15: 1862 | D15: 6.1 | E15: 2024 | F15: 5.2 | G15: 2701 | H15: 5.9 | I15: 3077 | J15: 5.9 | K15: 3144 | L15: 5.3
B16: 출연연구소 | C16: 14767 | D16: 48.5 | E16: 15900 | F16: 40.9 | G16: 19404 | H16: 42.5 | I16: 22989 | J16: 43.9 | K16: 27067 | L16: 45.9
B17: 대학 | C17: 5223 | D17: 17.1 | E17: 6586 | F17: 16.9 | G17: 8481 | H17: 18.6 | I17: 9443 | J17: 18 | K17: 9184 | L17: 15.6
B18: 대기업 | C18: 478 | D18: 1.6 | E18: 963 | F18: 2.5 | G18: 1256 | H18: 2.8 | I18: 1993 | J18: 3.8 | K18: 3479 | L18: 5.9
B19: 중견기업 | C19: 1006 | D19: 3.3 | E19: 2316 | F19: 6 | G19: 1993 | H19: 4.4 | I19: 2792 | J19: 5.3 | K19: 3763 | L19: 6.4
B20: 중소기업 | C20: 5165 | D20: 17 | E20: 8366 | F20: 21.5 | G20: 8584 | H20: 18.8 | I20: 8558 | J20: 16.4 | K20: 9314 | L20: 15.8
B21: 정부부처 | C21: 10 | D21: 0 | E21: 31 | F21: 0.1 | G21: 128 | H21: 0.3 | I21: 130 | J21: 0.2 | K21: 76 | L21: 0.1
B22: 기타 | C22: 1948 | D22: 6.4 | E22: 2720 | F22: 7 | G22: 3073 | H22: 6.7 | I22: 3355 | J22: 6.4 | K22: 2926 | L22: 5
B23: 합계 | C23: 30458 | D23: 100 | E23: 38907 | F23: 100 | G23: 45620 | H23: 100 | I23: 52338 | J23: 100 | K23: 58953 | L23: 100
A24: 개발연구 | B24: 국공립연구소 | C24: 810 | D24: 1.2 | E24: 867 | F24: 1.1 | G24: 1066 | H24: 1.1 | I24: 1030 | J24: 1.1 | K24: 1316 | L24: 1.3
B25: 출연연구소 | C25: 16125 | D25: 24.9 | E25: 21057 | F25: 26.7 | G25: 23180 | H25: 24.5 | I25: 21784 | J25: 22.5 | K25: 24769 | L25: 24.7
B26: 대학 | C26: 5785 | D26: 8.9 | E26: 6866 | F26: 8.7 | G26: 8015 | H26: 8.5 | I26: 8734 | J26: 9 | K26: 8389 | L26: 8.4
B27: 대기업 | C27: 3032 | D27: 4.7 | E27: 2337 | F27: 3 | G27: 2497 | H27: 2.6 | I27: 3386 | J27: 3.5 | K27: 4141 | L27: 4.1
B28: 중견기업 | C28: 12269 | D28: 18.9 | E28: 14631 | F28: 18.6 | G28: 13642 | H28: 14.4 | I28: 14905 | J28: 15.4 | K28: 12041 | L28: 12
B29: 중소기업 | C29: 22423 | D29: 34.6 | E29: 27385 | F29: 34.8 | G29: 37694 | H29: 39.9 | I29: 41358 | J29: 42.6 | K29: 43555 | L29: 43.4
B30: 정부부처 | C30: 1311 | D30: 2 | E30: 1673 | F30: 2.1 | G30: 2178 | H30: 2.3 | I30: 48 | J30: 0 | K30: 115 | L30: 0.1
B31: 기타 | C31: 3129 | D31: 4.8 | E31: 3938 | F31: 5 | G31: 6294 | H31: 6.7 | I31: 5787 | J31: 6 | K31: 6062 | L31: 6
B32: 합계 | C32: 64883 | D32: 100 | E32: 78754 | F32: 100 | G32: 94566 | H32: 100 | I32: 97032 | J32: 100 | K32: 100389 | L32: 100
A34: * ｢2013년 국가연구개발사업 조사분석 시행계획｣에 따라 ’13년도부터 연구수행주체의 분류에 ‘중견기업’ 항목이 추가됨
A35: * 출연연구소는 경제인문사회연구회, 국가과학기술연구회, 연구관리 전문기관, 기타 출연연 등의 R&D 관련 출연연구기관을 포함
A36: * 국공립연구소는 국립연구소와 지방자치단체의 공립연구소를 포함
A37: * 기타는 비영리법인, 연구조합, 협회, 학회, 정부투자기관 등을 포함

Sheet 4-2
A1: 4-2. 연구개발단계별 국가과학기술표준분류 연구분류별 집행 현황(2023년) | G1: 목차
G3: (단위 : 억원)
A4: 대분류 | B4: 중분류 | C4: 기초연구 | D4: 응용연구 | E4: 개발연구 | F4: 기타 | G4: 합계
A5: 수학 | B5: 기하학 | C5: 84 | D5: - | E5: - | F5: 1 | G5: 84
B6: 대수학 | C6: 123 | D6: - | E6: - | F6: 8 | G6: 131
B7: 위상수학 | C7: 60 | D7: - | E7: - | F7: - | G7: 60
B8: 응용수학 | C8: 216 | D8: 24 | E8: 12 | F8: 1 | G8: 253
B9: 응용통계 | C9: 72 | D9: 12 | E9: 54 | F9: 47 | G9: 185
B10: 이산/정보수학 | C10: 93 | D10: 27 | E10: 13 | F10: 5 | G10: 137
B11: 통계 방법론·계산 | C11: 73 | D11: 9 | E11: 2 | F11: 2 | G11: 86
B12: 통계이론 | C12: 45 | D12: 5 | E12: - | F12: - | G12: 49
B13: 해석학 | C13: 167 | D13: - | E13: 1 | F13: 0 | G13: 168
B14: 확률/확률과정 | C14: 31 | D14: 0 | E14: - | F14: 0 | G14: 32
B15: 기타 수학 | C15: 74 | D15: 2 | E15: - | F15: 75 | G15: 152
B16: 합계 | C16: 1038 | D16: 79 | E16: 81 | F16: 139 | G16: 1337
A17: 물리학 | B17: 광학·양자전자학 | C17: 450 | D17: 230 | E17: 189 | F17: 15 | G17: 884
B18: 복합물리 | C18: 117 | D18: 1 | E18: 7 | F18: 38 | G18: 163
B19: 원자/분자물리 | C19: 492 | D19: 90 | E19: 80 | F19: 8 | G19: 670
B20: 유체·플라즈마물리 | C20: 278 | D20: 22 | E20: 32 | F20: 556 | G20: 887
B21: 응집물질물리 | C21: 1285 | D21: 36 | E21: 170 | F21: 7 | G21: 1498
B22: 입자/장물리 | C22: 1084 | D22: 612 | E22: 8 | F22: 264 | G22: 1967
B23: 천체물리 | C23: 103 | D23: - | E23: 0 | F23: - | G23: 103
B24: 통계물리 | C24: 69 | D24: 2 | E24: - | F24: - | G24: 71
B25: 핵물리 | C25: 193 | D25: - | E25: 1 | F25: 8 | G25: 202
B26: 기타 물리학 | C26: 146 | D26: 11 | E26: - | F26: 26 | G26: 183
B27: 합계 | C27: 4217 | D27: 1003 | E27: 487 | F27: 922 | G27: 6628
A28: 화학 | B28: 고분자화학 | C28: 224 | D28: 134 | E28: 554 | F28: 143 | G28: 1054
B29: 광화학 | C29: 25 | D29: 8 | E29: 30 | F29: 0 | G29: 63
B30: 무기화학 | C30: 232 | D30: 29 | E30: 100 | F30: 5 | G30: 365
B31: 물리화학 | C31: 337 | D31: 7 | E31: 17 | F31: 5 | G31: 366
B32: 분석화학 | C32: 188 | D32: 19 | E32: 91 | F32: 35 | G32: 332
B33: 생화학 | C33: 77 | D33: 2 | E33: 14 | F33: 1 | G33: 94
B34: 유기화학 | C34: 430 | D34: 58 | E34: 119 | F34: 24 | G34: 632
B35: 융합화학 | C35: 86 | D35: 12 | E35: 37 | F35: 27 | G35: 162
B36: 재료화학 | C36: 368 | D36: 162 | E36: 192 | F36: 292 | G36: 1014
B37: 전기화학 | C37: 202 | D37: 109 | E37: 169 | F37: 5 | G37: 484
B38: 기타 화학 | C38: 95 | D38: 7 | E38: 97 | F38: 662 | G38: 861
B39: 합계 | C39: 2265 | D39: 546 | E39: 1419 | F39: 1199 | G39: 5428
A40: 지구과학(지구/대기/해양/천문) | B40: 극지과학 | C40: 720 | D40: 395 | E40: 466 | F40: 1 | G40: 1582
B41: 기상과학 | C41: 38 | D41: 482 | E41: 119 | F41: 129 | G41: 768
B42: 기후과학 | C42: 293 | D42: 231 | E42: 35 | F42: 5 | G42: 563
B43: 대기과학 | C43: 170 | D43: 107 | E43: 36 | F43: 1 | G43: 313
B44: 우주과학 | C44: 183 | D44: 24 | E44: 405 | F44: 11 | G44: 623
B45: 자연재해 분석/예측 | C45: 183 | D45: 158 | E45: 134 | F45: 4 | G45: 479
B46: 지구물리학 | C46: 211 | D46: 50 | E46: 5 | F46: 2 | G46: 268
B47: 지구화학 | C47: 38 | D47: 9 | E47: - | F47: 2 | G47: 48
B48: 지질과학 | C48: 244 | D48: 35 | E48: 8 | F48: 427 | G48: 715
B49: 천문우주관측기술 | C49: 290 | D49: 49 | E49: 38 | F49: 0 | G49: 377
B50: 천문학 | C50: 326 | D50: 0 | E50: 15 | F50: 14 | G50: 355
B51: 해양과학 | C51: 260 | D51: 199 | E51: 145 | F51: 136 | G51: 740
B52: 해양생명 | C52: 74 | D52: 108 | E52: 69 | F52: - | G52: 252
B53: 해양자원 | C53: 150 | D53: 166 | E53: 104 | F53: - | G53: 420
B54: 기타 지구과학 | C54: 51 | D54: 3 | E54: 3 | F54: 16 | G54: 73
B55: 합계 | C55: 3230 | D55: 2016 | E55: 1582 | F55: 748 | G55: 7576
A56: 생명과학 | B56: 면역학/생리학 | C56: 522 | D56: 67 | E56: 78 | F56: 38 | G56: 704
B57: 발생/신경생물학 | C57: 797 | D57: 85 | E57: 47 | F57: 8 | G57: 937
B58: 분류/생태/환경생물학 | C58: 519 | D58: 73 | E58: 48 | F58: 16 | G58: 656
B59: 분자세포생물학 | C59: 1550 | D59: 48 | E59: 70 | F59: 32 | G59: 1699
B60: 산업바이오 | C60: 142 | D60: 212 | E60: 754 | F60: 286 | G60: 1395
B61: 생물공학 | C61: 347 | D61: 147 | E61: 169 | F61: 81 | G61: 744
B62: 생물위해성 | C62: 59 | D62: 55 | E62: 37 | F62: 8 | G62: 159
B63: 생화학/구조생물학 | C63: 437 | D63: 48 | E63: 45 | F63: 10 | G63: 540
B64: 유전학·유전체학 | C64: 693 | D64: 106 | E64: 186 | F64: 43 | G64: 1027
B65: 융합바이오 | C65: 895 | D65: 386 | E65: 497 | F65: 99 | G65: 1877
B66: 기타 생명과학 | C66: 446 | D66: 88 | E66: 56 | F66: 791 | G66: 1380
B67: 합계 | C67: 6408 | D67: 1314 | E67: 1985 | F67: 1412 | G67: 11120
A68: 농림수산식품 | B68: 농림수산식품경영/정보 등 | C68: 17 | D68: 65 | E68: 86 | F68: 11 | G68: 179
B69: 농생물학 | C69: 223 | D69: 344 | E69: 185 | F69: 302 | G69: 1054
B70: 농수축산물 품질·안전 관리 | C70: 102 | D70: 117 | E70: 89 | F70: 42 | G70: 348
B71: 농업·식품 기계·설비 | C71: 116 | D71: 278 | E71: 487 | F71: 166 | G71: 1047
B72: 농업인프라 공학 | C72: 18 | D72: 78 | E72: 51 | F72: 192 | G72: 339
B73: 농업환경생태 | C73: 54 | D73: 348 | E73: 101 | F73: 226 | G73: 729
B74: 농화학 | C74: 70 | D74: 163 | E74: 86 | F74: 41 | G74: 359
B75: 동물자원과학 | C75: 284 | D75: 448 | E75: 274 | F75: 305 | G75: 1310
B76: 산림자원학 | C76: 454 | D76: 377 | E76: 98 | F76: 306 | G76: 1235
B77: 수산양식 | C77: 180 | D77: 133 | E77: 282 | F77: 31 | G77: 626
B78: 수산자원/어장환경 | C78: 183 | D78: 8 | E78: 77 | F78: - | G78: 269
B79: 수의과학 | C79: 336 | D79: 152 | E79: 231 | F79: 317 | G79: 1036
B80: 식량작물과학 | C80: 399 | D80: 425 | E80: 237 | F80: 632 | G80: 1694
B81: 식품과학 | C81: 387 | D81: 184 | E81: 422 | F81: 100 | G81: 1094
B82: 식품영양과학 | C82: 201 | D82: 144 | E82: 286 | F82: 59 | G82: 691
B83: 식품조리/외식/식생활개선 | C83: 6 | D83: 7 | E83: 36 | F83: 18 | G83: 66
B84: 어업생산/이용가공 | C84: 15 | D84: 27 | E84: 165 | F84: 3 | G84: 210
B85: 원예특용작물과학 | C85: 260 | D85: 524 | E85: 668 | F85: 851 | G85: 2304
B86: 임산공학 | C86: 56 | D86: 18 | E86: 91 | F86: - | G86: 165
B87: 조경학 | C87: 20 | D87: 5 | E87: 14 | F87: 6 | G87: 46
B88: 기타 농림수산식품 | C88: 88 | D88: 186 | E88: 102 | F88: 1970 | G88: 2345
B89: 합계 | C89: 3468 | D89: 4030 | E89: 4069 | F89: 5579 | G89: 17146
A90: 보건의료 | B90: 간호과학 | C90: 198 | D90: 15 | E90: 35 | F90: 9 | G90: 257
B91: 독성·안전성 평가·관리 | C91: 246 | D91: 194 | E91: 137 | F91: 220 | G91: 797
B92: 보건학 | C92: 294 | D92: 89 | E92: 106 | F92: 125 | G92: 614
B93: 식품안전관리 | C93: 82 | D93: 23 | E93: 35 | F93: 29 | G93: 169
B94: 신약·의약품개발 | C94: 2062 | D94: 1412 | E94: 2423 | F94: 834 | G94: 6732
B95: 영양관리 | C95: 29 | D95: 2 | E95: 11 | F95: 1 | G95: 44
B96: 의료기기 | C96: 602 | D96: 671 | E96: 3206 | F96: 493 | G96: 4973
B97: 의료기기·S/W 안전관리 | C97: 64 | D97: 43 | E97: 198 | F97: 152 | G97: 456
B98: 의료정보/ 시스템 | C98: 137 | D98: 253 | E98: 724 | F98: 228 | G98: 1342
B99: 의생명과학 | C99: 2693 | D99: 341 | E99: 354 | F99: 184 | G99: 3572
B100: 의약품안전관리 | C100: 68 | D100: 66 | E100: 55 | F100: 70 | G100: 260
B101: 임상의학 | C101: 1671 | D101: 570 | E101: 801 | F101: 516 | G101: 3557
B102: 치의과학 | C102: 305 | D102: 36 | E102: 141 | F102: 22 | G102: 503
B103: 한의과학 | C103: 412 | D103: 137 | E103: 122 | F103: 342 | G103: 1013
B104: 기타 보건의료 | C104: 217 | D104: 150 | E104: 241 | F104: 3015 | G104: 3624
B105: 합계 | C105: 9079 | D105: 4002 | E105: 8589 | F105: 6241 | G105: 27912
A106: 기계 | B106: 국방기계 | C106: 163 | D106: 3117 | E106: 7155 | F106: 2217 | G106: 12652
B107: 나노/마이크로기계시스템 | C107: 365 | D107: 163 | E107: 256 | F107: 54 | G107: 837
B108: 로봇/자동화기계 | C108: 498 | D108: 787 | E108: 2039 | F108: 502 | G108: 3827
B109: 산업/일반기계 | C109: 37 | D109: 109 | E109: 735 | F109: 301 | G109: 1182
B110: 생산기반기술 | C110: 222 | D110: 201 | E110: 589 | F110: 420 | G110: 1432
B111: 에너지/환경기계시스템 | C111: 276 | D111: 589 | E111: 1402 | F111: 102 | G111: 2368
B112: 요소부품 | C112: 24 | D112: 101 | E112: 524 | F112: 88 | G112: 737
B113: 우주시스템 | C113: 375 | D113: 518 | E113: 2565 | F113: 1475 | G113: 4932
B114: 자동차/철도차량 | C114: 236 | D114: 693 | E114: 4141 | F114: 1406 | G114: 6477
B115: 재난안전기계 | C115: 30 | D115: 134 | E115: 374 | F115: 46 | G115: 584
B116: 정밀생산기계 | C116: 82 | D116: 165 | E116: 675 | F116: 233 | G116: 1156
B117: 조선/해양시스템 | C117: 369 | D117: 275 | E117: 1615 | F117: 753 | G117: 3013
B118: 측정표준/시험평가기술 | C118: 392 | D118: 162 | E118: 230 | F118: 638 | G118: 1421
B119: 항공시스템 | C119: 160 | D119: 1134 | E119: 1467 | F119: 493 | G119: 3253
B120: 기타 기계 | C120: 94 | D120: 194 | E120: 177 | F120: 1927 | G120: 2392
B121: 합계 | C121: 3322 | D121: 8342 | E121: 23945 | F121: 10655 | G121: 46264
A122: 재료 | B122: 고분자재료 | C122: 586 | D122: 515 | E122: 1027 | F122: 211 | G122: 2340
B123: 국방소재 | C123: 69 | D123: 454 | E123: 149 | F123: 41 | G123: 713
B124: 금속재료 | C124: 700 | D124: 1311 | E124: 1091 | F124: 535 | G124: 3636
B125: 분석/물성 평가기술 | C125: 206 | D125: 71 | E125: 131 | F125: 27 | G125: 435
B126: 세라믹재료 | C126: 517 | D126: 299 | E126: 797 | F126: 150 | G126: 1763
B127: 소성가공/분말 | C127: 29 | D127: 272 | E127: 629 | F127: 42 | G127: 971
B128: 열/표면처리 | C128: 92 | D128: 84 | E128: 411 | F128: 63 | G128: 650
B129: 주조/용접/접합 | C129: 19 | D129: 106 | E129: 551 | F129: 19 | G129: 696
B130: 기타 재료 | C130: 176 | D130: 38 | E130: 129 | F130: 409 | G130: 751
B131: 합계 | C131: 2395 | D131: 3150 | E131: 4916 | F131: 1496 | G131: 11956
A132: 화공 | B132: 고분자 공정기술 | C132: 231 | D132: 135 | E132: 259 | F132: 50 | G132: 675
B133: 나노 화학공정기술 | C133: 519 | D133: 196 | E133: 253 | F133: 78 | G133: 1046
B134: 무기화생방/화력탄약 | C134: 3 | D134: 534 | E134: 116 | F134: 81 | G134: 734
B135: 생물화학 공정기술 | C135: 226 | D135: 114 | E135: 56 | F135: 26 | G135: 423
B136: 섬유제조 | C136: 37 | D136: 73 | E136: 335 | F136: 70 | G136: 515
B137: 섬유제품 | C137: 50 | D137: 183 | E137: 582 | F137: 167 | G137: 982
B138: 염색가공 | C138: 1 | D138: 4 | E138: 77 | F138: 3 | G138: 85
B139: 정밀화학 | C139: 103 | D139: 188 | E139: 578 | F139: 115 | G139: 984
B140: 화학공정 | C140: 553 | D140: 472 | E140: 542 | F140: 106 | G140: 1673
B141: 화학공정 안전기술 | C141: 5 | D141: 50 | E141: 24 | F141: 17 | G141: 96
B142: 화학제품 | C142: 4 | D142: 39 | E142: 177 | F142: 27 | G142: 246
B143: 기타 화공 | C143: 35 | D143: 18 | E143: 20 | F143: 100 | G143: 173
B144: 합계 | C144: 1768 | D144: 2007 | E144: 3017 | F144: 840 | G144: 7632
A145: 전기/전자 | B145: 가정용기기/전자응용기기 | C145: 12 | D145: 38 | E145: 374 | F145: 133 | G145: 556
B146: 계측기기 | C146: 82 | D146: 109 | E146: 657 | F146: 82 | G146: 930
B147: 광응용기기 | C147: 254 | D147: 398 | E147: 609 | F147: 196 | G147: 1458
B148: 디스플레이 | C148: 147 | D148: 606 | E148: 1894 | F148: 330 | G148: 2977
B149: 무기센서 및 제어 | C149: 331 | D149: 3013 | E149: 2787 | F149: 296 | G149: 6427
B150: 반도체 소자·회로 | C150: 1247 | D150: 1395 | E150: 2127 | F150: 941 | G150: 5710
B151: 반도체장비 | C151: 117 | D151: 180 | E151: 1576 | F151: 367 | G151: 2240
B152: 영상/음향기기 | C152: 98 | D152: 169 | E152: 202 | F152: 7 | G152: 476
B153: 전기전자부품 | C153: 122 | D153: 207 | E153: 1261 | F153: 279 | G153: 1869
B154: 전지 | C154: 296 | D154: 676 | E154: 1072 | F154: 558 | G154: 2602
B155: 중전기기 | C155: 219 | D155: 243 | E155: 1190 | F155: 214 | G155: 1866
B156: 기타 전기/전자 | C156: 168 | D156: 8517 | E156: 240 | F156: 942 | G156: 9866
B157: 합계 | C157: 3092 | D157: 15549 | E157: 13990 | F157: 4346 | G157: 36977
A158: 정보/통신 | B158: 국방정보통신 | C158: 69 | D158: 1108 | E158: 2161 | F158: 75 | G158: 3412
B159: 디지털 방송·콘텐츠 | C159: 87 | D159: 248 | E159: 125 | F159: 22 | G159: 483
B160: 무선 통신·네트워크 | C160: 273 | D160: 442 | E160: 778 | F160: 181 | G160: 1673
B161: 소프트웨어 | C161: 555 | D161: 1444 | E161: 4621 | F161: 381 | G161: 7001
B162: 위성/전파 | C162: 336 | D162: 796 | E162: 2001 | F162: 219 | G162: 3353
B163: 유선 통신·네트워크 | C163: 100 | D163: 200 | E163: 210 | F163: 138 | G163: 648
B164: 재난정보통신 | C164: 43 | D164: 197 | E164: 443 | F164: 5 | G164: 688
B165: 정보보호 | C165: 451 | D165: 893 | E165: 942 | F165: 620 | G165: 2906
B166: 정보이론 | C166: 1572 | D166: 2503 | E166: 2154 | F166: 699 | G166: 6929
B167: 정보통신 모듈/부품 | C167: 104 | D167: 385 | E167: 679 | F167: 192 | G167: 1359
B168: 정보통신 융합 디바이스 | C168: 30 | D168: 97 | E168: 274 | F168: 34 | G168: 436
B169: 정보통신 융합 서비스 | C169: 108 | D169: 211 | E169: 546 | F169: 43 | G169: 909
B170: 기타 정보/통신 | C170: 280 | D170: 304 | E170: 554 | F170: 1756 | G170: 2894
B171: 합계 | C171: 4008 | D171: 8829 | E171: 15490 | F171: 4365 | G171: 32692
A172: 에너지/자원 | B172: 가스에너지 | C172: 37 | D172: 42 | E172: 293 | F172: 14 | G172: 386
B173: 수화력발전 | C173: 9 | D173: 98 | E173: 313 | F173: 24 | G173: 444
B174: 스마트그리드 | C174: 123 | D174: 217 | E174: 721 | F174: 73 | G174: 1135
B175: 신재생에너지 | C175: 965 | D175: 1437 | E175: 3493 | F175: 916 | G175: 6810
B176: 온실가스 처리 | C176: 319 | D176: 159 | E176: 568 | F176: 27 | G176: 1072
B177: 자원탐사/개발/활용 | C177: 402 | D177: 132 | E177: 229 | F177: 36 | G177: 799
B178: 전력시스템 | C178: 119 | D178: 140 | E178: 566 | F178: 146 | G178: 972
B179: 기타 에너지/자원 | C179: 85 | D179: 68 | E179: 191 | F179: 860 | G179: 1204
B180: 합계 | C180: 2058 | D180: 2293 | E180: 6374 | F180: 2097 | G180: 12823
A181: 원자력 | B181: 방사선기술 | C181: 136 | D181: 119 | E181: 314 | F181: 72 | G181: 641
B182: 원자력 기반기술 | C182: 62 | D182: 42 | E182: 70 | F182: 90 | G182: 264
B183: 원자력계측/제어기술 | C183: 30 | D183: 44 | E183: 177 | F183: 6 | G183: 257
B184: 원자력시설 건설·운영·해체 | C184: 4 | D184: 9 | E184: 480 | F184: 59 | G184: 552
B185: 원자력안전기술 | C185: 214 | D185: 361 | E185: 468 | F185: 63 | G185: 1106
B186: 원자로계통/핵심기기기술 | C186: 64 | D186: 12 | E186: 111 | F186: 18 | G186: 205
B187: 원자로노심기술 | C187: 58 | D187: 13 | E187: 37 | F187: 6 | G187: 113
B188: 핵연료/원자력소재 | C188: 93 | D188: 61 | E188: 173 | F188: 10 | G188: 337
B189: 핵연료주기/방사성폐기물관리기술 | C189: 301 | D189: 265 | E189: 611 | F189: 198 | G189: 1375
B190: 핵융합 | C190: 1312 | D190: 22 | E190: 3 | F190: 23 | G190: 1359
B191: 기타 원자력 | C191: 91 | D191: 139 | E191: 83 | F191: 1305 | G191: 1617
